Workbook

Sheet Design Converter
A1: LM34936 DC/DC Controller Design Tool
O2: http://www.ti.com/product/lm34936
A3: About | C3: xx | F3: = Input Box | O3: TERMS OF USE
A5: Step 1: Operating Specifications | L5: =Licenses!B5 -> 1.0.1 | M5: February 2026
D6: Input Voltage - Min, VIN(min) | E6: 6 | F6: V
D7: Input Voltage - Nom, VIN(nom) | E7: 12 | F7: V
D8: Input Voltage - Max, VIN(max) | E8: 30 | F8: V
D9: Output Voltage, VOUT | E9: 12 | F9: V
D10: Full Load Output Current, IOUT(max) | E10: 12 | F10: A
D11: Switching Frequency | E11: 250 | F11: kHz
D12: Frequency Set Resistor, RT | E12: =IF('Standard Value Calculator'!O4/1000>288, "N/A",'Standard Value Calculator'!O4/1000) -> 33.2 | F12: kΩ
A14: Step 2: Filter Inductor
D15: Recommended Filter Inductance | E15: =Lopt*1000000 -> 2.25 | F15: µH
D16: Inductance, LF | E16: 4.7 | F16: µH
D17: Inductor DCR | E17: 3.35 | F17: mΩ
D18: Pk-to-Pk Ripple Current at VIN(min), DIL1 | E18: ='Variable Management'!B78 -> 2.614445187 | F18: Apk-pk
D19: Pk-to-Pk Ripple Current at VIN(nom), DIL2 | E19: ='Variable Management'!B79 -> 0.03818389058 | F19: Apk-pk
D20: Pk-to-Pk Ripple Current at VIN(max), DIL3 | E20: ='Variable Management'!B80 -> 6.162837333 | F20: Apk-pk
D21: DIL as a % at VIN(min) | E21: ='Variable Management'!B90*100 -> 9.804169449 | F21: %
D22: DIL as a % at VIN(nom) | E22: ='Variable Management'!B91*100 -> 0.2863791793 | F22: %
D23: DIL as a % at VIN(max) | E23: ='Variable Management'!B92*100 -> 51.35697777 | F23: %
A25: Step 3: OCP, Sense Resistors, Slope Comp
D26: Required IOCP(MIN) Setpoint at VIN(nom) | E26: 12 | F26: A
D27: Recommended Sense Resistance | E27: =Rs_ideal*1000 -> 4.289714558 | F27: mΩ
D28: Sense Resistance, RS | E28: 4 | F28: mΩ
D29: Peak Inductor Current, ILPK | E29: ='Variable Management'!B135 -> 30 | F29: A
D30: =IF('Variable Management'!B85>'Variable Management'!B83, "Power Loss in Rs at Full Load (Max VIN)", "Power Loss in Rs at Full Load (Min VIN)") -> Power Loss in Rs at Full Load (Min VIN) | E30: ='Variable Management'!B86 -> 1.457509352 | F30: W
D31: Recommended SLOPE Capacitance | E31: ='Standard Value Calculator'!O14 -> 470 | F31: pF
D32: SLOPE Capacitance, CSLOPE | E32: 270 | F32: pF
D33: VIN(min) | E33: ='Variable Management'!B127 -> 14.00220404 | F33: A
C34: IOUT(typ) at OCP Inception: | D34: VIN(nom) | E34: ='Variable Management'!B128 -> 19.90620265 | F34: A
D35: VIN(max) | E35: ='Variable Management'!B129 -> 23.08141867 | F35: A
D36: Set Const Current Loop Setpoint (?) | E36: 12 | F36: A
D37: Output Leg Shunt Resistance, RCS(out) | E37: =Rshunt -> 4.166666667 | F37: mΩ
A39: Step 4: Output Capacitor
D40: Output Voltage Ripple Spec | E40: 100 | F40: mVpk-pk
D41: Minimum Output Capacitance | E41: ='Variable Management'!B168 -> 245.7578475 | F41: µF
D42: Output Capacitance, COUT | E42: 600 | F42: µF
D43: Maximum Permitted ESR | E43: ='Variable Management'!B172 -> 4.920029895 | F43: mΩ
D44: Output Capacitor ESR | E44: 2 | F44: mΩ
D45: Resulting Output Voltage Ripple (max) | E45: =Vripple2*1000 -> 64.95964126 | F45: mVpk-pk
D46: Output Capacitor RMS Current (max) | E46: ='Variable Management'!B163 -> 12 | F46: A (rms)
M47: VIN(nom) | N47: =VIN_nom&"V" -> 12V
A48: Step 5: Input Capacitor
D49: Input Voltage Ripple Spec | E49: 200 | F49: mVpk-pk
D50: Minimum Input Capacitance | E50: ='Variable Management'!B188 -> 60 | F50: µF
D51: Input Capacitance, CIN | E51: 100 | F51: µF
D52: Maximum Permitted ESR | E52: ='Variable Management'!B193 -> 5.304540758 | F52: mΩ
D53: Input Capacitor ESR | E53: 2 | F53: mΩ
D54: Resulting Input Voltage Ripple (max) | E54: =Vinripple2*1000 -> 150.1628373 | F54: mVpk-pk
D55: Input Capacitor RMS Current (max) | E55: ='Variable Management'!B181 -> 5.884333 | F55: A (rms)
A57: Step 6: Soft-start, Dither, UVLO
D58: Soft-Start Time, tSS | E58: 15 | F58: ms
D59: Soft-Start Capacitance, CSS | E59: =IF(Tss>1.28/1000,Css_u*1000000000,"N/A") -> 100 | F59: nF
D60: Modulating Frequency | E60: 1 | F60: =IF(DITHER=1, "kHz", "") -> 
D61: =IF(DITHER=1, "DITH Capacitance, Cd", "*Short DITH pin to GND") -> *Short DITH pin to GND | E61: =IF(DITHER=1,IF(E60>0,'Standard Value Calculator'!O19*1000000000,"N/A"),"") ->  | F61: =IF(DITHER=1, "nF", "") -> 
D62: Required Input Voltage UVLO On | E62: 6 | F62: V
D63: Input Voltage UVLO Off | E63: ='Variable Management'!B216 -> 5.261408333 | F63: V
D64: Upper UVLO Resistor, RUV1 | E64: 249 | F64: kΩ
D65: Lower UVLO Resistor, RUV2 | E65: ='Variable Management'!E213 -> 57.6 | F65: kΩ
A67: Step 7: Compensation Design
D68: Load Pole Frequency | E68: =Fp_dominant -> 708.6017753 | F68: Hz
D69: COUT ESR Zero Frequency | E69: =Fesr/1000 -> 132.6291194 | F69: kHz
D70: Boost RHP Zero Frequency | E70: =Frhp/1000 -> 33.61001246 | F70: kHz
D71: Desired Crossover Frequency | E71: 7 | F71: =" kHz " -> kHz
D72: Error Amp Pole Frequency | E72: =Fp1_u -> 0.2410692425 | F72: Hz
D73: Upper Feedback Resistor, RFB1 | E73: 280 | F73: kΩ
D74: Lower Feedback Resistor, RFB2 | E74: =IF(Vout=Vref,"OPEN",Rfb2_u/1000) -> 20 | F74: =IF(Vout=Vref,"","kΩ") -> kΩ
A76: Compensation Components
B77: Calculated / | C77: Std Values | D77: =" Selected" -> Selected | F77: Actual P/Z Frequencies
A78: RC | B78: =Rcea1/1000 -> 6.125659875 | C78: ='Standard Value Calculator'!O27 -> 6.19 | D78: 6.19 | E78: kΩ | F78: =Fp1_u -> 0.2410692425 | G78: Hz (FPEA) | I78: Min COMP Voltage | J78: =ROUND('Variable Management'!B269,2)&"V" -> 1.18V
A79: CC1 | B79: =Cc1ea*1000000000 -> 24.44408346 | C79: ='Standard Value Calculator'!O28 -> 22 | D79: 33 | E79: nF | F79: =Fz1_u/1000 -> 0.7791400758 | G79: kHz (FZCOMP) | I79: Max COMP Voltage | J79: =ROUND('Variable Management'!B270,2)&"V" -> 2.28V
A80: CC2 | B80: =IF(Cc2ea*1000000000000<0, 0, Cc2ea*1000000000000) -> 504.9725488 | C80: ='Standard Value Calculator'!O29 -> 470 | D80: 1000 | E80: pF | F80: =Fp2_u/1000 -> 25.07800545 | G80: kHz (FPCOMP)
A82: Efficiency / Power Loss Analyzer
A84: Step 8: Efficiency | M84: VIN(nom) | N84: =VIN_nom&"V" -> 12V
D85: Buck-Leg Power MOSFETs (Q1, Q2) | E85: CSD18563Q5A
E86: Hi-side | F86: Low-side
D87: On-State Resistance, RDS(on) | E87: 5.7 | F87: 5.7 | G87: mΩ
D88: Total Gate Charge, QG | E88: 11 | F88: 11 | G88: nC
D89: Gate-Drain Charge, QGD | E89: 2.9 | F89: 2.9 | G89: nC
D90: Gate-Source Charge, QGS | E90: 3.3 | F90: 3.3 | G90: nC
D91: Gate Resistance, RG | E91: 1.5 | F91: 1.5 | G91: Ω
D92: Transconductance, gFS | E92: 60 | F92: 60 | G92: S
D93: Gate-Source Threshold Voltage, VTH | E93: 4 | F93: 4 | G93: V
D94: Body Diode Forward Voltage, VBD | E94: 0.8 | F94: 0.8 | G94: V
D95: Body Diode Rev Recovery Charge, QRR | F95: 63 | G95: nC
D96: Thermal Resistance, θJA | E96: 50 | F96: 50 | G96: °C/W
D98: Boost-Leg Power MOSFETs (Q3, Q4) | E98: CSD16321Q5
E99: Hi-side | F99: Low-side
D100: On-State Resistance, RDS(on) | E100: 1.9 | F100: 1.9 | G100: mΩ
D101: Total Gate Charge, QG | E101: 22 | F101: 22 | G101: nC
D102: Gate-Drain Charge, QGD | E102: 2.5 | F102: 2.5 | G102: nC
D103: Gate-Source Charge, QGS | E103: 4 | F103: 4 | G103: nC
D104: Gate Resistance, RG | E104: 1.5 | F104: 1.5 | G104: Ω
D105: Transconductance, gFS | E105: 150 | F105: 150 | G105: S
D106: Gate-Source Threshold Voltage, VTH | E106: 2 | F106: 2 | G106: V
D107: Body Diode Forward Voltage, VBD | E107: 0.8 | F107: 0.8 | G107: V
D108: Body Diode Rev Recovery Charge, QRR | E108: 33 | G108: nC
D109: Thermal Resistance, θJA | E109: 50 | F109: 50 | G109: °C/W
A111: External Schottky Diode (if applicable) | E111: Buck Leg | F111: Boost Leg
D112: Schottky Fwd Voltage, VFWDsch | E112: 0 | F112: 0 | G112: V
D113: Schottky Rev Recovery Charge, QRRsch | E113: 0 | F113: 0 | G113: nC

Sheet BOM & Schematic
B45: ** Tie MODE to VCC (or voltage > 2.4V) for No Hiccup **
A46: ="VIN = "&VIN_min&" V to "&VIN_max&" V, VOUT = "& Vout &" V, IOUT = " &Iout & " A, Fsw = " & Fsw/1000 &" kHz, Current Limit = "&ROUNDUP(Ilimit_DC,0)&" A" -> VIN = 6 V to 30 V, VOUT = 12 V, IOUT = 12 A, Fsw = 250 kHz, Current Limit = 12 A
A47: High Efficiency Synchronous Buck-Boost Regulator BOM
A48: Count | B48: Ref Des | C48: Value | D48: Description | H48: Size | I48: Part Number | J48: MFR
A49: 2 | B49: CBOOT1, CBOOT2 | C49: 0.1 | D49: =C49 -> 0.1 | H49: 0603 | I49: Std | J49: Std
A50: 1 | B50: CC1 | C50: ='Design Converter'!D79 -> 33 | D50: 33 | H50: 0603 | I50: Std | J50: Std
A51: 1 | B51: CC2 | C51: ='Design Converter'!D80 -> 1000 | D51: 1000 | H51: 0603 | I51: Std | J51: Std
A52: 1 | B52: CSLOPE | C52: =Cslope -> 270 | D52: 270 | H52: 0603 | I52: Std | J52: Std
A53: 1 | B53: CCS | C53: 100 | D53: =C53 -> 100 | H53: 0603 | I53: Std | J53: Std
A54: 1 | B54: CDITH | C54: =Cdither*1000000000 -> 39 | D54: =C54 -> 39 | H54: 0603 | I54: Std | J54: Std
A55: =ROUNDUP('Design Converter'!E51/10,0) -> 10 | B55: CIN | C55: 10 | D55: =C55 -> 10 | H55: 1210 | I55: Std | J55: Std
A56: =ROUNDUP('Design Converter'!E42/22,0) -> 28 | B56: COUT | C56: 22 | D56: =C56 -> 22 | H56: 1210 | I56: Std | J56: Std
A57: 1 | B57: CSS | C57: ='Design Converter'!E59 -> 100 | D57: =C57 -> 100 | H57: 0603 | I57: Std | J57: Std
A58: 1 | B58: CVCC | C58: 1 | D58: 1 | H58: 0603 | I58: Std | J58: Std
A59: 1 | B59: CVIN | C59: 0.1 | D59: 0.1 | H59: 0603 | I59: Std | J59: Std
A60: 3 | B60: DBOOT1, DBOOT2, DVIN | C60: See description | D60: Schottky Diode, 200mA | H60: - | I60: - | J60: Various
A61: 1 | B61: LF | C61: ='Design Converter'!E16 -> 4.7 | D61: ="Inductor, "&Lf*1000000&"µH, "&Rdcr*1000&"mΩ, >"&ROUNDUP(IL_peak_OCP*1.1,0)&"A" -> Inductor, 4.7µH, 3.35mΩ, >33A | H61: - | I61: - | J61: Various
A62: 2 | B62: Q1, Q2 | C62: See description | D62: ='Design Converter'!E87 -> 5.7 | H62: Std | I62: ='Design Converter'!E85 -> CSD18563Q5A | J62: -
A63: 2 | B63: Q3, Q4 | C63: See description | D63: ='Design Converter'!E100 -> 1.9 | H63: Std | I63: ='Design Converter'!E98 -> CSD16321Q5 | J63: -
A64: 1 | B64: RC1 | C64: ='Design Converter'!D78 -> 6.19 | D64: =C64 -> 6.19 | H64: 0603 | I64: Std | J64: Std
A65: 1 | B65: RS | C65: =Rs*1000 -> 4 | D65: 4 | H65: 2512 | I65: Std | J65: Std
A66: 1 | B66: RCS(out) | C66: ='Standard Value Calculator'!O21 -> 4.12 | D66: =C66 -> 4.12 | H66: 2512 | I66: Std | J66: Std
A67: 1 | B67: RT | C67: ='Design Converter'!E12 -> 33.2 | D67: 33.2 | H67: 0603 | I67: Std | J67: Std
A68: 1 | B68: RFB1 | C68: ='Design Converter'!E73 -> 280 | D68: 280 | H68: 0603 | I68: Std | J68: Std
A69: 1 | B69: RFB2 | C69: ='Design Converter'!E74 -> 20 | D69: 20 | H69: 0603 | I69: Std | J69: Std
A70: 1 | B70: RPGOOD | C70: 20 | D70: 20 | H70: 0603 | I70: Std | J70: Std
A71: 2 | B71: RCS, RCSG | C71: 100 | D71: 100 | H71: 0603 | I71: Std | J71: Std
A72: 1 | B72: RUV1 | C72: ='Design Converter'!E64 -> 249 | D72: 249 | H72: 0603 | I72: Std | J72: Std
A73: 1 | B73: RUV2 | C73: ='Design Converter'!E65 -> 57.6 | D73: 57.6 | H73: 0603 | I73: Std | J73: Std
A74: 1 | B74: RVIN | C74: 2.2 | D74: 2.2 | H74: 0603 | I74: Std | J74: Std
A75: 1 | B75: U1 | C75: LM34936 | D75: IC, LM34936, Buck-Boost PWM Controller | H75: TSSOP-28 | I75: LM34936PWP | J75: TI
A78: NOTES:
A79: ** For information on TI NexFETTM MOSFETs, see ** | D79: http://www.ti.com/nexfet | E79: **
A80: ** Inductor saturation current should be higher than the peak inductor current at the OCP setpoint for all input voltages and operating temperatures **
A81: ** Effective input and output capacitances should be appropriately derated for applied voltage and temperature, particularly with ceramics **

Sheet Licenses
A5: Version Number | B5: 1.0.1
A35: Version History
A36: Version | B36: Change List Description
A37: 1.0.0 | B37: Initial Release
A38: 1.0.1 | B38: Fixed calculation of Peak Inductor Current, ILPK

Sheet EVMs (hidden)
A1: LM5175 Quickstart Design Tool
B6: LM5175EVM-HD PCB Layout | M6: LM5175EVM-HP PCB Layout | W6: LM5175EVM PCB Layout

Sheet Variable Management (hidden)
A1: EXCEL Variables Names/Calculations
B2: Input from user =
B3: Output =
B4: Constant
A5: Variable Name | B5: Value | C5: STD Units | E5: Notes | I5: Iteration
A6: Step 1: Operational Specs
A7: VIN_min | B7: ='Design Converter'!E6 -> 6 | C7: V | D7: Minimum input voltage | I7: 1
B8: ='Design Converter'!E7 -> 12 | C8: V | D8: Nominal input voltage | K8: Efficiency vs IOUT Plot | L8: 1 | M8: DITHER Enabled | O8: 1
A9: VIN_max | B9: ='Design Converter'!E8 -> 30 | C9: V | D9: Maximum input voltage | K9: Efficiency vs VIN Plot | L9: 2 | M9: DITHER Disabled | O9: 2
A10: VIN_edgebuckboost | B10: =B40 -> 10.5974026 | C10: V | K10: PLOT_TYPE | L10: 1 | M10: DITHER Yes/No | O10: 2 | P10: 1 = Yes, 2 = No
A12: Vout | B12: ='Design Converter'!E9 -> 12 | C12: V | D12: Output Voltage | I12: 1
A13: Iout | B13: ='Design Converter'!E10 -> 12 | C13: A | D13: Maximum Output Current | I13: 1
A14: Rout | B14: =Vout/Iout -> 1 | C14: W | D14: Load resistance
A15: Pout | B15: =Vout*Iout -> 144 | C15: W | D15: Output power
A16: Efficiency | B16: 0.9 | D16: Edited by Vijay from 96% to 90% to match datasheet calculations.
A17: Pin | B17: =Pout/Efficiency -> 160 | C17: W | D17: Calculate input power assuming 90% efficiency
A18: Iin_Vinmin | B18: =Pin/VIN_min -> 26.66666667 | C18: A
A19: Iin_Vinnom | B19: =Pin/VIN_nom -> 13.33333333 | C19: A | D19: Input currents at min, nom, max Vin
A20: Iin_Vinmax | B20: =Pin/VIN_max -> 5.333333333 | C20: A
A22: Fsw | B22: ='Design Converter'!E11*1000 -> 250000 | C22: Hz | D22: Nominal Switching Frequency | I22: 1
A23: Ts | B23: =1/Fsw -> 4e-06 | C23: sec | D23: Period
A24: Vref | B24: 0.8 | C24: V | D24: Reference Voltage
A25: Rt | B25: =((1/Fsw)-190*10^-9)/(116*10^-12) -> 32844.82759 | C25: W | D25: Frequency Set Resistor | F25: edited based on LM5176 curve fit.
A28: Toff_min_buck | B28: 3e-07 | C28: sec | D28: 200ns | E28: buck min timer
A29: Ton_min_boost | B29: =0.0000003 -> 3e-07 | C29: sec | D29: 300ns | E29: boost min timer
A30: T_max_BB | B30: 1.2e-06 | C30: sec | E30: max timer before transition from BB
A32: D_min_boost | B32: =Ton_min_boost/Ts -> 0.075
A33: D_max_exitBB_to_boost | B33: =B30/(2*Ts) -> 0.15
A34: D_max_buck_BB | B34: =1-B28/(2*Ts) -> 0.9625
A36: D_min_boost_exitBB_to_buck | B36: =Ton_min_boost/(2*Ts) -> 0.0375
A37: D_max_exitBB_to_buck | B37: =1-B30/(2*Ts) -> 0.85
A38: D_max_buck_enterBB | B38: =1-Toff_min_buck/Ts -> 0.925
A40: VIN_BB_to_boost | B40: =Vout*(1-B33)/B34 -> 10.5974026 | C40: V
A41: VIN_boost_to_BB | B41: =Vout*(1-B32) -> 11.1 | C41: V
A42: VIN_buck_to_BB | B42: =Vout/B38 -> 12.97297297 | C42: V
A43: VIN_BB_to_buck | B43: =Vout/B37*(1-B36) -> 13.58823529 | C43: V
A47: Step 2: Filter Inductor
A48: Don1 | B48: =Vout/VIN_nom -> 1 | C48: =(Vout-VIN_nom)/Vout -> 0 | E48: Ideal Duty Cycle at VIN(nom) | I48: 1
A49: Doff1 | B49: =1-48:48 -> 0 | E49: Ideal 1- Duty Cycle at VIN(nom) | I49: 1
A51: Don_Vinmin | B51: =IF(VIN_min>Vout, Vout/VIN_min, (Vout-VIN_min)/Vout) -> 0.5 | C51: =IF(VIN_min>Vout, "BUCK", "BOOST") -> BOOST
A52: Don_Vinnom | B52: =IF(VIN_nom>Vout, Vout/VIN_nom, (Vout-VIN_nom)/Vout) -> 0 | C52: =IF(VIN_nom>Vout, "BUCK", "BOOST") -> BOOST
A53: Don_Vinmax | B53: =IF(VIN_max>Vout, Vout/VIN_max, (Vout-VIN_max)/Vout) -> 0.4 | C53: =IF(VIN_max>Vout, "BUCK", "BOOST") -> BUCK
A54: Don_buckboost | B54: =B33 -> 0.15 | C54: lower edge of BUCK-BOOST
A56: Lf_Vinmin | B56: =(VIN_min-Vout)*Don_Vinmin/(Fsw*Iout*0.3) -> -3.333333333e-06 | C56: =VIN_min/(Iin_Vinmin*0.3*Fsw)*(1-VIN_min/Vout) -> 1.5e-06 | D56: H
A57: Lf_Vinnom | B57: =(VIN_nom-Vout)*Don_Vinnom/(Fsw*Iout*0.4) -> 0 | C57: =VIN_nom/(Iin_Vinnom*0.4*Fsw)*(1-VIN_nom/Vout) -> 0 | D57: H | I57: 1
A58: Lf_Vinmax | B58: =(VIN_max-Vout)*Don_Vinmax/(Fsw*Iout*0.3) -> 8e-06 | C58: =VIN_max/(Iin_Vinmax*0.3*Fsw)*(1-VIN_max/Vout) -> -0.0001125 | D58: H
A60: L_Vinmin | B60: =IF(VIN_min>Vout, (VIN_min-Vout)*Don_Vinmin/(Fsw*Iout*0.3), VIN_min/(Iin_Vinmin*0.3*Fsw)*(1-VIN_min/Vout)) -> 1.5e-06 | C60: H | D60: =IF(VIN_min>Vout, "BUCK", "BOOST") -> BOOST | E60: Calculated inductance for 30% ripple at VIN(min)
A61: L_Vinnom | B61: =IF(VIN_nom>Vout, (VIN_nom-Vout)*Don_Vinnom/(Fsw*Iout*0.4), VIN_nom/(Iin_Vinnom*0.4*Fsw)*(1-VIN_nom/Vout)) -> 0 | C61: H | D61: =IF(VIN_nom>Vout, "BUCK", "BOOST") -> BOOST | E61: Calculated inductance for 40% ripple at VIN(nom)
A62: L_Vinmax | B62: =IF(VIN_max>Vout, (VIN_max-Vout)*Don_Vinmax/(Fsw*Iout*0.8), VIN_max/(Iin_Vinmax*0.8*Fsw)*(1-VIN_max/Vout)) -> 3e-06 | C62: H | D62: =IF(VIN_max>Vout, "BUCK", "BOOST") -> BUCK | E62: Calculated inductance for 30% ripple at VIN(max)
A64: Lopt | B64: =AVERAGE(B60,B62) -> 2.25e-06 | C64: H | D64: anerage of calculated inductances at VIN(min) and VIN(nom)
A66: Lf | B66: ='Design Converter'!E16/1000000 -> 4.7e-06 | C66: H | E66: Chosen inductance | I66: 2
A67: Rdcr | B67: ='Design Converter'!E17/1000 -> 0.00335 | C67: W | E67: Chosen inductor DCR | I67: 1
A69: Don2 | B69: =(Vout+Iout*(Rdcr+Rs))/(Vin+Iout*Rs) -> 1.003336653 | I69: 2
A70: Doff2 | B70: =1-_Don2 -> -0.003336653386 | I70: 2
A72: Don_Vinmin_2 | B72: =IF(VIN_min>Vout, (Vout+Iout*(Rdcr+Rs))/(VIN_min+Iout*Rs), (Vout-VIN_min+Iin_Vinmin*(Rdcr))/(Vout-Iin_Vinmin*Rs)) -> 0.5119955157 | C72: =IF(VIN_min>Vout, "BUCK", "BOOST") -> BOOST | E72: Duty cycles adjusted for DCR and shunt voltage drops | I72: 2 | J72: Vijay's simplification | L72: =(1-VIN_min*90%/Vout) -> 0.55
A73: Don_Vinnom_2 | B73: =IF(VIN_nom>Vout, (Vout+Iout*(Rdcr+Rs))/(VIN_nom+Iout*Rs), (Vout-VIN_nom+Iin_Vinnom*(Rdcr))/(Vout-Iin_Vinnom*Rs)) -> 0.003738839286 | C73: =IF(VIN_nom>Vout, "BUCK", "BOOST") -> BOOST | E73: need to include RDS(on) later
A74: Don_Vinmax_2 | B74: =IF(VIN_max>Vout, (Vout+Iout*(Rdcr+Rs))/(VIN_max+Iout*Rs), (Vout-VIN_max+Iin_Vinmax*(Rdcr))/(Vout-Iin_Vinmax*Rs)) -> 0.4022963259 | C74: =IF(VIN_max>Vout, "BUCK", "BOOST") -> BUCK
A76: Vripple1 | B76: ='Design Converter'!E40/1000 -> 0.1 | C76: V | E76: Output voltage ripple spec(pk-pk) | I76: 1
A78: Iripple_Vinmin | B78: =IF(VIN_min>Vout, (VIN_min-Vout)*Don_Vinmin_2/(Fsw*Lf),VIN_min*Don_Vinmin_2/(Lf*Fsw)) -> 2.614445187 | C78: =(VIN_min-Vout)*Don_Vinmin_2/(Fsw*Lf) -> -2.614445187 | D78: A | E78: =IF(VIN_min>Vout, "BUCK", "BOOST") -> BOOST | H78: =VIN_min*Don_Vinmin_2/(Lopt*Fsw) -> 5.461285501
A79: Iripple_Vinnom | B79: =IF(VIN_nom>Vout, (VIN_nom-Vout)*Don_Vinnom_2/(Fsw*Lf),VIN_nom*Don_Vinnom_2/(Lf*Fsw)) -> 0.03818389058 | C79: =(VIN_nom-Vout)*Don_Vinnom_2/(Fsw*Lf) -> 0 | D79: A | E79: =IF(VIN_nom>Vout, "BUCK", "BOOST") -> BOOST
A80: Iripple_Vinmax | B80: =IF(VIN_max>Vout, (VIN_max-Vout)*Don_Vinmax_2/(Fsw*Lf),VIN_max*Don_Vinmax_2/(Lf*Fsw)) -> 6.162837333 | C80: =(VIN_max-Vout)*Don_Vinmax_2/(Fsw*Lf) -> 6.162837333 | D80: A | E80: =IF(VIN_max>Vout, "BUCK", "BOOST") -> BUCK
A81: Iripple_edgebuckboost | B81: =VIN_edgebuckboost*Don_buckboost/(Lf*Fsw/2) -> 2.705719812 | D81: A | E81: BUCK-BOOST
A83: Ishunt_rms_Vinmin | B83: =IF(VIN_min>Vout, SQRT(1-Don_Vinmin_2)*SQRT(Iout^2+(Iripple_Vinmin^2)/12), SQRT(Don_Vinmin_2)*SQRT(Iin_Vinmin^2+(Iripple_Vinmin^2)/12)) -> 19.08867041 | C83: A | E83: =SQRT(1-Don_Vinmin_2)*SQRT(Iout^2+(Iripple_Vinmin^2)/12) -> 8.399441536 | F83: =SQRT(Don_Vinmin_2)*SQRT(Iout^2+(Iripple_Vinmin^2)/12) -> 8.603429094
A84: Ishunt_rms_Vinnom | B84: =IF(VIN_nom>Vout, SQRT(1-Don_Vinnom_2)*SQRT(Iout^2+(Iripple_Vinnom^2)/12), SQRT(Don_Vinnom_2)*SQRT(Iin_Vinnom^2+(Iripple_Vinnom^2)/12)) -> 0.8152809295 | C84: A | E84: =SQRT(1-Don_Vinnom_2)*SQRT(Iout^2+(Iripple_Vinnom^2)/12) -> 11.97755101 | F84: =SQRT(Don_Vinnom_2)*SQRT(Iout^2+(Iripple_Vinnom^2)/12) -> 0.7337528953
A85: Ishunt_rms_Vinmax | B85: =IF(VIN_max>Vout, SQRT(1-Don_Vinmax_2)*SQRT(Iout^2+(Iripple_Vinmax^2)/12), SQRT(Don_Vinmax_2)*SQRT(Iin_Vinmax^2+(Iripple_Vinmax^2)/12)) -> 9.378757343 | C85: A | E85: =SQRT(1-Don_Vinmax_2)*SQRT(Iout^2+(Iripple_Vinmax^2)/12) -> 9.378757343 | F85: =SQRT(Don_Vinmax_2)*SQRT(Iout^2+(Iripple_Vinmax^2)/12) -> 7.69441081
A86: Max shunt power loss at full load | B86: =MAX(B83,B85)^2*Rs -> 1.457509352 | C86: W | D86: =IF(B85>B83, "BUCK", "BOOST") -> BOOST
A88: Max inductor ripple current | B88: =MAX(B78:B80) -> 6.162837333 | C88: A
F89: Ripple I | G89: Iin
A90: % Ripple Current | B90: =IF(VIN_min>Vout, B78/Iout, B78/Iin_Vinmin) -> 0.09804169449 | C90: =IF(VIN_min>Vout, "BUCK", "BOOST") -> BOOST | F90: =B78 -> 2.614445187 | G90: =Iin_Vinmin -> 26.66666667
B91: =IF(VIN_nom>Vout, B79/Iout, B79/Iin_Vinnom) -> 0.002863791793 | C91: =IF(VIN_nom>Vout, "BUCK", "BOOST") -> BOOST | F91: =B79 -> 0.03818389058 | G91: =Iin_Vinnom -> 13.33333333
B92: =IF(VIN_max>Vout, B80/Iout, B80/Iin_Vinmax) -> 0.5135697777 | C92: =IF(VIN_max>Vout, "BUCK", "BOOST") -> BUCK | F92: =B80 -> 6.162837333 | G92: =Iin_Vinmax -> 5.333333333
A94: Temp | B94: 100
A95: DCR at hot | B95: =Rdcr*(1+0.0039*(B94-25)) -> 0.004329875 | C95: W
A98: Step 3: Sense Resistors, Slope Comp, Current Limit
A100: Ilimit_DC | B100: ='Design Converter'!E26 -> 12 | C100: A | E100: Chosen OCP level - based on output current | K100: At Iout = Ilimit_DC: | N100: Shunt
K101: I_valley BUCK | L101: I_peak BOOST
A102: Ilimit_inductor_Vinmin | B102: =IF(VIN_min>Vout, Ilimit_DC-Iripple_Vinmin/2, Ilimit_DC*Vout/VIN_min/0.9+Iripple_Vinmin/2) -> 27.97388926 | C102: A | D102: =IF(VIN_min>Vout, "BUCK", "BOOST") -> BOOST | E102: Vijay's simplication to match datasheet calculation. | K102: =Ilimit_DC-Iripple_Vinmin/2 -> 10.69277741 | L102: =Ilimit_DC/(1-Don_Vinmin_2)+Iripple_Vinmin/2 -> 25.89716057 | M102: =IF(VIN_min>Vout, "BUCK", "BOOST") -> BOOST | N102: =IF(VIN_min>Vout, Buck_CS_threshold/K102, Boost_CS_Threshold/L102) -> 0.00463371263 | P102: =Boost_CS_Threshold/L102 -> 0.00463371263
A103: Ilimit_inductor_Vinnom | B103: =IF(VIN_nom>Vout, Ilimit_DC-Iripple_Vinnom/2, Ilimit_DC/(1-Don_Vinnom_2)+Iripple_Vinnom/2) -> 12.06412639 | C103: A | D103: =IF(VIN_nom>Vout, "BUCK", "BOOST") -> BOOST | E103: or | K103: =Ilimit_DC-Iripple_Vinnom/2 -> 11.98090805 | L103: =Ilimit_DC/(1-Don_Vinnom_2)+Iripple_Vinnom/2 -> 12.06412639 | M103: =IF(VIN_nom>Vout, "BUCK", "BOOST") -> BOOST | N103: =IF(VIN_nom>Vout, Buck_CS_threshold/K103, Boost_CS_Threshold/L103) -> 0.00994684539 | P103: =Boost_CS_Threshold/L103 -> 0.00994684539
A104: Ilimit_inductor_Vinmax | B104: =IF(VIN_max>Vout, Ilimit_DC-Iripple_Vinmax/2, Ilimit_DC/(1-Don_Vinmax_2)+Iripple_Vinmax/2) -> 8.918581334 | C104: A | D104: =IF(VIN_max>Vout, "BUCK", "BOOST") -> BUCK | E104: Peak inductor current at current limit inception (if operating in boost) | K104: =Ilimit_DC-Iripple_Vinmax/2 -> 8.918581334 | L104: =Ilimit_DC/(1-Don_Vinmax_2)+Iripple_Vinmax/2 -> 23.15825694 | M104: =IF(VIN_max>Vout, "BUCK", "BOOST") -> BUCK | N104: =IF(VIN_max>Vout, Buck_CS_threshold/K104, Boost_CS_Threshold/L104) -> 0.00897003649 | P104: =Boost_CS_Threshold/L104 -> 0.005181737137
A105: Ilimit_inductor_buckboost | B105: =Ilimit_DC/(1-Don_buckboost)+Iripple_edgebuckboost/2 -> 15.47050696 | C105: A | D105: edge of buck-boost
A107: Buck CS threshold_min | B107: 0.068 | C107: V
A108: Buck CS threshold | B108: 0.08 | C108: V | D108: 80mV ± 20% | E108: Vijay's edits 80 mV ± 15%.
A109: Buck CS threshold_max | B109: 0.092 | C109: V
A111: Boost CS Threshold_min | B111: 0.108 | C111: V
A112: Boost CS Threshold | B112: 0.12 | C112: V | D112: 160mV ± 20% | E112: Vijay's edits. Used 120 mV ± 15% for min max. Check after char data to see if it is ok.
A113: Boost CS Threshold_max | B113: 0.138 | C113: V | E113: Note: min/max are not really being used in calculations. So irrelevant if variation small.
A115: Assume we'd like to achieve current limit particularly at VIN(min) and boost side of buck-boost region; accept inevitable variation over line thereafter
A116: Shunt required to get OCP at VIN(min) | B116: =IF(VIN_min>Vout,Buck_CS_threshold/B102, Boost_CS_Threshold/B102) -> 0.004289714558 | C116: W | D116: =IF(VIN_min>Vout, "BUCK", "BOOST") -> BOOST
A117: Shunt required to get OCP at VIN(nom) | B117: =IF(VIN_nom>Vout,Buck_CS_threshold/B103, Boost_CS_Threshold/B103) -> 0.00994684539 | C117: W | D117: =IF(VIN_nom>Vout, "BUCK", "BOOST") -> BOOST
A118: Shunt required to get OCP at VIN(max) | B118: =IF(VIN_max>Vout,Buck_CS_threshold/B104, Boost_CS_Threshold/B104) -> 0.00897003649 | C118: W | D118: =IF(VIN_max>Vout, "BUCK", "BOOST") -> BUCK
A119: Shunt required to get OCP at VIN(edge-bb) | B119: =IF(VIN_min<VIN_edgebuckboost,Buck_CS_threshold/B105, 10) -> 0.005171129827 | C119: W | D119: Edge of B-B
A121: Rs_ideal | B121: =MIN(B116:B118) -> 0.004289714558 | C121: W | E121: Ideal Rs for the required OCP -- based on 80mV or 160mV CL threshold
A122: Rs | B122: ='Design Converter'!E28/1000 -> 0.004 | C122: W | E122: Selected (starndard value) current limit sense resistor
A124: BOOST current limit - peak | B124: =Boost_CS_Threshold/Rs -> 30 | C124: A | E124: Peak inductor current limit in BOOST
A125: BUCK current limit - valley | B125: =Buck_CS_threshold/Rs -> 20 | C125: A | E125: Valley inductor current limit in BUCK
A127: Iout_OCP_Vinmin | B127: =IF(VIN_min>Vout,Buck_CS_threshold/Rs+Iripple_Vinmin/2, (Boost_CS_Threshold/Rs-Iripple_Vinmin/2)*(1-Don_Vinmin_2)) -> 14.00220404 | C127: A | D127: =IF(VIN_min>Vout, "BUCK", "BOOST") -> BOOST | E127: Current limit setpoints (i.e. IOUT) after standard components are selected
A128: Iout_OCP_Vinnom | B128: =IF(VIN_nom>Vout,Buck_CS_threshold/Rs+Iripple_Vinnom/2, IF(VIN_nom<VIN_edgebuckboost,(Boost_CS_Threshold/Rs-Iripple_Vinnom/2)*(1-Don_Vinnom_2),(Buck_CS_threshold/Rs-Iripple_Vinnom/2)*(1-Don_Vinnom_2))) -> 19.90620265 | C128: A | D128: =IF(VIN_nom>Vout,"BUCK",IF(VIN_nom<VIN_edgebuckboost,"BOOST","BUCK-BOOST")) -> BUCK-BOOST
A129: Iout_OCP_Vinmax | B129: =IF(VIN_max>Vout, Buck_CS_threshold/Rs+Iripple_Vinmax/2, (Boost_CS_Threshold/Rs-Iripple_Vinmax/2)*(1-Don_Vinmax_2)) -> 23.08141867 | C129: A | D129: =IF(VIN_max>Vout, "BUCK", "BOOST") -> BUCK
A130: Iout_edgebuckboost | B130: =(Buck_CS_threshold/Rs-Iripple_edgebuckboost/2)*(1-Don_buckboost) -> 15.85006908 | C130: A | D130: lower edge of buck-boost window | K130: RMS current in Rs | M130: Power diss in Rs
A132: ILpeak_OCP_Vinmin | B132: =IF(VIN_min>Vout, Buck_CS_threshold/Rs+Iripple_Vinmin/2, Boost_CS_Threshold/Rs) -> 30 | C132: A | D132: =IF(VIN_min>Vout, "BUCK", "BOOST") -> BOOST | E132: Peak inductor currents in OCP | H132: =SQRT(Don_Vinmin_2)*SQRT(Iin_Vinmin^2+(Iripple_Vinmin^2)/12) -> 19.08867041 | K132: =IF(VIN_min>Vout, SQRT(1-Don_Vinmin_2)*SQRT(Iout_OCP_Vinmin^2+(Iripple_Vinmin^2)/12), SQRT(Don_Vinmin_2)*SQRT(Iin_Vinmin^2+(Iripple_Vinmin^2)/12)) -> 19.08867041 | L132: A | M132: =K132^2*Rs -> 1.457509352 | N132: W
A133: ILpeak_OCP_Vinnom | B133: =IF(VIN_nom>Vout, Buck_CS_threshold/Rs+Iripple_Vinnom/2, IF(VIN_nom<VIN_edgebuckboost, Boost_CS_Threshold/Rs, Buck_CS_threshold/Rs)) -> 20 | C133: A | D133: =IF(VIN_nom>Vout,"BUCK",IF(VIN_nom<VIN_edgebuckboost,"BOOST","BUCK-BOOST")) -> BUCK-BOOST | H133: =SQRT(1-Don_Vinnom_2)*SQRT(Iout_OCP_Vinnom^2+(Iripple_Vinnom^2)/12) -> 19.8689578 | K133: =IF(VIN_nom>Vout, SQRT(1-Don_Vinnom_2)*SQRT(Iout_OCP_Vinnom^2+(Iripple_Vinnom^2)/12), SQRT(Don_Vinnom_2)*SQRT(Iin_Vinnom^2+(Iripple_Vinnom^2)/12)) -> 0.8152809295 | L133: A | M133: =K133^2*Rs -> 0.002658731976 | N133: W
A134: ILpeak_OCP_Vinmax | B134: =IF(VIN_max>Vout, Buck_CS_threshold/Rs+Iripple_Vinmax/2, Boost_CS_Threshold/Rs) -> 23.08141867 | C134: A | D134: =IF(VIN_max>Vout, "BUCK", "BOOST") -> BUCK | H134: =SQRT(1-Don_Vinmax_2)*SQRT(Iout_OCP_Vinmax^2+(Iripple_Vinmax^2)/12) -> 17.89747247 | K134: =IF(VIN_max>Vout, SQRT(1-Don_Vinmax_2)*SQRT(Iout_OCP_Vinmax^2+(Iripple_Vinmax^2)/12), SQRT(Don_Vinmax_2)*SQRT(Iin_Vinmax^2+(Iripple_Vinmax^2)/12)) -> 17.89747247 | L134: A | M134: =K134^2*Rs -> 1.281278083 | N134: W
A135: Worst case peak inductor current | B135: =MAX(B132:B134) -> 30 | C135: A | K135: Vijay verified that this calculation (Vinmax) are correct for OCP.
A137: IL_peak_OCP | B137: =MAX(B132:B134) -> 30 | C137: A | E137: Peak inductor current over the full input range
A139: Cslope_ideal | B139: =Lf/Rs*0.4*10^6 -> 470 | C139: pF | E139: Vijay edit: removed the derating.
A140: Cslope_recommended | B140: ='Standard Value Calculator'!O14 -> 470 | C140: pF | E140: Standard size based on Csideal slope capacitor
A141: Cslope_selected | B141: ='Design Converter'!E32 -> 270 | C141: pF | E141: Selected SLOPE cap
A143: Islope_fixed | B143: 4e-06 | C143: A
G144: =Islope_fixed/(Cslope*10^-12) -> 14814.81481
A145: SLOPE comp dv/dt = I_slope_total/Cslope | B145: =(ABS((VIN_min-Vout))*2*10^-6 + Islope_fixed)/(Cslope*10^-12) -> 59259.25926 | C145: V/s | E145: at VIN_min
A146: SLOPE comp dv/dt = I_slope_total/Cslope | B146: =(ABS((VIN_nom-Vout))*2*10^-6 + Islope_fixed)/(Cslope*10^-12) -> 14814.81481 | C146: V/s | E146: at VIN_nom
A147: SLOPE comp dv/dt = I_slope_total/Cslope | B147: =(ABS((VIN_max-Vout))*2*10^-6 + Islope_fixed)/(Cslope*10^-12) -> 148148.1481 | C147: V/s | E147: at VIN_max
K148: BUCK | L148: BOOST
A149: DV_SLOPEcomp at Vinmin | B149: =IF(D149="BUCK", K149,L149) -> 0.1213619 | C149: V | D149: =IF(VIN_min>Vout, "BUCK", "BOOST") -> BOOST | E149: at VIN_min | K149: =B145*(1-Don_Vinmin_2)/Fsw -> 0.115675137 | L149: =B145*Don_Vinmin_2/Fsw -> 0.1213619 | N149: =IF(VIN_min>Vout, "BUCK", "BOOST") -> BOOST
A150: DV_SLOPEcomp at Vinnom | B150: =IF(D150="BUCK", K150,L150) -> 0.0002215608466 | C150: V | D150: =IF(VIN_nom>Vout,"BUCK",IF(VIN_nom<VIN_edgebuckboost,"BOOST","BUCK-BOOST")) -> BUCK-BOOST | E150: at VIN_nom | K150: =B146*(1-Don_Vinnom_2)/Fsw -> 0.05903769841 | L150: =B146*Don_Vinnom_2/Fsw -> 0.0002215608466 | N150: =IF(VIN_nom>Vout, "BUCK", "BOOST") -> BOOST
A151: DV_SLOPEcomp at Vinmax | B151: =IF(D151="BUCK", K151,L151) -> 0.3541947698 | C151: V | D151: =IF(VIN_max>Vout, "BUCK", "BOOST") -> BUCK | E151: at VIN_max | K151: =B147*(1-Don_Vinmax_2)/Fsw -> 0.3541947698 | L151: =B147*Don_Vinmax_2/Fsw -> 0.2383978227 | N151: =IF(VIN_max>Vout, "BUCK", "BOOST") -> BUCK
A154: Required Constant Current Loop Setpoint | B154: ='Design Converter'!E36 -> 12 | C154: A
A155: Current Limit Threshold | B155: 50 | C155: mV | E155: Restored to 50mV as ICTRL went away and the 25mV centering also went away.
A156: Shunt Resistor in Output Leg | B156: =IF(Constant_Current_Loop_Setpoint="N/A", 0, Iout_threshold/Constant_Current_Loop_Setpoint) -> 4.166666667 | C156: mΩ
A159: Step 4: Output Capacitor
A160: Icoutrms_VINmin | B160: =IF(D160="BUCK", Iripple_Vinmin/SQRT(12), Iout*SQRT((Vout-VIN_min)/VIN_min)) -> 12 | C160: A | D160: =IF(VIN_min>Vout, "BUCK", "BOOST") -> BOOST | E160: Output Cap RMS current
A161: Icoutrms_VINnom | B161: =IF(D161="BUCK", Iripple_Vinnom/SQRT(12), Iout*SQRT((Vout-VIN_nom)/VIN_nom)) -> 0 | C161: A | D161: =IF(VIN_nom>Vout,"BUCK",IF(VIN_nom<VIN_edgebuckboost,"BOOST","BUCK-BOOST")) -> BUCK-BOOST
A162: Icoutrms_VINmax | B162: =IF(D162="BUCK", Iripple_Vinmax/SQRT(12), Iout*SQRT((Vout-VIN_max)/VIN_max)) -> 1.779057896 | C162: A | D162: =IF(VIN_max>Vout, "BUCK", "BOOST") -> BUCK
A163: Max Cout rms current | B163: =MAX(B160:B162) -> 12 | C163: A
A165: Output Ripple Spec (pk-pk) | B165: =Vripple1*1000 -> 100 | C165: mV | E165: Vout ripple spec at Vin(nom)
A167: Coutmin | B167: =IF(VIN_min>Vout, Iripple_Vinmin/(Fsw*8*Vripple1), Iout*Don_Vinmin_2/(Vripple1*Fsw)) -> 0.0002457578475 | C167: F | E167: Minimum Output Capacitnace | H167: =Vripple2 -> 0.06495964126 | I167: 1 | K167: =Coutmin -> 0.0002457578475
A168: Reported Coutmin | B168: =IF(Coutmin*1000000<22, 22,Coutmin*1000000) -> 245.7578475 | C168: uF | K168: =Coutmin*1000000 -> 245.7578475
A169: Cout | B169: ='Design Converter'!E42/1000000 -> 0.0006 | C169: F | E169: Chosen Output Capacitance | I169: 1
A170: Resrmax | B170: =IF(VIN_min>Vout, SQRT((Vripple1/Iripple_Vinmin)^2-(1/(Fsw*Cout*8))^2), (Vripple1-Iout*Don_Vinmin_2/(Fsw*Cout))/Iout) -> 0.004920029895 | C170: W | E170: Max ESR before ripple exceeds Vripple1 | I170: 1
A172: Reported Cout ESR max | B172: =IF(OR(CoutEsrMax>0.3, CoutEsrMax<0, (ISERROR(CoutEsrMax))), "N/A", CoutEsrMax*1000) -> 4.920029895 | C172: mΩ
A173: CoutEsr | B173: ='Design Converter'!E44/1000 -> 0.002 | C173: W | E173: Chosen ESR | I173: 1 | K173: =ISERROR(CoutEsrMax) -> FALSE | L173: =ISERROR(B172) -> FALSE
A174: Vripple | B174: =IF(VIN_min>Vout, Iripple_Vinmax*SQRT(CoutEsr^2+(1/(8*Fsw*Cout))^2), CoutEsr*Iout+Iout*Don_Vinmin_2/(Fsw*Cout)) -> 0.06495964126 | C174: Vp-p | L174: =OR(CoutEsrMax>0.3,CoutEsrMax<0) -> FALSE
K175: =OR(TRUE, FALSE, TRUE) -> TRUE
A176: Step 5: Input Capacitor
A178: Icinrms_VINmin | B178: =IF(D178="BUCK", Iout*SQRT(Don_Vinmin_2*(1-Don_Vinmax_2)), Iripple_Vinmin/SQRT(12)) -> 0.7547253161 | C178: A | D178: =IF(VIN_min>Vout, "BUCK", "BOOST") -> BOOST | F178: =Iripple_Vinmin/SQRT(12) -> 0.7547253161 | G178: =Iout*SQRT(Don_Vinmax_2*(1-Don_Vinmax_2)) -> 5.884333 | H178: =Iout*0.25 -> 3
A179: Icinrms_VINnom | B179: =IF(D179="BUCK", Iout*SQRT(Don_Vinnom_2*(1-Don_Vinnom_2)), Iripple_Vinnom/SQRT(12)) -> 0.01102273975 | C179: A | D179: =IF(VIN_nom>Vout,"BUCK",IF(VIN_nom<VIN_edgebuckboost,"BOOST","BUCK-BOOST")) -> BUCK-BOOST
A180: Icinrms_VINmiax | B180: =IF(D180="BUCK", Iout*SQRT(Don_Vinmax_2*(1-Don_Vinmax_2)), Iripple_Vinmax/SQRT(12)) -> 5.884333 | C180: A | D180: =IF(VIN_max>Vout, "BUCK", "BOOST") -> BUCK
A181: Max Cin rms current | B181: =MAX(B178:B180) -> 5.884333 | C181: A | D181: …report this
A183: Vinripple1 | B183: ='Design Converter'!E49/1000 -> 0.2 | C183: Vp-p | D183: Input voltage ripple spec (pk-pk)
A185: Cinmin_Vinmax | B185: =IF(VIN_max>Vout, Iout*Don_Vinmax_2*(1-Don_Vinmax_2)/(Vinripple1*Fsw), Iripple_Vinmax/(Fsw*8*Vinripple1)) -> 5.77089581e-05 | C185: F | D185: Calculate cap at Vinmax and 50% duty cycle (Vin = 2*Vout) | K185: =Iripple_Vinnom/(Fsw*8*Vinripple1) -> 9.545972644e-08
A186: Cinmin_50%D | B186: =IF(VIN_max>Vout, Iout*0.5*(1-0.5)/(Vinripple1*Fsw), Iripple_Vinmax/(Fsw*8*Vinripple1)) -> 6e-05 | D186: Buck 50% typically worst case
A187: Cinmin | B187: =IF(VIN_max<2*Vout, B185,B186) -> 6e-05
A188: Reported Cinmin | B188: =IF(Cinmin*1000000<10, 10,Cinmin*1000000) -> 60 | C188: uF | D188: …report this
A189: Cin | B189: ='Design Converter'!E51/1000000 -> 0.0001 | C189: F | D189: Input capacitance
A190: CinEsrMax_Vinmax | B190: =IF(VIN_max>Vout, -(Iout*Don_Vinmax_2*(1-Don_Vinmax_2)/(Cin*Fsw)-Vinripple1)/(Iout+Iripple_Vinmax/2), SQRT((Vinripple1/Iripple_Vinmax)^2-(1/(Fsw*Cin*8))^2)) -> 0.005608363887 | C190: W
A191: CinEsrMax_50%D | B191: =IF(VIN_max>Vout, -(Iout*0.5*(1-0.5)/(Cin*Fsw)-Vinripple1)/(Iout+Iripple_Vinmax/2), SQRT((Vinripple1/Iripple_Vinmax)^2-(1/(Fsw*Cin*8))^2)) -> 0.005304540758 | C191: W | D191: Calculate ESR at Vinmax and 50% duty cycle (Vin = 2*Vout)
A192: CinEsrMax | B192: =IF(VIN_max<2*Vout, B190,B191) -> 0.005304540758 | C192: W
A193: Reported Cin ESR max | B193: =IF(OR(CinEsrMax>0.3, CinEsrMax<0), "N/A",CinEsrMax*1000) -> 5.304540758 | C193: mΩ | D193: …report this
A194: RCinEsr | B194: ='Design Converter'!E53/1000 -> 0.002 | C194: W | D194: Input capacitance series resistance (ESR)
K195: =CinEsrMax -> 0.005304540758
A196: Vinripple2_Vinmax | B196: =IF(VIN_max>Vout, Iout*Don_Vinmax_2*(1-Don_Vinmax_2)/(Cin*Fsw)+(Iout +Iripple_Vinmax/2)*RCinEsr, Iripple_Vinmax*SQRT(RCinEsr^2+(1/(8*Fsw*Cin))^2)) -> 0.1455807535 | C196: Vp-p
A197: Vinripple2_50%D | B197: =IF(VIN_max>Vout, Iout*0.5*(1-0.5)/(Cin*Fsw)+(Iout +Iripple_Vinmax/2)*RCinEsr, Iripple_Vinmax*SQRT(RCinEsr^2+(1/(8*Fsw*Cin))^2)) -> 0.1501628373 | C197: Vp-p | D197: Calculate ripple at Vinmax and 50% duty cycle (Vin = 2*Vout)
A198: Vinripple2 | B198: =IF(VIN_max<2*Vout, B196,B197) -> 0.1501628373 | C198: Vp-p | D198: …report highest of these
B200: =Iout*Don_Vinmax_2*(1-Don_Vinmax_2)/(Cin*Fsw) -> 0.1154179162 | C200: Vp-p
A202: Step 6a: Soft Start
A203: Tss | B203: ='Design Converter'!E58/1000 -> 0.015 | C203: s | D203: Soft-start time
A204: Iss | B204: =Cout*Vout/Tss -> 0.48 | C204: A | D204: Load cap current during soft start
A205: Css | B205: =0.000005*Tss/0.8 -> 9.375e-08 | C205: F
A206: Css_u | B206: ='Standard Value Calculator'!B4 -> 1e-07 | C206: F
A208: Step 6b: Other Components - UVLO, Dither, MODE
A210: VINUVLO_ON | B210: ='Design Converter'!E62 -> 6 | C210: V
A212: RUV1 | B212: ='Design Converter'!E64 -> 249 | C212: kΩ | E212: ='Standard Value Calculator'!O16 -> 249 | F212: kΩ | G212: =IF(Ruvlo1<0,"N/A",E212) -> 249 | H212: =IF(Ruvlo1<0,"N/A",E212&"kΩ") -> 249kΩ
A213: RUV2 | B213: =Vuvlo_on/((VINuvlo_on-Vuvlo_on)/Ruvlo1+Iuvlo1) -> 57.82871067 | C213: kΩ | E213: ='Standard Value Calculator'!O17 -> 57.6 | F213: kΩ | G213: =IF(G212="N/A","N/A",E213) -> 57.6 | H213: =IF(H212="N/A","N/A",E213&"kΩ") -> 57.6kΩ
A215: VINUVLO_ON_ACTUAL | B215: =(E212+E213)/E213*Vuvlo_on-Iuvlo1*E212 -> 6.020858333
A216: VINUVLO_OFF_ACTUAL | B216: =(E212+E213)/E213*Vuvlo_off-Iuvlo2*E212 -> 5.261408333
A218: Rising UVLO/EN Threshold | B218: 1.22 | C218: V
A219: Falling UVLO/EN Threshold | B219: 1.22 | C219: V
A220: Voltage Hysteresis | B220: =B218-B219 -> 0 | C220: V
A221: Rising UVLO/EN Current | B221: 0.0019 | C221: mA | E221: 1.9uA kept by Vijay based on lab data (2017/5/05)
A222: Falling UVLO/EN Current | B222: 0.00495 | C222: mA | E222: 4.95uA if UVLO =1.5V | G222: changed to 4.95uA by Vijay on 5/5/2017
A223: UVLO/EN Current Hysteresis | B223: =B222-B221 -> 0.00305 | C223: mA | E223: 3.05uA hysteresis current
A225: RPG | B225: 20 | C225: kΩ
A226: RSB | C226: W
A227: Rh | B227: 0 | C227: W
A228: Rmode | C228: W | D228: TBD | E228: Tie to GND or VCC for DCM/CCM, respectively. Use 93.1k or 200k for hiccup in DCM, CCM, respectively.
A230: Dither Modulation Frequency | B230: ='Design Converter'!E60*1000 -> 1000 | C230: Hz
A231: Cdither_calculated | B231: =10*10^-6/Fdither/0.24 -> 4.166666667e-08 | C231: F
A232: Cdither_stdvalue | B232: ='Standard Value Calculator'!O19 -> 3.9e-08 | C232: F
A235: Step 7: Compensation
A236: Pi | B236: 3.14159265 | D236: p
A237: CS Amp Gain | B237: 5
A238: Ri | B238: =Rs*CSAmp_gain -> 0.02 | C238: W | D238: Current Sense effective resistance = shunt resistor Rs * CS amp gain
A239: gm | B239: 0.00127 | C239: S | D239: Error Amp Transconductance
A241: gm_slopecomp | B241: 2e-06 | C241: S | D241: adaptive slope comp gm amplifier transconductance
A242: Isc_const | B242: 4e-06 | C242: A | D242: slope comp constant current source
A244: Se_fixed | B244: =Isc_const/(Cslope*10^-12) -> 14814.81481 | C244: V/s
A245: Se_proportional | B245: =(ABS((Vin-Vout))*gm_slopecomp)/(Cslope*10^-12) -> 0 | C245: V/s
A246: Se | B246: =Se_fixed+Se_proportional -> 14814.81481 | C246: V/s | D246: Slope comp slope - internal
A248: V_sc_fixed | B248: =Se_fixed/Fsw -> 0.05925925926 | C248: V/s | D248: Fixed slope comp amplitude over full period
A249: V_sc_proportional | B249: =Se_proportional/Fsw -> 0 | C249: V/s | D249: Proportional slope comp amplitude over full period
A250: V_sc_total | B250: =Se/Fsw -> 0.05925925926 | C250: V/s | D250: Total slope comp amplitude over full period
A251: K_SL | B251: =gm_slopecomp/(Cslope*10^-12*Fsw) -> 0.02962962963 | D251: Proportional slope comp factor, where Vslope= Abs(Vin-Vout)*KSL
D252: KSL = gm/(Cslope*Fsw)
A254: Se_ext | B254: =(ABS((Vin-Vout))*gm_slopecomp+0.000004)/(Cslope*10^-12)/Ri -> 740740.7407 | C254: A/s | D254: Slope Comp Slope - referred to inductor current
A255: Sn | B255: =IF(VIN_nom>Vout, (Vin-Vout)/Lf, Vin/Lf) -> 2553191.489 | C255: A/s | D255: On-time Slope | I255: =Cslope -> 270
A256: Sf | B256: =IF(VIN_nom>Vout, Vout/Lf, (Vout-Vin)/Lf) -> 0 | C256: A/s | D256: Off-time Slope
A258: Se_int | B258: =Se/1000 -> 14.81481481 | C258: mV/μs | D258: Slope Comp Slope - referred to IC
A259: Sn_int | B259: =Sn*Ri/1000 -> 51.06382979 | C259: mV/μs | D259: etc
A260: Sf_int | B260: =Sf*Ri/1000 -> 0 | C260: mV/μs | D260: etc
A262: Toff_Vinmax | B262: =(1-Don_Vinmax_2)/Fsw -> 2.390814696e-06 | C262: sec
... 190 more rows

Sheet Schematic Management (hidden)
A2: =IF(DITHER=1, "SCH_WITH_DITH", "SCH_NO_DITH") -> SCH_NO_DITH

Sheet Efficiency Plot Management (hidden)
A2: =IF(PLOT_TYPE=1, "EFF_IOUT", "EFF_VIN") -> EFF_IOUT

Sheet Efficiency vs VIN Calculations (hidden)
A1: BUCK-BOOST CONTROLLER POWER TOOL
H2: =BD9 -> 0.8291492464 | I2: Low VIN
H3: =BD109 -> 0.9753842964 | I3: Nom VIN
H4: =BD209 -> 0.967441773 | I4: High VIN
A6: Enter the values of your design and MOSFET datasheet specifications below. Note that thermal resistance (θJA) will change when components are placed on the PCB | BU6: 80 | BV6: 100 | BW6: 120 | BX6: 140 | BY6: 160 | BZ6: 180 | CA6: 20 | CB6: 30 | CC6: 40 | CD6: 50
G7: Operating Point Condtions | Q7: Filter Inductor | U7: Cout | X7: Cin | AA7: High-side BUCK "Control" MOSFET Losses | AF7: Low-side BUCK "Sync" MOSFET Losses | AJ7: Low-side BOOST "Control" MOSFET Losses | AO7: High-side BOOST "Sync" MOSFET Losses | AS7: Pass FET | AT7: External Diode | AU7: Diode/FET | AV7: Sense Rs | AW7: Output Rs | AX7: Controller IC Losses | BB7: RESULTS | BH7: Consolidated Buck/Boost Efficiency & Losses
A8: Input Parameters | G8: Step | H8: Vin | I8: Mode | J8: Mode Digit | K8: Iout | L8: Iin | M8: Avg IL | N8: Actual Duty Cycle BUCK Leg | O8: Actual Duty Cycle BOOST Leg | P8: Ripple Current pk-pk | Q8: Irms Lf | R8: DCR Loss | S8: Core Loss | T8: Total Inductor Loss | U8: Irms Cout | V8: Cout ESR Loss | W8: Total Cout Loss | X8: Irms Cin | Y8: Cin ESR Loss | Z8: Total Cin Loss | AA8: Irms | AB8: RDS(on) Loss | AC8: Transition Loss | AD8: Dead Time Loss | AE8: Total Control MOSFET Loss | AF8: Irms | AG8: RDS(on) Loss | AH8: Deadtime Loss | AI8: Total Sync MOSFET Loss | AJ8: Irms | AK8: RDS(on) Loss | AL8: Transition Loss | AM8: Dead Time Loss | AN8: Total Control MOSFET Loss | AO8: Irms | AP8: RDS(on) Loss | AQ8: Deadtime Loss | AR8: Total Sync MOSFET Loss | AS8: Q1/Q3 RDS(on) Loss @ D = 100% | AT8: Deadtime Loss | AU8: Reverse Recovery Loss | AV8: Isense Shunt Loss | AW8: Iout Shunt Loss | AX8: IQ Loss | AY8: Switching Current Loss | AZ8: Switching Current Diss | BA8: Total IC Loss | BB8: Total Loss | BC8: Pout | BD8: EFF, h | BE8: Control FET Temp Rise | BF8: Sync FET Temp Rise | BH8: h | BI8: Inductor Cu & Core Loss | BJ8: Total MOSFET Loss | BK8: Total Sync MOSFET Loss | BL8: Shunt Loss | BS8: Qg | BU8: θJA=80 | BV8: θJA=100 | BW8: θJA=120 | BX8: θJA=140 | BY8: θJA=160 | BZ8: θJA=180 | CA8: θJA=20 | CB8: θJA=30 | CC8: θJA=40 | CD8: θJA=50
A9: Design | B9: Input Value | C9: Units | D9: Description | G9: 0 | H9: =VIN_min+(VIN_max-VIN_min)*(G9/200) -> 6 | I9: =IF(H9>VIN_BB_to_buck, "BUCK", IF(H9<VIN_boost_to_BB,"BOOST","BUCK-BST")) -> BOOST | J9: =IF(I9="BOOST",2, IF(I9="BUCK", 1,3)) -> 2 | K9: =Iout -> 12 | L9: =Vout*K9/(H9*Efficiency) -> 26.66666667 | M9: =Iout/(1-O9) -> 24.80648899 | N9: =CHOOSE(J9,(Vout+(Rdson2+Rs+Rdcr)*K9)/(H9+(Rs+Rdson2-Rdson1)*K9),1,IF(H9<Vout,D_max_buck_BB,Vout/H9*(1-D_min_boost_exitBB_to_buck))) -> 1 | O9: =CHOOSE(J9,0,(Vout+(Rdson3+Rdcr)*L9-H9)/(Vout+(Rdson3-Rdson4-Rs)*L9), IF(H9>Vout,D_min_boost_exitBB_to_buck, (Vout-H9*D_max_buck_BB)/Vout)) -> 0.5162556054 | P9: =MAX(0, CHOOSE(J9, (H9-(Rdson1+Rdcr)*K9-Vout)*N9/(Fsw*Lf), (H9-(Rdson4+Rdcr+Rs)*L9)*O9/(Fsw*Lf), IF(H9<Vout, (H9-(Rdson4+Rdcr+Rs)*L9)*O9/(0.5*Fsw*Lf),(H9-(Rdson1+Rdcr)*K9-Vout)*N9/(0.5*Fsw*Lf)))) -> 2.527821773 | Q9: =CHOOSE(J9, SQRT(K9^2+(P9^2)/12), SQRT(L9^2+(P9^2)/12), SQRT(M9^2+(P9^2)/12)) -> 26.67664899 | R9: =(Q9^2*Rdcr*(1+Ltc*Ta-Ltc*25))/(1-Q9^2*Rdcr*Ltc*ThetaCa) -> 2.94583765 | S9: =ABS(7.759*10^-3*Fsw^0.9458*(0.00787*P9)^2.304) -> 0.1189682345 | T9: =R9+S9 -> 3.064805885 | U9: =IF(H9>Vout, P9/SQRT(12), SQRT(O9/(1-O9))*SQRT(K9^2+(P9^2)/12)) -> 12.41958717 | V9: =RCoutEsr*U9^2 -> 0.3084922909 | W9: =V9 -> 0.3084922909 | X9: =IF(H9>Vout, SQRT(N9*(1-N9))*SQRT(K9^2+(P9^2)/12), P9/SQRT(12)) -> 0.7297192905 | Y9: =RCinEsr*X9^2 -> 0.001064980486 | Z9: =Y9 -> 0.001064980486 | AA9: =CHOOSE(J9, SQRT(N9)*SQRT(K9^2+(P9^2)/12), SQRT(L9^2+(P9^2)/12), SQRT(N9)*SQRT(M9^2+(P9^2)/12)) -> 26.67664899 | AB9: =Rdson1*AA9^2 -> 4.056368528 | AC9: =CHOOSE(J9, (H9*K9/2)*(Fsw)*(Tr_buck+Tf_buck), 0, (H9*M9/2)*(Fsw/2)*(Tr_buck+Tf_buck)) -> 0 | AD9: =IF(H9>Vout, IF(K9>P9/2,0,ABS(K9-P9/2)*Vsd_Q1*Deadtime*Fsw),0) -> 0 | AE9: =(AD9+AC9+AB9*(1+RdsonTopTc*Ta-RdsonTopTc*25))/(1-AB9*RdsonTopTc*ThetaJA_Q1) -> 21.49339359 | AF9: =CHOOSE(J9, SQRT((1-N9))*SQRT(K9^2+(P9^2)/12), 0, SQRT((1-N9))*SQRT(M9^2+(P9^2)/12)) -> 0 | AG9: =Rdson2*AF9^2 -> 0 | AH9: =CHOOSE(J9, IF(K9<P9/2,Deadtime*Fsw*IF(VfdSky_Q2>0,0,Vsd_Q2)*(K9+P9/2),2*Deadtime*Fsw*IF(VfdSky_Q2>0,0,Vsd_Q2)*K9),0, IF(K9<P9/2,Deadtime*Fsw/2*IF(VfdSky_Q2>0,0,Vsd_Q2)*(K9+P9/2),2*Deadtime*Fsw/2*IF(VfdSky_Q2>0,0,Vsd_Q2)*K9)) -> 0 | AI9: =(AH9+AG9*(1+RdsonBotTc*Ta-RdsonBotTc*25))/(1-AG9*RdsonBotTc*ThetaJA_Q2) -> 0 | AJ9: =CHOOSE(J9, 0, SQRT(O9)*SQRT(L9^2+(P9^2)/12), SQRT(O9)*SQRT(M9^2+(P9^2)/12)) -> 19.16742023 | AK9: =Rdson4*AJ9^2 -> 0.6980409966 | AL9: =CHOOSE(J9, 0, (Vout*L9/2)*(Fsw)*(Tr_boost+Tf_boost), (Vout*Iout/2)*(Fsw/2)*(Tr_boost+Tf_boost)) -> 0.2555026432 | AM9: =IF(H9>Vout, 0, IF(L9>P9/2,0,ABS(L9-P9/2)*Vsd_Q4*Deadtime*Fsw)) -> 0 | AN9: =(AM9+AL9+AK9*(1+RdsonTopTc*Ta-RdsonTopTc*25))/(1-AK9*RdsonTopTc*ThetaJA_Q4) -> 1.108266768 | AO9: =CHOOSE(J9, SQRT(Iout^2+(P9^2)/12), SQRT(1-O9)*SQRT(L9^2+(P9^2)/12), SQRT(1-O9)*SQRT(M9^2+(P9^2)/12)) -> 18.55407241 | AP9: =Rdson3*AO9^2 -> 0.6540818459 | AQ9: =CHOOSE(J9, 0, IF(L9<P9/2,Deadtime*Fsw*IF(VfdSky_Q3>0,0,Vsd_Q3)*(L9+P9/2), 2*Deadtime*Fsw*IF(VfdSky_Q3>0,0,Vsd_Q3)*L9), IF(L9<P9/2,Deadtime*Fsw/2*IF(VfdSky_Q3>0,0,Vsd_Q3)*(L9+P9/2), 2*Deadtime*Fsw/2*IF(VfdSky_Q3>0,0,Vsd_Q3)*L9)) -> 0.5333333333 | AR9: =(AQ9+AP9*(1+RdsonBotTc*Ta-RdsonBotTc*25))/(1-AP9*RdsonBotTc*ThetaJA_Q3) -> 1.366126946 | AS9: =CHOOSE(J9, Rdson3*Q9^2, Rdson1*Q9^2, 0) -> 4.056368528 | AT9: =CHOOSE(J9, 2*Deadtime*Fsw*IF(VfdSky_Q2>0,VfdSky_Q2,0)*K9, 2*Deadtime*Fsw*IF(VfdSky_Q3>0,VfdSky_Q3,0)*L9, 2*Deadtime*Fsw/2*IF(VfdSky_Q2>0,VfdSky_Q2,0)*K9+2*Deadtime*Fsw/2*IF(VfdSky_Q3>0,VfdSky_Q3,0)*L9) -> 0 | AU9: =CHOOSE(J9, IF(QrrSky_Q2>0,QrrSky_Q2,Qrr_Q2)*Fsw*(H9-K9*Rdson1), IF(QrrSky_Q3>0,QrrSky_Q3,Qrr_Q3)*Fsw*Vout, IF(QrrSky_Q2>0,QrrSky_Q2,Qrr_Q2)*Fsw/2*(H9-K9*Rdson1)+IF(QrrSky_Q3>0,QrrSky_Q3,Qrr_Q3)*Fsw/2*Vout) -> 0.099 | AV9: =CHOOSE(J9, Rs*AF9^2, Rs*AJ9^2, Rs*(AF9^2+AJ9^2)) -> 1.469559993 | AW9: =Rshunt_std/1000*Iout^2 -> 0.59328 | AX9: =IF(Vout>8, Iq*Vout, Iq*H9) -> 0.036 | AY9: =CHOOSE(J9, (Qg_Q1+Qg_Q2)*Fsw, (Qg_Q3+Qg_Q4)*Fsw, (Qg_Q1+Qg_Q2+Qg_Q3+Qg_Q4)*Fsw/2)*IF(Vout>8, Vout, H9) -> 0.132 | AZ9: =(Vin-Vdd)*Fsw*(Qg_Q1+Qg_Q2)+(RdsonDRT+RdsonDRT2)*Fsw*Qg_Q1*Vdd/(RdsonDRT+2*Rgate1+RdsonDRT2)+(RdsonDRB+RdsonDRB2)*Fsw*Qg_Q2*Vdd/(RdsonDRB+2*Rgate2+RdsonDRB2) -> 0.0435 | BA9: =SUM(AX9:AY9) -> 0.168 | BB9: =SUM(T9,W9,Z9,AE9,AI9,AN9,AR9, AT9,AU9,BA9,AV9,AW9) -> 29.67199045 | BC9: =Vout*K9 -> 144 | BD9: =BC9/(BC9+BB9) -> 0.8291492464 | BE9: =IF(H9>Vout,ThetaJA_Q1*(AE9+AU9),ThetaJA_Q4*(AN9+AU9)) -> 60.36333838 | BF9: =IF(H9>Vout, AI9*ThetaJA_Q2, ThetaJA_Q3*AR9) -> 68.30634731 | BH9: =BD9*100 -> 82.91492464 | BI9: =T9 -> 3.064805885 | BJ9: =AE9+AI9+AN9+AR9+AU9 -> 24.0667873 | BK9: =AI9+AU9*0.33 -> 0.03267 | BL9: =AV9 -> 1.469559993 | BP9: 250kHz / 5-1.2V /25A | BQ9: 70 | BR9: 70 | BS9: 70 | BT9: =250000*(5-Vdd)*BS9/1000000000+((250000*BS9/1000000000*Vdd)*2.5/(2*4)) -> -0.002734375 | BU9: =BU$6*$BT9 -> -0.21875 | BV9: -0.2734375 | BW9: -0.328125 | BX9: -0.3828125 | BY9: -0.4375 | BZ9: -0.4921875 | CA9: -0.0546875 | CB9: -0.08203125 | CC9: -0.109375 | CD9: -0.13671875
G10: 1 | H10: 6.12 | I10: BOOST | J10: =IF(I10="BOOST",2, IF(I10="BUCK", 1,3)) -> 2 | K10: 12 | L10: 26.14379085 | M10: 24.28393524 | N10: 1 | O10: =CHOOSE(J10,0,(Vout+(Rdson3+Rdcr)*L10-H10)/(Vout+(Rdson3-Rdson4-Rs)*L10),IF(H10>Vout,D_min_boost_exitBB_to_buck, (Vout-H10*D_max_buck_BB)/Vout)) -> 0.5058461538 | P10: 2.530595449 | Q10: 26.1539951 | R10: 2.805880637 | S10: =7.759*10^-3*Fsw^0.9458*(0.00787*P10)^2.304 -> 0.1192692116 | T10: =R10+S10 -> 2.925149849 | U10: 12.16361416 | V10: 0.2959070188 | W10: =V10 -> 0.2959070188 | X10: 0.730519982 | Y10: 0.001067318888 | Z10: =Y10 -> 0.001067318888 | AA10: 26.1539951 | AB10: 3.898979319 | AC10: 0 | AD10: 0 | AE10: 17.70620382 | AF10: 0 | AG10: 0 | AH10: 0 | AI10: 0 | AJ10: 18.60146991 | AK10: 0.6574278974 | AL10: 0.2504927874 | AM10: 0 | AN10: 1.045372032 | AO10: 18.38523257 | AP10: 0.6422318755 | AQ10: 0.522875817 | AR10: 1.336816989 | AS10: 3.898979319 | AT10: 0 | AU10: 0.099 | AV10: 1.384058731 | AW10: 0.59328 | AX10: 0.036 | AY10: 0.132 | AZ10: 0.0435 | BA10: =SUM(AX10:AY10) -> 0.168 | BB10: =SUM(T10,W10,Z10,AE10,AI10,AN10,AR10, AT10,AU10,BA10,AV10,AW10) -> 25.55485576 | BC10: 144 | BD10: =BC10/(BC10+BB10) -> 0.8492826664 | BE10: 57.21860162 | BF10: 66.84084944 | BH10: =BD10*100 -> 84.92826664 | BI10: =T10 -> 2.925149849 | BJ10: =AE10+AI10+AN10+AR10+AU10 -> 20.18739284 | BK10: =AI10+AU10*0.33 -> 0.03267 | BL10: =AV10 -> 1.384058731
A11: Vin | B11: =Vin -> 12 | C11: V | D11: Vin | G11: 2 | H11: 6.24 | I11: BOOST | J11: 2 | K11: 12 | L11: 25.64102564 | M11: 23.78369143 | N11: 1 | O11: 0.4954525862 | P11: 2.531159955 | Q11: 25.65143453 | R11: 2.676219333 | S11: 0.11933052 | T11: 2.795549853 | U11: 11.91337781 | V11: 0.2838571416 | W11: 0.2838571416 | X11: 0.7306829408 | Y11: 0.00106779512 | Z11: 0.00106779512 | AA11: 25.65143453 | AB11: 3.750577733 | AC11: 0 | AD11: 0 | AE11: 15.009248 | AF11: 0 | AG11: 0 | AH11: 0 | AI11: 0 | AJ11: 18.05563253 | AK11: 0.6194111458 | AL11: 0.2456756185 | AM11: 0 | AN11: 0.9874092195 | AO11: 18.22059898 | AP11: 0.6307814318 | AQ11: 0.5128205128 | AR11: 1.308703063 | AS11: 3.750577733 | AT11: 0 | AU11: 0.099 | AV11: 1.304023465 | AW11: 0.59328 | AX11: 0.036 | AY11: 0.132 | AZ11: 0.0435 | BA11: =SUM(AX11:AY11) -> 0.168 | BB11: =SUM(T11,W11,Z11,AE11,AI11,AN11,AR11, AT11,AU11,BA11,AV11,AW11) -> 22.55013854 | BC11: 144 | BD11: 0.8646045045 | BE11: 54.32046098 | BF11: 65.43515315 | BH11: 86.46045045 | BI11: 2.795549853 | BJ11: 17.40436028 | BK11: 0.03267 | BL11: 1.304023465 | BP11: 250kHz / 12-5V / 30A | BQ11: 90 | BR11: 90 | BS11: 90 | BT11: =250000*(12-Vdd)*BS11/1000000000+((250000*BS9/1000000000*Vdd)*2.5/(2*4)) -> 0.142265625 | BU11: 11.38125 | BV11: 14.2265625 | BW11: 17.071875 | BX11: 19.9171875 | BY11: 22.7625 | BZ11: 25.6078125 | CA11: 2.8453125 | CB11: 4.26796875 | CC11: 5.690625 | CD11: 7.11328125
A12: Vout | B12: =Vout -> 12 | C12: V | D12: Vout | G12: 3 | H12: 6.36 | I12: BOOST | J12: 2 | K12: 12 | L12: 25.1572327 | M12: 23.30431926 | N12: 1 | O12: 0.4850739958 | P12: 2.529524901 | Q12: 25.16782798 | R12: 2.55582296 | S12: 0.1191529933 | T12: 2.674975953 | U12: 11.66851007 | V12: 0.2723082546 | W12: 0.2723082546 | X12: 0.7302109413 | Y12: 0.001066416038 | Z12: 0.001066416038 | AA12: 25.16782798 | AB12: 3.610491523 | AC12: 0 | AD12: 0 | AE12: 12.99197371 | AF12: 0 | AG12: 0 | AH12: 0 | AI12: 0 | AJ12: 17.52870102 | AK12: 0.5837851832 | AL12: 0.2410402294 | AM12: 0 | AN12: 0.9338601572 | AO12: 18.06001677 | AP12: 0.619711991 | AQ12: 0.5031446541 | AR12: 1.281715543 | AS12: 3.610491523 | AT12: 0 | AU12: 0.099 | AV12: 1.229021438 | AW12: 0.59328 | AX12: 0.036 | AY12: 0.132 | AZ12: 0.0435 | BA12: 0.168 | BB12: 20.24520148 | BC12: 144 | BD12: 0.8767379425 | BE12: 51.64300786 | BF12: 64.08577717 | BH12: 87.67379425 | BI12: 2.674975953 | BJ12: 15.30654941 | BK12: 0.03267 | BL12: 1.229021438 | BP12: 250kHz / 18-1.2V / 20A | BQ12: 60 | BR12: 60 | BS12: 60 | BT12: =250000*(18-Vdd)*BS12/1000000000+((250000*BS9/1000000000*Vdd)*2.5/(2*4)) -> 0.198515625 | BU12: 15.88125 | BV12: 19.8515625 | BW12: 23.821875 | BX12: 27.7921875 | BY12: 31.7625 | BZ12: 35.7328125 | CA12: 3.9703125 | CB12: 5.95546875 | CC12: 7.940625 | CD12: 9.92578125
A13: Fsw | B13: =Fsw/1000 -> 250 | C13: kHz | D13: Switching Frequency | G13: 4 | H13: 6.48 | I13: BOOST | J13: 2 | K13: 12 | L13: 24.69135802 | M13: 22.84450413 | N13: 1 | O13: 0.4747095436 | P13: 2.525699172 | Q13: 24.70212051 | R13: 2.443790933 | S13: 0.1187381976 | T13: 2.56252913 | U13: 11.42866824 | V13: 0.2612289155 | W13: 0.2612289155 | X13: 0.7291065484 | Y13: 0.001063192718 | Z13: 0.001063192718 | AA13: 24.70212051 | AB13: 3.478110118 | AC13: 0 | AD13: 0 | AE13: 11.42694408 | AF13: 0 | AG13: 0 | AH13: 0 | AI13: 0 | AJ13: 17.01955566 | AK13: 0.5503640221 | AL13: 0.2365765215 | AM13: 0 | AN13: 0.8842751941 | AO13: 17.90333719 | AP13: 0.6090060171 | AQ13: 0.4938271605 | AR13: 1.255789898 | AS13: 3.478110118 | AT13: 0 | AU13: 0.099 | AV13: 1.158661099 | AW13: 0.59328 | AX13: 0.036 | AY13: 0.132 | AZ13: 0.0435 | BA13: 0.168 | BB13: 18.41077151 | BC13: 144 | BD13: 0.8866406991 | BE13: 49.1637597 | BF13: 62.78949492 | BH13: 88.66406991 | BI13: 2.56252913 | BJ13: 13.66600918 | BK13: 0.03267 | BL13: 1.158661099 | BP13: 500kHz / 5-1.2V / 15A | BQ13: 30 | BR13: 30 | BS13: 30 | BT13: =500000*(5-Vdd)*BS13/1000000000+((500000*BS9/1000000000*Vdd)*2.5/(2*4)) -> 0.04453125 | BU13: 3.5625 | BV13: 4.453125 | BW13: 5.34375 | BX13: 6.234375 | BY13: 7.125 | BZ13: 8.015625 | CA13: 0.890625 | CB13: 1.3359375 | CC13: 1.78125 | CD13: 2.2265625
A14: Iout | B14: =Iout -> 12 | C14: A | D14: Max Output Current | G14: 5 | H14: 6.6 | I14: BOOST | J14: 2 | K14: 12 | L14: 24.24242424 | M14: 22.40304183 | N14: 1 | O14: 0.4643584521 | P14: 2.519690995 | Q14: 24.25333386 | R14: 2.339333113 | S14: 0.118088427 | T14: 2.45742154 | U14: 11.19353222 | V14: 0.2505903271 | W14: 0.2505903271 | X14: 0.7273721371 | Y14: 0.001058140452 | Z14: 0.001058140452 | AA14: 24.25333386 | AB14: 3.352877959 | AC14: 0 | AD14: 0 | AE14: 10.17798887 | AF14: 0 | AG14: 0 | AH14: 0 | AI14: 0 | AJ14: 16.52715585 | AK14: 0.5189790731 | AL14: 0.2322751302 | AM14: 0 | AN14: 0.8382623241 | AO14: 17.75041754 | AP14: 0.5986469133 | AQ14: 0.4848484848 | AR14: 1.230866255 | AS14: 3.352877959 | AT14: 0 | AU14: 0.099 | AV14: 1.092587522 | AW14: 0.59328 | AX14: 0.036 | AY14: 0.132 | AZ14: 0.0435 | BA14: 0.168 | BB14: 16.90905498 | BC14: 144 | BD14: 0.8949154541 | BE14: 46.8631162 | BF14: 61.54331275 | BH14: 89.49154541 | BI14: 2.45742154 | BJ14: 12.34611745 | BK14: 0.03267 | BL14: 1.092587522 | BP14: 500kHz / 12-5V / 15A | BQ14: 45 | BR14: 45 | BS14: 45 | BT14: =500000*(12-Vdd)*BS14/1000000000+((500000*BS9/1000000000*Vdd)*2.5/(2*4)) -> 0.18328125 | BU14: 14.6625 | BV14: 18.328125 | BW14: 21.99375 | BX14: 25.659375 | BY14: 29.325 | BZ14: 32.990625 | CA14: 3.665625 | CB14: 5.4984375 | CC14: 7.33125 | CD14: 9.1640625
A15: Ta | B15: =Ta -> 25 | C15: °C | D15: Ambient Temperature | G15: 6 | H15: 6.72 | I15: BOOST | J15: 2 | K15: 12 | L15: 23.80952381 | M15: 21.97882706 | N15: 1 | O15: 0.45402 | P15: 2.511508 | Q15: 23.82055968 | R15: 2.241753531 | S15: 0.1172066991 | T15: 2.35896023 | U15: 10.96280211 | V15: 0.2403660602 | W15: 0.2403660602 | X15: 0.7250099099 | Y15: 0.001051278739 | Z15: 0.001051278739 | AA15: 23.82055968 | AB15: 3.234288661 | AC15: 0 | AD15: 0 | AE15: 9.158599684 | AF15: 0 | AG15: 0 | AH15: 0 | AI15: 0 | AJ15: 16.0505328 | AK15: 0.489477246 | AL15: 0.22812736 | AM15: 0 | AN15: 0.7954783128 | AO15: 17.60112099 | AP15: 0.5886189745 | AQ15: 0.4761904762 | AR15: 1.206889004 | AS15: 3.234288661 | AT15: 0 | AU15: 0.099 | AV15: 1.030478413 | AW15: 0.59328 | AX15: 0.036 | AY15: 0.132 | AZ15: 0.0435 | BA15: 0.168 | BB15: 15.65210298 | BC15: 144 | BD15: 0.901961185 | BE15: 44.72391564 | BF15: 60.34445021 | BH15: 90.1961185 | BI15: 2.35896023 | BJ15: 11.259967 | BK15: 0.03267 | BL15: 1.030478413 | BP15: 1Mhz / 5-1.2V / 10A | BQ15: 20 | BR15: 20 | BS15: 20 | BT15: =1000000*(5-Vdd)*BS15/1000000000+((1000000*BS9/1000000000*Vdd)*2.5/(2*4)) -> 0.1140625 | BU15: 9.125 | BV15: 11.40625 | BW15: 13.6875 | BX15: 15.96875 | BY15: 18.25 | BZ15: 20.53125 | CA15: 2.28125 | CB15: 3.421875 | CC15: 4.5625 | CD15: 5.703125
A16: Vcc | B16: =Vdd -> 7.5 | C16: V | D16: Subregulated VCC Voltage | G16: 7 | H16: 6.84 | I16: BOOST | J16: 2 | K16: 12 | L16: 23.39181287 | M16: 21.57084334 | N16: 1 | O16: 0.4436935167 | P16: 2.501157271 | Q16: 23.40295333 | R16: 2.1504369 | S16: 0.1160967497 | T16: 2.266533649 | U16: 10.73619606 | V16: 0.2305318119 | W16: 0.2305318119 | X16: 0.722021912 | Y16: 0.001042631283 | Z16: 0.001042631283 | AA16: 23.40295333 | AB16: 3.121879881 | AC16: 0 | AD16: 0 | AE16: 8.311182682 | AF16: 0 | AG16: 0 | AH16: 0 | AI16: 0 | AJ16: 15.58878287 | AK16: 0.4617192877 | AL16: 0.2241251256 | AM16: 0 | AN16: 0.7556214091 | AO16: 17.45531648 | AP16: 0.5789073393 | AQ16: 0.4678362573 | AR16: 1.183806444 | AS16: 3.121879881 | AT16: 0 | AU16: 0.099 | AV16: 0.9720406058 | AW16: 0.59328 | AX16: 0.036 | AY16: 0.132 | AZ16: 0.0435 | BA16: 0.168 | BB16: 14.58103923 | BC16: 144 | BD16: 0.908053073 | BE16: 42.73107046 | BF16: 59.19032222 | BH16: 90.8053073 | BI16: 2.266533649 | BJ16: 10.34961054 | BK16: 0.03267 | BL16: 0.9720406058 | BP16: 1Mhz / 12-1.2V/ 10A | BQ16: 25 | BR16: 25 | BS16: 25 | BT16: =1000000*(12-Vdd)*BS16/1000000000+((1000000*BS9/1000000000*Vdd)*2.5/(2*4)) -> 0.2765625 | BU16: 22.125 | BV16: 27.65625 | BW16: 33.1875 | BX16: 38.71875 | BY16: 44.25 | BZ16: 49.78125 | CA16: 5.53125 | CB16: 8.296875 | CC16: 11.0625 | CD16: 13.828125
A17: Components | B17: Input Value | C17: Units | D17: Description | G17: 8 | H17: 6.96 | I17: BOOST | J17: 2 | K17: 12 | L17: 22.98850575 | M17: 21.17815407 | N17: 1 | O17: 0.4333783784 | P17: 2.488645397 | Q17: 22.99972847 | R17: 2.064837368 | S17: 0.1147630261 | T17: 2.179600394 | U17: 10.51344833 | V17: 0.2210651917 | W17: 0.2210651917 | X17: 0.7184100448 | Y17: 0.001032225985 | Z17: 0.001032225985 | AA17: 22.99972847 | AB17: 3.015228804 | AC17: 0 | AD17: 0 | AE17: 7.595910325 | AF17: 0 | AG17: 0 | AH17: 0 | AI17: 0 | AJ17: 15.14106169 | AK17: 0.4355783232 | AL17: 0.2202608993 | AM17: 0 | AN17: 0.7184253219 | AO17: 17.31287846 | AP17: 0.5694979448 | AQ17: 0.4597701149 | AR17: 1.161570457 | AS17: 3.015228804 | AT17: 0 | AU17: 0.099 | AV17: 0.9170069962 | AW17: 0.59328 | AX17: 0.036 | AY17: 0.132 | AZ17: 0.0435 | BA17: 0.168 | BB17: 13.65489091 | BC17: 144 | BD17: 0.9133874577 | BE17: 40.87126609 | BF17: 58.07852287 | BH17: 91.33874577 | BI17: 2.179600394 | BJ17: 9.574906104 | BK17: 0.03267 | BL17: 0.9170069962 | BP17: 500kHz / 18-1.2V / 20A | BQ17: 50 | BR17: 50 | BS17: 50 | BT17: =500000*(18-Vdd)*BS17/1000000000+((500000*BS15/1000000000*Vdd)*2.5/(2*4)) -> 0.2859375 | BU17: 22.875 | BV17: 28.59375 | BW17: 34.3125 | BX17: 40.03125 | BY17: 45.75 | BZ17: 51.46875 | CA17: 5.71875 | CB17: 8.578125 | CC17: 11.4375 | CD17: 14.296875
A18: L | B18: =Lf*1000000 -> 4.7 | C18: uH | D18: Filter Inductance | G18: 9 | H18: 7.08 | I18: BOOST | J18: 2 | K18: 12 | L18: 22.59887006 | M18: 20.79989475 | N18: 1 | O18: 0.4230740038 | P18: 2.473978509 | Q18: 22.61015204 | R18: 1.984469101 | S18: 0.1132106806 | T18: 2.097679782 | U18: 10.29430752 | V18: 0.2119455347 | W18: 0.2119455347 | X18: 0.7141760791 | Y18: 0.001020094944 | Z18: 0.001020094944 | AA18: 22.61015204 | AB18: 2.913948159 | AC18: 0 | AD18: 0 | AE18: 6.984361803 | AF18: 0 | AG18: 0 | AH18: 0 | AI18: 0 | AJ18: 14.70657876 | AK18: 0.4109385715 | AL18: 0.2165276637 | AM18: 0 | AN18: 0.6836542123 | AO18: 17.17368675 | AP18: 0.5603774815 | AQ18: 0.4519774011 | AR18: 1.140136215 | AS18: 2.913948159 | AT18: 0 | AU18: 0.099 | AV18: 0.8651338348 | AW18: 0.59328 | AX18: 0.036 | AY18: 0.132 | AZ18: 0.0435 | BA18: 0.168 | BB18: 12.84421148 | BC18: 144 | BD18: 0.9181084762 | BE18: 39.13271062 | BF18: 57.00681074 | BH18: 91.81084762 | BI18: 2.097679782 | BJ18: 8.90715223 | BK18: 0.03267 | BL18: 0.8651338348 | BP18: θJA=120°C/W - 160°C/W
A19: Rdcr | B19: =Rdcr*1000 -> 3.35 | C19: mW | D19: Inductor DCR at 25°C | G19: 10 | H19: 7.2 | I19: BOOST | J19: 2 | K19: 12 | L19: 22.22222222 | M19: 20.43526608 | N19: 1 | O19: 0.4127798507 | P19: 2.457162327 | Q19: 22.23353993 | R19: 1.908898342 | S19: 0.1114455627 | T19: 2.020343905 | U19: 10.078535 | V19: 0.2031537354 | W19: 0.2031537354 | X19: 0.7093216654 | Y19: 0.00100627445 | Z19: 0.00100627445 | AA19: 22.23353993 | AB19: 2.817682697 | AC19: 0 | AD19: 0 | AE19: 6.45571268 | AF19: 0 | AG19: 0 | AH19: 0 | AI19: 0 | AJ19: 14.28459263 | AK19: 0.3876942144 | AL19: 0.2129188693 | AM19: 0 | AN19: 0.6510985087 | AO19: 17.03762634 | AP19: 0.5515333513 | AQ19: 0.4444444444 | AR19: 1.119461912 | AS19: 2.817682697 | AT19: 0 | AU19: 0.099 | AV19: 0.816198346 | AW19: 0.59328 | AX19: 0.036 | AY19: 0.132 | AZ19: 0.0435 | BA19: 0.168 | BB19: 12.12725536 | BC19: 144 | BD19: 0.9223245465 | BE19: 37.50492543 | BF19: 55.97309558 | BH19: 92.23245465 | BI19: 2.020343905 | BJ19: 8.3252731 | BK19: 0.03267 | BL19: 0.816198346 | BP19: θJA=30°C/W - 50°C/W
A20: LTc | B20: =Ltc*1000000 -> 4000 | C20: ppm | D20: Inductor Series Resistance Temp Co | G20: 11 | H20: 7.32 | I20: BOOST | J20: 2 | K20: 12 | L20: 21.8579235 | M20: 20.08352782 | N20: 1 | O20: 0.4024954128 | P20: 2.438202186 | Q20: 21.86925289 | R20: 1.837736699 | S20: 0.1094742104 | T20: 1.94721091 | U20: 9.865903431 | V20: 0.194672101 | W20: 0.194672101 | X20: 0.7038483441 | Y20: 0.000990804983 | Z20: 0.000990804983 | AA20: 21.86925289 | AB20: 2.726106066 | AC20: 0 | AD20: 0 | AE20: 5.994356257 | AF20: 0 | AG20: 0 | AH20: 0 | AI20: 0 | AJ20: 13.87440649 | AK20: 0.3657483955 | AL20: 0.2094283961 | AM20: 0 | AN20: 0.6205713896 | AO20: 16.90458715 | AP20: 0.5429536265 | AQ20: 0.4371584699 | AR20: 1.099508525 | AS20: 2.726106066 | AT20: 0 | AU20: 0.099 | AV20: 0.7699966221 | AW20: 0.59328 | AX20: 0.036 | AY20: 0.132 | AZ20: 0.0435 | BA20: 0.168 | BB20: 11.48758661 | BC20: 144 | BD20: 0.9261189471 | BE20: 35.97856948 | BF20: 54.97542623 | BH20: 92.61189471 | BI20: 1.94721091 | BJ20: 7.813436171 | BK20: 0.03267 | BL20: 0.7699966221
A21: ThetaCa | B21: =ThetaCa -> 20 | C21: °C/W | D21: Core to Ambient Thermal Resistance | G21: 12 | H21: 7.44 | I21: BOOST | J21: 2 | K21: 12 | L21: 21.50537634 | M21: 19.74399335 | N21: 1 | O21: 0.3922202166 | P21: 2.417103073 | Q21: 21.51669299 | R21: 1.770635438 | S21: 0.107303841 | T21: 1.877939279 | U21: 9.656195447 | V21: 0.186484221 | W21: 0.186484221 | X21: 0.6977575548 | Y21: 0.0009737312107 | Z21: 0.0009737312107 | AA21: 21.51669299 | AB21: 2.638918041 | AC21: 0 | AD21: 0 | AE21: 5.588366025 | AF21: 0 | AG21: 0 | AH21: 0 | AI21: 0 | AJ21: 13.47536417 | AK21: 0.3450123352 | AL21: 0.2060505187 | AM21: 0 | AN21: 0.5919058154 | AO21: 16.77446386 | AP21: 0.5346270117 | AQ21: 0.4301075269 | AR21: 1.080239592 | AS21: 2.638918041 | AT21: 0 | AU21: 0.099 | AV21: 0.7263417583 | AW21: 0.59328 | AX21: 0.036 | AY21: 0.132 | AZ21: 0.0435 | BA21: 0.168 | BB21: 10.91253042 | BC21: 144 | BD21: 0.9295568254 | BE21: 34.54529077 | BF21: 54.01197958 | BH21: 92.95568254 | BI21: 1.877939279 | BJ21: 7.359511432 | BK21: 0.03267 | BL21: 0.7263417583
A22: Cin | B22: =Cin*1000000 -> 100 | C22: μF | D22: Input Capacitance | G22: 13 | H22: 7.56 | I22: BOOST | J22: 2 | K22: 12 | L22: 21.16402116 | M22: 19.41602483 | N22: 1 | O22: 0.3819538188 | P22: 2.393869653 | Q22: 21.1753003 | R22: 1.707280612 | S22: 0.1049423404 | T22: 1.812222953 | U22: 9.449202372 | V22: 0.1785748509 | W22: 0.1785748509 | X22: 0.6910506443 | Y22: 0.000955101986 | Z22: 0.000955101986 | AA22: 21.1753003 | AB22: 2.555842054 | AC22: 0 | AD22: 0 | AE22: 5.228471545 | AF22: 0 | AG22: 0 | AH22: 0 | AI22: 0 | AJ22: 13.08684644 | AK22: 0.3254045443 | AL22: 0.2027798755 | AM22: 0 | AN22: 0.5649520101 | AO22: 16.64715571 | AP22: 0.5265428071 | AQ22: 0.4232804233 | AR22: 1.061621012 | AS22: 2.555842054 | AT22: 0 | AU22: 0.099 | AV22: 0.6850621985 | AW22: 0.59328 | AX22: 0.036 | AY22: 0.132 | AZ22: 0.0435 | BA22: 0.168 | BB22: 10.39213967 | BC22: 144 | BD22: 0.9326899692 | BE22: 33.19760051 | BF22: 53.08105059 | BH22: 93.26899692 | BI22: 1.812222953 | BJ22: 6.954044567 | BK22: 0.03267 | BL22: 0.6850621985
A23: RCinEsr | B23: =RCinEsr*1000 -> 2 | C23: mW | D23: Input Capacitor ESR | G23: 14 | H23: 7.68 | I23: BOOST | J23: 2 | K23: 12 | L23: 20.83333333 | M23: 19.09902891 | N23: 1 | O23: 0.3716958042 | P23: 2.368506296 | Q23: 20.84454996 | R23: 1.647388886 | S23: 0.1023982521 | T23: 1.749787138 | U23: 9.244723062 | V23: 0.170929809 | W23: 0.170929809 | X23: 0.6837288737 | Y23: 0.0009349703454 | Z23: 0.0009349703454 | AA23: 20.84454996 | AB23: 2.476622999 | AC23: 0 | AD23: 0 | AE23: 4.90735827 | AF23: 0 | AG23: 0 | AH23: 0 | AI23: 0 | AJ23: 12.70826763 | AK23: 0.3068501257 | AL23: 0.19961144 | AM23: 0 | AN23: 0.5395753165 | AO23: 16.52256629 | AP23: 0.5186908739 | AQ23: 0.4166666667 | AR23: 1.043620864 | AS23: 2.476622999 | AT23: 0 | AU23: 0.099 | AV23: 0.6460002647 | AW23: 0.59328 | AX23: 0.036 | AY23: 0.132 | AZ23: 0.0435 | BA23: 0.168 | BB23: 9.918486632 | BC23: 144 | BD23: 0.9355601341 | BE23: 31.92876582 | BF23: 52.18104321 | BH23: 93.55601341 | BI23: 1.749787138 | BJ23: 6.58955445 | BK23: 0.03267 | BL23: 0.6460002647
A24: Cout | B24: =Cout*1000000 -> 600 | C24: μF | D24: Output Capcitance | G24: 15 | H24: 7.8 | I24: BOOST | J24: 2 | K24: 12 | L24: 20.51282051 | M24: 18.79245283 | N24: 1 | O24: 0.3614457831 | P24: 2.341017096 | Q24: 20.52394948 | R24: 1.590703945 | S24: 0.09968076447 | T24: 1.690384709 | U24: 9.042562776 | V24: 0.1635358831 | W24: 0.1635358831 | X24: 0.6757934253 | Y24: 0.0009133935075 | Z24: 0.0009133935075 | AA24: 20.52394948 | AB24: 2.401025262 | AC24: 0 | AD24: 0 | AE24: 4.619177761 | AF24: 0 | AG24: 0 | AH24: 0 | AI24: 0 | AJ24: 12.33907256 | AK24: 0.2892801521 | AL24: 0.1965404948 | AM24: 0 | AN24: 0.5156543612 | AO24: 16.40060336 | AP24: 0.511061602 | AQ24: 0.4102564103 | AR24: 1.02620924 | AS24: 2.401025262 | AT24: 0 | AU24: 0.099 | AV24: 0.6090108465 | AW24: 0.59328 | AX24: 0.036 | AY24: 0.132 | AZ24: 0.0435 | BA24: 0.168 | BB24: 9.485166195 | BC24: 144 | BD24: 0.9382014143 | BE24: 30.73271806 | BF24: 51.31046199 | BH24: 93.82014143 | BI24: 1.690384709 | BJ24: 6.260041363 | BK24: 0.03267 | BL24: 0.6090108465
A25: RCoutEsr | B25: =CoutEsr*1000 -> 2 | C25: mW | D25: Output Capacitor ESR | G25: 16 | H25: 7.92 | I25: BOOST | J25: 2 | K25: 12 | L25: 20.2020202 | M25: 18.49578098 | N25: 1 | O25: 0.3512033898 | P25: 2.311405899 | Q25: 20.21303631 | R25: 1.536993397 | S25: 0.09679969748 | T25: 1.633793094 | U25: 8.842532108 | V25: 0.1563807482 | W25: 0.1563807482 | X25: 0.667245409 | Y25: 0.0008904328716 | Z25: 0.0008904328716 | AA25: 20.21303631 | AB25: 2.328830969 | AC25: 0 | AD25: 0 | AE25: 4.359198055 | AF25: 0 | AG25: 0 | AH25: 0 | AI25: 0 | AJ25: 11.97873357 | AK25: 0.2726311102 | AL25: 0.1935626085 | AM25: 0 | AN25: 0.4930794799 | AO25: 16.28117866 | AP25: 0.5036458795 | AQ25: 0.404040404 | AR25: 1.009358092 | AS25: 2.328830969 | AT25: 0 | AU25: 0.099 | AV25: 0.5739602321 | AW25: 0.59328 | AX25: 0.036 | AY25: 0.132 | AZ25: 0.0435 | BA25: 0.168 | BB25: 9.086940135 | BC25: 144 | BD25: 0.9406419638 | BE25: 29.603974 | BF25: 50.46790462 | BH25: 94.06419638 | BI25: 1.633793094 | BJ25: 5.960635628 | BK25: 0.03267 | BL25: 0.5739602321 | BP25: EFF_1 @ 25°C | BQ25: Vin | BR25: Iout | BS25: Vout | BT25: Efficiency | BU25: Pdis
A26: Top Driver | B26: Input Value | C26: Units | D26: Description | G26: 17 | H26: 8.04 | I26: BOOST | J26: 2 | K26: 12 | L26: 19.90049751 | M26: 18.20853177 | N26: 1 | O26: 0.3409682805 | P26: 2.279676315 | Q26: 19.9113756 | R26: 1.486046087 | S26: 0.09376548801 | T26: 1.579811575 | U26: 8.644445937 | V26: 0.1494528911 | W26: 0.1494528911 | X26: 0.6580858669 | Y26: 0.0008661540165 | Z26: 0.0008661540165 | AA26: 19.9113756 | AB26: 2.259838406 | AC26: 0 | AD26: 0 | AE26: 4.123549522 | AF26: 0 | AG26: 0 | AH26: 0 | AI26: 0 | AJ26: 11.62674786 | AK26: 0.2568444051 | AL26: 0.1906736143 | AM26: 0 | AN26: 0.4717513589 | AO26: 16.16420776 | AP26: 0.4964350635 | AQ26: 0.3980099502 | AR26: 0.9930410979 | AS26: 2.259838406 | AT26: 0 | AU26: 0.099 | AV26: 0.5407250635 | AW26: 0.59328 | AX26: 0.036 | AY26: 0.132 | AZ26: 0.0435 | BA26: 0.168 | BB26: 8.719477662 | BC26: 144 | BD26: 0.9429052679 | BE26: 28.53756794 | BF26: 49.65205489 | BH26: 94.29052679 | BI26: 1.579811575 | BJ26: 5.687341978 | BK26: 0.03267 | BL26: 0.5407250635 | BP26: Vin=10V | BQ26: 9.998964 | BR26: 0.1027 | BS26: 5.121136 | BT26: 61.87068324 | BU26: 324.123657
A27: RdsonDRT | B27: =RdsonDRT -> 1.5 | C27: W | D27: Drain to Source Resistance of pullup Top FET Driver | G27: 18 | H27: 8.16 | I27: BOOST | J27: 2 | K27: 12 | L27: 19.60784314 | M27: 17.93025485 | N27: 1 | O27: 0.3307401316 | P27: 2.245831739 | Q27: 19.6185582 | R27: 1.437669762 | S27: 0.09058917385 | T27: 1.528258936 | U27: 8.448122392 | V27: 0.1427415439 | W27: 0.1427415439 | X27: 0.6483157794 | Y27: 0.0008406266997 | Z27: 0.0008406266997 | AA27: 19.6185582 | AB27: 2.193860607 | AC27: 0 | AD27: 0 | AE27: 3.909037115 | AF27: 0 | AG27: 0 | AH27: 0 | AI27: 0 | AJ27: 11.28263489 | AK27: 0.2418659153 | AL27: 0.1878695906 | AM27: 0 | AN27: 0.4515798612 | AO27: 16.04960983 | AP27: 0.4894209538 | AQ27: 0.3921568627 | AR27: 0.9772335298 | AS27: 2.193860607 | AT27: 0 | AU27: 0.099 | AV27: 0.5091914007 | AW27: 0.59328 | AX27: 0.036 | AY27: 0.132 | AZ27: 0.0435 | BA27: 0.168 | BB27: 8.379163014 | BC27: 144 | BD27: 0.945011097 | BE27: 27.52899306 | BF27: 48.86167649 | BH27: 94.5011097 | BI27: 1.528258936 | BJ27: 5.436850506 | BK27: 0.03267 | BL27: 0.5091914007 | BP27: Vout=5.1V | BQ27: 9.998667 | BR27: 0.1166 | BS27: 5.121298 | BT27: 64.72942057 | BU27: 325.3788646
A28: RdsonDRT2 | B28: =RdsonDRT2 -> 1 | C28: W | D28: Drain to Source Resistance of pulldown Top FET Driver | G28: 19 | H28: 8.28 | I28: BOOST | J28: 2 | K28: 12 | L28: 19.3236715 | M28: 17.66052858 | N28: 1 | O28: 0.3205186386 | P28: 2.209875367 | Q28: 19.33419878 | R28: 1.391689037 | S28: 0.08728237653 | T28: 1.478971413 | U28: 8.253381819 | V28: 0.1362366229 | W28: 0.1362366229 | X28: 0.637936069 | Y28: 0.0008139248563 | Z28: 0.0008139248563 | AA28: 19.33419878 | AB28: 2.130724083 | AC28: 0 | AD28: 0 | AE28: 3.712999628 | AF28: 0 | AG28: 0 | AH28: 0 | AI28: 0 | AJ28: 10.94593397 | AK28: 0.2276455941 | AL28: 0.1851468429 | AM28: 0 | AN28: 0.4324830072 | AO28: 15.93730755 | AP28: 0.4825957668 | AQ28: 0.38647343 | AR28: 0.9619121424 | AS28: 2.130724083 | AT28: 0 | AU28: 0.099 | AV28: 0.4792538822 | AW28: 0.59328 | AX28: 0.036 | AY28: 0.132 | AZ28: 0.0435 | BA28: 0.168 | BB28: 8.062950621 | BC28: 144 | BD28: 0.946976232 | BE28: 26.57415036 | BF28: 48.09560712 | BH28: 94.6976232 | BI28: 1.478971413 | BJ28: 5.206394777 | BK28: 0.03267 | BL28: 0.4792538822 | BP28: L=3.3uH/30mOhm | BQ28: 9.998766 | BR28: 0.1466 | BS28: 5.121323 | BT28: 69.88537692 | BU28: 323.5244619
A29: Bottom Driver | B29: Input Value | C29: Units | D29: Description | G29: 20 | H29: 8.4 | I29: BOOST | J29: 2 | K29: 12 | L29: 19.04761905 | M29: 17.39895773 | N29: 1 | O29: 0.3103035144 | P29: 2.17181021 | Q29: 19.05793417 | R29: 1.347943613 | S29: 0.08385728261 | T29: 1.431800896 | U29: 8.060045726 | V29: 0.1299286742 | W29: 0.1299286742 | X29: 0.6269476047 | Y29: 0.0007861265981 | Z29: 0.0007861265981 | AA29: 19.05793417 | AB29: 2.070267672 | AC29: 0 | AD29: 0 | AE29: 3.533202763 | AF29: 0 | AG29: 0 | AH29: 0 | AI29: 0 | AJ29: 10.6162019 | AK29: 0.2141371114 | AL29: 0.182501888 | AM29: 0 | AN29: 0.4143860874 | AO29: 15.82722692 | AP29: 0.4759521125 | AQ29: 0.380952381 | AR29: 0.9470550652 | AS29: 2.070267672 | AT29: 0 | AU29: 0.099 | AV29: 0.4508149714 | AW29: 0.59328 | AX29: 0.036 | AY29: 0.132 | AZ29: 0.0435 | BA29: 0.168 | BB29: 7.768254584 | BC29: 144 | BD29: 0.9488150232 | BE29: 25.66930437 | BF29: 47.35275326 | BH29: 94.88150232 | BI29: 1.431800896 | BJ29: 4.993643916 | BK29: 0.03267 | BL29: 0.4508149714 | BP29: 4394 Top and Bottom Fets | BQ29: 9.99879 | BR29: 0.1958 | BS29: 5.12176 | BT29: 75.66251657 | BU29: 322.5719977
A30: RdsonDRB | B30: =RdsonDRB -> 1.5 | C30: W | D30: Drain to Source Resistance of pullup Bottom FET Driver | G30: 21 | H30: 8.52 | I30: BOOST | J30: 2 | K30: 12 | L30: 18.77934272 | M30: 17.14517145 | N30: 1 | O30: 0.3000944882 | P30: 2.131639106 | Q30: 18.78942176 | R30: 1.306286722 | S30: 0.0803266235 | T30: 1.386613346 | U30: 7.867935693 | V30: 0.1238088241 | W30: 0.1238088241 | X30: 0.6153512059 | Y30: 0.0007573142132 | Z30: 0.0007573142132 | AA30: 18.78942176 | AB30: 2.01234151 | AC30: 0 | AD30: 0 | AE30: 3.367756919 | AF30: 0 | AG30: 0 | AH30: 0 | AI30: 0 | AJ30: 10.29301071 | AK30: 0.2012975319 | AL30: 0.1799314389 | AM30: 0 | AN30: 0.3972208876 | AO30: 15.71929708 | AP30: 0.4694829716 | AQ30: 0.3755868545 | AR30: 0.9326417059 | AS30: 2.01234151 | AT30: 0 | AU30: 0.099 | AV30: 0.4237842776 | AW30: 0.59328 | AX30: 0.036 | AY30: 0.132 | AZ30: 0.0435 | BA30: 0.168 | BB30: 7.492863275 | BC30: 144 | BD30: 0.9505398267 | BE30: 24.81104438 | BF30: 46.6320853 | BH30: 95.05398267 | BI30: 1.386613346 | BJ30: 4.796619513 | BK30: 0.03267 | BL30: 0.4237842776 | BQ30: 9.998766 | BR30: 0.2681 | BS30: 5.122408 | BT30: 80.95755345 | BU30: 323.0250607
A31: RdsonDRB2 | B31: 1 | C31: W | D31: Drain to Source Resistance of pulldown Bottom FET Driver | G31: 22 | H31: 8.64 | I31: BOOST | J31: 2 | K31: 12 | L31: 18.51851852 | M31: 16.89882137 | N31: 1 | O31: 0.2898913043 | P31: 2.089364734 | Q31: 18.52833817 | R31: 1.266583752 | S31: 0.07670365354 | T31: 1.343287405 | U31: 7.67687222 | V31: 0.1178687342 | W31: 0.1178687342 | X31: 0.6031476459 | Y31: 0.0007275741655 | Z31: 0.0007275741655 | AA31: 18.52833817 | AB31: 1.956806097 | AC31: 0 | AD31: 0 | AE31: 3.215053261 | AF31: 0 | AG31: 0 | AH31: 0 | AI31: 0 | AJ31: 9.975945382 | AK31: 0.1890870239 | AL31: 0.1774323911 | AM31: 0 | AN31: 0.3809250103 | AO31: 15.61345026 | AP31: 0.463181675 | AQ31: 0.3703703704 | AR31: 0.918652661 | AS31: 1.956806097 | AT31: 0 | AU31: 0.099 | AV31: 0.3980779451 | AW31: 0.59328 | AX31: 0.036 | AY31: 0.132 | AZ31: 0.0435 | BA31: 0.168 | BB31: 7.234872591 | BC31: 144 | BD31: 0.952161347 | BE31: 23.99625052 | BF31: 45.93263305 | BH31: 95.2161347 | BI31: 1.343287405 | BJ31: 4.613630932 | BK31: 0.03267 | BL31: 0.3980779451 | BQ31: 9.998704 | BR31: 0.3655 | BS31: 5.123094 | BT31: 85.41902227 | BU31: 319.6330069
A32: Deadtime | B32: Input Value | C32: Units | D32: Description | G32: 23 | H32: 8.76 | I32: BOOST | J32: 2 | K32: 12 | L32: 18.26484018 | M32: 16.6595799 | N32: 1 | O32: 0.2796937213 | P32: 2.044989624 | Q32: 18.27437784 | R32: 1.228711034 | S32: 0.07300212634 | T32: 1.30171316 | U32: 7.486673504 | V32: 0.1121005603 | W32: 0.1121005603 | X32: 0.5903376549 | Y32: 0.0006969970937 | Z32: 0.0006969970937 | AA32: 18.27437784 | AB32: 1.903531447 | AC32: 0 | AD32: 0 | AE32: 3.073713513 | AF32: 0 | AG32: 0 | AH32: 0 | AI32: 0 | AJ32: 9.664601661 | AK32: 0.177468598 | AL32: 0.1750018104 | AM32: 0 | AN32: 0.3654412787 | AO32: 15.50962154 | AP32: 0.4570418843 | AQ32: 0.3652968037 | AR32: 0.9050696342 | AS32: 1.903531447 | AT32: 0 | AU32: 0.099 | AV32: 0.3736181011 | AW32: 0.59328 | AX32: 0.036 | AY32: 0.132 | AZ32: 0.0435 | BA32: 0.168 | BB32: 6.992633245 | BC32: 144 | BD32: 0.9536889112 | BE32: 23.22206393 | BF32: 45.25348171 | BH32: 95.36889112 | BI32: 1.30171316 | BJ32: 4.443224426 | BK32: 0.03267 | BL32: 0.3736181011 | BQ32: 9.998729 | BR32: 0.4906 | BS32: 5.123817 | BT32: 88.55185027 | BU32: 324.9815318
A33: Deadtime | B33: =Deadtime*1000000000 -> 50 | C33: ns | D33: Total Deadtime | G33: 24 | H33: 8.88 | I33: BOOST | J33: 2 | K33: 12 | L33: 18.01801802 | M33: 16.42713869 | N33: 1 | O33: 0.2695015106 | P33: 1.998516166 | Q33: 18.02725193 | R33: 1.192554779 | S33: 0.06923626909 | T33: 1.261791048 | U33: 7.297154101 | V33: 0.1064969159 | W33: 0.1064969159 | X33: 0.5769219233 | Y33: 0.0006656778112 | Z33: 0.0006656778112 | AA33: 18.02725193 | AB33: 1.85239633 | AC33: 0 | AD33: 0 | AE33: 2.942550148 | AF33: 0 | AG33: 0 | AH33: 0 | AI33: 0 | AJ33: 9.358583723 | AK33: 0.1664078697 | AL33: 0.1726369211 | AM33: 0 | AN33: 0.3507172115 | AO33: 15.40774879 | AP33: 0.4510575735 | AQ33: 0.3603603604 | AR33: 0.8918753611 | AS33: 1.85239633 | AT33: 0 | AU33: 0.099 | AV33: 0.3503323572 | AW33: 0.59328 | AX33: 0.036 | AY33: 0.132 | AZ33: 0.0435 | BA33: 0.168 | BB33: 6.76470872 | BC33: 144 | BD33: 0.9551306882 | BE33: 22.48586058 | BF33: 44.59376806 | BH33: 95.51306882 | BI33: 1.261791048 | BJ33: 4.284142721 | BK33: 0.03267 | BL33: 0.3503323572 | BQ33: 9.998642 | BR33: 0.6455 | BS33: 5.12373 | BT33: 90.41893857 | BU33: 350.4584847
A34: IQ | B34: Input Value | C34: Units | D34: Description | G34: 25 | H34: 9 | I34: BOOST | J34: 2 | K34: 12 | L34: 17.77777778 | M34: 16.20120724 | N34: 1 | O34: 0.259314456 | P34: 1.949946624 | Q34: 17.78668717 | R34: 1.158010128 | S34: 0.06542075476 | T34: 1.223430883 | U34: 7.10812345 | V34: 0.101050838 | W34: 0.101050838 | X34: 0.562901104 | Y34: 0.0006337153058 | Z34: 0.0006337153058 | AA34: 17.78668717 | AB34: 1.80328757 | AC34: 0 | AD34: 0 | AE34: 2.820534549 | AF34: 0 | AG34: 0 | AH34: 0 | AI34: 0 | AJ34: 9.057501837 | AK34: 0.1558728451 | AL34: 0.1703350955 | AM34: 0 | AN34: 0.3367045601 | AO34: 15.30777256 | AP34: 0.4452230116 | AQ34: 0.3555555556 | AR34: 0.87905354 | AS34: 1.80328757 | AT34: 0 | AU34: 0.099 | AV34: 0.3281533581 | AW34: 0.59328 | AX34: 0.036 | AY34: 0.132 | AZ34: 0.0435 | BA34: 0.168 | BB34: 6.549841443 | BC34: 144 | BD34: 0.9564938669 | BE34: 21.78522801 | BF34: 43.952677 | BH34: 95.64938669 | BI34: 1.223430883 | BJ34: 4.135292649 | BK34: 0.03267 | BL34: 0.3281533581 | BQ34: 9.998605 | BR34: 0.8324 | BS34: 5.123156 | BT34: 91.67894636 | BU34: 387.0599604
A35: IQ | B35: =Iq*1000 -> 3 | C35: mA | D35: Quiescent Current Of Controller (Not Switching!) | G35: 26 | H35: 9.12 | I35: BOOST | J35: 2 | K35: 12 | L35: 17.54385965 | M35: 15.98151158 | N35: 1 | O35: 0.2491323529 | P35: 1.899283137 | Q35: 17.55242484 | R35: 1.124980311 | S35: 0.06157067184 | T35: 1.186550982 | U35: 6.919384221 | V35: 0.09575575599 | W35: 0.09575575599 | X35: 0.5482758152 | Y35: 0.000601212739 | Z35: 0.000601212739 | AA35: 17.55242484 | AB35: 1.756099421 | AC35: 0 | AD35: 0 | AE35: 2.706771337 | AF35: 0 | AG35: 0 | AH35: 0 | AI35: 0 | AJ35: 8.760969873 | AK35: 0.1458337269 | AL35: 0.1680938442 | AM35: 0 | AN35: 0.3233588978 | AO35: 15.20963591 | AP35: 0.4395327468 | AQ35: 0.350877193 | AR35: 0.8665887681 | AS35: 1.756099421 | AT35: 0 | AU35: 0.099 | AV35: 0.3070183725 | AW35: 0.59328 | AX35: 0.036 | AY35: 0.132 | AZ35: 0.0435 | BA35: 0.168 | BB35: 6.346925326 | BC35: 144 | BD35: 0.9577848013 | BE35: 21.11794489 | BF35: 43.32943841 | BH35: 95.77848013 | BI35: 1.186550982 | BJ35: 3.995719003 | BK35: 0.03267 | BL35: 0.3070183725 | BQ35: 9.998605 | BR35: 1.0529 | BS35: 5.121822 | BT35: 92.88993897 | BU35: 412.7776298
A36: High-side FET | B36: Input Value | C36: Units | D36: Description | G36: 27 | H36: 9.24 | I36: BOOST | J36: 2 | K36: 12 | L36: 17.31601732 | M36: 15.76779312 | N36: 1 | O36: 0.2389550073 | P36: 1.846527735 | Q36: 17.32421988 | R36: 1.093375895 | S36: 0.05770149155 | T36: 1.151077386 | U36: 6.730730428 | V36: 0.09060546418 | W36: 0.09060546418 | X36: 0.5330466424 | Y36: 0.0005682774459 | Z36: 0.0005682774459 | AA36: 17.32421988 | AB36: 1.710732988 | AC36: 0 | AD36: 0 | AE36: 2.600477526 | AF36: 0 | AG36: 0 | AH36: 0 | AI36: 0 | AJ36: 8.468602627 | AK36: 0.1362627379 | AL36: 0.1659108073 | AM36: 0 | AN36: 0.3106392562 | AO36: 15.11328435 | AP36: 0.4339815915 | AQ36: 0.3463203463 | AR36: 0.8544664826 | AS36: 1.710732988 | AT36: 0 | AU36: 0.099 | AV36: 0.2868689218 | AW36: 0.59328 | AX36: 0.036 | AY36: 0.132 | AZ36: 0.0435 | BA36: 0.168 | BB36: 6.154983314 | BC36: 144 | BD36: 0.9590091306 | BE36: 20.48196281 | BF36: 42.72332413 | BH36: 95.90091306 | BI36: 1.151077386 | BJ36: 3.864583265 | BK36: 0.03267 | BL36: 0.2868689218 | BQ36: 9.998667 | BR36: 1.3093 | BS36: 5.119565 | BT36: 93.69036421 | BU36: 451.4207279
A37: RdsonTop | B37: =Rdson1*1000 -> 5.7 | C37: mW | D37: Drain-Source Resistance of Top FET | G37: 28 | H37: 9.36 | I37: BOOST | J37: 2 | K37: 12 | L37: 17.09401709 | M37: 15.55980755 | N37: 1 | O37: 0.228782235 | P37: 1.791682341 | Q37: 17.10183999 | R37: 1.063114122 | S37: 0.05382903198 | T37: 1.116943154 | U37: 6.541945253 | V37: 0.0855940954 | W37: 0.0855940954 | X37: 0.5172141409 | Y37: 0.000535020935 | Z37: 0.000535020935 | AA37: 17.10183999 | AB37: 1.667095706 | AC37: 0 | AD37: 0 | AE37: 2.500965463 | AF37: 0 | AG37: 0 | AH37: 0 | AI37: 0 | AJ37: 8.180012885 | AK37: 0.1271339605 | AL37: 0.1637837456 | AM37: 0 | AN37: 0.298507802 | AO37: 15.01866572 | AP37: 0.4285646082 | AQ37: 0.3418803419 | AR37: 0.8426729069 | AS37: 1.667095706 | AT37: 0 | AU37: 0.099 | AV37: 0.2676504432 | AW37: 0.59328 | AX37: 0.036 | AY37: 0.132 | AZ37: 0.0435 | BA37: 0.168 | BB37: 5.973148885 | BC37: 144 | BD37: 0.9601718779 | BE37: 19.8753901 | BF37: 42.13364534 | BH37: 96.01718779 | BI37: 1.116943154 | BJ37: 3.741146172 | BK37: 0.03267 | BL37: 0.2676504432 | BQ37: 9.998543 | BR37: 1.602 | BS37: 5.118281 | BT37: 93.86447333 | BU37: 535.9658972
A38: RdsonTopTc | B38: =RdsonTopTc*1000000 -> 4000 | C38: ppm | D38: Drain to Source Resistance Temp Co | G38: 29 | H38: 9.48 | I38: BOOST | J38: 2 | K38: 12 | L38: 16.87763713 | M38: 15.35732387 | N38: 1 | O38: 0.2186138614 | P38: 1.734748779 | Q38: 16.88506484 | R38: 1.03411831 | S38: 0.04996941903 | T38: 1.084087729 | U38: 6.3527985 | V38: 0.08071609757 | W38: 0.08071609757 | X38: 0.5007788374 | Y38: 0.0005015588879 | Z38: 0.0005015588879 | AA38: 16.88506484 | AB38: 1.625100863 | AC38: 0 | AD38: 0 | AE38: 2.407628787 | AF38: 0 | AG38: 0 | AH38: 0 | AI38: 0 | AJ38: 7.894808141 | AK38: 0.1184231916 | AL38: 0.1617105337 | AM38: 0 | AN38: 0.2869295478 | AO38: 14.9257301 | AP38: 0.4232770961 | AQ38: 0.3375527426 | AR38: 0.8311949998 | AS38: 1.625100863 | AT38: 0 | AU38: 0.099 | AV38: 0.2493119823 | AW38: 0.59328 | AX38: 0.036 | AY38: 0.132 | AZ38: 0.0435 | BA38: 0.168 | BB38: 5.800650703 | BC38: 144 | BD38: 0.9612775333 | BE38: 19.29647739 | BF38: 41.55974999 | BH38: 96.12775333 | BI38: 1.084087729 | BJ38: 3.624753335 | BK38: 0.03267 | BL38: 0.2493119823 | BQ38: 9.998543 | BR38: 1.935 | BS38: 5.117146 | BT38: 94.2245272 | BU38: 606.9211641
A39: QgTop | B39: =Qg_Q1*1000000000 -> 11 | C39: nC | D39: Gate Charge Of Top FET | G39: 30 | H39: 9.6 | I39: BOOST | J39: 2 | K39: 12 | L39: 16.66666667 | M39: 15.16012351 | N39: 1 | O39: 0.2084497207 | P39: 1.675728783 | Q39: 16.67368536 | R39: 1.006317318 | S39: 0.04613904358 | T39: 1.052456361 | U39: 6.163043567 | V39: 0.07596621203 | W39: 0.07596621203 | X39: 0.4837412319 | Y39: 0.0004680111589 | Z39: 0.0004680111589 | AA39: 16.67368536 | AB39: 1.584667165 | AC39: 0 | AD39: 0 | AE39: 2.319930797 | AF39: 0 | AG39: 0 | AH39: 0 | AI39: 0 | AJ39: 7.612586852 | AK39: 0.1101078093 | AL39: 0.159689152 | AM39: 0 | AN39: 0.2758720957 | AO39: 14.83442971 | AP39: 0.4181145791 | AQ39: 0.3333333333 | AR39: 0.8200204101 | AS39: 1.584667165 | AT39: 0 | AU39: 0.099 | AV39: 0.2318059143 | AW39: 0.59328 | AX39: 0.036 | AY39: 0.132 | AZ39: 0.0435 | BA39: 0.168 | BB39: 5.636799802 | BC39: 144 | BD39: 0.9623301233 | BE39: 18.74360479 | BF39: 41.00102051 | BH39: 96.23301233 | BI39: 1.052456361 | BJ39: 3.514823303 | BK39: 0.03267 | BL39: 0.2318059143 | BQ39: 9.998506 | BR39: 2.31 | BS39: 5.116635 | BT39: 94.4926635 | BU39: 688.8741306
A40: QgdTop | B40: =Qgd_Q1*1000000000 -> 2.9 | C40: nC | D40: Gate to Drain Charge | G40: 31 | H40: 9.72 | I40: BOOST | J40: 2 | K40: 12 | L40: 16.46090535 | M40: 14.96799945 | N40: 1 | O40: 0.1982896552 | P40: 1.614623997 | Q40: 16.46750302 | R40: 0.9796450639 | S40: 0.04235451445 | T40: 1.021999578 | U40: 5.972413814 | V40: 0.07133945354 | W40: 0.07133945354 | X40: 0.4661017996 | Y40: 0.0004345017752 | Z40: 0.0004345017752 | AA40: 16.46750302 | AB40: 1.545718338 | AC40: 0 | AD40: 0 | AE40: 2.23739476 | AF40: 0 | AG40: 0 | AH40: 0 | AI40: 0 | AJ40: 7.332934075 | AK40: 0.1021666521 | AL40: 0.157717681 | AM40: 0 | AN40: 0.2653054061 | AO40: 14.74471884 | AP40: 0.413072794 | AQ40: 0.329218107 | AR40: 0.809137433 | AS40: 1.545718338 | AT40: 0 | AU40: 0.099 | AV40: 0.2150876886 | AW40: 0.59328 | AX40: 0.036 | AY40: 0.132 | AZ40: 0.0435 | BA40: 0.168 | BB40: 5.480978822 | BC40: 144 | BD40: 0.9633332691 | BE40: 18.2152703 | BF40: 40.45687165 | BH40: 96.33332691 | BI40: 1.021999578 | BJ40: 3.410837599 | BK40: 0.03267 | BL40: 0.2150876886 | BQ40: 9.998432 | BR40: 2.727 | BS40: 5.115812 | BT40: 94.55877042 | BU40: 802.7769493
A41: QgsTop | B41: =Qgs_Q1*1000000000 -> 3.3 | C41: nC | G41: 32 | H41: 9.84 | I41: BOOST | J41: 2 | K41: 12 | L41: 16.2601626 | M41: 14.78075548 | N41: 1 | O41: 0.188133515 | P41: 1.551435986 | Q41: 16.26632925 | R41: 0.9540401 | S41: 0.0386326065 | T41: 0.9926727065 | U41: 5.780618133 | V41: 0.06683109201 | W41: 0.06683109201 | X41: 0.447860992 | Y41: 0.0004011589363 | Z41: 0.0004011589363 | AA41: 16.26632925 | AB41: 1.508182764 | AC41: 0 | AD41: 0 | AE41: 2.159595794 | AF41: 0 | AG41: 0 | AH41: 0 | AI41: 0 | AJ41: 7.055416291 | AK41: 0.09457990819 | AL41: 0.1557942946 | AM41: 0 | AN41: 0.2552015914 | AO41: 14.65655376 | AP41: 0.4081476797 | AQ41: 0.325203252 | AR41: 0.7985349708 | AS41: 1.508182764 | AT41: 0 | AU41: 0.099 | AV41: 0.1991155962 | AW41: 0.59328 | AX41: 0.036 | AY41: 0.132 | AZ41: 0.0435 | BA41: 0.168 | BB41: 5.33263291 | BC41: 144 | BD41: 0.9642902371 | BE41: 17.71007957 | BF41: 39.92674854 | BH41: 96.42902371 | BI41: 0.9926727065 | BJ41: 3.312332357 | BK41: 0.03267 | BL41: 0.1991155962 | BQ41: 9.998518 | BR41: 3.186 | BS41: 5.114889 | BT41: 94.58411933 | BU41: 933.1099081
A42: RGateTop | B42: =Rgate1 -> 1.5 | C42: W | D42: Gate Resistance | G42: 33 | H42: 9.96 | I42: BOOST | J42: 2 | K42: 12 | L42: 16.06425703 | M42: 14.59820551 | N42: 1 | O42: =CHOOSE(J42,0,(Vout+(Rdson3+Rdcr)*L42-H42)/(Vout+(Rdson3-Rdson4-Rs)*L42),IF(H42>Vout,D_min_boost_exitBB_to_buck, (Vout-H42*D_max_buck_BB)/Vout)) -> 0.1779811575 | P42: 1.486166238 | Q42: 16.0699848 | R42: 0.9294452191 | S42: 0.03499020315 | T42: 0.9644354222 | U42: 5.587335481 | V42: 0.06243663555 | W42: 0.06243663555 | X42: 0.4290192386 | Y42: 0.0003681150143 | Z42: 0.0003681150143 | AA42: 16.0699848 | AB42: 1.471993145 | AC42: 0 | AD42: 0 | AE42: 2.086154032 | AF42: 0 | AG42: 0 | AH42: 0 | AI42: 0 | AJ42: 6.779575152 | AK42: 0.08732901457 | AL42: 0.1539172549 | AM42: 0 | AN42: 0.2455347307 | AO42: 14.56989266 | AP42: 0.403335367 | AQ42: 0.3212851406 | AR42: 0.7882024962 | AS42: 1.471993145 | AT42: 0 | AU42: 0.099 | AV42: 0.183850557 | AW42: 0.59328 | AX42: 0.036 | AY42: 0.132 | AZ42: 0.0435 | BA42: 0.168 | BB42: 5.191261988 | BC42: 144 | BD42: 0.965203981 | BE42: 17.22673654 | BF42: 39.41012481 | BH42: 96.5203981 | BI42: 0.9644354222 | BJ42: 3.218891258 | BK42: 0.03267 | BL42: 0.183850557 | BQ42: 9.998419 | BR42: 3.692 | BS42: 5.113754 | BT42: 94.44136337 | BU42: 1111.239121
A43: GfsTop | B43: =Gfs_Q1 -> 60 | C43: S | D43: Transconductance of Top FET | G43: 34 | H43: 10.08 | I43: BOOST | J43: 2 | K43: 12 | L43: 15.87301587 | M43: 14.4201729 | N43: 1 | O43: 0.1678324468 | P43: 1.418816169 | Q43: 15.87829922 | R43: 0.905807107 | S43: 0.03144423234 | T43: 0.9372513393 | U43: 5.392208034 | V43: 0.05815181496 | W43: 0.05815181496 | X43: 0.4095769485 | Y43: 0.0003355065534 | Z43: 0.0003355065534 | AA43: 15.87829922 | AB43: 1.437086201 | AC43: 0 | AD43: 0 | AE43: 2.016728838 | AF43: 0 | AG43: 0 | AH43: 0 | AI43: 0 | AJ43: 6.504919777 | AK43: 0.08039656448 | AL43: 0.1520849067 | AM43: 0 | AN43: 0.2362807025 | AO43: 14.48469554 | AP43: 0.3986321693 | AQ43: 0.3174603175 | AR43: 0.7781300182 | AS43: 1.437086201 | AT43: 0 | AU43: 0.099 | AV43: 0.1692559252 | AW43: 0.59328 | AX43: 0.036 | AY43: 0.132 | AZ43: 0.0435 | BA43: 0.168 | BB43: 5.056414145 | BC43: 144 | BD43: 0.9660771784 | BE43: 16.76403512 | BF43: 38.90650091 | BH43: 96.60771784 | BI43: 0.9372513393 | BJ43: 3.130139559 | BK43: 0.03267 | BL43: 0.1692559252 | BQ43: 9.998246 | BR43: 4.243 | BS43: 5.112059 | BT43: 94.26717862 | BU43: 1319.097078
A44: VthTop | B44: =Vth_Q1 -> 4 | C44: V | D44: Threshold Voltage of Top FET | G44: 35 | H44: 10.2 | I44: BOOST | J44: 2 | K44: 12 | L44: 15.68627451 | M44: 14.24648986 | N44: 1 | O44: 0.1576872536 | P44: 1.349387128 | Q44: 15.69111039 | R44: 0.8830760256 | S44: 0.02801159488 | T44: 0.9110876205 | U44: 5.194832494 | V44: 0.05397256929 | W44: 0.05397256929 | X44: 0.3895345108 | Y44: 0.0003034742703 | Z44: 0.0003034742703 | AA44: 15.69111039 | AB44: 1.403402387 | AC44: 0 | AD44: 0 | AE44: 1.9510139 | AF44: 0 | AG44: 0 | AH44: 0 | AI44: 0 | AJ44: 6.230917087 | AK44: 0.07376622272 | AL44: 0.1502956725 | AM44: 0 | AN44: 0.2274170343 | AO44: 14.40092419 | AP44: 0.394034573 | AQ44: 0.3137254902 | AR44: 0.7683080501 | AS44: 1.403402387 | AT44: 0 | AU44: 0.099 | AV44: 0.155297311 | AW44: 0.59328 | AX44: 0.036 | AY44: 0.132 | AZ44: 0.0435 | BA44: 0.168 | BB44: 4.92767996 | BC44: 144 | BD44: 0.9669122626 | BE44: 16.32085172 | BF44: 38.41540251 | BH44: 96.69122626 | BI44: 0.9110876205 | BJ44: 3.045738985 | BK44: 0.03267 | BL44: 0.155297311 | BQ44: 9.998147 | BR44: 4.849 | BS44: 5.110774 | BT44: 93.95381599 | BU44: 1594.798321
A45: VspTop | B45: =Vsp_Q1 -> 4.2 | C45: V | G45: 36 | H45: 10.32 | I45: BOOST | J45: 2 | K45: 12 | L45: 15.50387597 | M45: 14.07699691 | N45: 1 | O45: 0.1475454545 | P45: 1.277880401 | Q45: 15.50826398 | R45: 0.8612055267 | S45: 0.02470908356 | T45: 0.8859146103 | U45: 4.994748872 | V45: 0.04989503259 | W45: 0.04989503259 | X45: 0.3688922968 | Y45: 0.0002721630533 | Z45: 0.0002721630533 | AA45: 15.50826398 | AB45: 1.370885634 | AC45: 0 | AD45: 0 | AE45: 1.888733029 | AF45: 0 | AG45: 0 | AH45: 0 | AI45: 0 | AJ45: 5.956979454 | AK45: 0.067422648 | AL45: 0.1485480484 | AM45: 0 | AN45: 0.2189227669 | AO45: 14.31854208 | AP45: 0.38953923 | AQ45: 0.3100775194 | AR45: 0.7587275809 | AS45: 1.370885634 | AT45: 0 | AU45: 0.099 | AV45: 0.1419424168 | AW45: 0.59328 | AX45: 0.036 | AY45: 0.132 | AZ45: 0.0435 | BA45: 0.168 | BB45: 4.8046876 | BC45: 144 | BD45: 0.96771145 | BE45: 15.89613834 | BF45: 37.93637905 | BH45: 96.771145 | BI45: 0.8859146103 | BJ45: 2.965383377 | BK45: 0.03267 | BL45: 0.1419424168 | BQ45: 9.997986 | BR45: 5.496 | BS45: 5.109789 | BT45: 93.59977136 | BU45: 1920.305692
A46: VsdTop | B46: =Vsd_Q1 -> 0.8 | C46: V | G46: 37 | H46: 10.44 | I46: BOOST | J46: 2 | K46: 12 | L46: 15.3256705 | M46: 13.91154235 | N46: 1 | O46: 0.137406932 | P46: 1.204297214 | Q46: 15.32961308 | R46: 0.8401521926 | S46: 0.02155329126 | T46: 0.8617054839 | U46: 4.79142576 | V46: 0.04591552164 | W46: 0.04591552164 | X46: 0.3476506603 | Y46: 0.0002417219632 | Z46: 0.0002417219632 | AA46: 15.32961308 | AB46: 1.339483112 | AC46: 0 | AD46: 0 | AE46: 1.829636569 | AF46: 0 | AG46: 0 | AH46: 0 | AI46: 0 | AJ46: 5.682448583 | AK46: 0.06135142161 | AL46: 0.1468405995 | AM46: 0 | AN46: 0.2107783312 | AO46: 14.23751437 | AP46: 0.3851429491 | AQ46: 0.30651341 | AR46: 0.7493800473 | AS46: 1.339483112 | AT46: 0 | AU46: 0.099 | AV46: 0.1291608876 | AW46: 0.59328 | AX46: 0.036 | AY46: 0.132 | AZ46: 0.0435 | BA46: 0.168 | BB46: 4.687098563 | BC46: 144 | BD46: 0.9684767636 | BE46: 15.48891656 | BF46: 37.46900237 | BH46: 96.84767636 | BI46: 0.8617054839 | BJ46: 2.888794948 | BK46: 0.03267 | BL46: 0.1291608876 | BQ46: 9.9979 | BR46: 6.195 | BS46: 5.109191 | BT46: 93.15665167 | BU46: 2325.135176
A47: θJATop | B47: =ThetaJA_Q1 -> 50 | C47: °C/W | D47: Junction to Ambient Resistance | G47: 38 | H47: 10.56 | I47: BOOST | J47: 2 | K47: 12 | L47: 15.15151515 | M47: 13.74998182 | N47: 1 | O47: 0.1272715736 | P47: 1.128638735 | Q47: 15.15501777 | R47: 0.8198754004 | S47: 0.01856050562 | T47: 0.838435906 | U47: 4.58424064 | V47: 0.04203052448 | W47: 0.04203052448 | X47: 0.3258099387 | Y47: 0.0002123042323 | Z47: 0.0002123042323 | AA47: 15.15501777 | AB47: 1.309145012 | AC47: 0 | AD47: 0 | AE47: 1.773498304 | AF47: 0 | AG47: 0 | AH47: 0 | AI47: 0 | AJ47: 5.406574064 | AK47: 0.05553898192 | AL47: 0.1451719564 | AM47: 0 | AN47: 0.202965437 | AO47: 14.15780775 | AP47: 0.3808426887 | AQ47: 0.303030303 | AR47: 0.7402573085 | AS47: 1.309145012 | AT47: 0 | AU47: 0.099 | AV47: 0.1169241725 | AW47: 0.59328 | AX47: 0.036 | AY47: 0.132 | AZ47: 0.0435 | BA47: 0.168 | BB47: 4.574603956 | BC47: 144 | BD47: 0.9692100545 | BE47: 15.09827185 | BF47: 37.01286543 | BH47: 96.92100545 | BI47: 0.838435906 | BJ47: 2.815721049 | BK47: 0.03267 | BL47: 0.1169241725 | BQ47: 9.997627 | BR47: 6.947 | BS47: 5.108667 | BT47: 92.65680763 | BU47: 2812.629001
A48: Low-side FET | B48: Input Value | C48: Units | D48: Description | G48: 39 | H48: 10.68 | I48: BOOST | J48: 2 | K48: 12 | L48: 14.98127341 | M48: 13.59217782 | N48: 1 | O48: 0.1171392723 | P48: 1.050906081 | Q48: 14.98434472 | R48: 0.800337108 | S48: 0.01574658683 | T48: 0.8160836948 | U48: 4.37245297 | V48: 0.03823668995 | W48: 0.03823668995 | X48: 0.3033704543 | Y48: 0.0001840672651 | Z48: 0.0001840672651 | AA48: 14.98434472 | AB48: 1.279824343 | AC48: 0 | AD48: 0 | AE48: 1.720112787 | AF48: 0 | AG48: 0 | AH48: 0 | AI48: 0 | AJ48: 5.128484134 | AK48: 0.04997256407 | AL48: 0.1435408108 | AM48: 0 | AN48: 0.195466972 | AO48: 14.07939051 | AP48: 0.3766355504 | AQ48: 0.2996254682 | AR48: 0.7313516228 | AS48: 1.279824343 | AT48: 0 | AU48: 0.099 | AV48: 0.1052053981 | AW48: 0.59328 | AX48: 0.036 | AY48: 0.132 | AZ48: 0.0435 | BA48: 0.168 | BB48: 4.466921232 | BC48: 144 | BD48: 0.9699130204 | BE48: 14.7233486 | BF48: 36.56758114 | BH48: 96.99130204 | BI48: 0.8160836948 | BJ48: 2.745931382 | BK48: 0.03267 | BL48: 0.1052053981 | BQ48: 9.997528 | BR48: 7.753 | BS48: 5.10853 | BT48: 92.03433642 | BU48: 3427.976174
A49: RdsonBot | B49: =Rdson2*1000 -> 5.7 | C49: mW | D49: Drain-Source Resistance of Low-side FET | G49: 40 | H49: 10.8 | I49: BOOST | J49: 2 | K49: 12 | L49: 14.81481481 | M49: 13.43799931 | N49: 1 | O49: 0.1070099256 | P49: 0.9711003174 | Q49: 14.81746687 | R49: 0.7815016592 | S49: 0.01312682431 | T49: 0.7946284835 | U49: 4.155166533 | V49: 0.03453081784 | W49: 0.03453081784 | X49: 0.2803325148 | Y49: 0.0001571726377 | Z49: 0.0001571726377 | AA49: 14.81746687 | AB49: 1.251476749 | AC49: 0 | AD49: 0 | AE49: 1.669293032 | AF49: 0 | AG49: 0 | AH49: 0 | AI49: 0 | AJ49: 4.847144823 | AK49: 0.04464014457 | AL49: 0.1419459129 | AM49: 0 | AN49: 0.1882669099 | AO49: 14.00223237 | AP49: 0.3725187716 | AQ49: 0.2962962963 | AR49: 0.7226556251 | AS49: 1.251476749 | AT49: 0 | AU49: 0.099 | AV49: 0.09397925172 | AW49: 0.59328 | AX49: 0.036 | AY49: 0.132 | AZ49: 0.0435 | BA49: 0.168 | BB49: 4.363791292 | BC49: 144 | BD49: 0.9705872218 | BE49: 14.36334549 | BF49: 36.13278125 | BH49: 97.05872218 | BI49: 0.7946284835 | BJ49: 2.679215567 | BK49: 0.03267 | BL49: 0.09397925172 | BQ49: 9.997009 | BR49: 8.612 | BS49: 5.108542 | BT49: 91.34637826 | BU49: 4167.806561
A50: RdsonBotTc | B50: =RdsonBotTc*1000000 -> 4000 | C50: ppm | D50: Drain To Source Resitance Temp Co | G50: 41 | H50: 10.92 | I50: BOOST | J50: 2 | K50: 12 | L50: 14.65201465 | M50: 13.28732134 | N50: 1 | O50: 0.09688343558 | P50: 0.8892224634 | Q50: 14.65426308 | R50: 0.7633356061 | S50: 0.01071576585 | T50: 0.774051372 | U50: 3.931275224 | V50: 0.03090984978 | W50: 0.03090984978 | X50: 0.2566964143 | Y50: 0.0001317860982 | Z50: 0.0001317860982 | AA50: 14.65426308 | AB50: 1.224060331 | AC50: 0 | AD50: 0 | AE50: 1.620868496 | AF50: 0 | AG50: 0 | AH50: 0 | AI50: 0 | AJ50: 4.56130118 | AK50: 0.03953039006 | AL50: 0.1403860677 | AM50: 0 | AN50: 0.1813502268 | AO50: 13.92630453 | AP50: 0.3684897201 | AQ50: 0.293040293 | AR50: 0.7141623069 | AS50: 1.224060331 | AT50: 0 | AU50: 0.099 | AV50: 0.08322187381 | AW50: 0.59328 | AX50: 0.036 | AY50: 0.132 | AZ50: 0.0435 | BA50: 0.168 | BB50: 4.264975911 | BC50: 144 | BD50: 0.971234097 | BE50: 14.01751134 | BF50: 35.70811534 | BH50: 97.1234097 | BI50: 0.774051372 | BJ50: 2.61538103 | BK50: 0.03267 | BL50: 0.08322187381 | BQ50: 9.996959 | BR50: 9.523 | BS50: 5.108754 | BT50: 90.54782619 | BU50: 5078.581624
A51: QgBot | B51: =Qg_Q2*1000000000 -> 11 | C51: nC | D51: Gate Charge Of Top FET | G51: 42 | H51: 11.04 | I51: BOOST | J51: 2 | K51: 12 | L51: 14.49275362 | M51: 13.14002472 | N51: 1 | O51: 0.08675970874 | P51: 0.8052734927 | Q51: 14.49461784 | R51: 0.7458075467 | S51: 0.008527010492 | T51: 0.7543345572 | U51: 3.699382435 | V51: 0.02737086081 | W51: 0.02737086081 | X51: 0.2324624339 | Y51: 0.0001080775663 | Z51: 0.0001080775663 | AA51: 14.49461784 | AB51: 1.197535494 | AC51: 0 | AD51: 0 | AE51: 1.57468333 | AF51: 0 | AG51: 0 | AH51: 0 | AI51: 0 | AJ51: 4.269389839 | AK51: 0.03463261023 | AL51: 0.1388601322 | AM51: 0 | AN51: 0.1747028254 | AO51: 13.85157958 | AP51: 0.3645458879 | AQ51: 0.2898550725 | AR51: 0.7058649967 | AS51: 1.197535494 | AT51: 0 | AU51: 0.099 | AV51: 0.07291075838 | AW51: 0.59328 | AX51: 0.036 | AY51: 0.132 | AZ51: 0.0435 | BA51: 0.168 | BB51: 4.170255406 | BC51: 144 | BD51: 0.9718549759 | BE51: 13.68514127 | BF51: 35.29324984 | BH51: 97.18549759 | BI51: 0.7543345572 | BJ51: 2.554251152 | BK51: 0.03267 | BL51: 0.07291075838 | BQ51: 9.996464 | BR51: 10.493 | BS51: 5.109228 | BT51: 89.62666026 | BU51: 6204.922159
A52: RGateBot | B52: =Rgate2 -> 1.5 | C52: W | D52: Gate Resistance | G52: 43 | H52: 11.16 | I52: BUCK-BST | J52: 3 | K52: 12 | L52: 14.33691756 | M52: 13.40594889 | N52: 0.9625 | O52: 0.104875 | P52: 1.96850527 | Q52: 13.41798731 | R52: 0.6337198271 | S52: 0.06686423493 | T52: 0.700584062 | U52: 4.112082258 | V52: 0.033818441 | W52: 0.033818441 | X52: 0.5682585236 | Y52: 0.0006458354994 | Z52: 0.0006458354994 | AA52: 13.16399613 | AB52: 0.9877575259 | AC52: 0.06400236128 | AD52: 0 | AE52: 1.310688342 | AF52: 2.598382069 | AG52: 0.03848405945 | AH52: 0.12 | AI52: 0.159713343 | AJ52: 4.345336001 | AK52: 0.03587569542 | AL52: 0.05748809472 | AM52: 0 | AN52: 0.09403852967 | AO52: 12.69489813 | AP52: 0.306204833 | AQ52: 0.1433691756 | AR52: 0.4789024581 | AS52: 0 | AT52: 0 | AU52: 0.13684635 | AV52: 0.1025341373 | AW52: 0.59328 | AX52: 0.036 | AY52: 0.099 | AZ52: 0.0435 | BA52: 0.135 | BB52: 3.746051498 | BC52: 144 | BD52: 0.974645336 | BE52: 11.54424398 | BF52: 23.9451229 | BH52: 97.4645336 | BI52: 0.700584062 | BJ52: 2.180189023 | BK52: 0.2048726385 | BL52: 0.1025341373 | BQ52: 9.995982 | BR52: 11.519 | BS52: 5.110126 | BT52: 88.59139042 | BU52: 7580.320731
A53: VsdBot | B53: =Vsd_Q2 -> 0.8 | C53: V | D53: Diode Forward Voltage of Bottom FET Body Diode | G53: 44 | H53: 11.28 | I53: BUCK-BST | J53: 3 | K53: 12 | L53: 14.18439716 | M53: 13.26333241 | N53: 0.9625 | O53: 0.09525 | P53: 1.807527931 | Q53: 13.2735922 | R53: 0.6194815982 | S53: 0.05493221038 | T53: 0.6744138086 | U53: 3.897262139 | V53: 0.03037730436 | W53: 0.03037730436 | X53: 0.5217883688 | Y53: 0.0005445262037 | Z53: 0.0005445262037 | AA53: 13.02233429 | AB53: 0.9666127854 | AC53: 0.06400236128 | AD53: 0 | AE53: 1.277605015 | AF53: 2.570420076 | AG53: 0.03766023839 | AH53: 0.12 | AI53: 0.158856755 | AJ53: 4.096575496 | AK53: 0.0318856685 | AL53: 0.05748809472 | AM53: 0 | AN53: 0.08994736962 | AO53: 12.62562153 | AP53: 0.3028720061 | AQ53: 0.1418439716 | AR53: 0.4733913769 | AS53: 0 | AT53: 0 | AU53: 0.13779135 | AV53: 0.09355596063 | AW53: 0.59328 | AX53: 0.036 | AY53: 0.099 | AZ53: 0.0435 | BA53: 0.135 | BB53: 3.664763466 | BC53: 144 | BD53: 0.9751818688 | BE53: 11.38693598 | BF53: 23.66956885 | BH53: 97.51818688 | BI53: 0.6744138086 | BJ53: 2.137591867 | BK53: 0.2043279005 | BL53: 0.09355596063 | BQ53: 9.995574 | BR53: 12.605 | BS53: 5.111198 | BT53: 87.3865081 | BU53: 9299.433596
A54: QrrBot | B54: =Qrr_Q2*1000000000 -> 63 | C54: nC | D54: Reverse Recovery Charge of Body Diode | G54: 45 | H54: 11.4 | I54: BUCK-BST | J54: 3 | K54: 12 | L54: 14.03508772 | M54: 13.12371839 | N54: 0.9625 | O54: 0.085625 | P54: 1.642568122 | Q54: 13.1322816 | R54: 0.6057260533 | S54: 0.04406249513 | T54: 0.6497885484 | U54: 3.675006801 | V54: 0.02701134998 | W54: 0.02701134998 | X54: 0.4741685738 | Y54: 0.0004496716728 | Z54: 0.0004496716728 | AA54: 12.88369859 | AB54: 0.9461412295 | AC54: 0.06400236128 | AD54: 0 | AE54: 1.245903777 | AF54: 2.543055398 | AG54: 0.0368626453 | AH54: 0.12 | AI54: 0.1580277092 | AJ54: 3.842735383 | AK54: 0.02805656893 | AL54: 0.05748809472 | AM54: 0 | AN54: 0.08602739032 | AO54: 12.55747606 | AP54: 0.2996113893 | AQ54: 0.1403508772 | AR54: 0.4680062682 | AS54: 0 | AT54: 0 | AU54: 0.13873635 | AV54: 0.08493498392 | AW54: 0.59328 | AX54: 0.036 | AY54: 0.099 | AZ54: 0.0435 | BA54: 0.135 | BB54: 3.587166049 | BC54: 144 | BD54: 0.9756945936 | BE54: 11.23818702 | BF54: 23.40031341 | BH54: 97.56945936 | BI54: 0.6497885484 | BJ54: 2.096701495 | BK54: 0.2038107047 | BL54: 0.08493498392 | BQ54: 9.994967 | BR54: 13.75 | BS54: 5.112233 | BT54: 85.98511344 | BU54: 11457.23054
A55: TrrBot | B55: =Trr_Q2*1000000000 -> 40 | C55: ns | D55: Reverse Recovery Time of Body Diode | G55: 46 | H55: 11.52 | I55: BUCK-BST | J55: 3 | K55: 12 | L55: 13.88888889 | M55: 12.98701299 | N55: 0.9625 | O55: 0.076 | P55: 1.473627423 | Q55: 12.99397826 | R55: 0.5924332633 | S55: 0.03431377066 | T55: 0.6267470339 | U55: 3.443695747 | V55: 0.02371808079 | W55: 0.02371808079 | X55: 0.4253995947 | Y55: 0.0003619296304 | Z55: 0.0003619296304 | AA55: 12.74801322 | AB55: 0.9263174935 | AC55: 0.06400236128 | AD55: 0 | AE55: 1.215509374 | AF55: 2.516273071 | AG55: 0.03609029196 | AH55: 0.12 | AI55: 0.1572251523 | AJ55: 3.582192598 | AK55: 0.02438099723 | AL55: 0.05748809472 | AM55: 0 | AN55: 0.08227025814 | AO55: 12.49045105 | AP55: 0.2964215979 | AQ55: 0.1388888889 | AR55: 0.4627439469 | AS55: 0 | AT55: 0 | AU55: 0.13968135 | AV55: 0.0766549359 | AW55: 0.59328 | AX55: 0.036 | AY55: 0.099 | AZ55: 0.0435 | BA55: 0.135 | BB55: 3.513192062 | BC55: 144 | BD55: 0.9761838788 | BE55: 11.09758041 | BF55: 23.13719734 | BH55: 97.61838788 | BI55: 0.6267470339 | BJ55: 2.057430081 | BK55: 0.2033199978 | BL55: 0.0766549359 | BQ55: 9.994386 | BR55: 14.954 | BS55: 5.113031 | BT55: 84.35265026 | BU55: 14183.31853
A56: θJABot | B56: =ThetaJA_Q2 -> 50 | C56: °C/W | D56: Junction to Ambient Resistance | G56: 47 | H56: 11.64 | I56: BUCK-BST | J56: 3 | K56: 12 | L56: 13.74570447 | M56: 12.85312626 | N56: 0.9625 | O56: 0.066375 | P56: 1.300707348 | Q56: 12.85860961 | R56: 0.579584503 | S56: 0.02573789231 | T56: 0.6053223953 | U56: 3.20117765 | V56: 0.02049507669 | W56: 0.02049507669 | X56: 0.3754818688 | Y56: 0.0002819732676 | Z56: 0.0002819732676 | AA56: 12.61520698 | AB56: 0.9071176486 | AC56: 0.06400236128 | AD56: 0 | AE56: 1.186352216 | AF56: 2.490059044 | AG56: 0.03534224605 | AH56: 0.12 | AI56: 0.1564480914 | AJ56: 3.312808092 | AK56: 0.02085192517 | AL56: 0.05748809472 | AM56: 0 | AN56: 0.07866809614 | AO56: 12.42453797 | AP56: 0.293301373 | AQ56: 0.1374570447 | AR56: 0.4576014441 | AS56: 0 | AT56: 0 | AU56: 0.14062635 | AV56: 0.068700366 | AW56: 0.59328 | AX56: 0.036 | AY56: 0.099 | AZ56: 0.0435 | BA56: 0.135 | BB56: 3.442776009 | BC56: 144 | BD56: 0.9766500869 | BE56: 10.96472231 | BF56: 22.8800722 | BH56: 97.66500869 | BI56: 0.6053223953 | BJ56: 2.019696198 | BK56: 0.2028547869 | BL56: 0.068700366
A57: Bottom Schottky | B57: Input Value | C57: Units | D57: Std Units | G57: 48 | H57: 11.76 | I57: BUCK-BST | J57: 3 | K57: 12 | L57: 13.60544218 | M57: 12.72197191 | N57: 0.9625 | O57: 0.05675 | P57: 1.12380935 | Q57: 12.72610761 | R57: 0.5671621723 | S57: 0.01837803357 | T57: 0.5855402059 | U57: 2.944485507 | V57: 0.0173399898 | W57: 0.0173399898 | X57: 0.3244158154 | Y57: 0.0002104912426 | Z57: 0.0002104912426 | AA57: 12.48521312 | AB57: 0.8885191164 | AC57: 0.06400236128 | AD57: 0 | AE57: 1.158367878 | AF57: 2.464400141 | AG57: 0.03461762791 | AH57: 0.12 | AI57: 0.1556955903 | AJ57: 3.031646251 | AK57: 0.01746267008 | AL57: 0.05748809472 | AM57: 0 | AN57: 0.07521345033 | AO57: 12.35973041 | AP57: 0.290249578 | AQ57: 0.1360544218 | AR57: 0.4525759983 | AS57: 0 | AT57: 0 | AU57: 0.14157135 | AV57: 0.06105658818 | AW57: 0.59328 | AX57: 0.036 | AY57: 0.099 | AZ57: 0.0435 | BA57: 0.135 | BB57: 3.375851542 | BC57: 144 | BD57: 0.9770935909 | BE57: 10.83924002 | BF57: 22.62879991 | BH57: 97.70935909 | BI57: 0.5855402059 | BJ57: 1.983424267 | BK57: 0.2024141358 | BL57: 0.06105658818
A58: VfdSky | B58: =VfdSky_Q2 -> 0 | C58: V | D58: Diode Forward Voltage | G58: 49 | H58: 11.88 | I58: BUCK-BST | J58: 3 | K58: 12 | L58: 13.46801347 | M58: 12.59346714 | N58: 0.9625 | O58: 0.047125 | P58: 0.9429348234 | Q58: 12.59640855 | R58: 0.5551497226 | S58: 0.01226616986 | T58: 0.5674158925 | U58: 2.669320142 | V58: 0.01425054004 | W58: 0.01425054004 | X58: 0.2722018371 | Y58: 0.0001481876802 | Z58: 0.0001481876802 | AA58: 12.35796916 | AB58: 0.8705005906 | AC58: 0.06400236128 | AD58: 0 | AE58: 1.131496653 | AF58: 2.439284027 | AG58: 0.03391560742 | AH58: 0.12 | AI58: 0.1549667658 | AJ58: 2.73446532 | AK58: 0.01420687111 | AL58: 0.05748809472 | AM58: 0 | AN58: 0.07189925853 | AO58: 12.29602407 | AP58: 0.2872651949 | AQ58: 0.1346801347 | AR58: 0.447665047 | AS58: 0 | AT58: 0 | AU58: 0.14251635 | AV58: 0.0537096286 | AW58: 0.59328 | AX58: 0.036 | AY58: 0.099 | AZ58: 0.0435 | BA58: 0.135 | BB58: 3.312348323 | BC58: 144 | BD58: 0.9775147952 | BE58: 10.72078043 | BF58: 22.38325235 | BH58: 97.75147952 | BI58: 0.5674158925 | BJ58: 1.948544074 | BK58: 0.2019971613 | BL58: 0.0537096286
A59: QrrSky | B59: =QrrSky_Q2*1000000000 -> 0 | C59: nC | D59: Diode Reverse Recovery Charge | G59: 50 | H59: 12 | I59: BUCK-BST | J59: 3 | K59: 12 | L59: 13.33333333 | M59: 12.46753247 | N59: 0.9625 | O59: 0.0375 | P59: 0 | Q59: 12.46753247 | R59: 0.5433569015 | S59: 0 | T59: 0.5433569015 | U59: 2.368626102 | V59: 0.01122077922 | W59: 0.01122077922 | X59: 0 | Y59: 0 | Z59: 0 | AA59: 12.23153259 | AB59: 0.8527792208 | AC59: 0.06400236128 | AD59: 0 | AE59: 1.105296331 | AF59: 2.414327281 | AG59: 0.03322516445 | AH59: 0.12 | AI59: 0.1542501618 | AJ59: 2.414327281 | AK59: 0.01107505482 | AL59: 0.05748809472 | AM59: 0 | AN59: 0.0687153548 | AO59: 12.23153259 | AP59: 0.2842597403 | AQ59: 0.1333333333 | AR59: 0.442765134 | AS59: 0 | AT59: 0 | AU59: 0.14346135 | AV59: 0.04663180975 | AW59: 0.59328 | AX59: 0.036 | AY59: 0.099 | AZ59: 0.0435 | BA59: 0.135 | BB59: 3.243977822 | BC59: 144 | BD59: 0.9779686893 | BE59: 10.60883524 | BF59: 22.1382567 | BH59: 97.79686893 | BI59: 0.5433569015 | BJ59: 1.914488331 | BK59: 0.2015924073 | BL59: 0.04663180975
A60: Ireverse | B60: =Ireverse -> 0 | C60: mA | D60: Reverse Leakage Current | G60: 51 | H60: 12.12 | I60: BUCK-BST | J60: 3 | K60: 12 | L60: 13.20132013 | M60: 12.46753247 | N60: 0.952970297 | O60: 0.0375 | P60: 0.01849167896 | Q60: 12.46753361 | R60: 0.5433570055 | S60: 1.42763338e-06 | T60: 0.5433584331 | U60: 0.005338087911 | V60: 5.69903651e-08 | W60: 5.69903651e-08 | X60: 2.54042916 | Y60: 0.01290756064 | Z60: 0.01290756064 | AA60: 12.17083094 | AB60: 0.8443360169 | AC60: 0.06464238489 | AD60: 0 | AE60: 1.093662054 | AF60: 2.703750829 | AG60: 0.04166853071 | AH60: 0.12 | AI60: 0.1630271511 | AJ60: 2.414327502 | AK60: 0.01107505685 | AL60: 0.05748809472 | AM60: 0 | AN60: 0.06871535686 | AO60: 12.23153372 | AP60: 0.2842597924 | AQ60: 0.1320132013 | AR60: 0.441365486 | AS60: 0 | AT60: 0 | AU60: 0.14440635 | AV60: 0.05255698333 | AW60: 0.59328 | AX60: 0.036 | AY60: 0.099 | AZ60: 0.0435 | BA60: 0.135 | BB60: 3.248279432 | BC60: 144 | BD60: 0.9779401196 | BE60: 61.90342022 | BF60: 8.151357554 | BH60: 97.79401196 | BI60: 0.5433584331 | BJ60: 1.911176398 | BK60: 0.2106812466 | BL60: 0.05255698333
A61: Controller | B61: Input Value | C61: Units | D61: Std Units | G61: 52 | H61: 12.24 | I61: BUCK-BST | J61: 3 | K61: 12 | L61: 13.07189542 | M61: 12.46753247 | N61: 0.943627451 | O61: 0.0375 | P61: 0.2110513141 | Q61: 12.46768133 | R61: 0.5433704409 | S61: 0.0003898461838 | T61: 0.5437602871 | U61: 0.06092526652 | V61: 7.4237762e-06 | W61: 7.4237762e-06 | X61: 2.767712423 | Y61: 0.01532046411 | Z61: 0.01532046411 | AA61: 12.11116655 | AB61: 0.8360780246 | AC61: 0.0652824085 | AD61: 0 | AE61: 1.082345489 | AF61: 2.960189609 | AG61: 0.04994751835 | AH61: 0.12 | AI61: 0.1716623399 | AJ61: 2.414356108 | AK61: 0.01107531929 | AL61: 0.05748809472 | AM61: 0 | AN61: 0.0687156235 | AO61: 12.23167864 | AP61: 0.2842665284 | AQ61: 0.1307189542 | AR61: 0.4400009936 | AS61: 0 | AT61: 0 | AU61: 0.14535135 | AV61: 0.05836735173 | AW61: 0.59328 | AX61: 0.036 | AY61: 0.099 | AZ61: 0.0435 | BA61: 0.135 | BB61: 3.253811323 | BC61: 144 | BD61: 0.9779033813 | BE61: 61.38484194 | BF61: 8.583116996 | BH61: 97.79033813 | BI61: 0.5437602871 | BJ61: 1.908075796 | BK61: 0.2196282854 | BL61: 0.05836735173
A62: θJA | B62: 30 | C62: °C/W | D62: Junction to Ambient Resistance | G62: 53 | H62: 12.36 | I62: BUCK-BST | J62: 3 | K62: 12 | L62: 12.94498382 | M62: 12.46753247 | N62: 0.9344660194 | O62: 0.0375 | P62: 0.3998719273 | Q62: 12.46806684 | R62: 0.5434055048 | S62: 0.001699530589 | T62: 0.5451050354 | U62: 0.1154330824 | V62: 2.664959304e-05 | W62: 2.664959304e-05 | X62: 2.969725918 | Y62: 0.01763854406 | Z62: 0.01763854406 | AA62: 12.05260374 | AB62: 0.828011965 | AC62: 0.06592243211 | AD62: 0 | AE62: 1.071353021 | AF62: 3.191775933 | AG62: 0.05806837157 | AH62: 0.12 | AI62: 0.1801606993 | AJ62: 2.414430761 | AK62: 0.01107600421 | AL62: 0.05748809472 | AM62: 0 | AN62: 0.06871631937 | AO62: 12.23205685 | AP62: 0.284284108 | AQ62: 0.1294498382 | AR62: 0.4386756493 | AS62: 0 | AT62: 0 | AU62: 0.14629635 | AV62: 0.06406763803 | AW62: 0.59328 | AX62: 0.036 | AY62: 0.099 | AZ62: 0.0435 | BA62: 0.135 | BB62: 3.260319906 | BC62: 144 | BD62: 0.9778601601 | BE62: 60.88246856 | BF62: 9.008034963 | BH62: 97.78601601 | BI62: 0.5451050354 | BJ62: 1.905202039 | BK62: 0.2284384948 | BL62: 0.06406763803
A63: Theta Ja | B63: 2 | C63: °C/W | D63: Junction to Ambient Resistance | G63: 54 | H63: 12.48 | I63: BUCK-BST | J63: 3 | K63: 12 | L63: 12.82051282 | M63: 12.46753247 | N63: 0.9254807692 | O63: 0.0375 | P63: 0.5850613748 | Q63: 12.46867638 | R63: 0.5434609483 | S63: 0.004084465988 | T63: 0.5475454143 | U63: 0.1688926711 | V63: 5.704946871e-05 | W63: 5.704946871e-05 | X63: 3.151680155 | Y63: 0.0198661756 | Z63: 0.0198661756 | AA63: 11.99510496 | AB63: 0.8201304948 | AC63: 0.06656245573 | AD63: 0 | AE63: 1.060670614 | AF63: 3.403725549 | AG63: 0.0660364814 | AH63: 0.12 | AI63: 0.1885264055 | AJ63: 2.414548798 | AK63: 0.0110770872 | AL63: 0.05748809472 | AM63: 0 | AN63: 0.06871741969 | AO63: 12.23265485 | AP63: 0.2843119049 | AQ63: 0.1282051282 | AR63: 0.4373879535 | AS63: 0 | AT63: 0 | AU63: 0.14724135 | AV63: 0.06966157404 | AW63: 0.59328 | AX63: 0.036 | AY63: 0.099 | AZ63: 0.0435 | BA63: 0.135 | BB63: 3.267953956 | BC63: 144 | BD63: 0.97780947 | BE63: 60.39559818 | BF63: 9.426320275 | BH63: 97.780947 | BI63: 0.5475454143 | BJ63: 1.902543742 | BK63: 0.237116051 | BL63: 0.06966157404
G64: 55 | H64: 12.6 | I64: BUCK-BST | J64: 3 | K64: 12 | L64: 12.6984127 | M64: 12.46753247 | N64: 0.9166666667 | O64: 0.0375 | P64: 0.7667234043 | Q64: 12.46949697 | R64: 0.5435355937 | S64: 0.007615717171 | T64: 0.5511513109 | U64: 0.2213339819 | V64: 9.797746311e-05 | W64: 9.797746311e-05 | X64: 3.317188899 | Y64: 0.02200748439 | Z64: 0.02200748439 | AA64: 11.93863441 | AB64: 0.8124266526 | AC64: 0.06720247934 | AD64: 0 | AE64: 1.050285045 | AF64: 3.599633715 | AG64: 0.07385696842 | AH64: 0.12 | AI64: 0.1967634386 | AJ64: 2.414707704 | AK64: 0.01107854526 | AL64: 0.05748809472 | AM64: 0 | AN64: 0.06871890107 | AO64: 12.23345991 | AP64: 0.2843493284 | AQ64: 0.126984127 | AR64: 0.4361364783 | AS64: 0 | AT64: 0 | AU64: 0.14818635 | AV64: 0.0751527047 | AW64: 0.59328 | AX64: 0.036 | AY64: 0.099 | AZ64: 0.0435 | BA64: 0.135 | BB64: 3.27677969 | BC64: 144 | BD64: 0.9777508736 | BE64: 59.92356973 | BF64: 9.838171932 | BH64: 97.77508736 | BI64: 0.5511513109 | BJ64: 1.900090213 | BK64: 0.2456649341 | BL64: 0.0751527047
G65: 56 | H65: 12.72 | I65: BUCK-BST | J65: 3 | K65: 12 | L65: 12.57861635 | M65: 12.46753247 | N65: 0.9080188679 | O65: 0.0375 | P65: 0.9449578483 | Q65: 12.47051635 | R65: 0.5436283305 | S65: 0.01232688796 | T65: 0.5559552184 | U65: 0.272785834 | V65: 0.0001488242225 | W65: 0.0001488242225 | X65: 3.468887694 | Y65: 0.02406636367 | Z65: 0.02406636367 | AA65: 11.88315802 | AB65: 0.8048938342 | AC65: 0.06784250295 | AD65: 0 | AE65: 1.040183851 | AF65: 3.782106999 | AG65: 0.08153470009 | AH65: 0.12 | AI65: 0.2048755941 | AJ65: 2.414905106 | AK65: 0.01108035668 | AL65: 0.05748809472 | AM65: 0 | AN65: 0.06872074146 | AO65: 12.23445999 | AP65: 0.2843958214 | AQ65: 0.1257861635 | AR65: 0.4349198633 | AS65: 0 | AT65: 0 | AU65: 0.14913135 | AV65: 0.08054440008 | AW65: 0.59328 | AX65: 0.036 | AY65: 0.099 | AZ65: 0.0435 | BA65: 0.135 | BB65: 3.286826206 | BC65: 144 | BD65: 0.9776841807 | BE65: 59.46576003 | BF65: 10.24377971 | BH65: 97.76841807 | BI65: 0.5559552184 | BJ65: 1.8978314 | BK65: 0.2540889396 | BL65: 0.08054440008
A66: Outputs | G66: 57 | H66: 12.84 | I66: BUCK-BST | J66: 3 | K66: 12 | L66: 12.46105919 | M66: 12.46753247 | N66: 0.8995327103 | O66: 0.0375 | P66: 1.119860807 | Q66: 12.47172294 | R66: 0.5437381105 | S66: 0.01822960072 | T66: 0.5619677112 | U66: 0.3232759693 | V66: 0.0002090147046 | W66: 0.0002090147046 | X66: 3.608773343 | Y66: 0.02604649008 | Z66: 0.02604649008 | AA66: 11.82864328 | AB66: 0.7975257703 | AC66: 0.06848252656 | AD66: 0 | AE66: 1.030355274 | AF66: 3.953109077 | AG66: 0.08907430681 | AH66: 0.12 | AI66: 0.2128664939 | AJ66: 2.415138763 | AK66: 0.01108250096 | AL66: 0.05748809472 | AM66: 0 | AN66: 0.06872292005 | AO66: 12.23564375 | AP66: 0.2844508581 | AQ66: 0.1246105919 | AR66: 0.4337368116 | AS66: 0 | AT66: 0 | AU66: 0.15007635 | AV66: 0.08583986646 | AW66: 0.59328 | AX66: 0.036 | AY66: 0.099 | AZ66: 0.0435 | BA66: 0.135 | BB66: 3.298100932 | BC66: 144 | BD66: 0.9776093452 | BE66: 59.02158118 | BF66: 10.64332469 | BH66: 97.76093452 | BI66: 0.5619677112 | BJ66: 1.895757849 | BK66: 0.2623916894 | BL66: 0.08583986646
A67: Design | B67: Value | C67: Units | G67: 58 | H67: 12.96 | I67: BUCK-BST | J67: 3 | K67: 12 | L67: 12.34567901 | M67: 12.46753247 | N67: 0.8912037037 | O67: 0.0375 | P67: 1.291524823 | Q67: 12.47310582 | R67: 0.5438639444 | S67: 0.02532118049 | T67: 0.5691851249 | U67: 0.372831102 | V67: 0.0002780060613 | W67: 0.0002780060613 | X67: 3.738404612 | Y67: 0.02795133809 | Z67: 0.02795133809 | AA67: 11.77505917 | AB67: 0.7903165057 | AC67: 0.06912255018 | AD67: 0 | AE67: 1.02078821 | AF67: 4.114164595 | AG67: 0.0964801968 | AH67: 0.12 | AI67: 0.2207395967 | AJ67: 2.415406556 | AK67: 0.01108495878 | AL67: 0.05748809472 | AM67: 0 | AN67: 0.06872541718 | AO67: 12.23700045 | AP67: 0.2845139421 | AQ67: 0.1234567901 | AR67: 0.4325860867 | AS67: 0 | AT67: 0 | AU67: 0.15102135 | AV67: 0.09104215659 | AW67: 0.59328 | AX67: 0.036 | AY67: 0.099 | AZ67: 0.0435 | BA67: 0.135 | BB67: 3.310597286 | BC67: 144 | BD67: 0.9775264146 | BE67: 58.59047801 | BF67: 11.03697984 | BH67: 97.75264146 | BI67: 0.5691851249 | BJ67: 1.893860661 | BK67: 0.2705766422 | BL67: 0.09104215659
A68: Dmax | B68: =#REF! ->  | C68: index | G68: 59 | H68: 13.08 | I68: BUCK-BST | J68: 3 | K68: 12 | L68: 12.2324159 | M68: 12.46753247 | N68: 0.8830275229 | O68: 0.0375 | P68: 1.46003904 | Q68: 12.47465465 | R68: 0.5440048982 | S68: 0.03358914357 | T68: 0.5775940418 | U68: 0.4214769663 | V68: 0.0003552856662 | W68: 0.0003552856662 | X68: 3.859027949 | Y68: 0.02978419343 | Z68: 0.02978419343 | AA68: 11.72237611 | AB68: 0.7832603796 | AC68: 0.06976257379 | AD68: 0 | AE68: 1.011472168 | AF68: 4.266486491 | AG68: 0.1037565698 | AH68: 0.12 | AI68: 0.2284982078 | AJ68: 2.415706486 | AK68: 0.01108771187 | AL68: 0.05748809472 | AM68: 0 | AN68: 0.06872821431 | AO68: 12.23851996 | AP68: 0.2845846046 | AQ68: 0.122324159 | AR68: 0.4314665088 | AS68: 0 | AT68: 0 | AU68: 0.15196635 | AV68: 0.09615417921 | AW68: 0.59328 | AX68: 0.036 | AY68: 0.099 | AZ68: 0.0435 | BA68: 0.135 | BB68: 3.324299149 | BC68: 144 | BD68: 0.9774355 | BE68: 58.17192591 | BF68: 11.42491039 | BH68: 97.74355 | BI68: 0.5775940418 | BJ68: 1.892131449 | BK68: 0.2786471033 | BL68: 0.09615417921
A69: Dprime | B69: =1-B68 ->  | C69: index | G69: 60 | H69: 13.2 | I69: BUCK-BST | J69: 3 | K69: 12 | L69: 12.12121212 | M69: 12.46753247 | N69: 0.875 | O69: 0.0375 | P69: 1.625489362 | Q69: 12.47635966 | R69: 0.5441600897 | S69: 0.0430140796 | T69: 0.5871741693 | U69: 0.4692383603 | V69: 0.0004403692775 | W69: 0.0004403692775 | X69: 3.971659942 | Y69: 0.03154816539 | Z69: 0.03154816539 | AA69: 11.67056582 | AB69: 0.776352008 | AC69: 0.0704025974 | AD69: 0 | AE69: 1.002397225 | AF69: 4.411059262 | AG69: 0.1109074297 | AH69: 0.12 | AI69: 0.2361454875 | AJ69: 2.41603666 | AK69: 0.01109074297 | AL69: 0.05748809472 | AM69: 0 | AN69: 0.06873129391 | AO69: 12.2401927 | AP69: 0.2846624029 | AQ69: 0.1212121212 | AR69: 0.4303769516 | AS69: 0 | AT69: 0 | AU69: 0.15291135 | AV69: 0.1011787078 | AW69: 0.59328 | AX69: 0.036 | AY69: 0.099 | AZ69: 0.0435 | BA69: 0.135 | BB69: 3.33918372 | BC69: 144 | BD69: 0.977336757 | BE69: 57.76542875 | BF69: 11.80727438 | BH69: 97.7336757 | BI69: 0.5871741693 | BJ69: 1.890562308 | BK69: 0.286606233 | BL69: 0.1011787078
A70: Ipp | B70: =Iripple_Vinnom -> 0.03818389058 | C70: A | G70: 61 | H70: 13.32 | I70: BUCK-BST | J70: 3 | K70: 12 | L70: 12.01201201 | M70: 12.46753247 | N70: 0.8671171171 | O70: 0.0375 | P70: 1.787958597 | Q70: 12.47821163 | R70: 0.5443286851 | S70: 0.05357161982 | T70: 0.5979003049 | U70: 0.5161391886 | V70: 0.000532799324 | W70: 0.000532799324 | X70: 4.0771435 | Y70: 0.03324619824 | Z70: 0.03324619824 | AA70: 11.61960131 | AB70: 0.7695862666 | AC70: 0.07104262102 | AD70: 0 | AE70: 0.9935539886 | AF70: 4.548695527 | AG70: 0.1179365967 | AH70: 0.12 | AI70: 0.2436844599 | AJ70: 2.416395292 | AK70: 0.01109403579 | AL70: 0.05748809472 | AM70: 0 | AN70: 0.06873463942 | AO70: 12.24200961 | AP70: 0.2847469186 | AQ70: 0.1201201201 | AR70: 0.4293163397 | AS70: 0 | AT70: 0 | AU70: 0.15385635 | AV70: 0.1061183888 | AW70: 0.59328 | AX70: 0.036 | AY70: 0.099 | AZ70: 0.0435 | BA70: 0.135 | BB70: 3.355223469 | BC70: 144 | BD70: 0.977230373 | BE70: 57.37051693 | BF70: 12.18422299 | BH70: 97.7230373 | BI70: 0.5979003049 | BJ70: 1.889145778 | BK70: 0.2944570554 | BL70: 0.1061183888
A71: Top FET | B71: Value | C71: Units | G71: 62 | H71: 13.44 | I71: BUCK-BST | J71: 3 | K71: 12 | L71: 11.9047619 | M71: 12.46753247 | N71: 0.859375 | O71: 0.0375 | P71: 1.947526596 | Q71: 12.48020182 | R71: 0.5445098966 | S71: 0.06523383977 | T71: 0.6097437364 | U71: 0.5622025022 | V71: 0.0006321433069 | W71: 0.0006321433069 | X71: 4.176187362 | Y71: 0.03488108177 | Z71: 0.03488108177 | AA71: 11.56945673 | AB71: 0.7629582758 | AC71: 0.07168264463 | AD71: 0 | AE71: 0.984933563 | AF71: 4.680075683 | AG71: 0.1248477179 | AH71: 0.12 | AI71: 0.2511180202 | AJ71: 2.41678069 | AK71: 0.01109757492 | AL71: 0.05748809472 | AM71: 0 | AN71: 0.06873823518 | AO71: 12.24396213 | AP71: 0.2848377563 | AQ71: 0.119047619 | AR71: 0.4282836459 | AS71: 0 | AT71: 0 | AU71: 0.15480135 | AV71: 0.1109757492 | AW71: 0.59328 | AX71: 0.036 | AY71: 0.099 | AZ71: 0.0435 | BA71: 0.135 | BB71: 3.372387525 | BC71: 144 | BD71: 0.9771165577 | BE71: 56.98674565 | BF71: 12.55590101 | BH71: 97.71165577 | BI71: 0.6097437364 | BJ71: 1.887874814 | BK71: 0.3022024657 | BL71: 0.1109757492
A72: Tr | B72: =(Qgd_Q1+Qgs_Q1/2)*(RdsonDRT+Rgate1)/(Vdd-Vsp_Q1)*1000000000 -> 4.136363636 | C72: ns | D72: Turn on of MOSFET -> Rise time of current | G72: 63 | H72: 13.56 | I72: BUCK-BST | J72: 3 | K72: 12 | L72: 11.79941003 | M72: 12.46753247 | N72: 0.8517699115 | O72: 0.0375 | P72: 2.104270382 | Q72: 12.48232198 | R72: 0.5447029794 | S72: 0.07797028997 | T72: 0.6226732694 | U72: 0.6074505358 | V72: 0.0007379923069 | W72: 0.0007379923069 | X72: 4.269394631 | Y72: 0.03645546104 | Z72: 0.03645546104 | AA72: 11.52010741 | AB72: 0.7564633858 | AC72: 0.07232266824 | AD72: 0 | AE72: 0.9765275163 | AF72: 4.80577645 | AG72: 0.1316442775 | AH72: 0.12 | AI72: 0.2584489424 | AJ72: 2.417191257 | AK72: 0.01110134579 | AL72: 0.05748809472 | AM72: 0 | AN72: 0.0687420664 | AO72: 12.24604215 | AP72: 0.284934542 | AQ72: 0.1179941003 | AR72: 0.4272778881 | AS72: 0 | AT72: 0 | AU72: 0.15574635 | AV72: 0.1157532034 | AW72: 0.59328 | AX72: 0.036 | AY72: 0.099 | AZ72: 0.0435 | BA72: 0.135 | BB72: 3.390642689 | BC72: 144 | BD72: 0.9769955363 | BE72: 56.61369331 | BF72: 12.92244712 | BH72: 97.69955363 | BI72: 0.6226732694 | BJ72: 1.886742763 | BK72: 0.3098452379 | BL72: 0.1157532034
A73: Tf | B73: =(Qgd_Q1+Qgs_Q1/2)*(RdsonDRT2+Rgate1)/(Vsp_Q1)*1000000000 -> 2.708333333 | C73: ns | D73: Turn off of MOSFET -> Fall time of current | G73: 64 | H73: =VIN_min+(VIN_max-VIN_min)*(G73/200) -> 13.68 | I73: =IF(H73>VIN_BB_to_buck, "BUCK", IF(H73<VIN_boost_to_BB,"BOOST","BUCK-BST")) -> BUCK | J73: 1 | K73: =Iout -> 12 | L73: =Vout*K73/(H73*Efficiency) -> 11.69590643 | M73: =Iout/(1-O73) -> 12 | N73: =CHOOSE(J73,(Vout+(Rdson2+Rs+Rdcr)*K73)/(H73+(Rs+Rdson2-Rdson1)*K73),1,IF(H73<Vout,D_max_buck_BB,Vout/H73*(1-D_min_boost_exitBB_to_buck))) -> 0.8855332168 | O73: 0 | P73: =MAX(0, CHOOSE(J73, (H73-(Rdson1+Rdcr)*K73-Vout)*N73/(Fsw*Lf), (H73-(Rdson4+Rdcr+Rs)*L73)*O73/(Fsw*Lf), IF(H73<Vout, (H73-(Rdson4+Rdcr+Rs)*L73)*O73/(0.5*Fsw*Lf),(H73-(Rdson1+Rdcr)*K73-Vout)*N73/(0.5*Fsw*Lf)))) -> 1.18427821 | Q73: =CHOOSE(J73, SQRT(K73^2+(P73^2)/12), SQRT(L73^2+(P73^2)/12), SQRT(M73^2+(P73^2)/12)) -> 12.00486886 | R73: 0.5021876928 | S73: =7.759*10^-3*Fsw^0.9458*(0.00787*P73)^2.304 -> 0.02073674605 | T73: 0.5229244388 | U73: =IF(H73>Vout, P73/SQRT(12), SQRT(O73/(1-O73))*SQRT(K73^2+(P73^2)/12)) -> 0.3418716717 | V73: 0.0002337524798 | W73: 0.0002337524798 | X73: =IF(H73>Vout, SQRT(N73*(1-N73))*SQRT(K73^2+(P73^2)/12), P73/SQRT(12)) -> 3.822078367 | Y73: 0.02921656608 | Z73: 0.02921656608 | AA73: =CHOOSE(J73, SQRT(N73)*SQRT(K73^2+(P73^2)/12), SQRT(L73^2+(P73^2)/12), SQRT(N73)*SQRT(M73^2+(P73^2)/12)) -> 11.29691467 | AB73: =Rdson1*AA73^2 -> 0.7274356018 | AC73: =CHOOSE(J73, (H73*K73/2)*(Fsw)*(Tr_buck+Tf_buck), 0, (H73*M73/2)*(Fsw/2)*(Tr_buck+Tf_buck)) -> 0.1404531818 | AD73: =IF(H73>Vout, IF(K73>P73/2,0,ABS(K73-P73/2)*Vsd_Q1*Deadtime*Fsw),0) -> 0 | AE73: =(AD73+AC73+AB73*(1+RdsonTopTc*Ta-RdsonTopTc*25))/(1-AB73*RdsonTopTc*ThetaJA_Q1) -> 1.01565325 | AF73: =CHOOSE(J73, SQRT((1-N73))*SQRT(K73^2+(P73^2)/12), 0, SQRT((1-N73))*SQRT(M73^2+(P73^2)/12)) -> 4.061600083 | AG73: =Rdson2*AF73^2 -> 0.09403059281 | AH73: =CHOOSE(J73, IF(K73<P73/2,Deadtime*Fsw*IF(VfdSky_Q2>0,0,Vsd_Q2)*(K73+P73/2),2*Deadtime*Fsw*IF(VfdSky_Q2>0,0,Vsd_Q2)*K73),0, IF(K73<P73/2,Deadtime*Fsw/2*IF(VfdSky_Q2>0,0,Vsd_Q2)*(K73+P73/2),2*Deadtime*Fsw/2*IF(VfdSky_Q2>0,0,Vsd_Q2)*K73)) -> 0.24 | AI73: =(AH73+AG73*(1+RdsonBotTc*Ta-RdsonBotTc*25))/(1-AG73*RdsonBotTc*ThetaJA_Q2) -> 0.3404328127 | AJ73: =CHOOSE(J73, 0, SQRT(O73)*SQRT(L73^2+(P73^2)/12), SQRT(O73)*SQRT(M73^2+(P73^2)/12)) -> 0 | AK73: =Rdson4*AJ73^2 -> 0 | AL73: =CHOOSE(J73, 0, (Vout*L73/2)*(Fsw)*(Tr_boost+Tf_boost), (Vout*Iout/2)*(Fsw/2)*(Tr_boost+Tf_boost)) -> 0 | AM73: =IF(H73>Vout, 0, IF(L73>P73/2,0,ABS(L73-P73/2)*Vsd_Q4*Deadtime*Fsw)) -> 0 | AN73: =(AM73+AL73+AK73*(1+RdsonTopTc*Ta-RdsonTopTc*25))/(1-AK73*RdsonTopTc*ThetaJA_Q4) -> 0 | AO73: =CHOOSE(J73, SQRT(Iout^2+(P73^2)/12), SQRT(1-O73)*SQRT(L73^2+(P73^2)/12), SQRT(1-O73)*SQRT(M73^2+(P73^2)/12)) -> 12.00486886 | AP73: =Rdson3*AO73^2 -> 0.2738220649 | AQ73: =CHOOSE(J73, 0, IF(L73<P73/2,Deadtime*Fsw*IF(VfdSky_Q3>0,0,Vsd_Q3)*(L73+P73/2), 2*Deadtime*Fsw*IF(VfdSky_Q3>0,0,Vsd_Q3)*L73), IF(L73<P73/2,Deadtime*Fsw/2*IF(VfdSky_Q3>0,0,Vsd_Q3)*(L73+P73/2), 2*Deadtime*Fsw/2*IF(VfdSky_Q3>0,0,Vsd_Q3)*L73)) -> 0 | AR73: =(AQ73+AP73*(1+RdsonBotTc*Ta-RdsonBotTc*25))/(1-AP73*RdsonBotTc*ThetaJA_Q3) -> 0.2896865804 | AS73: =CHOOSE(J73, Rdson3*Q73^2, Rdson1*Q73^2, 0) -> 0.2738220649 | AT73: =CHOOSE(J73, 2*Deadtime*Fsw*IF(VfdSky_Q2>0,VfdSky_Q2,0)*K73, 2*Deadtime*Fsw*IF(VfdSky_Q3>0,VfdSky_Q3,0)*L73, 2*Deadtime*Fsw/2*IF(VfdSky_Q2>0,VfdSky_Q2,0)*K73+2*Deadtime*Fsw/2*IF(VfdSky_Q3>0,VfdSky_Q3,0)*L73) -> 0 | AU73: =CHOOSE(J73, IF(QrrSky_Q2>0,QrrSky_Q2,Qrr_Q2)*Fsw*(H73-K73*Rdson1), IF(QrrSky_Q3>0,QrrSky_Q3,Qrr_Q3)*Fsw*Vout, IF(QrrSky_Q2>0,QrrSky_Q2,Qrr_Q2)*Fsw/2*(H73-K73*Rdson1)+IF(QrrSky_Q3>0,QrrSky_Q3,Qrr_Q3)*Fsw/2*Vout) -> 0.2143827 | AV73: =CHOOSE(J73, Rs*AF73^2, Rs*AJ73^2, Rs*(AF73^2+AJ73^2)) -> 0.06598638092 | AW73: =Rshunt_std/1000*Iout^2 -> 0.59328 | AX73: =IF(Vout>8, Iq*Vout, Iq*H73) -> 0.036 | AY73: =CHOOSE(J73, (Qg_Q1+Qg_Q2)*Fsw, (Qg_Q3+Qg_Q4)*Fsw, (Qg_Q1+Qg_Q2+Qg_Q3+Qg_Q4)*Fsw/2)*IF(Vout>8, Vout, H73) -> 0.066 | AZ73: =(Vin-Vdd)*Fsw*(Qg_Q1+Qg_Q2)+(RdsonDRT+RdsonDRT2)*Fsw*Qg_Q1*Vdd/(RdsonDRT+2*Rgate1+RdsonDRT2)+(RdsonDRB+RdsonDRB2)*Fsw*Qg_Q2*Vdd/(RdsonDRB+2*Rgate2+RdsonDRB2) -> 0.0435 | BA73: 0.102 | BB73: 3.173796482 | BC73: =Vout*K73 -> 144 | BD73: 0.9784350438 | BE73: =IF(H73>Vout,ThetaJA_Q1*(AE73+AU73),ThetaJA_Q4*(AN73+AU73)) -> 61.50179751 | BF73: =IF(H73>Vout, AI73*ThetaJA_Q2, ThetaJA_Q3*AR73) -> 17.02164063 | BH73: 97.84350438 | BI73: 0.5229244388 | BJ73: 1.860155343 | BK73: 0.4111791037 | BL73: 0.06598638092
A74: Part Power | B74: Value | C74: Units | G74: 65 | H74: 13.8 | I74: BUCK | J74: =IF(I74="BOOST",2, IF(I74="BUCK", 1,3)) -> 1 | K74: 12 | L74: 11.5942029 | M74: 12 | N74: 0.8778596187 | O74: =CHOOSE(J74,0,(Vout+(Rdson3+Rdcr)*L74-H74)/(Vout+(Rdson3-Rdson4-Rs)*L74),IF(H74>Vout,D_min_boost_exitBB_to_buck, (Vout-H74*D_max_buck_BB)/Vout)) -> 0 | P74: 1.263669582 | Q74: 12.00554338 | R74: =(Q74^2*Rdcr*(1+Ltc*Ta-Ltc*25))/(1-Q74^2*Rdcr*Ltc*ThetaCa) -> 0.5022463949 | S74: 0.02408057498 | T74: =R74+S74 -> 0.5263269699 | U74: 0.3647899867 | V74: =RCoutEsr*U74^2 -> 0.0002661434688 | W74: =V74 -> 0.0002661434688 | X74: 3.931189624 | Y74: =RCinEsr*X74^2 -> 0.03090850372 | Z74: =Y74 -> 0.03090850372 | AA74: 11.24849338 | AB74: 0.7212130394 | AC74: 0.1416852273 | AD74: 0 | AE74: 1.008344508 | AF74: 4.195767908 | AG74: 0.1003454695 | AH74: 0.24 | AI74: 0.3473157826 | AJ74: 0 | AK74: 0 | AL74: 0 | AM74: 0 | AN74: 0 | AO74: 12.00554338 | AP74: 0.2738528363 | AQ74: 0 | AR74: 0.289721021 | AS74: 0.2738528363 | AT74: 0 | AU74: 0.2162727 | AV74: 0.07041787335 | AW74: 0.59328 | AX74: 0.036 | AY74: 0.066 | AZ74: 0.0435 | BA74: 0.102 | BB74: 3.184853502 | BC74: 144 | BD74: =BC74/(BC74+BB74) -> 0.9783615404 | BE74: 61.23086041 | BF74: 17.36578913 | BH74: =BD74*100 -> 97.83615404 | BI74: =T74 -> 0.5263269699 | BJ74: =AE74+AI74+AN74+AR74+AU74 -> 1.861654012 | BK74: =AI74+AU74*0.33 -> 0.4186857736 | BL74: =AV74 -> 0.07041787335
A75: Power Dis | B75: =BA9 -> 0.168 | C75: W | G75: 66 | H75: 13.92 | I75: BUCK | J75: 1 | K75: 12 | L75: 11.49425287 | M75: 12 | N75: 0.8703178694 | O75: 0 | P75: 1.341696841 | Q75: 12.0062489 | R75: 0.502307799 | S75: 0.02764514849 | T75: 0.5299529475 | U75: 0.3873145163 | V75: 0.000300025069 | W75: 0.000300025069 | X75: 4.033539934 | Y75: 0.0325388888 | Z75: 0.0325388888 | AA75: 11.20072907 | AB75: 0.7151010912 | AC75: 0.1429172727 | AD75: 0 | AE75: 1.00121191 | AF75: 4.323618941 | AG75: 0.1065539803 | AH75: 0.24 | AI75: 0.3541001361 | AJ75: 0 | AK75: 0 | AL75: 0 | AM75: 0 | AN75: 0 | AO75: 12.0062489 | AP75: 0.2738850238 | AQ75: 0 | AR75: 0.289757047 | AS75: 0.2738850238 | AT75: 0 | AU75: 0.2181627 | AV75: 0.074774723 | AW75: 0.59328 | AX75: 0.036 | AY75: 0.066 | AZ75: 0.0435 | BA75: =SUM(AX75:AY75) -> 0.102 | BB75: =SUM(T75,W75,Z75,AE75,AI75,AN75,AR75, AT75,AU75,BA75,AV75,AW75) -> 3.196078377 | BC75: 144 | BD75: 0.9782869326 | BE75: 60.96873049 | BF75: 17.7050068 | BH75: 97.82869326 | BI75: 0.5299529475 | BJ75: 1.863231793 | BK75: 0.4260938271 | BL75: 0.074774723
A76: Temp rise | B76: =B75*B62 -> 5.04 | C76: °C | G76: 67 | H76: 14.04 | I76: BUCK | J76: 1 | K76: 12 | L76: 11.3960114 | M76: 12 | N76: 0.8629045997 | O76: 0 | P76: 1.418394846 | Q76: 12.00698354 | R76: 0.5023717422 | S76: 0.03142272294 | T76: 0.5337944651 | U76: 0.409455323 | V76: 0.0003353073231 | W76: 0.0003353073231 | X76: 4.129778407 | Y76: 0.03411013939 | Z76: 0.03411013939 | AA76: 11.15360621 | AB76: 0.7090967094 | AC76: 0.1441493182 | AD76: 0 | AE76: 0.994249893 | AF76: 4.445753276 | AG76: 0.1126589165 | AH76: 0.24 | AI76: 0.3607881162 | AJ76: 0 | AK76: 0 | AL76: 0 | AM76: 0 | AN76: 0 | AO76: 12.00698354 | AP76: 0.273918542 | AQ76: 0 | AR76: 0.2897945628 | AS76: 0.273918542 | AT76: 0 | AU76: 0.2200527 | AV76: 0.07905888878 | AW76: 0.59328 | AX76: 0.036 | AY76: 0.066 | AZ76: 0.0435 | BA76: 0.102 | BB76: 3.207464073 | BC76: 144 | BD76: 0.9782112674 | BE76: 60.71512965 | BF76: 18.03940581 | BH76: 97.82112674 | BI76: 0.5337944651 | BJ76: 1.864885272 | BK76: 0.4334055072 | BL76: 0.07905888878
A77: Current (switching) | B77: =(Qg_Q1+Qg_Q2)*Fsw+Iq -> 0.0085 | C77: A | G77: 68 | H77: 14.16 | I77: BUCK | J77: 1 | K77: 12 | L77: 11.29943503 | M77: 12 | N77: 0.8556165541 | O77: 0 | P77: 1.493797276 | Q77: 12.00774552 | R77: 0.5024380701 | S77: 0.03540553711 | T77: 0.5378436072 | U77: 0.4312221296 | V77: 0.0003719050502 | W77: 0.0003719050502 | X77: 4.220459781 | Y77: 0.03562456153 | Z77: 0.03562456153 | AA77: 11.10710979 | AB77: 0.7031969607 | AC77: 0.1453813636 | AD77: 0 | AE77: 0.9874531327 | AF77: 4.562681742 | AG77: 0.1186629687 | AH77: 0.24 | AI77: 0.3673818939 | AJ77: 0 | AK77: 0 | AL77: 0 | AM77: 0 | AN77: 0 | AO77: 12.00774552 | AP77: 0.2739533098 | AQ77: 0 | AR77: 0.2898334779 | AS77: 0.2739533098 | AT77: 0 | AU77: 0.2219427 | AV77: 0.08327225873 | AW77: 0.59328 | AX77: 0.036 | AY77: 0.066 | AZ77: 0.0435 | BA77: 0.102 | BB77: 3.219003537 | BC77: 144 | BD77: 0.9781345923 | BE77: 60.46979163 | BF77: 18.3690947 | BH77: 97.81345923 | BI77: 0.5378436072 | BJ77: 1.866611205 | BK77: 0.4406229849 | BL77: 0.08327225873
A78: Qrr Current | B78: =Qrr_Q2*Fsw -> 0.01575 | C78: A | G78: 69 | H78: 14.28 | I78: BUCK | J78: 1 | K78: 12 | L78: 11.20448179 | M78: 12 | N78: 0.8484505863 | O78: 0 | P78: 1.567936683 | Q78: 12.00853317 | R78: 0.5025066366 | S78: 0.03958586213 | T78: 0.5420924987 | U78: 0.4526243331 | V78: 0.0004097375739 | W78: 0.0004097375739 | X78: 4.306062898 | Y78: 0.03708435537 | Z78: 0.03708435537 | AA78: 11.06122531 | AB78: 0.6973990211 | AC78: 0.1466134091 | AD78: 0 | AE78: 0.9808165275 | AF78: 4.674843668 | AG78: 0.1245687309 | AH78: 0.24 | AI78: 0.3738835713 | AJ78: 0 | AK78: 0 | AL78: 0 | AM78: 0 | AN78: 0 | AO78: 12.00853317 | AP78: 0.2739892507 | AQ78: 0 | AR78: 0.2898737066 | AS78: 0.2739892507 | AT78: 0 | AU78: 0.2238327 | AV78: 0.08741665329 | AW78: 0.59328 | AX78: 0.036 | AY78: 0.066 | AZ78: 0.0435 | BA78: 0.102 | BB78: 3.23068975 | BC78: 144 | BD78: 0.9780569543 | BE78: 60.23246137 | BF78: 18.69417857 | BH78: 97.80569543 | BI78: 0.5420924987 | BJ78: 1.868406505 | BK78: 0.4477483623 | BL78: 0.08741665329
A79: Diode Current | B79: =C79/Vin ->  | C79: =Deadtime*Fsw*(Iripple_Vinnom/2)*(VsdTop+VsdBot) ->  | G79: 70 | H79: 14.4 | I79: BUCK | J79: 1 | K79: 12 | L79: 11.11111111 | M79: 12 | N79: 0.8414036545 | O79: 0 | P79: 1.640844539 | Q79: 12.00934487 | R79: 0.5025773032 | S79: 0.04395604084 | T79: 0.5465333441 | U79: 0.4736710183 | V79: 0.0004487284671 | W79: 0.0004487284671 | X79: 4.387004718 | Y79: 0.03849162079 | Z79: 0.03849162079 | AA79: 11.01593878 | AB79: 0.6917001707 | AC79: 0.1478454545 | AD79: 0 | AE79: 0.9743351884 | AF79: 4.782620318 | AG79: 0.1303787055 | AH79: 0.24 | AI79: 0.3802951842 | AJ79: 0 | AK79: 0 | AL79: 0 | AM79: 0 | AN79: 0 | AO79: 12.00934487 | AP79: 0.274026292 | AQ79: 0 | AR79: 0.2899151677 | AS79: 0.274026292 | AT79: 0 | AU79: 0.2257227 | AV79: 0.09149382841 | AW79: 0.59328 | AX79: 0.036 | AY79: 0.066 | AZ79: 0.0435 | BA79: 0.102 | BB79: 3.242515762 | BC79: 144 | BD79: 0.9779784002 | BE79: 60.00289442 | BF79: 19.01475921 | BH79: 97.79784002 | BI79: 0.5465333441 | BJ79: 1.87026824 | BK79: 0.4547836752 | BL79: 0.09149382841
A80: Total | B80: =SUM(B77:B79) ->  | C80: A | G80: 71 | H80: 14.52 | I80: BUCK | J80: 1 | K80: 12 | L80: 11.01928375 | M80: 12 | N80: 0.8344728171 | O80: 0 | P80: 1.712551278 | Q80: 12.01017913 | R80: 0.5026499389 | S80: 0.04850851875 | T80: 0.5511584576 | U80: 0.4943709706 | V80: 0.0004888053131 | W80: 0.0004888053131 | X80: 4.463651131 | Y80: 0.03984836283 | Z80: 0.03984836283 | AA80: 10.97123662 | AB80: 0.6860977883 | AC80: 0.1490775 | AD80: 0 | AE80: 0.9680044277 | AF80: 4.886345221 | AG80: 0.1360953068 | AH80: 0.24 | AI80: 0.3866187051 | AJ80: 0 | AK80: 0 | AL80: 0 | AM80: 0 | AN80: 0 | AO80: 12.01017913 | AP80: 0.274064365 | AQ80: 0 | AR80: 0.2899577843 | AS80: 0.274064365 | AT80: 0 | AU80: 0.2276127 | AV80: 0.09550547846 | AW80: 0.59328 | AX80: 0.036 | AY80: 0.066 | AZ80: 0.0435 | BA80: 0.102 | BB80: 3.254474721 | BC80: 144 | BD80: 0.9778989757 | BE80: 59.78085639 | BF80: 19.33093525 | BH80: 97.78989757 | BI80: 0.5511584576 | BJ80: 1.872193617 | BK80: 0.4617308961 | BL80: 0.09550547846
G81: 72 | H81: 14.64 | I81: BUCK | J81: 1 | K81: 12 | L81: 10.92896175 | M81: 12 | N81: 0.8276552288 | O81: 0 | P81: 1.783086337 | Q81: 12.0110345 | R81: 0.5027244191 | S81: 0.05323586819 | T81: 0.5559602873 | U81: 0.5147326884 | V81: 0.0005298994809 | W81: 0.0005298994809 | X81: 4.536325421 | Y81: 0.04115649666 | Z81: 0.04115649666 | AA81: 10.92710575 | AB81: 0.6805893479 | AC81: 0.1503095455 | AD81: 0 | AE81: 0.9618197484 | AF81: 4.986312241 | AG81: 0.1417208656 | AH81: 0.24 | AI81: 0.3928560454 | AJ81: 0 | AK81: 0 | AL81: 0 | AM81: 0 | AN81: 0 | AO81: 12.0110345 | AP81: 0.2741034045 | AQ81: 0 | AR81: 0.2900014833 | AS81: 0.2741034045 | AT81: 0 | AU81: 0.2295027 | AV81: 0.09945323904 | AW81: 0.59328 | AX81: 0.036 | AY81: 0.066 | AZ81: 0.0435 | BA81: 0.102 | BB81: 3.2665599 | BC81: 144 | BD81: 0.9778187261 | BE81: 59.56612242 | BF81: 19.64280227 | BH81: 97.78187261 | BI81: 0.5559602873 | BJ81: 1.874179977 | BK81: 0.4685919364 | BL81: 0.09945323904
G82: 73 | H82: 14.76 | I82: BUCK | J82: 1 | K82: 12 | L82: 10.8401084 | M82: 12 | N82: 0.8209481361 | O82: 0 | P82: 1.852478203 | Q82: 12.01190963 | R82: 0.5028006262 | S82: 0.0581308071 | T82: 0.5609314333 | U82: 0.5347643945 | V82: 0.0005719459152 | W82: 0.0005719459152 | X82: 4.605314989 | Y82: 0.04241785229 | Z82: 0.04241785229 | AA82: 10.88353346 | AB82: 0.6751724133 | AC82: 0.1515415909 | AD82: 0 | AE82: 0.9557768345 | AF82: 5.082781953 | AG82: 0.1472576326 | AH82: 0.24 | AI82: 0.3990090585 | AJ82: 0 | AK82: 0 | AL82: 0 | AM82: 0 | AN82: 0 | AO82: 12.01190963 | AP82: 0.2741433486 | AQ82: 0 | AR82: 0.2900461957 | AS82: 0.2741433486 | AT82: 0 | AU82: 0.2313927 | AV82: 0.1033386895 | AW82: 0.59328 | AX82: 0.036 | AY82: 0.066 | AZ82: 0.0435 | BA82: 0.102 | BB82: 3.27876471 | BC82: 144 | BD82: 0.9777376955 | BE82: 59.35847673 | BF82: 19.95045292 | BH82: 97.77376955 | BI82: 0.5609314333 | BJ82: 1.876224789 | BK82: 0.4753686495 | BL82: 0.1033386895
G83: 74 | H83: 14.88 | I83: BUCK | J83: 1 | K83: 12 | L83: 10.75268817 | M83: 12 | N83: 0.8143488746 | O83: 0 | P83: 1.920754443 | Q83: 12.01280323 | R83: 0.5028784483 | S83: 0.0631862134 | T83: 0.5660646617 | U83: 0.5544740475 | V83: 0.0006148829387 | W83: 0.0006148829387 | X83: 4.67087674 | Y83: 0.04363417904 | Z83: 0.04363417904 | AA83: 10.84050749 | AB83: 0.6698446346 | AC83: 0.1527736364 | AD83: 0 | AE83: 0.9498715421 | AF83: 5.175986757 | AG83: 0.1527077818 | AH83: 0.24 | AI83: 0.4050795414 | AJ83: 0 | AK83: 0 | AL83: 0 | AM83: 0 | AN83: 0 | AO83: 12.01280323 | AP83: 0.2741841388 | AQ83: 0 | AR83: 0.2900918559 | AS83: 0.2741841388 | AT83: 0 | AU83: 0.2332827 | AV83: 0.1071633557 | AW83: 0.59328 | AX83: 0.036 | AY83: 0.066 | AZ83: 0.0435 | BA83: 0.102 | BB83: 3.291082719 | BC83: 144 | BD83: 0.9776559269 | BE83: 59.15771211 | BF83: 20.25397707 | BH83: 97.76559269 | BI83: 0.5660646617 | BJ83: 1.87832564 | BK83: 0.4820628324 | BL83: 0.1071633557
G84: 75 | H84: 15 | I84: BUCK | J84: 1 | K84: 12 | L84: 10.66666667 | M84: 12 | N84: 0.8078548644 | O84: 0 | P84: 1.987941749 | Q84: 12.01371408 | R84: 0.5029577796 | S84: 0.06839513566 | T84: 0.5713529152 | U84: 0.5738693519 | V84: 0.0006586520662 | W84: 0.0006586520662 | X84: 4.733241472 | Y84: 0.04480714966 | Z84: 0.04480714966 | AA84: 10.79801593 | AB84: 0.6646037443 | AC84: 0.1540056818 | AD84: 0 | AE84: 0.9440998905 | AF84: 5.266135007 | AG84: 0.1580734141 | AH84: 0.24 | AI84: 0.4110692377 | AJ84: 0 | AK84: 0 | AL84: 0 | AM84: 0 | AN84: 0 | AO84: 12.01371408 | AP84: 0.2742257195 | AQ84: 0 | AR84: 0.2901384019 | AS84: 0.2742257195 | AT84: 0 | AU84: 0.2351727 | AV84: 0.1109287117 | AW84: 0.59328 | AX84: 0.036 | AY84: 0.066 | AZ84: 0.0435 | BA84: 0.102 | BB84: 3.303507659 | BC84: 144 | BD84: 0.9775734624 | BE84: 58.96362953 | BF84: 20.55346188 | BH84: 97.75734624 | BI84: 0.5713529152 | BJ84: 1.88048023 | BK84: 0.4886762287 | BL84: 0.1109287117
G85: 76 | H85: 15.12 | I85: BUCK | J85: 1 | K85: 12 | L85: 10.58201058 | M85: 12 | N85: 0.8014636076 | O85: 0 | P85: 2.054065964 | Q85: 12.01464102 | R85: 0.5030385195 | S85: 0.07375080103 | T85: 0.5767893205 | U85: 0.5929577687 | V85: 0.0007031978309 | W85: 0.0007031978309 | X85: 4.792617463 | Y85: 0.04593836429 | Z85: 0.04593836429 | AA85: 10.75604729 | AB85: 0.6594475534 | AC85: 0.1552377273 | AD85: 0 | AE85: 0.9384580542 | AF85: 5.353414395 | AG85: 0.1633565604 | AH85: 0.24 | AI85: 0.4169798389 | AJ85: 0 | AK85: 0 | AL85: 0 | AM85: 0 | AN85: 0 | AO85: 12.01464102 | AP85: 0.2742680379 | AQ85: 0 | AR85: 0.2901857745 | AS85: 0.2742680379 | AT85: 0 | AU85: 0.2370627 | AV85: 0.1146361827 | AW85: 0.59328 | AX85: 0.036 | AY85: 0.066 | AZ85: 0.0435 | BA85: 0.102 | BB85: 3.316033433 | BC85: 144 | BD85: 0.9774903427 | BE85: 58.77603771 | BF85: 20.84899194 | BH85: 97.74903427 | BI85: 0.5767893205 | BJ85: 1.882686368 | BK85: 0.4952105299 | BL85: 0.1146361827
G86: 77 | H86: 15.24 | I86: BUCK | J86: 1 | K86: 12 | L86: 10.49868766 | M86: 12 | N86: 0.7951726845 | O86: 0 | P86: 2.119152123 | Q86: 12.01558296 | R86: 0.5031205727 | S86: 0.07924662057 | T86: 0.5823671933 | U86: 0.6117465242 | V86: 0.0007484676198 | W86: 0.0007484676198 | X86: 4.849193443 | Y86: 0.0470293541 | Z86: 0.0470293541 | AA86: 10.71459038 | AB86: 0.6543739483 | AC86: 0.1564697727 | AD86: 0 | AE86: 0.9329423555 | AF86: 5.437994736 | AG86: 0.1685591844 | AH86: 0.24 | AI86: 0.4228129869 | AJ86: 0 | AK86: 0 | AL86: 0 | AM86: 0 | AN86: 0 | AO86: 12.01558296 | AP86: 0.2743110442 | AQ86: 0 | AR86: 0.2902339181 | AS86: 0.2743110442 | AT86: 0 | AU86: 0.2389527 | AV86: 0.118287147 | AW86: 0.59328 | AX86: 0.036 | AY86: 0.066 | AZ86: 0.0435 | BA86: 0.102 | BB86: 3.328654122 | BC86: 144 | BD86: 0.9774066074 | BE86: 58.59475278 | BF86: 21.14064934 | BH86: 97.74066074 | BI86: 0.5823671933 | BJ86: 1.88494196 | BK86: 0.5016673779 | BL86: 0.118287147
G87: 78 | H87: 15.36 | I87: BUCK | J87: 1 | K87: 12 | L87: 10.41666667 | M87: 12 | N87: 0.7889797508 | O87: 0 | P87: 2.183224478 | Q87: 12.01653884 | R87: 0.5032038489 | S87: 0.08487619276 | T87: 0.5880800416 | U87: 0.63024262 | V87: 0.0007944115202 | W87: 0.0007944115202 | X87: 4.903141074 | Y87: 0.04808158478 | Z87: 0.04808158478 | AA87: 10.67363441 | AB87: 0.6493808871 | AC87: 0.1577018182 | AD87: 0 | AE87: 0.9275492571 | AF87: 5.520030285 | AG87: 0.1736831858 | AH87: 0.24 | AI87: 0.4285702759 | AJ87: 0 | AK87: 0 | AL87: 0 | AM87: 0 | AN87: 0 | AO87: 12.01653884 | AP87: 0.2743546909 | AQ87: 0 | AR87: 0.2902827794 | AS87: 0.2743546909 | AT87: 0 | AU87: 0.2408427 | AV87: 0.1218829374 | AW87: 0.59328 | AX87: 0.036 | AY87: 0.066 | AZ87: 0.0435 | BA87: 0.102 | BB87: 3.341363988 | BC87: 144 | BD87: 0.977322295 | BE87: 58.41959786 | BF87: 21.4285138 | BH87: 97.7322295 | BI87: 0.5880800416 | BJ87: 1.887245012 | BK87: 0.5080483669 | BL87: 0.1218829374
G88: 79 | H88: 15.48 | I88: BUCK | J88: 1 | K88: 12 | L88: 10.33591731 | M88: 12 | N88: 0.7828825348 | O88: 0 | P88: 2.246306534 | Q88: 12.01750769 | R88: 0.5032882621 | S88: 0.09063330529 | T88: 0.5939215674 | U88: 0.6484528411 | V88: 0.0008409821743 | W88: 0.0008409821743 | X88: 4.95461703 | Y88: 0.04909645982 | Z88: 0.04909645982 | AA88: 10.63316887 | AB88: 0.6444663968 | AC88: 0.1589338636 | AD88: 0 | AE88: 0.9222753554 | AF88: 5.599661682 | AG88: 0.1787304024 | AH88: 0.24 | AI88: 0.4342532542 | AJ88: 0 | AK88: 0 | AL88: 0 | AM88: 0 | AN88: 0 | AO88: 12.01750769 | AP88: 0.2743989331 | AQ88: 0 | AR88: 0.2903323082 | AS88: 0.2743989331 | AT88: 0 | AU88: 0.2427327 | AV88: 0.1254248438 | AW88: 0.59328 | AX88: 0.036 | AY88: 0.066 | AZ88: 0.0435 | BA88: 0.102 | BB88: 3.354157471 | BC88: 144 | BD88: 0.9772374426 | BE88: 58.25040277 | BF88: 21.71266271 | BH88: 97.72374426 | BI88: 0.5939215674 | BJ88: 1.889593618 | BK88: 0.5143550452 | BL88: 0.1254248438
G89: 80 | H89: 15.6 | I89: BUCK | J89: 1 | K89: 12 | L89: 10.25641026 | M89: 12 | N89: 0.7768788344 | O89: 0 | P89: 2.308421074 | Q89: 12.01848856 | R89: 0.5033737311 | S89: 0.09651193557 | T89: 0.5998856667 | U89: 0.6663837643 | V89: 0.0008881346427 | W89: 0.0008881346427 | X89: 5.003764761 | Y89: 0.05007532357 | Z89: 0.05007532357 | AA89: 10.59318359 | AB89: 0.6396285703 | AC89: 0.1601659091 | AD89: 0 | AE89: 0.9171173744 | AF89: 5.677017586 | AG89: 0.1837026134 | AH89: 0.24 | AI89: 0.4398634256 | AJ89: 0 | AK89: 0 | AL89: 0 | AM89: 0 | AN89: 0 | AO89: 12.01848856 | AP89: 0.2744437279 | AQ89: 0 | AR89: 0.2903824567 | AS89: 0.2744437279 | AT89: 0 | AU89: 0.2446227 | AV89: 0.1289141147 | AW89: 0.59328 | AX89: 0.036 | AY89: 0.066 | AZ89: 0.0435 | BA89: 0.102 | BB89: 3.367029196 | BC89: 144 | BD89: 0.9771520861 | BE89: 58.08700372 | BF89: 21.99317128 | BH89: 97.71520861 | BI89: 0.5998856667 | BJ89: 1.891985957 | BK89: 0.5205889166 | BL89: 0.1289141147
G90: 81 | H90: 15.72 | I90: BUCK | J90: 1 | K90: 12 | L90: 10.17811705 | M90: 12 | N90: 0.7709665145 | O90: 0 | P90: 2.369590188 | Q90: 12.01948057 | R90: 0.5034601785 | S90: 0.1025062502 | T90: 0.6059664287 | U90: 0.6840417663 | V90: 0.0009358262761 | W90: 0.0009358262761 | X90: 5.050715997 | Y90: 0.05101946417 | Z90: 0.05101946417 | AA90: 10.55366872 | AB90: 0.6348655636 | AC90: 0.1613979545 | AD90: 0 | AE90: 0.9120721593 | AF90: 5.752216068 | AG90: 0.1886015413 | AH90: 0.24 | AI90: 0.4454022515 | AJ90: 0 | AK90: 0 | AL90: 0 | AM90: 0 | AN90: 0 | AO90: 12.01948057 | AP90: 0.274489035 | AQ90: 0 | AR90: 0.2904331796 | AS90: 0.274489035 | AT90: 0 | AU90: 0.2465127 | AV90: 0.1323519588 | AW90: 0.59328 | AX90: 0.036 | AY90: 0.066 | AZ90: 0.0435 | BA90: 0.102 | BB90: 3.379973968 | BC90: 144 | BD90: 0.9770662602 | BE90: 57.92924296 | BF90: 22.27011257 | BH90: 97.70662602 | BI90: 0.6059664287 | BJ90: 1.89442029 | BK90: 0.5267514425 | BL90: 0.1323519588
G91: 82 | H91: 15.84 | I91: BUCK | J91: 1 | K91: 12 | L91: 10.1010101 | M91: 12 | N91: 0.7651435045 | O91: 0 | P91: 2.429835296 | Q91: 12.02048286 | R91: 0.503547531 | S91: 0.1086106034 | T91: 0.6121581344 | U91: 0.7014330311 | V91: 0.0009840165943 | W91: 0.0009840165943 | X91: 5.095592029 | Y91: 0.05193011626 | Z91: 0.05193011626 | AA91: 10.51461467 | AB91: 0.6301755932 | AC91: 0.16263 | AD91: 0 | AE91: 0.9071366711 | AF91: 5.825365799 | AG91: 0.1934288541 | AH91: 0.24 | AI91: 0.4508711522 | AJ91: 0 | AK91: 0 | AL91: 0 | AM91: 0 | AN91: 0 | AO91: 12.02048286 | AP91: 0.2745348158 | AQ91: 0 | AR91: 0.2904844339 | AS91: 0.2745348158 | AT91: 0 | AU91: 0.2484027 | AV91: 0.1357395468 | AW91: 0.59328 | AX91: 0.036 | AY91: 0.066 | AZ91: 0.0435 | BA91: 0.102 | BB91: 3.392986771 | BC91: 144 | BD91: 0.9769799985 | BE91: 57.77696856 | BF91: 22.54355761 | BH91: 97.69799985 | BI91: 0.6121581344 | BJ91: 1.896894957 | BK91: 0.5328440432 | BL91: 0.1357395468
G92: 83 | H92: 15.96 | I92: BUCK | J92: 1 | K92: 12 | L92: 10.02506266 | M92: 12 | N92: 0.7594077961 | O92: 0 | P92: 2.489177179 | Q92: 12.02149465 | R92: 0.503635719 | S92: 0.1148195349 | T92: 0.6184552539 | U92: 0.7185635573 | V92: 0.001032667172 | W92: 0.001032667172 | X92: 5.138504821 | Y92: 0.05280846359 | Z92: 0.05280846359 | AA92: 10.47601214 | AB92: 0.6255569332 | AC92: 0.1638620455 | AD92: 0 | AE92: 0.9023079814 | AF92: 5.896567069 | AG92: 0.1981861682 | AH92: 0.24 | AI92: 0.4562715086 | AJ92: 0 | AK92: 0 | AL92: 0 | AM92: 0 | AN92: 0 | AO92: 12.02149465 | AP92: 0.2745810338 | AQ92: 0 | AR92: 0.2905361787 | AS92: 0.2745810338 | AT92: 0 | AU92: 0.2502927 | AV92: 0.1390780128 | AW92: 0.59328 | AX92: 0.036 | AY92: 0.066 | AZ92: 0.0435 | BA92: 0.102 | BB92: 3.406062766 | BC92: 144 | BD92: 0.9768933333 | BE92: 57.63003407 | BF92: 22.81357543 | BH92: 97.68933333 | BI92: 0.6184552539 | BJ92: 1.899408369 | BK92: 0.5388680996 | BL92: 0.1390780128
G93: 84 | H93: 16.08 | I93: BUCK | J93: 1 | K93: 12 | L93: 9.950248756 | M93: 12 | N93: 0.7537574405 | O93: 0 | P93: 2.547635999 | Q93: 12.02251516 | R93: 0.5037246764 | S93: 0.1211277673 | T93: 0.6248524437 | U93: 0.735439165 | V93: 0.001081741531 | W93: 0.001081741531 | X93: 5.179557967 | Y93: 0.05365564146 | Z93: 0.05365564146 | AA93: 10.43785212 | AB93: 0.6210079137 | AC93: 0.1650940909 | AD93: 0 | AE93: 0.897583267 | AF93: 5.965912669 | AG93: 0.2028750496 | AH93: 0.24 | AI93: 0.4616046634 | AJ93: 0 | AK93: 0 | AL93: 0 | AM93: 0 | AN93: 0 | AO93: 12.02251516 | AP93: 0.2746276545 | AQ93: 0 | AR93: 0.2905883752 | AS93: 0.2746276545 | AT93: 0 | AU93: 0.2521827 | AV93: 0.1423684559 | AW93: 0.59328 | AX93: 0.036 | AY93: 0.066 | AZ93: 0.0435 | BA93: 0.102 | BB93: 3.419197288 | BC93: 144 | BD93: 0.9768062956 | BE93: 57.48829835 | BF93: 23.08023317 | BH93: 97.68062956 | BI93: 0.6248524437 | BJ93: 1.901959006 | BK93: 0.5448249544 | BL93: 0.1423684559
G94: 85 | H94: 16.2 | I94: BUCK | J94: 1 | K94: 12 | L94: 9.87654321 | M94: 12 | N94: 0.7481905465 | O94: 0 | P94: 2.605231321 | Q94: 12.02354368 | R94: 0.5038143404 | S94: 0.1275302025 | T94: 0.6313445429 | U94: 0.7520655022 | V94: 0.001131205039 | W94: 0.001131205039 | X94: 5.218847527 | Y94: 0.05447273903 | Z94: 0.05447273903 | AA94: 10.40012582 | AB94: 0.6165269178 | AC94: 0.1663261364 | AD94: 0 | AE94: 0.8929598055 | AF94: 6.033488656 | AG94: 0.2074970166 | AH94: 0.24 | AI94: 0.4668719228 | AJ94: 0 | AK94: 0 | AL94: 0 | AM94: 0 | AN94: 0 | AO94: 12.02354368 | AP94: 0.2746746448 | AQ94: 0 | AR94: 0.2906409867 | AS94: 0.2746746448 | AT94: 0 | AU94: 0.2540727 | AV94: 0.1456119414 | AW94: 0.59328 | AX94: 0.036 | AY94: 0.066 | AZ94: 0.0435 | BA94: 0.102 | BB94: 3.432385843 | BC94: 144 | BD94: 0.9767189154 | BE94: 57.35162527 | BF94: 23.34359614 | BH94: 97.67189154 | BI94: 0.6313445429 | BJ94: 1.904545415 | BK94: 0.5507159138 | BL94: 0.1456119414
G95: 86 | H95: 16.32 | I95: BUCK | J95: 1 | K95: 12 | L95: 9.803921569 | M95: 12 | N95: 0.7427052786 | O95: 0 | P95: 2.661982136 | Q95: 12.02457951 | R95: 0.5039046515 | S95: 0.1340219185 | T95: 0.63792657 | U95: 0.7684480515 | V95: 0.001181024816 | W95: 0.001181024816 | X95: 5.256462759 | Y95: 0.05526080148 | Z95: 0.05526080148 | AA95: 10.36282475 | AB95: 0.6121123798 | AC95: 0.1675581818 | AD95: 0 | AE95: 0.8884349704 | AF95: 6.099375018 | AG95: 0.212053541 | AH95: 0.24 | AI95: 0.4720745573 | AJ95: 0 | AK95: 0 | AL95: 0 | AM95: 0 | AN95: 0 | AO95: 12.02457951 | AP95: 0.2747219736 | AQ95: 0 | AR95: 0.2906939783 | AS95: 0.2747219736 | AT95: 0 | AU95: 0.2559627 | AV95: 0.1488095024 | AW95: 0.59328 | AX95: 0.036 | AY95: 0.066 | AZ95: 0.0435 | BA95: 0.102 | BB95: 3.445624105 | BC95: 144 | BD95: 0.9766312217 | BE95: 57.21988352 | BF95: 23.60372786 | BH95: 97.66312217 | BI95: 0.63792657 | BJ95: 1.907166206 | BK95: 0.5565422483 | BL95: 0.1488095024
G96: 87 | H96: 16.44 | I96: BUCK | J96: 1 | K96: 12 | L96: 9.732360097 | M96: 12 | N96: 0.7372998544 | O96: 0 | P96: 2.717906885 | Q96: 12.02562201 | R96: 0.5039955531 | S96: 0.1405981652 | T96: 0.6445937183 | U96: 0.7845921358 | V96: 0.001231169639 | W96: 0.001231169639 | X96: 5.292486756 | Y96: 0.05602083212 | Z96: 0.05602083212 | AA96: 10.32594062 | AB96: 0.6077627829 | AC96: 0.1687902273 | AD96: 0 | AE96: 0.8840062272 | AF96: 6.163646257 | AG96: 0.2165460505 | AH96: 0.24 | AI96: 0.4772138034 | AJ96: 0 | AK96: 0 | AL96: 0 | AM96: 0 | AN96: 0 | AO96: 12.02562201 | AP96: 0.2747696112 | AQ96: 0 | AR96: 0.2907473166 | AS96: 0.2747696112 | AT96: 0 | AU96: 0.2578527 | AV96: 0.1519621407 | AW96: 0.59328 | AX96: 0.036 | AY96: 0.066 | AZ96: 0.0435 | BA96: 0.102 | BB96: 3.458907908 | BC96: 144 | BD96: 0.9765432421 | BE96: 57.09294636 | BF96: 23.86069017 | BH96: 97.65432421 | BI96: 0.6445937183 | BJ96: 1.909820047 | BK96: 0.5623051944 | BL96: 0.1519621407
G97: 88 | H97: 16.56 | I97: BUCK | J97: 1 | K97: 12 | L97: 9.661835749 | M97: 12 | N97: 0.7319725434 | O97: 0 | P97: 2.773023472 | Q97: 12.02667057 | R97: 0.5040869914 | S97: 0.1472543607 | T97: 0.6513413521 | U97: 0.800502924 | V97: 0.001281609863 | W97: 0.001281609863 | X97: 5.32699701 | Y97: 0.05675379429 | Z97: 0.05675379429 | AA97: 10.28946538 | AB97: 0.6034766578 | AC97: 0.1700222727 | AD97: 0 | AE97: 0.8796711291 | AF97: 6.226371903 | AG97: 0.2209759303 | AH97: 0.24 | AI97: 0.4822908648 | AJ97: 0 | AK97: 0 | AL97: 0 | AM97: 0 | AN97: 0 | AO97: 12.02667057 | AP97: 0.2748175294 | AQ97: 0 | AR97: 0.2908009702 | AS97: 0.2748175294 | AT97: 0 | AU97: 0.2597427 | AV97: 0.1550708283 | AW97: 0.59328 | AX97: 0.036 | AY97: 0.066 | AZ97: 0.0435 | BA97: 0.102 | BB97: 3.472233249 | BC97: 144 | BD97: 0.9764550033 | BE97: 56.97069146 | BF97: 24.11454324 | BH97: 97.64550033 | BI97: 0.6513413521 | BJ97: 1.912505664 | BK97: 0.5680059558 | BL97: 0.1550708283
G98: 89 | H98: 16.68 | I98: BUCK | J98: 1 | K98: 12 | L98: 9.592326139 | M98: 12 | N98: 0.7267216643 | O98: 0 | P98: 2.82734929 | Q98: 12.02772458 | R98: 0.5041789156 | S98: 0.1539860865 | T98: 0.658165002 | U98: 0.8161854369 | V98: 0.001332317335 | W98: 0.001332317335 | X98: 5.360065916 | Y98: 0.05746061325 | Z98: 0.05746061325 | AA98: 10.25339122 | AB98: 0.5992525801 | AC98: 0.1712543182 | AD98: 0 | AE98: 0.8754273135 | AF98: 6.287616963 | AG98: 0.2253445243 | AH98: 0.24 | AI98: 0.4873069132 | AJ98: 0 | AK98: 0 | AL98: 0 | AM98: 0 | AN98: 0 | AO98: 12.02772458 | AP98: 0.2748657015 | AQ98: 0 | AR98: 0.2908549092 | AS98: 0.2748657015 | AT98: 0 | AU98: 0.2616327 | AV98: 0.1581365083 | AW98: 0.59328 | AX98: 0.036 | AY98: 0.066 | AZ98: 0.0435 | BA98: 0.102 | BB98: 3.485596277 | BC98: 144 | BD98: 0.9763665309 | BE98: 56.85300068 | BF98: 24.36534566 | BH98: 97.63665309 | BI98: 0.658165002 | BJ98: 1.915221836 | BK98: 0.5736457042 | BL98: 0.1581365083
G99: 90 | H99: 16.8 | I99: BUCK | J99: 1 | K99: 12 | L99: 9.523809524 | M99: 12 | N99: 0.721545584 | O99: 0 | P99: 2.880901237 | Q99: 12.02878351 | R99: 0.504271277 | S99: 0.1607890836 | T99: 0.6650603606 | U99: 0.8316445522 | V99: 0.001383265322 | W99: 0.001383265322 | X99: 5.39176121 | Y99: 0.05814217789 | Z99: 0.05814217789 | AA99: 10.21771054 | AB99: 0.595089169 | AC99: 0.1724863636 | AD99: 0 | AE99: 0.871272498 | AF99: 6.347442325 | AG99: 0.2296531372 | AH99: 0.24 | AI99: 0.4922630898 | AJ99: 0 | AK99: 0 | AL99: 0 | AM99: 0 | AN99: 0 | AO99: 12.02878351 | AP99: 0.2749141021 | AQ99: 0 | AR99: 0.2909091051 | AS99: 0.2749141021 | AT99: 0 | AU99: 0.2635227 | AV99: 0.1611600963 | AW99: 0.59328 | AX99: 0.036 | AY99: 0.066 | AZ99: 0.0435 | BA99: 0.102 | BB99: 3.498993293 | BC99: 144 | BD99: 0.9762778497 | BE99: 56.7397599 | BF99: 24.61315449 | BH99: 97.62778497 | BI99: 0.6650603606 | BJ99: 1.917967393 | BK99: 0.5792255808 | BL99: 0.1611600963
G100: 91 | H100: 16.92 | I100: BUCK | J100: 1 | K100: 12 | L100: 9.456264775 | M100: 12 | N100: 0.7164427157 | O100: 0 | P100: 2.93369573 | Q100: 12.02984681 | R100: 0.5043640298 | S100: 0.1676592479 | T100: 0.6720232777 | U100: 0.8468850096 | V100: 0.001434428439 | W100: 0.001434428439 | X100: 5.422146366 | Y100: 0.05879934243 | Z100: 0.05879934243 | AA100: 10.18241592 | AB100: 0.5909850856 | AC100: 0.1737184091 | AD100: 0 | AE100: 0.8672044771 | AF100: 6.405905108 | AG100: 0.2339030355 | AH100: 0.24 | AI100: 0.4971605057 | AJ100: 0 | AK100: 0 | AL100: 0 | AM100: 0 | AN100: 0 | AO100: 12.02984681 | AP100: 0.274962707 | AQ100: 0 | AR100: 0.290963531 | AS100: 0.274962707 | AT100: 0 | AU100: 0.2654127 | AV100: 0.164142481 | AW100: 0.59328 | AX100: 0.036 | AY100: 0.066 | AZ100: 0.0435 | BA100: 0.102 | BB100: 3.512420744 | BC100: 144 | BD100: 0.9761889831 | BE100: 56.63085886 | BF100: 24.85802529 | BH100: 97.61889831 | BI100: 0.6720232777 | BJ100: 1.920741214 | BK100: 0.5847466967 | BL100: 0.164142481
G101: 92 | H101: 17.04 | I101: BUCK | J101: 1 | K101: 12 | L101: 9.389671362 | M101: 12 | N101: 0.7114115169 | O101: 0 | P101: 2.985748727 | Q101: 12.03091398 | R101: 0.5044571302 | S101: 0.1745926259 | T101: 0.6790497561 | U101: 0.8619114156 | V101: 0.001485782577 | W101: 0.001485782577 | X101: 5.451280949 | Y101: 0.05943292796 | Z101: 0.05943292796 | AA101: 10.14750018 | AB101: 0.5869390311 | AC101: 0.1749504545 | AD101: 0 | AE101: 0.8632211191 | AF101: 6.463058985 | AG101: 0.2380954492 | AH101: 0.24 | AI101: 0.5020002439 | AJ101: 0 | AK101: 0 | AL101: 0 | AM101: 0 | AN101: 0 | AO101: 12.03091398 | AP101: 0.2750114934 | AQ101: 0 | AR101: 0.2910181613 | AS101: 0.2750114934 | AT101: 0 | AU101: 0.2673027 | AV101: 0.1670845258 | AW101: 0.59328 | AX101: 0.036 | AY101: 0.066 | AZ101: 0.0435 | BA101: 0.102 | BB101: 3.525875217 | BC101: 144 | BD101: 0.9760999539 | BE101: 56.52619096 | BF101: 25.1000122 | BH101: 97.60999539 | BI101: 0.6790497561 | BJ101: 1.923542224 | BK101: 0.5902101349 | BL101: 0.1670845258
G102: 93 | H102: 17.16 | I102: BUCK | J102: 1 | K102: 12 | L102: 9.324009324 | M102: 12 | N102: 0.7064504881 | O102: 0 | P102: 3.037075741 | Q102: 12.03198456 | R102: 0.5045505368 | S102: 0.1815854098 | T102: 0.6861359466 | U102: 0.8767282483 | V102: 0.001537304843 | W102: 0.001537304843 | X102: 5.479220927 | Y102: 0.06004372394 | Z102: 0.06004372394 | AA102: 10.1129563 | AB102: 0.5829497455 | AC102: 0.1761825 | AD102: 0 | AE102: 0.8593203628 | AF102: 6.51895446 | AG102: 0.2422315733 | AH102: 0.24 | AI102: 0.5067833594 | AJ102: 0 | AK102: 0 | AL102: 0 | AM102: 0 | AN102: 0 | AO102: 12.03198456 | AP102: 0.2750604396 | AQ102: 0 | AR102: 0.2910729715 | AS102: 0.2750604396 | AT102: 0 | AU102: 0.2691927 | AV102: 0.169987069 | AW102: 0.59328 | AX102: 0.036 | AY102: 0.066 | AZ102: 0.0435 | BA102: 0.102 | BB102: 3.539353438 | BC102: 144 | BD102: 0.9760107839 | BE102: 56.42565314 | BF102: 25.33916797 | BH102: 97.60107839 | BI102: 0.6861359466 | BJ102: 1.926369394 | BK102: 0.5956169504 | BL102: 0.169987069
G103: 94 | H103: 17.28 | I103: BUCK | J103: 1 | K103: 12 | L103: 9.259259259 | M103: 12 | N103: 0.7015581717 | O103: 0 | P103: 3.087691855 | Q103: 12.03305808 | R103: 0.50464421 | S103: 0.1886339336 | T103: 0.6932781436 | U103: 0.8913398618 | V103: 0.001588973498 | W103: 0.001588973498 | X103: 5.506018961 | Y103: 0.0606324896 | Z103: 0.0606324896 | AA103: 10.07877748 | AB103: 0.5790160058 | AC103: 0.1774145455 | AD103: 0 | AE103: 0.8555002147 | AF103: 6.573639125 | AG103: 0.2463125687 | AH103: 0.24 | AI103: 0.5115108804 | AJ103: 0 | AK103: 0 | AL103: 0 | AM103: 0 | AN103: 0 | AO103: 12.03305808 | AP103: 0.2751095248 | AQ103: 0 | AR103: 0.2911279386 | AS103: 0.2751095248 | AT103: 0 | AU103: 0.2710827 | AV103: 0.1728509254 | AW103: 0.59328 | AX103: 0.036 | AY103: 0.066 | AZ103: 0.0435 | BA103: 0.102 | BB103: 3.552852266 | BC103: 144 | BD103: 0.9759214938 | BE103: 56.32914574 | BF103: 25.57554402 | BH103: 97.59214938 | BI103: 0.6932781436 | BJ103: 1.929221734 | BK103: 0.6009681714 | BL103: 0.1728509254
G104: 95 | H104: 17.4 | I104: BUCK | J104: 1 | K104: 12 | L104: 9.195402299 | M104: 12 | N104: 0.6967331499 | O104: 0 | P104: 3.137611736 | Q104: 12.03413412 | R104: 0.5047381127 | S104: 0.1957346682 | T104: 0.7004727808 | U104: 0.9057504901 | V104: 0.001640767901 | W104: 0.001640767901 | X104: 5.531724655 | Y104: 0.06119995531 | Z104: 0.06119995531 | AA104: 10.04495706 | AB104: 0.575136625 | AC104: 0.1786465909 | AD104: 0 | AE104: 0.851758746 | AF104: 6.627157888 | AG104: 0.2503395635 | AH104: 0.24 | AI104: 0.5161838094 | AJ104: 0 | AK104: 0 | AL104: 0 | AM104: 0 | AN104: 0 | AO104: 12.03413412 | AP104: 0.2751587295 | AQ104: 0 | AR104: 0.2911830406 | AS104: 0.2751587295 | AT104: 0 | AU104: 0.2729727 | AV104: 0.1756768867 | AW104: 0.59328 | AX104: 0.036 | AY104: 0.066 | AZ104: 0.0435 | BA104: 0.102 | BB104: 3.566368687 | BC104: 144 | BD104: 0.9758321038 | BE104: 56.2365723 | BF104: 25.80919047 | BH104: 97.58321038 | BI104: 0.7004727808 | BJ104: 1.932098296 | BK104: 0.6062648004 | BL104: 0.1756768867
G105: 96 | H105: 17.52 | I105: BUCK | J105: 1 | K105: 12 | L105: 9.132420091 | M105: 12 | N105: 0.6919740437 | O105: 0 | P105: 3.186849651 | Q105: 12.03521226 | R105: 0.5048322091 | S105: 0.2028842173 | T105: 0.7077164264 | U105: 0.919964252 | V105: 0.00169266845 | W105: 0.00169266845 | X105: 5.556384788 | Y105: 0.06174682382 | Z105: 0.06174682382 | AA105: 10.01148858 | AB105: 0.5713104506 | AC105: 0.1798786364 | AD105: 0 | AE105: 0.8480940903 | AF105: 6.679553175 | AG105: 0.2543136545 | AH105: 0.24 | AI105: 0.5208031236 | AJ105: 0 | AK105: 0 | AL105: 0 | AM105: 0 | AN105: 0 | AO105: 12.03521226 | AP105: 0.275208035 | AQ105: 0 | AR105: 0.2912382567 | AS105: 0.275208035 | AT105: 0 | AU105: 0.2748627 | AV105: 0.1784657225 | AW105: 0.59328 | AX105: 0.036 | AY105: 0.066 | AZ105: 0.0435 | BA105: 0.102 | BB105: 3.579899812 | BC105: 144 | BD105: 0.9757426329 | BE105: 56.14783952 | BF105: 26.04015618 | BH105: 97.57426329 | BI105: 0.7077164264 | BJ105: 1.934998171 | BK105: 0.6115078146 | BL105: 0.1784657225
G106: 97 | H106: 17.64 | I106: BUCK | J106: 1 | K106: 12 | L106: 9.070294785 | M106: 12 | N106: 0.6872795115 | O106: =CHOOSE(J106,0,(Vout+(Rdson3+Rdcr)*L106-H106)/(Vout+(Rdson3-Rdson4-Rs)*L106),IF(H106>Vout,D_min_boost_exitBB_to_buck, (Vout-H106*D_max_buck_BB)/Vout)) -> 0 | P106: 3.235419481 | Q106: 12.03629213 | R106: 0.5049264656 | S106: 0.2100793132 | T106: 0.7150057787 | U106: 0.9339851541 | V106: 0.001744656536 | W106: 0.001744656536 | X106: 5.580043525 | Y106: 0.06227377147 | Z106: 0.06227377147 | AA106: 9.978365748 | AB106: 0.5675363631 | AC106: 0.1811106818 | AD106: 0 | AE106: 0.8445044407 | AF106: 6.73086512 | AG106: 0.258235908 | AH106: 0.24 | AI106: 0.5253697762 | AJ106: 0 | AK106: 0 | AL106: 0 | AM106: 0 | AN106: 0 | AO106: 12.03629213 | AP106: 0.2752574237 | AQ106: 0 | AR106: 0.2912935671 | AS106: 0.2752574237 | AT106: 0 | AU106: 0.2767527 | AV106: 0.181218181 | AW106: 0.59328 | AX106: 0.036 | AY106: 0.066 | AZ106: 0.0435 | BA106: 0.102 | BB106: 3.593442872 | BC106: 144 | BD106: 0.9756530995 | BE106: 56.06285704 | BF106: 26.26848881 | BH106: 97.56530995 | BI106: 0.7150057787 | BJ106: 1.937920484 | BK106: 0.6166981672 | BL106: 0.181218181
G107: 98 | H107: 17.76 | I107: BUCK | J107: 1 | K107: 12 | L107: 9.009009009 | M107: 12 | N107: 0.682648248 | O107: 0 | P107: 3.283334731 | Q107: 12.03737335 | R107: 0.5050208501 | S107: 0.2173168121 | T107: 0.7223376622 | U107: 0.9478170953 | V107: 0.001796714492 | W107: 0.001796714492 | X107: 5.602742604 | Y107: 0.06278144938 | Z107: 0.06278144938 | AA107: 9.945582422 | AB107: 0.5638132753 | AC107: 0.1823427273 | AD107: 0 | AE107: 0.8409880478 | AF107: 6.78113173 | AG107: 0.262107361 | AH107: 0.24 | AI107: 0.5298846969 | AJ107: 0 | AK107: 0 | AL107: 0 | AM107: 0 | AN107: 0 | AO107: 12.03737335 | AP107: 0.2753068788 | AQ107: 0 | AR107: 0.2913489529 | AS107: 0.2753068788 | AT107: 0 | AU107: 0.2786427 | AV107: 0.1839349901 | AW107: 0.59328 | AX107: 0.036 | AY107: 0.066 | AZ107: 0.0435 | BA107: 0.102 | BB107: 3.606995214 | BC107: 144 | BD107: 0.9755635212 | BE107: 55.98153739 | BF107: 26.49423484 | BH107: 97.55635212 | BI107: 0.7223376622 | BJ107: 1.940864398 | BK107: 0.6218367879 | BL107: 0.1839349901
G108: 99 | H108: 17.88 | I108: BUCK | J108: 1 | K108: 12 | L108: 8.948545861 | M108: 12 | N108: 0.6780789826 | O108: 0 | P108: 3.330608545 | Q108: 12.03845558 | R108: 0.5051153323 | S108: 0.2245936904 | T108: 0.7297090226 | U108: 0.96146387 | V108: 0.001848825546 | W108: 0.001848825546 | X108: 5.624521512 | Y108: 0.06327048448 | Z108: 0.06327048448 | AA108: 9.913132621 | AB108: 0.5601401307 | AC108: 0.1835747727 | AD108: 0 | AE108: 0.8375432168 | AF108: 6.830389038 | AG108: 0.2659290221 | AH108: 0.24 | AI108: 0.5343487925 | AJ108: 0 | AK108: 0 | AL108: 0 | AM108: 0 | AN108: 0 | AO108: 12.03845558 | AP108: 0.2753563843 | AQ108: 0 | AR108: 0.2914043965 | AS108: 0.2753563843 | AT108: 0 | AU108: 0.2805327 | AV108: 0.1866168576 | AW108: 0.59328 | AX108: 0.036 | AY108: 0.066 | AZ108: 0.0435 | BA108: 0.102 | BB108: 3.620554296 | BC108: 144 | BD108: 0.9754739148 | BE108: 55.90379584 | BF108: 26.71743962 | BH108: 97.54739148 | BI108: 0.7297090226 | BJ108: 1.943829106 | BK108: 0.6269245835 | BL108: 0.1866168576
G109: 100 | H109: 18 | I109: BUCK | J109: 1 | K109: 12 | L109: 8.888888889 | M109: 12 | N109: 0.6735704787 | O109: 0 | P109: 3.377253718 | Q109: 12.03953848 | R109: 0.5052098833 | S109: 0.2319070405 | T109: 0.7371169237 | U109: 0.9749291715 | V109: 0.001900973779 | W109: 0.001900973779 | X109: 5.645417636 | Y109: 0.06374148056 | Z109: 0.06374148056 | AA109: 9.881010517 | AB109: 0.5565159024 | AC109: 0.1848068182 | AD109: 0 | AE109: 0.8341683061 | AF109: 6.878671241 | AG109: 0.2697018729 | AH109: 0.24 | AI109: 0.5387629481 | AJ109: 0 | AK109: 0 | AL109: 0 | AM109: 0 | AN109: 0 | AO109: 12.03953848 | AP109: 0.2754059251 | AQ109: 0 | AR109: 0.2914598807 | AS109: 0.2754059251 | AT109: 0 | AU109: 0.2824227 | AV109: 0.1892644722 | AW109: 0.59328 | AX109: 0.036 | AY109: 0.066 | AZ109: 0.0435 | BA109: 0.102 | BB109: 3.634117685 | BC109: 144 | BD109: 0.9753842964 | BE109: 55.82955031 | BF109: 26.9381474 | BH109: 97.53842964 | BI109: 0.7371169237 | BJ109: 1.946813835 | BK109: 0.6319624391 | BL109: 0.1892644722
G110: 101 | H110: 18.12 | I110: BUCK | J110: 1 | K110: 12 | L110: 8.830022075 | M110: 12 | N110: 0.6691215324 | O110: 0 | P110: 3.423282706 | Q110: 12.04062175 | R110: =(Q110^2*Rdcr*(1+Ltc*Ta-Ltc*25))/(1-Q110^2*Rdcr*Ltc*ThetaCa) -> 0.5053044756 | S110: =7.759*10^-3*Fsw^0.9458*(0.00787*P110)^2.304 -> 0.2392540668 | T110: =R110+S110 -> 0.7445585424 | U110: 0.9882165959 | V110: =RCoutEsr*U110^2 -> 0.001953144081 | W110: =V110 -> 0.001953144081 | X110: 5.665466411 | Y110: =RCinEsr*X110^2 -> 0.06419501931 | Z110: =Y110 -> 0.06419501931 | AA110: 9.849210427 | AB110: 0.5529395924 | AC110: 0.1860388636 | AD110: 0 | AE110: 0.8308617248 | AF110: 6.926010829 | AG110: 0.2734268682 | AH110: 0.24 | AI110: 0.5431280273 | AJ110: 0 | AK110: 0 | AL110: 0 | AM110: 0 | AN110: 0 | AO110: 12.04062175 | AP110: 0.2754554869 | AQ110: 0 | AR110: 0.2915153896 | AS110: 0.2754554869 | AT110: 0 | AU110: 0.2843127 | AV110: 0.191878504 | AW110: 0.59328 | AX110: 0.036 | AY110: 0.066 | AZ110: 0.0435 | BA110: =SUM(AX110:AY110) -> 0.102 | BB110: =SUM(T110,W110,Z110,AE110,AI110,AN110,AR110, AT110,AU110,BA110,AV110,AW110) -> 3.647683051 | BC110: 144 | BD110: =BC110/(BC110+BB110) -> 0.9752946814 | BE110: 55.75872124 | BF110: 27.15640137 | BH110: =BD110*100 -> 97.52946814 | BI110: =T110 -> 0.7445585424 | BJ110: =AE110+AI110+AN110+AR110+AU110 -> 1.949817842 | BK110: =AI110+AU110*0.33 -> 0.6369512183 | BL110: =AV110 -> 0.191878504
G111: 102 | H111: 18.24 | I111: BUCK | J111: 1 | K111: 12 | L111: 8.771929825 | M111: 12 | N111: 0.6647309711 | O111: 0 | P111: 3.468707639 | Q111: 12.04170507 | R111: 0.5053990834 | S111: 0.2466320819 | T111: 0.7520311652 | U111: 1.001329645 | V111: 0.002005322115 | W111: 0.002005322115 | X111: 5.684701451 | Y111: 0.06463166118 | Z111: 0.06463166118 | AA111: 9.817726809 | AB111: 0.5494102303 | AC111: 0.1872709091 | AD111: 0 | AE111: 0.8276219305 | AF111: 6.972438695 | AG111: 0.2771049377 | AH111: 0.24 | AI111: 0.5474448732 | AJ111: 0 | AK111: 0 | AL111: 0 | AM111: 0 | AN111: 0 | AO111: 12.04170507 | AP111: 0.275505056 | AQ111: 0 | AR111: 0.2915709079 | AS111: 0.275505056 | AT111: 0 | AU111: 0.2862027 | AV111: 0.1944596054 | AW111: 0.59328 | AX111: 0.036 | AY111: 0.066 | AZ111: 0.0435 | BA111: 0.102 | BB111: 3.661248166 | BC111: 144 | BD111: 0.9752050845 | BE111: 55.69123152 | BF111: 27.37224366 | BH111: 97.52050845 | BI111: 0.7520311652 | BJ111: 1.952840412 | BK111: 0.6418917642 | BL111: 0.1944596054
G112: 103 | H112: 18.36 | I112: BUCK | J112: 1 | K112: 12 | L112: 8.71459695 | M112: 12 | N112: 0.6603976532 | O112: 0 | P112: 3.513540331 | Q112: 12.04278818 | R112: 0.5054936818 | S112: 0.2540385027 | T112: 0.7595321845 | U112: 1.014271728 | V112: 0.002057494277 | W112: 0.002057494277 | X112: 5.703154667 | Y112: 0.06505194632 | Z112: 0.06505194632 | AA112: 9.786554259 | AB112: 0.5459268723 | AC112: 0.1885029545 | AD112: 0 | AE112: 0.8244474279 | AF112: 7.017984246 | AG112: 0.2807369864 | AH112: 0.24 | AI112: 0.5517143089 | AJ112: 0 | AK112: 0 | AL112: 0 | AM112: 0 | AN112: 0 | AO112: 12.04278818 | AP112: 0.2755546196 | AQ112: 0 | AR112: 0.2916264211 | AS112: 0.2755546196 | AT112: 0 | AU112: 0.2880927 | AV112: 0.1970084115 | AW112: 0.59328 | AX112: 0.036 | AY112: 0.066 | AZ112: 0.0435 | BA112: 0.102 | BB112: 3.674810895 | BC112: 144 | BD112: 0.9751155199 | BE112: 55.6270064 | BF112: 27.58571545 | BH112: 97.51155199 | BI112: 0.7595321845 | BJ112: 1.955880858 | BK112: 0.6467848999 | BL112: 0.1970084115
G113: 104 | H113: 18.48 | I113: BUCK | J113: 1 | K113: 12 | L113: 8.658008658 | M113: 12 | N113: 0.6561204663 | O113: 0 | P113: 3.557792289 | Q113: 12.0438708 | R113: 0.5055882476 | S113: 0.2614708469 | T113: 0.7670590945 | U113: 1.027046168 | V113: 0.002109647661 | W113: 0.002109647661 | X113: 5.720856378 | Y113: 0.06545639541 | Z113: 0.06545639541 | AA113: 9.755687503 | AB113: 0.5424886003 | AC113: 0.189735 | AD113: 0 | AE113: 0.8213367669 | AF113: 7.062675497 | AG113: 0.2843238955 | AH113: 0.24 | AI113: 0.5559371381 | AJ113: 0 | AK113: 0 | AL113: 0 | AM113: 0 | AN113: 0 | AO113: 12.0438708 | AP113: 0.2756041653 | AQ113: 0 | AR113: 0.2916819154 | AS113: 0.2756041653 | AT113: 0 | AU113: 0.2899827 | AV113: 0.1995255407 | AW113: 0.59328 | AX113: 0.036 | AY113: 0.066 | AZ113: 0.0435 | BA113: 0.102 | BB113: 3.688369199 | BC113: 144 | BD113: 0.9750260009 | BE113: 55.56597335 | BF113: 27.7968569 | BH113: 97.50260009 | BI113: 0.7670590945 | BJ113: 1.95893852 | BK113: 0.6516314291 | BL113: 0.1995255407
G114: 105 | H114: 18.6 | I114: BUCK | J114: 1 | K114: 12 | L114: 8.602150538 | M114: 12 | N114: 0.6518983269 | O114: 0 | P114: 3.601474723 | Q114: 12.04495268 | R114: 0.5056827586 | S114: 0.2689267294 | T114: 0.774609488 | U114: 1.0396562 | V114: 0.00216177003 | W114: 0.00216177003 | X114: 5.737835414 | Y114: 0.06584551047 | Z114: 0.06584551047 | AA114: 9.725121398 | AB114: 0.5390945214 | AC114: 0.1909670455 | AD114: 0 | AE114: 0.8182885407 | AF114: 7.106539158 | AG114: 0.2878665232 | AH114: 0.24 | AI114: 0.5601141455 | AJ114: 0 | AK114: 0 | AL114: 0 | AM114: 0 | AN114: 0 | AO114: 12.04495268 | AP114: 0.2756536815 | AQ114: 0 | AR114: 0.291737378 | AS114: 0.2756536815 | AT114: 0 | AU114: 0.2918727 | AV114: 0.2020115952 | AW114: 0.59328 | AX114: 0.036 | AY114: 0.066 | AZ114: 0.0435 | BA114: 0.102 | BB114: 3.701921128 | BC114: 144 | BD114: 0.9749365404 | BE114: 55.50806203 | BF114: 28.00570728 | BH114: 97.49365404 | BI114: 0.774609488 | BJ114: 1.962012764 | BK114: 0.6564321365 | BL114: 0.2020115952
G115: 106 | H115: 18.72 | I115: BUCK | J115: 1 | K115: 12 | L115: 8.547008547 | M115: 12 | N115: 0.647730179 | O115: 0 | P115: 3.644598558 | Q115: 12.04603357 | R115: 0.5057771936 | S115: 0.2764038589 | T115: 0.7821810525 | U115: 1.052104979 | V115: 0.002213849775 | W115: 0.002213849775 | X115: 5.754119205 | Y115: 0.06621977566 | Z115: 0.06621977566 | AA115: 9.694850924 | AB115: 0.5357437663 | AC115: 0.1921990909 | AD115: 0 | AE115: 0.815301384 | AF115: 7.14960072 | AG115: 0.2913657056 | AH115: 0.24 | AI115: 0.5642460981 | AJ115: 0 | AK115: 0 | AL115: 0 | AM115: 0 | AN115: 0 | AO115: 12.04603357 | AP115: 0.2757031573 | AQ115: 0 | AR115: 0.2917927963 | AS115: 0.2757031573 | AT115: 0 | AU115: 0.2937627 | AV115: 0.2044671618 | AW115: 0.59328 | AX115: 0.036 | AY115: 0.066 | AZ115: 0.0435 | BA115: 0.102 | BB115: 3.715464818 | BC115: 144 | BD115: 0.9748471508 | BE115: 55.4532042 | BF115: 28.2123049 | BH115: 97.48471508 | BI115: 0.7821810525 | BJ115: 1.965102978 | BK115: 0.6611877891 | BL115: 0.2044671618
G116: 107 | H116: 18.84 | I116: BUCK | J116: 1 | K116: 12 | L116: 8.492569002 | M116: 12 | N116: 0.6436149936 | O116: 0 | P116: 3.687174441 | Q116: 12.04711326 | R116: 0.5058715328 | S116: 0.2839000342 | T116: 0.789771567 | U116: 1.064395578 | V116: 0.002265875893 | W116: 0.002265875893 | X116: 5.769733874 | Y116: 0.06657965796 | Z116: 0.06657965796 | AA116: 9.66487118 | AB116: 0.5324354891 | AC116: 0.1934311364 | AD116: 0 | AE116: 0.8123739721 | AF116: 7.191884524 | AG116: 0.2948222572 | AH116: 0.24 | AI116: 0.5683337447 | AJ116: 0 | AK116: 0 | AL116: 0 | AM116: 0 | AN116: 0 | AO116: 12.04711326 | AP116: 0.2757525821 | AQ116: 0 | AR116: 0.2918481588 | AS116: 0.2757525821 | AT116: 0 | AU116: 0.2956527 | AV116: 0.206892812 | AW116: 0.59328 | AX116: 0.036 | AY116: 0.066 | AZ116: 0.0435 | BA116: 0.102 | BB116: 3.728998488 | BC116: 144 | BD116: 0.9747578436 | BE116: 55.40133361 | BF116: 28.41668723 | BH116: 97.47578436 | BI116: 0.789771567 | BJ116: 1.968208576 | BK116: 0.6658991357 | BL116: 0.206892812
G117: 108 | H117: 18.96 | I117: BUCK | J117: 1 | K117: 12 | L117: 8.438818565 | M117: 12 | N117: 0.6395517677 | O117: 0 | P117: 3.72921275 | Q117: 12.04819152 | R117: 0.5059657571 | S117: 0.2914131416 | T117: 0.7973788987 | U117: 1.076530992 | V117: 0.002317837956 | W117: 0.002317837956 | X117: 5.784704309 | Y117: 0.06692560789 | Z117: 0.06692560789 | AA117: 9.635177384 | AB117: 0.5291688664 | AC117: 0.1946631818 | AD117: 0 | AE117: 0.8095050188 | AF117: 7.233413838 | AG117: 0.2982369718 | AH117: 0.24 | AI117: 0.5723778172 | AJ117: 0 | AK117: 0 | AL117: 0 | AM117: 0 | AN117: 0 | AO117: 12.04819152 | AP117: 0.2758019461 | AQ117: 0 | AR117: 0.2919034542 | AS117: 0.2758019461 | AT117: 0 | AU117: 0.2975427 | AV117: 0.209289103 | AW117: 0.59328 | AX117: 0.036 | AY117: 0.066 | AZ117: 0.0435 | BA117: 0.102 | BB117: 3.742520438 | BC117: 144 | BD117: 0.9746686301 | BE117: 55.35238594 | BF117: 28.61889086 | BH117: 97.46686301 | BI117: 0.7973788987 | BJ117: 1.97132899 | BK117: 0.6705669082 | BL117: 0.209289103
G118: 109 | H118: 19.08 | I118: BUCK | J118: 1 | K118: 12 | L118: 8.385744235 | M118: 12 | N118: 0.6355395232 | O118: 0 | P118: 3.770723602 | Q118: 12.04926815 | R118: 0.5060598488 | S118: 0.2989411512 | T118: 0.805001 | U118: 1.088514143 | V118: 0.00236972608 | W118: 0.00236972608 | X118: 5.799054242 | Y118: 0.06725806021 | Z118: 0.06725806021 | AA118: 9.605764865 | AB118: 0.5259430962 | AC118: 0.1958952273 | AD118: 0 | AE118: 0.8066932753 | AF118: 7.274210913 | AG118: 0.3016106231 | AH118: 0.24 | AI118: 0.5763790308 | AJ118: 0 | AK118: 0 | AL118: 0 | AM118: 0 | AN118: 0 | AO118: 12.04926815 | AP118: 0.2758512398 | AQ118: 0 | AR118: 0.2919586721 | AS118: 0.2758512398 | AT118: 0 | AU118: 0.2994327 | AV118: 0.2116565776 | AW118: 0.59328 | AX118: 0.036 | AY118: 0.066 | AZ118: 0.0435 | BA118: 0.102 | BB118: 3.756029042 | BC118: 144 | BD118: 0.9745795209 | BE118: 55.30629876 | BF118: 28.81895154 | BH118: 97.45795209 | BI118: 0.805001 | BJ118: 1.974463678 | BK118: 0.6751918218 | BL118: 0.2116565776
G119: 110 | H119: 19.2 | I119: BUCK | J119: 1 | K119: 12 | L119: 8.333333333 | M119: 12 | N119: 0.6315773067 | O119: 0 | P119: 3.811716862 | Q119: 12.05034296 | R119: 0.5061537907 | S119: 0.3064821141 | T119: 0.8126359048 | U119: 1.100347878 | V119: 0.002421530906 | W119: 0.002421530906 | X119: 5.812806315 | Y119: 0.06757743452 | Z119: 0.06757743452 | AA119: 9.57662906 | AB119: 0.5227573977 | AC119: 0.1971272727 | AD119: 0 | AE119: 0.8039375285 | AF119: 7.314297048 | AG119: 0.3049439654 | AH119: 0.24 | AI119: 0.5803380848 | AJ119: 0 | AK119: 0 | AL119: 0 | AM119: 0 | AN119: 0 | AO119: 12.05034296 | AP119: 0.2759004544 | AQ119: 0 | AR119: 0.2920138025 | AS119: 0.2759004544 | AT119: 0 | AU119: 0.3013227 | AV119: 0.2139957652 | AW119: 0.59328 | AX119: 0.036 | AY119: 0.066 | AZ119: 0.0435 | BA119: 0.102 | BB119: 3.769522751 | BC119: 144 | BD119: 0.9744905263 | BE119: 55.26301142 | BF119: 29.01690424 | BH119: 97.44905263 | BI119: 0.8126359048 | BJ119: 1.977612116 | BK119: 0.6797745758 | BL119: 0.2139957652
G120: 111 | H120: 19.32 | I120: BUCK | J120: 1 | K120: 12 | L120: 8.281573499 | M120: 12 | N120: 0.6276641884 | O120: 0 | P120: 3.852202151 | Q120: 12.05141576 | R120: 0.5062475669 | S120: 0.3140341594 | T120: 0.8202817263 | U120: 1.112034975 | V120: 0.002473243569 | W120: 0.002473243569 | X120: 5.825982143 | Y120: 0.06788413585 | Z120: 0.06788413585 | AA120: 9.547765515 | AB120: 0.5196110101 | AC120: 0.1983593182 | AD120: 0 | AE120: 0.8012366001 | AF120: 7.353692641 | AG120: 0.3082377341 | AH120: 0.24 | AI120: 0.5842556624 | AJ120: 0 | AK120: 0 | AL120: 0 | AM120: 0 | AN120: 0 | AO120: 12.05141576 | AP120: 0.2759495814 | AQ120: 0 | AR120: 0.292068836 | AS120: 0.2759495814 | AT120: 0 | AU120: 0.3032127 | AV120: 0.2163071818 | AW120: 0.59328 | AX120: 0.036 | AY120: 0.066 | AZ120: 0.0435 | BA120: 0.102 | BB120: 3.783000086 | BC120: 144 | BD120: 0.9744016559 | BE120: 55.222465 | BF120: 29.21278312 | BH120: 97.44016559 | BI120: 0.8202817263 | BJ120: 1.980773798 | BK120: 0.6843158534 | BL120: 0.2163071818
G121: 112 | H121: 19.44 | I121: BUCK | J121: 1 | K121: 12 | L121: 8.230452675 | M121: 12 | N121: 0.6237992611 | O121: 0 | P121: 3.892188853 | Q121: 12.05248638 | R121: 0.5063411621 | S121: 0.3215954914 | T121: 0.8279366535 | U121: 1.123578141 | V121: 0.002524855678 | W121: 0.002524855678 | X121: 5.838602371 | Y121: 0.0681785553 | Z121: 0.0681785553 | AA121: 9.519169877 | AB121: 0.5165031924 | AC121: 0.1995913636 | AD121: 0 | AE121: 0.7985893452 | AF121: 7.392417243 | AG121: 0.3114926463 | AH121: 0.24 | AI121: 0.5881324319 | AJ121: 0 | AK121: 0 | AL121: 0 | AM121: 0 | AN121: 0 | AO121: 12.05248638 | AP121: 0.2759986129 | AQ121: 0 | AR121: 0.2921237636 | AS121: 0.2759986129 | AT121: 0 | AU121: 0.3051027 | AV121: 0.2185913308 | AW121: 0.59328 | AX121: 0.036 | AY121: 0.066 | AZ121: 0.0435 | BA121: 0.102 | BB121: 3.796459636 | BC121: 144 | BD121: 0.974312919 | BE121: 55.18460226 | BF121: 29.40662159 | BH121: 97.4312919 | BI121: 0.8279366535 | BJ121: 1.983948241 | BK121: 0.6888163229 | BL121: 0.2185913308
G122: 113 | H122: 19.56 | I122: BUCK | J122: 1 | K122: 12 | L122: 8.1799591 | M122: 12 | N122: 0.6199816401 | O122: 0 | P122: 3.931686122 | Q122: 12.05355465 | R122: 0.5064345619 | S122: 0.3291643869 | T122: 0.8355989489 | U122: 1.13498002 | V122: 0.002576359294 | W122: 0.002576359294 | X122: 5.850686735 | Y122: 0.06846107054 | Z122: 0.06846107054 | AA122: 9.490837893 | AB122: 0.5134332223 | AC122: 0.2008234091 | AD122: 0 | AE122: 0.7959946511 | AF122: 7.430489603 | AG122: 0.3147094017 | AH122: 0.24 | AI122: 0.5919690466 | AJ122: 0 | AK122: 0 | AL122: 0 | AM122: 0 | AN122: 0 | AO122: 12.05355465 | AP122: 0.2760475413 | AQ122: 0 | AR122: 0.2921785769 | AS122: 0.2760475413 | AT122: 0 | AU122: 0.3069927 | AV122: 0.2208487029 | AW122: 0.59328 | AX122: 0.036 | AY122: 0.066 | AZ122: 0.0435 | BA122: 0.102 | BB122: 3.809900056 | BC122: 144 | BD122: 0.9742243243 | BE122: 55.14936756 | BF122: 29.59845233 | BH122: 97.42243243 | BI122: 0.8355989489 | BJ122: 1.987134975 | BK122: 0.6932766376 | BL122: 0.2208487029
G123: 114 | H123: 19.68 | I123: BUCK | J123: 1 | K123: 12 | L123: 8.130081301 | M123: 12 | N123: 0.6162104623 | O123: 0 | P123: 3.970702889 | Q123: 12.05462042 | R123: 0.5065277527 | S123: 0.3367391925 | T123: 0.8432669452 | U123: 1.146243191 | V123: 0.002627746905 | W123: 0.002627746905 | X123: 5.862254103 | Y123: 0.06873204634 | Z123: 0.06873204634 | AA123: 9.462765406 | AB123: 0.5104003961 | AC123: 0.2020554545 | AD123: 0 | AE123: 0.7934514361 | AF123: 7.467927712 | AG123: 0.3178886826 | AH123: 0.24 | AI123: 0.5957661456 | AJ123: 0 | AK123: 0 | AL123: 0 | AM123: 0 | AN123: 0 | AO123: 12.05462042 | AP123: 0.2760963596 | AQ123: 0 | AR123: 0.2922332678 | AS123: 0.2760963596 | AT123: 0 | AU123: 0.3088827 | AV123: 0.2230797773 | AW123: 0.59328 | AX123: 0.036 | AY123: 0.066 | AZ123: 0.0435 | BA123: 0.102 | BB123: 3.823320065 | BC123: 144 | BD123: 0.9741358802 | BE123: 55.1167068 | BF123: 29.78830728 | BH123: 97.41358802 | BI123: 0.8432669452 | BJ123: 1.99033355 | BK123: 0.6976974366 | BL123: 0.2230797773
G124: 115 | H124: 19.8 | I124: BUCK | J124: 1 | K124: 12 | L124: 8.080808081 | M124: 12 | N124: 0.6124848851 | O124: 0 | P124: 4.009247868 | Q124: 12.05568354 | R124: 0.5066207215 | S124: 0.344318322 | T124: 0.8509390435 | U124: 1.157370168 | V124: 0.002679011412 | W124: 0.002679011412 | X124: 5.873322531 | Y124: 0.0689918351 | Z124: 0.0689918351 | AA124: 9.434948355 | AB124: 0.5074040276 | AC124: 0.2032875 | AD124: 0 | AE124: 0.7909586484 | AF124: 7.504748847 | AG124: 0.3210311549 | AH124: 0.24 | AI124: 0.5995243541 | AJ124: 0 | AK124: 0 | AL124: 0 | AM124: 0 | AN124: 0 | AO124: 12.05568354 | AP124: 0.2761450608 | AQ124: 0 | AR124: 0.2922878289 | AS124: 0.2761450608 | AT124: 0 | AU124: 0.3107727 | AV124: 0.225285021 | AW124: 0.59328 | AX124: 0.036 | AY124: 0.066 | AZ124: 0.0435 | BA124: 0.102 | BB124: 3.836718442 | BC124: 144 | BD124: 0.9740475947 | BE124: 55.08656742 | BF124: 29.9762177 | BH124: 97.40475947 | BI124: 0.8509390435 | BJ124: 1.993543531 | BK124: 0.7020793451 | BL124: 0.225285021
G125: 116 | H125: 19.92 | I125: BUCK | J125: 1 | K125: 12 | L125: 8.032128514 | M125: 12 | N125: 0.6088040865 | O125: 0 | P125: 4.047329567 | Q125: 12.05674388 | R125: 0.5067134563 | S125: 0.3519002538 | T125: 0.85861371 | U125: 1.168363408 | V125: 0.002730146104 | W125: 0.002730146104 | X125: 5.883909301 | Y125: 0.06924077733 | Z125: 0.06924077733 | AA125: 9.407382766 | AB125: 0.5044434479 | AC125: 0.2045195455 | AD125: 0 | AE125: 0.7885152652 | AF125: 7.540969602 | AG125: 0.3241374685 | AH125: 0.24 | AI125: 0.6032442834 | AJ125: 0 | AK125: 0 | AL125: 0 | AM125: 0 | AN125: 0 | AO125: 12.05674388 | AP125: 0.2761936388 | AQ125: 0 | AR125: 0.2923422529 | AS125: 0.2761936388 | AT125: 0 | AU125: 0.3126627 | AV125: 0.2274648902 | AW125: 0.59328 | AX125: 0.036 | AY125: 0.066 | AZ125: 0.0435 | BA125: 0.102 | BB125: 3.850094025 | BC125: 144 | BD125: 0.9739594753 | BE125: 55.05889826 | BF125: 30.16221417 | BH125: 97.39594753 | BI125: 0.85861371 | BJ125: 1.996764502 | BK125: 0.7064229744 | BL125: 0.2274648902
G126: 117 | H126: 20.04 | I126: BUCK | J126: 1 | K126: 12 | L126: 7.984031936 | M126: 12 | N126: 0.605167264 | O126: 0 | P126: 4.084956288 | Q126: 12.05780131 | R126: 0.5068059454 | S126: 0.3594835289 | T126: 0.8662894743 | U126: 1.179225306 | V126: 0.002781144645 | W126: 0.002781144645 | X126: 5.894030967 | Y126: 0.06947920209 | Z126: 0.06947920209 | AA126: 9.380064758 | AB126: 0.5015180048 | AC126: 0.2057515909 | AD126: 0 | AE126: 0.7861202917 | AF126: 7.576605932 | AG126: 0.3272082575 | AH126: 0.24 | AI126: 0.6069265321 | AJ126: 0 | AK126: 0 | AL126: 0 | AM126: 0 | AN126: 0 | AO126: 12.05780131 | AP126: 0.2762420874 | AQ126: 0 | AR126: 0.2923965331 | AS126: 0.2762420874 | AT126: 0 | AU126: 0.3145527 | AV126: 0.2296198298 | AW126: 0.59328 | AX126: 0.036 | AY126: 0.066 | AZ126: 0.0435 | BA126: 0.102 | BB126: 3.863445708 | BC126: 144 | BD126: 0.9738715293 | BE126: 55.03364959 | BF126: 30.3463266 | BH126: 97.38715293 | BI126: 0.8662894743 | BJ126: 1.999996057 | BK126: 0.7107289231 | BL126: 0.2296198298
G127: 118 | H127: 20.16 | I127: BUCK | J127: 1 | K127: 12 | L127: 7.936507937 | M127: 12 | N127: 0.6015736342 | O127: 0 | P127: 4.122136135 | Q127: 12.05885569 | R127: 0.5068981781 | S127: 0.3670667484 | T127: 0.8739649265 | U127: 1.189958204 | V127: 0.002832001052 | W127: 0.002832001052 | X127: 5.903703389 | Y127: 0.06970742742 | Z127: 0.06970742742 | AA127: 9.352990533 | AB127: 0.4986270619 | AC127: 0.2069836364 | AD127: 0 | AE127: 0.7837727599 | AF127: 7.611673181 | AG127: 0.3302441411 | AH127: 0.24 | AI127: 0.6105716855 | AJ127: 0 | AK127: 0 | AL127: 0 | AM127: 0 | AN127: 0 | AO127: 12.05885569 | AP127: 0.276290401 | AQ127: 0 | AR127: 0.2924506632 | AS127: 0.276290401 | AT127: 0 | AU127: 0.3164427 | AV127: 0.2317502745 | AW127: 0.59328 | AX127: 0.036 | AY127: 0.066 | AZ127: 0.0435 | BA127: 0.102 | BB127: 3.876772438 | BC127: 144 | BD127: 0.9737837635 | BE127: 55.010773 | BF127: 30.52858427 | BH127: 97.37837635 | BI127: 0.8739649265 | BJ127: 2.003237809 | BK127: 0.7149977765 | BL127: 0.2317502745
G128: 119 | H128: 20.28 | I128: BUCK | J128: 1 | K128: 12 | L128: 7.889546351 | M128: 12 | N128: 0.5980224321 | O128: 0 | P128: 4.158877023 | Q128: 12.05990692 | R128: 0.5069901441 | S128: 0.374648571 | T128: 0.8816387151 | U128: 1.200564384 | V128: 0.002882709682 | W128: 0.002882709682 | X128: 5.912941772 | Y128: 0.06992576081 | Z128: 0.06992576081 | AA128: 9.326156376 | AB128: 0.4957699987 | AC128: 0.2082156818 | AD128: 0 | AE128: 0.781471728 | AF128: 7.646186114 | AG128: 0.3332457239 | AH128: 0.24 | AI128: 0.6141803168 | AJ128: 0 | AK128: 0 | AL128: 0 | AM128: 0 | AN128: 0 | AO128: 12.05990692 | AP128: 0.2763385742 | AQ128: 0 | AR128: 0.2925046371 | AS128: 0.2763385742 | AT128: 0 | AU128: 0.3183327 | AV128: 0.2338566484 | AW128: 0.59328 | AX128: 0.036 | AY128: 0.066 | AZ128: 0.0435 | BA128: 0.102 | BB128: 3.890073216 | BC128: 144 | BD128: 0.9736961844 | BE128: 54.9902214 | BF128: 30.70901584 | BH128: 97.36961844 | BI128: 0.8816387151 | BJ128: 2.006489382 | BK128: 0.7192301078 | BL128: 0.2338566484
G129: 120 | H129: 20.4 | I129: BUCK | J129: 1 | K129: 12 | L129: 7.843137255 | M129: 12 | N129: 0.5945129108 | O129: 0 | P129: 4.19518668 | Q129: 12.06095488 | R129: 0.5070818337 | S129: 0.3822277114 | T129: 0.889309545 | U129: 1.211046079 | V129: 0.002933265213 | W129: 0.002933265213 | X129: 5.921760699 | Y129: 0.07013449954 | Z129: 0.07013449954 | AA129: 9.299558655 | AB129: 0.4929462097 | AC129: 0.2094477273 | AD129: 0 | AE129: 0.7792162792 | AF129: 7.680158946 | AG129: 0.3362135962 | AH129: 0.24 | AI129: 0.6177529868 | AJ129: 0 | AK129: 0 | AL129: 0 | AM129: 0 | AN129: 0 | AO129: 12.06095488 | AP129: 0.276386602 | AQ129: 0 | AR129: 0.2925584491 | AS129: 0.276386602 | AT129: 0 | AU129: 0.3202227 | AV129: 0.2359393657 | AW129: 0.59328 | AX129: 0.036 | AY129: 0.066 | AZ129: 0.0435 | BA129: 0.102 | BB129: 3.903347091 | BC129: 144 | BD129: 0.9736087981 | BE129: 54.97194896 | BF129: 30.88764934 | BH129: 97.36087981 | BI129: 0.889309545 | BJ129: 2.009750415 | BK129: 0.7234264778 | BL129: 0.2359393657
G130: 121 | H130: 20.52 | I130: BUCK | J130: 1 | K130: 12 | L130: 7.797270955 | M130: 12 | N130: 0.5910443407 | O130: 0 | P130: 4.231072653 | Q130: 12.06199947 | R130: 0.5071732378 | S130: 0.3898029377 | T130: 0.8969761756 | U130: 1.221405468 | V130: 0.002983662633 | W130: 0.002983662633 | X130: 5.93017416 | Y130: 0.07033393113 | Z130: 0.07033393113 | AA130: 9.273193814 | AB130: 0.4901551041 | AC130: 0.2106797727 | AD130: 0 | AE130: 0.7770055212 | AF130: 7.713605369 | AG130: 0.3391483344 | AH130: 0.24 | AI130: 0.6212902448 | AJ130: 0 | AK130: 0 | AL130: 0 | AM130: 0 | AN130: 0 | AO130: 12.06199947 | AP130: 0.2764344795 | AQ130: 0 | AR130: 0.2926120939 | AS130: 0.2764344795 | AT130: 0 | AU130: 0.3221127 | AV130: 0.2379988312 | AW130: 0.59328 | AX130: 0.036 | AY130: 0.066 | AZ130: 0.0435 | BA130: 0.102 | BB130: 3.91659316 | BC130: 144 | BD130: 0.9735216105 | BE130: 54.95591106 | BF130: 31.06451224 | BH130: 97.35216105 | BI130: 0.8969761756 | BJ130: 2.01302056 | BK130: 0.7275874358 | BL130: 0.2379988312
G131: 122 | H131: 20.64 | I131: BUCK | J131: 1 | K131: 12 | L131: 7.751937984 | M131: 12 | N131: 0.5876160093 | O131: 0 | P131: 4.266542316 | Q131: 12.0630406 | R131: 0.5072643479 | S131: 0.39737307 | T131: 0.904637418 | U131: 1.231644677 | V131: 0.003033897223 | W131: 0.003033897223 | X131: 5.938195587 | Y131: 0.07052433365 | Z131: 0.07052433365 | AA131: 9.247058377 | AB131: 0.4873961052 | AC131: 0.2119118182 | AD131: 0 | AE131: 0.774838585 | AF131: 7.746538581 | AG131: 0.3420505019 | AH131: 0.24 | AI131: 0.6247926283 | AJ131: 0 | AK131: 0 | AL131: 0 | AM131: 0 | AN131: 0 | AO131: 12.0630406 | AP131: 0.2764822024 | AQ131: 0 | AR131: 0.2926655664 | AS131: 0.2764822024 | AT131: 0 | AU131: 0.3240027 | AV131: 0.2400354399 | AW131: 0.59328 | AX131: 0.036 | AY131: 0.066 | AZ131: 0.0435 | BA131: 0.102 | BB131: 3.929810569 | BC131: 144 | BD131: 0.9734346272 | BE131: 54.94206425 | BF131: 31.23963142 | BH131: 97.34346272 | BI131: 0.904637418 | BJ131: 2.01629948 | BK131: 0.7317135193 | BL131: 0.2400354399
G132: 123 | H132: 20.76 | I132: BUCK | J132: 1 | K132: 12 | L132: 7.707129094 | M132: 12 | N132: 0.5842272203 | O132: 0 | P132: 4.301602871 | Q132: 12.06407818 | R132: 0.5073551559 | S132: 0.4049369779 | T132: 0.9122921339 | U132: 1.241765788 | V132: 0.003083964544 | W132: 0.003083964544 | X132: 5.945837876 | Y132: 0.0707059761 | Z132: 0.0707059761 | AA132: 9.221148938 | AB132: 0.4846686501 | AC132: 0.2131438636 | AD132: 0 | AE132: 0.7727146246 | AF132: 7.778971303 | AG132: 0.3449206488 | AH132: 0.24 | AI132: 0.628260664 | AJ132: 0 | AK132: 0 | AL132: 0 | AM132: 0 | AN132: 0 | AO132: 12.06407818 | AP132: 0.2765297663 | AQ132: 0 | AR132: 0.292718862 | AS132: 0.2765297663 | AT132: 0 | AU132: 0.3258927 | AV132: 0.2420495781 | AW132: 0.59328 | AX132: 0.036 | AY132: 0.066 | AZ132: 0.0435 | BA132: 0.102 | BB132: 3.942998503 | BC132: 144 | BD132: 0.9733478533 | BE132: 54.93036623 | BF132: 31.4130332 | BH132: 97.33478533 | BI132: 0.9122921339 | BJ132: 2.019586851 | BK132: 0.735805255 | BL132: 0.2420495781
G133: 124 | H133: 20.88 | I133: BUCK | J133: 1 | K133: 12 | L133: 7.662835249 | M133: 12 | N133: 0.5808772936 | O133: 0 | P133: 4.336261356 | Q133: 12.06511211 | R133: 0.5074456543 | S133: 0.412493579 | T133: 0.9199392333 | U133: 1.25177083 | V133: 0.003133860424 | W133: 0.003133860424 | X133: 5.953113419 | Y133: 0.07087911875 | Z133: 0.07087911875 | AA133: 9.195462167 | AB133: 0.4819721894 | AC133: 0.2143759091 | AD133: 0 | AE133: 0.7706328156 | AF133: 7.810915808 | AG133: 0.3477593128 | AH133: 0.24 | AI133: 0.6316948674 | AJ133: 0 | AK133: 0 | AL133: 0 | AM133: 0 | AN133: 0 | AO133: 12.06511211 | AP133: 0.2765771674 | AQ133: 0 | AR133: 0.2927719762 | AS133: 0.2765771674 | AT133: 0 | AU133: 0.3277827 | AV133: 0.244041623 | AW133: 0.59328 | AX133: 0.036 | AY133: 0.066 | AZ133: 0.0435 | BA133: 0.102 | BB133: 3.956156195 | BC133: 144 | BD133: 0.9732612938 | BE133: 54.92077578 | BF133: 31.58474337 | BH133: 97.32612938 | BI133: 0.9199392333 | BJ133: 2.022882359 | BK133: 0.7398631584 | BL133: 0.244041623
G134: 125 | H134: 21 | I134: BUCK | J134: 1 | K134: 12 | L134: 7.619047619 | M134: 12 | N134: 0.5775655644 | O134: 0 | P134: 4.370524646 | Q134: 12.06614232 | R134: 0.5075358358 | S134: 0.420041837 | T134: 0.9275776728 | U134: 1.261661791 | V134: 0.003183580947 | W134: 0.003183580947 | X134: 5.960034121 | Y134: 0.07104401345 | Z134: 0.07104401345 | AA134: 9.1699948 | AB134: 0.4793061865 | AC134: 0.2156079545 | AD134: 0 | AE134: 0.7685923551 | AF134: 7.842383938 | AG134: 0.3505670192 | AH134: 0.24 | AI134: 0.6350957436 | AJ134: 0 | AK134: 0 | AL134: 0 | AM134: 0 | AN134: 0 | AO134: 12.06614232 | AP134: 0.2766244019 | AQ134: 0 | AR134: 0.2928249047 | AS134: 0.2766244019 | AT134: 0 | AU134: 0.3296727 | AV134: 0.2460119433 | AW134: 0.59328 | AX134: 0.036 | AY134: 0.066 | AZ134: 0.0435 | BA134: 0.102 | BB134: 3.969282914 | BC134: 144 | BD134: 0.9731749534 | BE134: 54.91325276 | BF134: 31.75478718 | BH134: 97.31749534 | BI134: 0.9275776728 | BJ134: 2.026185703 | BK134: 0.7438877346 | BL134: 0.2460119433
G135: 126 | H135: 21.12 | I135: BUCK | J135: 1 | K135: 12 | L135: 7.575757576 | M135: 12 | N135: 0.5742913832 | O135: 0 | P135: 4.404399464 | Q135: 12.06716873 | R135: 0.5076256938 | S135: 0.42758076 | T135: 0.9352064538 | U135: 1.271440608 | V135: 0.00323312244 | W135: 0.00323312244 | X135: 5.966611432 | Y135: 0.07120090396 | Z135: 0.07120090396 | AA135: 9.144743647 | AB135: 0.4766701173 | AC135: 0.21684 | AD135: 0 | AE135: 0.7665924609 | AF135: 7.873387127 | AG135: 0.3533442817 | AH135: 0.24 | AI135: 0.6384637874 | AJ135: 0 | AK135: 0 | AL135: 0 | AM135: 0 | AN135: 0 | AO135: 12.06716873 | AP135: 0.2766714663 | AQ135: 0 | AR135: 0.2928776437 | AS135: 0.2766714663 | AT135: 0 | AU135: 0.3315627 | AV135: 0.2479608994 | AW135: 0.59328 | AX135: 0.036 | AY135: 0.066 | AZ135: 0.0435 | BA135: 0.102 | BB135: 3.982377972 | BC135: 144 | BD135: 0.9730888365 | BE135: 54.90775805 | BF135: 31.92318937 | BH135: 97.30888365 | BI135: 0.9352064538 | BJ135: 2.029496592 | BK135: 0.7478794784 | BL135: 0.2479608994
G136: 127 | H136: 21.24 | I136: BUCK | J136: 1 | K136: 12 | L136: 7.532956685 | M136: 12 | N136: 0.571054115 | O136: 0 | P136: 4.437892379 | Q136: 12.06819128 | R136: 0.5077152221 | S136: 0.435109399 | T136: 0.9428246211 | U136: 1.28110918 | V136: 0.003282481462 | W136: 0.003282481462 | X136: 5.972856361 | Y136: 0.07135002621 | Z136: 0.07135002621 | AA136: 9.119705578 | AB136: 0.47406347 | AC136: 0.2180720455 | AD136: 0 | AE136: 0.7646323705 | AF136: 7.903936418 | AG136: 0.3560916021 | AH136: 0.24 | AI136: 0.6417994834 | AJ136: 0 | AK136: 0 | AL136: 0 | AM136: 0 | AN136: 0 | AO136: 12.06819128 | AP136: 0.2767183574 | AQ136: 0 | AR136: 0.2929301896 | AS136: 0.2767183574 | AT136: 0 | AU136: 0.3334527 | AV136: 0.2498888436 | AW136: 0.59328 | AX136: 0.036 | AY136: 0.066 | AZ136: 0.0435 | BA136: 0.102 | BB136: 3.995440716 | BC136: 144 | BD136: 0.9730029473 | BE136: 54.90425352 | BF136: 32.08997417 | BH136: 97.30029473 | BI136: 0.9428246211 | BJ136: 2.032814743 | BK136: 0.7518388744 | BL136: 0.2498888436
G137: 128 | H137: =VIN_min+(VIN_max-VIN_min)*(G137/200) -> 21.36 | I137: =IF(H137>VIN_BB_to_buck, "BUCK", IF(H137<VIN_boost_to_BB,"BOOST","BUCK-BST")) -> BUCK | J137: 1 | K137: =Iout -> 12 | L137: =Vout*K137/(H137*Efficiency) -> 7.490636704 | M137: =Iout/(1-O137) -> 12 | N137: =CHOOSE(J137,(Vout+(Rdson2+Rs+Rdcr)*K137)/(H137+(Rs+Rdson2-Rdson1)*K137),1,IF(H137<Vout,D_max_buck_BB,Vout/H137*(1-D_min_boost_exitBB_to_buck))) -> 0.567853139 | O137: 0 | P137: =MAX(0, CHOOSE(J137, (H137-(Rdson1+Rdcr)*K137-Vout)*N137/(Fsw*Lf), (H137-(Rdson4+Rdcr+Rs)*L137)*O137/(Fsw*Lf), IF(H137<Vout, (H137-(Rdson4+Rdcr+Rs)*L137)*O137/(0.5*Fsw*Lf),(H137-(Rdson1+Rdcr)*K137-Vout)*N137/(0.5*Fsw*Lf)))) -> 4.471009813 | Q137: =CHOOSE(J137, SQRT(K137^2+(P137^2)/12), SQRT(L137^2+(P137^2)/12), SQRT(M137^2+(P137^2)/12)) -> 12.06920989 | R137: 0.5078044148 | S137: 0.4426268459 | T137: 0.9504312608 | U137: =IF(H137>Vout, P137/SQRT(12), SQRT(O137/(1-O137))*SQRT(K137^2+(P137^2)/12)) -> 1.29066936 | V137: 0.003331654791 | W137: 0.003331654791 | X137: =IF(H137>Vout, SQRT(N137*(1-N137))*SQRT(K137^2+(P137^2)/12), P137/SQRT(12)) -> 5.978779501 | Y137: 0.07149160864 | Z137: 0.07149160864 | AA137: =CHOOSE(J137, SQRT(N137)*SQRT(K137^2+(P137^2)/12), SQRT(L137^2+(P137^2)/12), SQRT(N137)*SQRT(M137^2+(P137^2)/12)) -> 9.094877533 | AB137: =Rdson1*AA137^2 -> 0.4714857448 | AC137: =CHOOSE(J137, (H137*K137/2)*(Fsw)*(Tr_buck+Tf_buck), 0, (H137*M137/2)*(Fsw/2)*(Tr_buck+Tf_buck)) -> 0.2193040909 | AD137: =IF(H137>Vout, IF(K137>P137/2,0,ABS(K137-P137/2)*Vsd_Q1*Deadtime*Fsw),0) -> 0 | AE137: =(AD137+AC137+AB137*(1+RdsonTopTc*Ta-RdsonTopTc*25))/(1-AB137*RdsonTopTc*ThetaJA_Q1) -> 0.7627113406 | AF137: =CHOOSE(J137, SQRT((1-N137))*SQRT(K137^2+(P137^2)/12), 0, SQRT((1-N137))*SQRT(M137^2+(P137^2)/12)) -> 7.934042479 | AG137: =Rdson2*AF137^2 -> 0.3588094714 | AH137: =CHOOSE(J137, IF(K137<P137/2,Deadtime*Fsw*IF(VfdSky_Q2>0,0,Vsd_Q2)*(K137+P137/2),2*Deadtime*Fsw*IF(VfdSky_Q2>0,0,Vsd_Q2)*K137),0, IF(K137<P137/2,Deadtime*Fsw/2*IF(VfdSky_Q2>0,0,Vsd_Q2)*(K137+P137/2),2*Deadtime*Fsw/2*IF(VfdSky_Q2>0,0,Vsd_Q2)*K137)) -> 0.24 | AI137: =(AH137+AG137*(1+RdsonBotTc*Ta-RdsonBotTc*25))/(1-AG137*RdsonBotTc*ThetaJA_Q2) -> 0.6451033066 | AJ137: =CHOOSE(J137, 0, SQRT(O137)*SQRT(L137^2+(P137^2)/12), SQRT(O137)*SQRT(M137^2+(P137^2)/12)) -> 0 | AK137: =Rdson4*AJ137^2 -> 0 | AL137: =CHOOSE(J137, 0, (Vout*L137/2)*(Fsw)*(Tr_boost+Tf_boost), (Vout*Iout/2)*(Fsw/2)*(Tr_boost+Tf_boost)) -> 0 | AM137: =IF(H137>Vout, 0, IF(L137>P137/2,0,ABS(L137-P137/2)*Vsd_Q4*Deadtime*Fsw)) -> 0 | AN137: =(AM137+AL137+AK137*(1+RdsonTopTc*Ta-RdsonTopTc*25))/(1-AK137*RdsonTopTc*ThetaJA_Q4) -> 0 | AO137: =CHOOSE(J137, SQRT(Iout^2+(P137^2)/12), SQRT(1-O137)*SQRT(L137^2+(P137^2)/12), SQRT(1-O137)*SQRT(M137^2+(P137^2)/12)) -> 12.06920989 | AP137: =Rdson3*AO137^2 -> 0.2767650721 | AQ137: =CHOOSE(J137, 0, IF(L137<P137/2,Deadtime*Fsw*IF(VfdSky_Q3>0,0,Vsd_Q3)*(L137+P137/2), 2*Deadtime*Fsw*IF(VfdSky_Q3>0,0,Vsd_Q3)*L137), IF(L137<P137/2,Deadtime*Fsw/2*IF(VfdSky_Q3>0,0,Vsd_Q3)*(L137+P137/2), 2*Deadtime*Fsw/2*IF(VfdSky_Q3>0,0,Vsd_Q3)*L137)) -> 0 | AR137: =(AQ137+AP137*(1+RdsonBotTc*Ta-RdsonBotTc*25))/(1-AP137*RdsonBotTc*ThetaJA_Q3) -> 0.2929825387 | AS137: =CHOOSE(J137, Rdson3*Q137^2, Rdson1*Q137^2, 0) -> 0.2767650721 | AT137: =CHOOSE(J137, 2*Deadtime*Fsw*IF(VfdSky_Q2>0,VfdSky_Q2,0)*K137, 2*Deadtime*Fsw*IF(VfdSky_Q3>0,VfdSky_Q3,0)*L137, 2*Deadtime*Fsw/2*IF(VfdSky_Q2>0,VfdSky_Q2,0)*K137+2*Deadtime*Fsw/2*IF(VfdSky_Q3>0,VfdSky_Q3,0)*L137) -> 0 | AU137: =CHOOSE(J137, IF(QrrSky_Q2>0,QrrSky_Q2,Qrr_Q2)*Fsw*(H137-K137*Rdson1), IF(QrrSky_Q3>0,QrrSky_Q3,Qrr_Q3)*Fsw*Vout, IF(QrrSky_Q2>0,QrrSky_Q2,Qrr_Q2)*Fsw/2*(H137-K137*Rdson1)+IF(QrrSky_Q3>0,QrrSky_Q3,Qrr_Q3)*Fsw/2*Vout) -> 0.3353427 | AV137: =CHOOSE(J137, Rs*AF137^2, Rs*AJ137^2, Rs*(AF137^2+AJ137^2)) -> 0.2517961202 | AW137: =Rshunt_std/1000*Iout^2 -> 0.59328 | AX137: =IF(Vout>8, Iq*Vout, Iq*H137) -> 0.036 | AY137: =CHOOSE(J137, (Qg_Q1+Qg_Q2)*Fsw, (Qg_Q3+Qg_Q4)*Fsw, (Qg_Q1+Qg_Q2+Qg_Q3+Qg_Q4)*Fsw/2)*IF(Vout>8, Vout, H137) -> 0.066 | AZ137: =(Vin-Vdd)*Fsw*(Qg_Q1+Qg_Q2)+(RdsonDRT+RdsonDRT2)*Fsw*Qg_Q1*Vdd/(RdsonDRT+2*Rgate1+RdsonDRT2)+(RdsonDRB+RdsonDRB2)*Fsw*Qg_Q2*Vdd/(RdsonDRB+2*Rgate2+RdsonDRB2) -> 0.0435 | BA137: 0.102 | BB137: 4.00847053 | BC137: =Vout*K137 -> 144 | BD137: 0.9729172897 | BE137: =IF(H137>Vout,ThetaJA_Q1*(AE137+AU137),ThetaJA_Q4*(AN137+AU137)) -> 54.90270203 | BF137: =IF(H137>Vout, AI137*ThetaJA_Q2, ThetaJA_Q3*AR137) -> 32.25516533 | BH137: 97.29172897 | BI137: 0.9504312608 | BJ137: 2.036139886 | BK137: 0.7557663976 | BL137: 0.2517961202
G138: 129 | H138: 21.48 | I138: BUCK | J138: =IF(I138="BOOST",2, IF(I138="BUCK", 1,3)) -> 1 | K138: 12 | L138: 7.448789572 | M138: 12 | N138: 0.5646878484 | O138: =CHOOSE(J138,0,(Vout+(Rdson3+Rdcr)*L138-H138)/(Vout+(Rdson3-Rdson4-Rs)*L138),IF(H138>Vout,D_min_boost_exitBB_to_buck, (Vout-H138*D_max_buck_BB)/Vout)) -> 0 | P138: 4.503758045 | Q138: 12.07022451 | R138: 0.5078932665 | S138: 0.4501322327 | T138: 0.9580254992 | U138: 1.30012296 | V138: 0.003380639421 | W138: 0.003380639421 | X138: 5.984391047 | Y138: 0.0716258724 | Z138: 0.0716258724 | AA138: 9.070256511 | AB138: 0.4689364531 | AC138: 0.2205361364 | AD138: 0 | AE138: 0.7608286468 | AF138: 7.963715624 | AG138: 0.3614983693 | AH138: 0.24 | AI138: 0.6483757226 | AJ138: 0 | AK138: 0 | AL138: 0 | AM138: 0 | AN138: 0 | AO138: 12.07022451 | AP138: 0.2768116074 | AQ138: 0 | AR138: 0.2930346881 | AS138: 0.2768116074 | AT138: 0 | AU138: 0.3372327 | AV138: 0.2536830662 | AW138: 0.59328 | AX138: 0.036 | AY138: 0.066 | AZ138: 0.0435 | BA138: 0.102 | BB138: 4.021466835 | BC138: 144 | BD138: 0.9728318674 | BE138: 54.90306734 | BF138: 32.41878613 | BH138: 97.28318674 | BI138: 0.9580254992 | BJ138: 2.039471757 | BK138: 0.7596625136 | BL138: 0.2536830662
G139: 130 | H139: 21.6 | I139: BUCK | J139: 1 | K139: 12 | L139: 7.407407407 | M139: 12 | N139: 0.5615576497 | O139: 0 | P139: 4.536143214 | Q139: 12.07123508 | R139: 0.507981772 | S139: 0.457624729 | T139: 0.965606501 | U139: 1.309471753 | V139: 0.003429432542 | W139: 0.003429432542 | X139: 5.989700815 | Y139: 0.0717530317 | Z139: 0.0717530317 | AA139: 9.045839574 | AB139: 0.4664151175 | AC139: 0.2217681818 | AD139: 0 | AE139: 0.7589835827 | AF139: 7.992965825 | AG139: 0.3641587653 | AH139: 0.24 | AI139: 0.6516171874 | AJ139: 0 | AK139: 0 | AL139: 0 | AM139: 0 | AN139: 0 | AO139: 12.07123508 | AP139: 0.2768579609 | AQ139: 0 | AR139: 0.2930866345 | AS139: 0.2768579609 | AT139: 0 | AU139: 0.3391227 | AV139: 0.2555500107 | AW139: 0.59328 | AX139: 0.036 | AY139: 0.066 | AZ139: 0.0435 | BA139: 0.102 | BB139: 4.034429081 | BC139: 144 | BD139: 0.972746684 | BE139: 54.90531413 | BF139: 32.58085937 | BH139: 97.2746684 | BI139: 0.965606501 | BJ139: 2.042810105 | BK139: 0.7635276784 | BL139: 0.2555500107
G140: 131 | H140: 21.72 | I140: BUCK | J140: 1 | K140: 12 | L140: 7.366482505 | M140: 12 | N140: 0.5584619625 | O140: 0 | P140: 4.568171325 | Q140: 12.07224154 | R140: 0.5080699266 | S140: 0.4651035417 | T140: 0.9731734683 | U140: 1.318717472 | V140: 0.003478031542 | W140: 0.003478031542 | X140: 5.994718257 | Y140: 0.07187329396 | Z140: 0.07187329396 | AA140: 9.021623843 | AB140: 0.4639212715 | AC140: 0.2230002273 | AD140: 0 | AE140: 0.7571754592 | AF140: 8.021802728 | AG140: 0.3667911183 | AH140: 0.24 | AI140: 0.6548281481 | AJ140: 0 | AK140: 0 | AL140: 0 | AM140: 0 | AN140: 0 | AO140: 12.07224154 | AP140: 0.27690413 | AQ140: 0 | AR140: 0.2931383753 | AS140: 0.27690413 | AT140: 0 | AU140: 0.3410127 | AV140: 0.257397276 | AW140: 0.59328 | AX140: 0.036 | AY140: 0.066 | AZ140: 0.0435 | BA140: 0.102 | BB140: 4.047356752 | BC140: 144 | BD140: 0.9726617426 | BE140: 54.90940796 | BF140: 32.74140741 | BH140: 97.26617426 | BI140: 0.9731734683 | BJ140: 2.046154683 | BK140: 0.7673623391 | BL140: 0.257397276
G141: 132 | H141: 21.84 | I141: BUCK | J141: 1 | K141: 12 | L141: 7.326007326 | M141: 12 | N141: 0.5554002193 | O141: 0 | P141: 4.59984825 | Q141: 12.07324385 | R141: 0.5081577258 | S141: 0.4725679127 | T141: 0.9807256385 | U141: 1.327861813 | V141: 0.003526433988 | W141: 0.003526433988 | X141: 5.999452481 | Y141: 0.07198686014 | Z141: 0.07198686014 | AA141: 8.997606498 | AB141: 0.4614544593 | AC141: 0.2242322727 | AD141: 0 | AE141: 0.7554036044 | AF141: 8.050235668 | AG141: 0.3693958776 | AH141: 0.24 | AI141: 0.6580090432 | AJ141: 0 | AK141: 0 | AL141: 0 | AM141: 0 | AN141: 0 | AO141: 12.07324385 | AP141: 0.2769501123 | AQ141: 0 | AR141: 0.2931899079 | AS141: 0.2769501123 | AT141: 0 | AU141: 0.3429027 | AV141: 0.2592251772 | AW141: 0.59328 | AX141: 0.036 | AY141: 0.066 | AZ141: 0.0435 | BA141: 0.102 | BB141: 4.060249365 | BC141: 144 | BD141: 0.9725770463 | BE141: 54.91531522 | BF141: 32.90045216 | BH141: 97.25770463 | BI141: 0.9807256385 | BJ141: 2.049505255 | BK141: 0.7711669342 | BL141: 0.2592251772
G142: 133 | H142: 21.96 | I142: BUCK | J142: 1 | K142: 12 | L142: 7.285974499 | M142: 12 | N142: 0.5523718648 | O142: 0 | P142: 4.631179735 | Q142: 12.07424196 | R142: 0.5082451656 | S142: 0.4800171181 | T142: 0.9882622837 | U142: 1.336906433 | V142: 0.003574637623 | W142: 0.003574637623 | X142: 6.003912263 | Y142: 0.07209392493 | Z142: 0.07209392493 | AA142: 8.973784773 | AB142: 0.459014235 | AC142: 0.2254643182 | AD142: 0 | AE142: 0.7536673627 | AF142: 8.078273681 | AG142: 0.3719734823 | AH142: 0.24 | AI142: 0.6611603022 | AJ142: 0 | AK142: 0 | AL142: 0 | AM142: 0 | AN142: 0 | AO142: 12.07424196 | AP142: 0.2769959057 | AQ142: 0 | AR142: 0.2932412297 | AS142: 0.2769959057 | AT142: 0 | AU142: 0.3447927 | AV142: 0.2610340226 | AW142: 0.59328 | AX142: 0.036 | AY142: 0.066 | AZ142: 0.0435 | BA142: 0.102 | BB142: 4.073106464 | BC142: 144 | BD142: 0.972492598 | BE142: 54.92300314 | BF142: 33.05801511 | BH142: 97.2492598 | BI142: 0.9882622837 | BJ142: 2.052861595 | BK142: 0.7749418932 | BL142: 0.2610340226
G143: 134 | H143: 22.08 | I143: BUCK | J143: 1 | K143: 12 | L143: 7.246376812 | M143: 12 | N143: 0.5493763557 | O143: 0 | P143: 4.662171399 | Q143: 12.07523582 | R143: 0.5083322421 | S143: 0.4874504668 | T143: 0.995782709 | U143: 1.345852956 | V143: 0.003622640359 | W143: 0.003622640359 | X143: 6.008106064 | Y143: 0.07219467695 | Z143: 0.07219467695 | AA143: 8.95015596 | AB143: 0.4566001627 | AC143: 0.2266963636 | AD143: 0 | AE143: 0.7519660946 | AF143: 8.105925516 | AG143: 0.3745243623 | AH143: 0.24 | AI143: 0.6642823468 | AJ143: 0 | AK143: 0 | AL143: 0 | AM143: 0 | AN143: 0 | AO143: 12.07523582 | AP143: 0.2770415083 | AQ143: 0 | AR143: 0.2932923387 | AS143: 0.2770415083 | AT143: 0 | AU143: 0.3466827 | AV143: 0.2628241139 | AW143: 0.59328 | AX143: 0.036 | AY143: 0.066 | AZ143: 0.0435 | BA143: 0.102 | BB143: 4.08592762 | BC143: 144 | BD143: 0.9724084004 | BE143: 54.93243973 | BF143: 33.21411734 | BH143: 97.24084004 | BI143: 0.995782709 | BJ143: 2.05622348 | BK143: 0.7786876378 | BL143: 0.2628241139
G144: 135 | H144: 22.2 | I144: BUCK | J144: 1 | K144: 12 | L144: 7.207207207 | M144: 12 | N144: 0.5464131607 | O144: 0 | P144: 4.692828741 | Q144: 12.07622541 | R144: 0.5084189519 | S144: 0.4948672993 | T144: 1.003286251 | U144: 1.354702968 | V144: 0.003670440265 | W144: 0.003670440265 | X144: 6.012042041 | Y144: 0.072289299 | Z144: 0.072289299 | AA144: 8.926717402 | AB144: 0.4542118164 | AC144: 0.2279284091 | AD144: 0 | AE144: 0.7502991758 | AF144: 8.13319965 | AG144: 0.3770489384 | AH144: 0.24 | AI144: 0.6673755899 | AJ144: 0 | AK144: 0 | AL144: 0 | AM144: 0 | AN144: 0 | AO144: 12.07622541 | AP144: 0.2770869183 | AQ144: 0 | AR144: 0.2933432327 | AS144: 0.2770869183 | AT144: 0 | AU144: 0.3485727 | AV144: 0.2645957462 | AW144: 0.59328 | AX144: 0.036 | AY144: 0.066 | AZ144: 0.0435 | BA144: 0.102 | BB144: 4.098712435 | BC144: 144 | BD144: 0.972324456 | BE144: 54.94359379 | BF144: 33.36877949 | BH144: 97.2324456 | BI144: 1.003286251 | BJ144: 2.059590698 | BK144: 0.7824045809 | BL144: 0.2645957462
G145: 136 | H145: 22.32 | I145: BUCK | J145: 1 | K145: 12 | L145: 7.168458781 | M145: 12 | N145: 0.5434817597 | O145: 0 | P145: 4.723157141 | Q145: 12.07721068 | R145: 0.5085052916 | S145: 0.5022669865 | T145: 1.010772278 | U145: 1.363458023 | V145: 0.003718035563 | W145: 0.003718035563 | X145: 6.015728064 | Y145: 0.07237796827 | Z145: 0.07237796827 | AA145: 8.903466496 | AB145: 0.4518487792 | AC145: 0.2291604545 | AD145: 0 | AE145: 0.7486659971 | AF145: 8.160104297 | AG145: 0.3795476222 | AH145: 0.24 | AI145: 0.6704404369 | AJ145: 0 | AK145: 0 | AL145: 0 | AM145: 0 | AN145: 0 | AO145: 12.07721068 | AP145: 0.2771321338 | AQ145: 0 | AR145: 0.2933939098 | AS145: 0.2771321338 | AT145: 0 | AU145: 0.3504627 | AV145: 0.2663492085 | AW145: 0.59328 | AX145: 0.036 | AY145: 0.066 | AZ145: 0.0435 | BA145: 0.102 | BB145: 4.111460534 | BC145: 144 | BD145: 0.9722407671 | BE145: 54.95643485 | BF145: 33.52202185 | BH145: 97.22407671 | BI145: 1.010772278 | BJ145: 2.062963044 | BK145: 0.7860931279 | BL145: 0.2663492085
G146: 137 | H146: 22.44 | I146: BUCK | J146: 1 | K146: 12 | L146: 7.130124777 | M146: 12 | N146: 0.5405816435 | O146: 0 | P146: 4.753161866 | Q146: 12.0781916 | R146: 0.5085912584 | S146: 0.5096489284 | T146: 1.018240187 | U146: 1.372119641 | V146: 0.00376542462 | W146: 0.00376542462 | X146: 6.019171724 | Y146: 0.07246085649 | Z146: 0.07246085649 | AA146: 8.880400688 | AB146: 0.4495106434 | AC146: 0.2303925 | AD146: 0 | AE146: 0.7470659638 | AF146: 8.186647417 | AG146: 0.3820208168 | AH146: 0.24 | AI146: 0.6734772853 | AJ146: 0 | AK146: 0 | AL146: 0 | AM146: 0 | AN146: 0 | AO146: 12.0781916 | AP146: 0.2771771534 | AQ146: 0 | AR146: 0.2934443683 | AS146: 0.2771771534 | AT146: 0 | AU146: 0.3523527 | AV146: 0.2680847837 | AW146: 0.59328 | AX146: 0.036 | AY146: 0.066 | AZ146: 0.0435 | BA146: 0.102 | BB146: 4.124171569 | BC146: 144 | BD146: 0.9721573358 | BE146: 54.97093319 | BF146: 33.67386426 | BH146: 97.21573358 | BI146: 1.018240187 | BJ146: 2.066340317 | BK146: 0.7897536763 | BL146: 0.2680847837
G147: 138 | H147: 22.56 | I147: BUCK | J147: 1 | K147: 12 | L147: 7.092198582 | M147: 12 | N147: 0.5377123142 | O147: 0 | P147: 4.782848069 | Q147: 12.07916814 | R147: 0.5086768494 | S147: 0.5170125533 | T147: 1.025689403 | U147: 1.38068931 | V147: 0.003812605942 | W147: 0.003812605942 | X147: 6.02238035 | Y147: 0.07253813016 | Z147: 0.07253813016 | AA147: 8.857517476 | AB147: 0.4471970102 | AC147: 0.2316245455 | AD147: 0 | AE147: 0.7454984953 | AF147: 8.212836729 | AG147: 0.3844689167 | AH147: 0.24 | AI147: 0.676486525 | AJ147: 0 | AK147: 0 | AL147: 0 | AM147: 0 | AN147: 0 | AO147: 12.07916814 | AP147: 0.2772219756 | AQ147: 0 | AR147: 0.2934946066 | AS147: 0.2772219756 | AT147: 0 | AU147: 0.3542427 | AV147: 0.2698027486 | AW147: 0.59328 | AX147: 0.036 | AY147: 0.066 | AZ147: 0.0435 | BA147: 0.102 | BB147: 4.136845214 | BC147: 144 | BD147: 0.9720741642 | BE147: 54.98705977 | BF147: 33.82432625 | BH147: 97.20741642 | BI147: 1.025689403 | BJ147: 2.069722327 | BK147: 0.793386616 | BL147: 0.2698027486
G148: 139 | H148: 22.68 | I148: BUCK | J148: 1 | K148: 12 | L148: 7.054673721 | M148: 12 | N148: 0.5348732841 | O148: 0 | P148: 4.812220796 | Q148: 12.08014028 | R148: 0.5087620623 | S148: 0.5243573167 | T148: 1.033119379 | U148: 1.389168486 | V148: 0.003859578165 | W148: 0.003859578165 | X148: 6.025361014 | Y148: 0.0726099507 | Z148: 0.0726099507 | AA148: 8.834814403 | AB148: 0.4449074895 | AC148: 0.2328565909 | AD148: 0 | AE148: 0.7439630247 | AF148: 8.238679722 | AG148: 0.3868923083 | AH148: 0.24 | AI148: 0.6794685385 | AJ148: 0 | AK148: 0 | AL148: 0 | AM148: 0 | AN148: 0 | AO148: 12.08014028 | AP148: 0.2772665993 | AQ148: 0 | AR148: 0.2935446231 | AS148: 0.2772665993 | AT148: 0 | AU148: 0.3561327 | AV148: 0.2715033742 | AW148: 0.59328 | AX148: 0.036 | AY148: 0.066 | AZ148: 0.0435 | BA148: 0.102 | BB148: 4.149481168 | BC148: 144 | BD148: 0.9719912541 | BE148: 55.00478624 | BF148: 33.97342693 | BH148: 97.19912541 | BI148: 1.033119379 | BJ148: 2.073108886 | BK148: 0.7969923295 | BL148: 0.2715033742
G149: 140 | H149: 22.8 | I149: BUCK | J149: 1 | K149: 12 | L149: 7.01754386 | M149: 12 | N149: 0.5320640756 | O149: 0 | P149: 4.841284986 | Q149: 12.08110798 | R149: 0.5088468946 | S149: 0.5316827001 | T149: 1.040529595 | U149: 1.397558595 | V149: 0.003906340052 | W149: 0.003906340052 | X149: 6.028120547 | Y149: 0.07267647466 | Z149: 0.07267647466 | AA149: 8.812289061 | AB149: 0.4426416994 | AC149: 0.2340886364 | AD149: 0 | AE149: 0.7424589983 | AF149: 8.264183658 | AG149: 0.3892913697 | AH149: 0.24 | AI149: 0.6824237012 | AJ149: 0 | AK149: 0 | AL149: 0 | AM149: 0 | AN149: 0 | AO149: 12.08110798 | AP149: 0.277311023 | AQ149: 0 | AR149: 0.2935944167 | AS149: 0.277311023 | AT149: 0 | AU149: 0.3580227 | AV149: 0.2731869261 | AW149: 0.59328 | AX149: 0.036 | AY149: 0.066 | AZ149: 0.0435 | BA149: 0.102 | BB149: 4.162079152 | BC149: 144 | BD149: 0.9719086073 | BE149: 55.02408492 | BF149: 34.12118506 | BH149: 97.19086073 | BI149: 1.040529595 | BJ149: 2.076499816 | BK149: 0.8005711922 | BL149: 0.2731869261
G150: 141 | H150: 22.92 | I150: BUCK | J150: 1 | K150: 12 | L150: 6.980802792 | M150: 12 | N150: 0.5292842215 | O150: 0 | P150: 4.870045475 | Q150: 12.08207123 | R150: 0.5089313445 | S150: 0.5389882101 | T150: 1.047919555 | U150: 1.405861033 | V150: 0.003952890487 | W150: 0.003952890487 | X150: 6.030665546 | Y150: 0.07273785386 | Z150: 0.07273785386 | AA150: 8.789939089 | AB150: 0.4403992663 | AC150: 0.2353206818 | AD150: 0 | AE150: 0.7409858753 | AF150: 8.289355588 | AG150: 0.3916664716 | AH150: 0.24 | AI150: 0.6853523813 | AJ150: 0 | AK150: 0 | AL150: 0 | AM150: 0 | AN150: 0 | AO150: 12.08207123 | AP150: 0.277355246 | AQ150: 0 | AR150: 0.293643986 | AS150: 0.277355246 | AT150: 0 | AU150: 0.3599127 | AV150: 0.2748536642 | AW150: 0.59328 | AX150: 0.036 | AY150: 0.066 | AZ150: 0.0435 | BA150: 0.102 | BB150: 4.174638906 | BC150: 144 | BD150: 0.9718262252 | BE150: 55.04492877 | BF150: 34.26761907 | BH150: 97.18262252 | BI150: 1.047919555 | BJ150: 2.079894943 | BK150: 0.8041235723 | BL150: 0.2748536642
G151: 142 | H151: 23.04 | I151: BUCK | J151: 1 | K151: 12 | L151: 6.944444444 | M151: 12 | N151: 0.526533264 | O151: 0 | P151: 4.898506998 | Q151: 12.08303001 | R151: 0.50901541 | S151: 0.5462733775 | T151: 1.055288788 | U151: 1.414077167 | V151: 0.003999228468 | W151: 0.003999228468 | X151: 6.033002385 | Y151: 0.07279423554 | Z151: 0.07279423554 | AA151: 8.767762168 | AB151: 0.4381798246 | AC151: 0.2365527273 | AD151: 0 | AE151: 0.7395431274 | AF151: 8.314202355 | AG151: 0.3940179766 | AH151: 0.24 | AI151: 0.6882549404 | AJ151: 0 | AK151: 0 | AL151: 0 | AM151: 0 | AN151: 0 | AO151: 12.08303001 | AP151: 0.277399267 | AQ151: 0 | AR151: 0.2936933299 | AS151: 0.277399267 | AT151: 0 | AU151: 0.3618027 | AV151: 0.2765038432 | AW151: 0.59328 | AX151: 0.036 | AY151: 0.066 | AZ151: 0.0435 | BA151: 0.102 | BB151: 4.187160192 | BC151: 144 | BD151: 0.9717441094 | BE151: 55.06729137 | BF151: 34.41274702 | BH151: 97.17441094 | BI151: 1.055288788 | BJ151: 2.083294098 | BK151: 0.8076498314 | BL151: 0.2765038432
G152: 143 | H152: 23.16 | I152: BUCK | J152: 1 | K152: 12 | L152: 6.908462867 | M152: 12 | N152: 0.5238107549 | O152: 0 | P152: 4.926674193 | Q152: 12.0839843 | R152: 0.5090990896 | S152: 0.5535377565 | T152: 1.062636846 | U152: 1.422208336 | V152: 0.004045353101 | W152: 0.004045353101 | X152: 6.035137221 | Y152: 0.07284576256 | Z152: 0.07284576256 | AA152: 8.745756024 | AB152: 0.4359830161 | AC152: 0.2377847727 | AD152: 0 | AE152: 0.7381302383 | AF152: 8.338730606 | AG152: 0.3963462402 | AH152: 0.24 | AI152: 0.691131733 | AJ152: 0 | AK152: 0 | AL152: 0 | AM152: 0 | AN152: 0 | AO152: 12.0839843 | AP152: 0.2774430854 | AQ152: 0 | AR152: 0.2937424476 | AS152: 0.2774430854 | AT152: 0 | AU152: 0.3636927 | AV152: 0.2781377124 | AW152: 0.59328 | AX152: 0.036 | AY152: 0.066 | AZ152: 0.0435 | BA152: 0.102 | BB152: 4.199642793 | BC152: 144 | BD152: 0.971662261 | BE152: 55.09114692 | BF152: 34.55658665 | BH152: 97.1662261 | BI152: 1.062636846 | BJ152: 2.086697119 | BK152: 0.811150324 | BL152: 0.2781377124
G153: 144 | H153: 23.28 | I153: BUCK | J153: 1 | K153: 12 | L153: 6.872852234 | M153: 12 | N153: 0.5211162551 | O153: 0 | P153: 4.954551602 | Q153: 12.08493408 | R153: 0.5091823817 | S153: 0.5607809237 | T153: 1.069963305 | U153: 1.430255851 | V153: 0.004091263597 | W153: 0.004091263597 | X153: 6.03707601 | Y153: 0.07289257351 | Z153: 0.07289257351 | AA153: 8.723918427 | AB153: 0.4338084905 | AC153: 0.2390168182 | AD153: 0 | AE153: 0.7367467038 | AF153: 8.362946794 | AG153: 0.3986516107 | AH153: 0.24 | AI153: 0.6939831075 | AJ153: 0 | AK153: 0 | AL153: 0 | AM153: 0 | AN153: 0 | AO153: 12.08493408 | AP153: 0.2774867004 | AQ153: 0 | AR153: 0.2937913382 | AS153: 0.2774867004 | AT153: 0 | AU153: 0.3655827 | AV153: 0.2797555163 | AW153: 0.59328 | AX153: 0.036 | AY153: 0.066 | AZ153: 0.0435 | BA153: 0.102 | BB153: 4.212086508 | BC153: 144 | BD153: 0.9715806814 | BE153: 55.11647019 | BF153: 34.69915537 | BH153: 97.15806814 | BI153: 1.069963305 | BJ153: 2.090103849 | BK153: 0.8146253985 | BL153: 0.2797555163
G154: 145 | H154: 23.4 | I154: BUCK | J154: 1 | K154: 12 | L154: 6.837606838 | M154: 12 | N154: 0.5184493347 | O154: 0 | P154: 4.982143675 | Q154: 12.08587935 | R154: 0.5092652852 | S154: 0.5680024772 | T154: 1.077267762 | U154: 1.438220996 | V154: 0.004136959266 | W154: 0.004136959266 | X154: 6.038824506 | Y154: 0.07293480284 | Z154: 0.07293480284 | AA154: 8.702247186 | AB154: 0.4316559047 | AC154: 0.2402488636 | AD154: 0 | AE154: 0.7353920308 | AF154: 8.386857191 | AG154: 0.4009344292 | AH154: 0.24 | AI154: 0.6968094055 | AJ154: 0 | AK154: 0 | AL154: 0 | AM154: 0 | AN154: 0 | AO154: 12.08587935 | AP154: 0.2775301113 | AQ154: 0 | AR154: 0.2938400009 | AS154: 0.2775301113 | AT154: 0 | AU154: 0.3674727 | AV154: 0.2813574942 | AW154: 0.59328 | AX154: 0.036 | AY154: 0.066 | AZ154: 0.0435 | BA154: 0.102 | BB154: 4.224491156 | BC154: 144 | BD154: 0.9714993715 | BE154: 55.14323654 | BF154: 34.84047027 | BH154: 97.14993715 | BI154: 1.077267762 | BJ154: 2.093514137 | BK154: 0.8180753965 | BL154: 0.2813574942
G155: 146 | H155: 23.52 | I155: BUCK | J155: 1 | K155: 12 | L155: 6.802721088 | M155: 12 | N155: 0.5158095723 | O155: 0 | P155: 5.009454769 | Q155: 12.08682008 | R155: 0.5093477988 | S155: 0.5752020358 | T155: 1.084549835 | U155: 1.44610503 | V155: 0.004182439513 | W155: 0.004182439513 | X155: 6.040388276 | Y155: 0.07297258105 | Z155: 0.07297258105 | AA155: 8.680740152 | AB155: 0.4295249226 | AC155: 0.2414809091 | AD155: 0 | AE155: 0.7340657375 | AF155: 8.410467893 | AG155: 0.40319503 | AH155: 0.24 | AI155: 0.6996109626 | AJ155: 0 | AK155: 0 | AL155: 0 | AM155: 0 | AN155: 0 | AO155: 12.08682008 | AP155: 0.2775733175 | AQ155: 0 | AR155: 0.2938884351 | AS155: 0.2775733175 | AT155: 0 | AU155: 0.3693627 | AV155: 0.2829438807 | AW155: 0.59328 | AX155: 0.036 | AY155: 0.066 | AZ155: 0.0435 | BA155: 0.102 | BB155: 4.236856571 | BC155: 144 | BD155: 0.9714183323 | BE155: 55.17142188 | BF155: 34.98054813 | BH155: 97.14183323 | BI155: 1.084549835 | BJ155: 2.096927835 | BK155: 0.8215006536 | BL155: 0.2829438807
G156: 147 | H156: 23.64 | I156: BUCK | J156: 1 | K156: 12 | L156: 6.768189509 | M156: 12 | N156: 0.5131965552 | O156: 0 | P156: 5.036489155 | Q156: 12.08775628 | R156: 0.5094299218 | S156: 0.5823792384 | T156: 1.09180916 | U156: 1.453909185 | V156: 0.004227703834 | W156: 0.004227703834 | X156: 6.041772702 | Y156: 0.07300603478 | Z156: 0.07300603478 | AA156: 8.659395214 | AB156: 0.4274152152 | AC156: 0.2427129545 | AD156: 0 | AE156: 0.7327673529 | AF156: 8.433784823 | AG156: 0.4054337407 | AH156: 0.24 | AI156: 0.7023881084 | AJ156: 0 | AK156: 0 | AL156: 0 | AM156: 0 | AN156: 0 | AO156: 12.08775628 | AP156: 0.2776163186 | AQ156: 0 | AR156: 0.2939366402 | AS156: 0.2776163186 | AT156: 0 | AU156: 0.3712527 | AV156: 0.2845149058 | AW156: 0.59328 | AX156: 0.036 | AY156: 0.066 | AZ156: 0.0435 | BA156: 0.102 | BB156: 4.249182606 | BC156: 144 | BD156: 0.9713375647 | BE156: 55.20100265 | BF156: 35.11940542 | BH156: 97.13375647 | BI156: 1.09180916 | BJ156: 2.100344802 | BK156: 0.8249014994 | BL156: 0.2845149058
G157: 148 | H157: 23.76 | I157: BUCK | J157: 1 | K157: 12 | L157: 6.734006734 | M157: 12 | N157: 0.510609879 | O157: 0 | P157: 5.063251017 | Q157: 12.08868793 | R157: 0.5095116533 | S157: 0.5895337433 | T157: 1.099045397 | U157: 1.461634669 | V157: 0.00427275181 | W157: 0.00427275181 | X157: 6.042982995 | Y157: 0.07303528695 | Z157: 0.07303528695 | AA157: 8.638210302 | AB157: 0.4253264602 | AC157: 0.243945 | AD157: 0 | AE157: 0.7314964165 | AF157: 8.456813743 | AG157: 0.4076508825 | AH157: 0.24 | AI157: 0.7051411662 | AJ157: 0 | AK157: 0 | AL157: 0 | AM157: 0 | AN157: 0 | AO157: 12.08868793 | AP157: 0.2776591142 | AQ157: 0 | AR157: 0.2939846158 | AS157: 0.2776591142 | AT157: 0 | AU157: 0.3731427 | AV157: 0.2860707947 | AW157: 0.59328 | AX157: 0.036 | AY157: 0.066 | AZ157: 0.0435 | BA157: 0.102 | BB157: 4.261469129 | BC157: 144 | BD157: 0.9712570693 | BE157: 55.23195582 | BF157: 35.25705831 | BH157: 97.12570693 | BI157: 1.099045397 | BJ157: 2.103764899 | BK157: 0.8282782572 | BL157: 0.2860707947
G158: 149 | H158: 23.88 | I158: BUCK | J158: 1 | K158: 12 | L158: 6.700167504 | M158: 12 | N158: 0.5080491474 | O158: 0 | P158: 5.089744455 | Q158: 12.08961503 | R158: 0.5095929926 | S158: 0.5966652271 | T158: 1.10625822 | U158: 1.469282665 | V158: 0.004317583102 | W158: 0.004317583102 | X158: 6.044024192 | Y158: 0.07306045688 | Z158: 0.07306045688 | AA158: 8.617183382 | AB158: 0.4232583418 | AC158: 0.2451770455 | AD158: 0 | AE158: 0.7302524778 | AF158: 8.479560255 | AG158: 0.40984677 | AH158: 0.24 | AI158: 0.7078704539 | AJ158: 0 | AK158: 0 | AL158: 0 | AM158: 0 | AN158: 0 | AO158: 12.08961503 | AP158: 0.2777017039 | AQ158: 0 | AR158: 0.2940323615 | AS158: 0.2777017039 | AT158: 0 | AU158: 0.3750327 | AV158: 0.2876117684 | AW158: 0.59328 | AX158: 0.036 | AY158: 0.066 | AZ158: 0.0435 | BA158: 0.102 | BB158: 4.273716021 | BC158: 144 | BD158: 0.9711768469 | BE158: 55.26425889 | BF158: 35.39352269 | BH158: 97.11768469 | BI158: 1.10625822 | BJ158: 2.107187993 | BK158: 0.8316312449 | BL158: 0.2876117684
G159: 150 | H159: 24 | I159: BUCK | J159: 1 | K159: 12 | L159: 6.666666667 | M159: 12 | N159: 0.5055139721 | O159: 0 | P159: 5.115973487 | Q159: 12.09053757 | R159: 0.5096739394 | S159: 0.6037733842 | T159: 1.113447324 | U159: 1.476854335 | V159: 0.004362197453 | W159: 0.004362197453 | X159: 6.044901174 | Y159: 0.07308166042 | Z159: 0.07308166042 | AA159: 8.596312457 | AB159: 0.4212105508 | AC159: 0.2464090909 | AD159: 0 | AE159: 0.7290350966 | AF159: 8.502029809 | AG159: 0.412021712 | AH159: 0.24 | AI159: 0.7105762833 | AJ159: 0 | AK159: 0 | AL159: 0 | AM159: 0 | AN159: 0 | AO159: 12.09053757 | AP159: 0.2777440876 | AQ159: 0 | AR159: 0.294079877 | AS159: 0.2777440876 | AT159: 0 | AU159: 0.3769227 | AV159: 0.2891380435 | AW159: 0.59328 | AX159: 0.036 | AY159: 0.066 | AZ159: 0.0435 | BA159: 0.102 | BB159: 4.285923182 | BC159: 144 | BD159: 0.9710968979 | BE159: 55.29788983 | BF159: 35.52881417 | BH159: 97.10968979 | BI159: 1.113447324 | BJ159: 2.110613957 | BK159: 0.8349607743 | BL159: 0.2891380435
G160: 151 | H160: 24.12 | I160: BUCK | J160: 1 | K160: 12 | L160: 6.633499171 | M160: 12 | N160: 0.5030039722 | O160: 0 | P160: 5.141942052 | Q160: 12.09145555 | R160: 0.5097544932 | S160: 0.6108579264 | T160: 1.12061242 | U160: 1.484350814 | V160: 0.004406594678 | W160: 0.004406594678 | X160: 6.045618663 | Y160: 0.07309901004 | Z160: 0.07309901004 | AA160: 8.575595566 | AB160: 0.4191827841 | AC160: 0.2476411364 | AD160: 0 | AE160: 0.727843842 | AF160: 8.524227709 | AG160: 0.4141760108 | AH160: 0.24 | AI160: 0.713258961 | AJ160: 0 | AK160: 0 | AL160: 0 | AM160: 0 | AN160: 0 | AO160: 12.09145555 | AP160: 0.2777862649 | AQ160: 0 | AR160: 0.2941271621 | AS160: 0.2777862649 | AT160: 0 | AU160: 0.3788127 | AV160: 0.2906498321 | AW160: 0.59328 | AX160: 0.036 | AY160: 0.066 | AZ160: 0.0435 | BA160: 0.102 | BB160: 4.298090522 | BC160: 144 | BD160: 0.9710172228 | BE160: 55.3328271 | BF160: 35.66294805 | BH160: 97.10172228 | BI160: 1.12061242 | BJ160: 2.114042665 | BK160: 0.838267152 | BL160: 0.2906498321
G161: 152 | H161: 24.24 | I161: BUCK | J161: 1 | K161: 12 | L161: 6.600660066 | M161: 12 | N161: 0.5005187747 | O161: 0 | P161: 5.167654011 | Q161: 12.09236897 | R161: 0.5098346539 | S161: 0.6179185817 | T161: 1.127753236 | U161: 1.491773217 | V161: 0.004450774664 | W161: 0.004450774664 | X161: 6.046181231 | Y161: 0.07311261496 | Z161: 0.07311261496 | AA161: 8.555030783 | AB161: 0.4171747447 | AC161: 0.2488731818 | AD161: 0 | AE161: 0.7266782927 | AF161: 8.546159116 | AG161: 0.4163099631 | AH161: 0.24 | AI161: 0.715918788 | AJ161: 0 | AK161: 0 | AL161: 0 | AM161: 0 | AN161: 0 | AO161: 12.09236897 | AP161: 0.2778282359 | AQ161: 0 | AR161: 0.2941742167 | AS161: 0.2778282359 | AT161: 0 | AU161: 0.3807027 | AV161: 0.2921473425 | AW161: 0.59328 | AX161: 0.036 | AY161: 0.066 | AZ161: 0.0435 | BA161: 0.102 | BB161: 4.310217965 | BC161: 144 | BD161: 0.9709378219 | BE161: 55.36904964 | BF161: 35.7959394 | BH161: 97.09378219 | BI161: 1.127753236 | BJ161: 2.117473997 | BK161: 0.841550679 | BL161: 0.2921473425
G162: 153 | H162: 24.36 | I162: BUCK | J162: 1 | K162: 12 | L162: 6.568144499 | M162: 12 | N162: 0.4980580138 | O162: 0 | P162: 5.193113149 | Q162: 12.09327783 | R162: 0.5099144212 | S162: 0.6249550943 | T162: 1.134869516 | U162: 1.499122637 | V162: 0.004494737363 | W162: 0.004494737363 | X162: 6.046593307 | Y162: 0.07312258125 | Z162: 0.07312258125 | AA162: 8.534616217 | AB162: 0.4151861416 | AC162: 0.2501052273 | AD162: 0 | AE162: 0.7255380365 | AF162: 8.567829055 | AG162: 0.4184238599 | AH162: 0.24 | AI162: 0.7185560599 | AJ162: 0 | AK162: 0 | AL162: 0 | AM162: 0 | AN162: 0 | AO162: 12.09327783 | AP162: 0.2778700005 | AQ162: 0 | AR162: 0.2942210406 | AS162: 0.2778700005 | AT162: 0 | AU162: 0.3825927 | AV162: 0.2936307789 | AW162: 0.59328 | AX162: 0.036 | AY162: 0.066 | AZ162: 0.0435 | BA162: 0.102 | BB162: 4.32230545 | BC162: 144 | BD162: 0.9708586956 | BE162: 55.40653682 | BF162: 35.927803 | BH162: 97.08586956 | BI162: 1.134869516 | BJ162: 2.120907837 | BK162: 0.8448116509 | BL162: 0.2936307789
G163: 154 | H163: 24.48 | I163: BUCK | J163: 1 | K163: 12 | L163: 6.535947712 | M163: 12 | N163: 0.4956213307 | O163: 0 | P163: 5.218323175 | Q163: 12.09418213 | R163: 0.5099937954 | S163: 0.6319672235 | T163: 1.141961019 | U163: 1.506400145 | V163: 0.004538482794 | W163: 0.004538482794 | X163: 6.046859182 | Y163: 0.07312901193 | Z163: 0.07312901193 | AA163: 8.514350008 | AB163: 0.4132166896 | AC163: 0.2513372727 | AD163: 0 | AE163: 0.7244226698 | AF163: 8.589242419 | AG163: 0.4205179864 | AH163: 0.24 | AI163: 0.7211710674 | AJ163: 0 | AK163: 0 | AL163: 0 | AM163: 0 | AN163: 0 | AO163: 12.09418213 | AP163: 0.2779115587 | AQ163: 0 | AR163: 0.294267634 | AS163: 0.2779115587 | AT163: 0 | AU163: 0.3844827 | AV163: 0.2951003413 | AW163: 0.59328 | AX163: 0.036 | AY163: 0.066 | AZ163: 0.0435 | BA163: 0.102 | BB163: 4.334352926 | BC163: 144 | BD163: 0.970779844 | BE163: 55.44526849 | BF163: 36.05855337 | BH163: 97.0779844 | BI163: 1.141961019 | BJ163: 2.124344071 | BK163: 0.8480503584 | BL163: 0.2951003413
G164: 155 | H164: 24.6 | I164: BUCK | J164: 1 | K164: 12 | L164: 6.504065041 | M164: 12 | N164: 0.4932083739 | O164: 0 | P164: 5.243287729 | Q164: 12.09508187 | R164: 0.5100727764 | S164: 0.6389547434 | T164: 1.14902752 | U164: 1.513606791 | V164: 0.004582011035 | W164: 0.004582011035 | X164: 6.046983011 | Y164: 0.07313200707 | Z164: 0.07313200707 | AA164: 8.494230333 | AB164: 0.411266109 | AC164: 0.2525693182 | AD164: 0 | AE164: 0.723331798 | AF164: 8.610403972 | AG164: 0.4225926224 | AH164: 0.24 | AI164: 0.7237640959 | AJ164: 0 | AK164: 0 | AL164: 0 | AM164: 0 | AN164: 0 | AO164: 12.09508187 | AP164: 0.2779529105 | AQ164: 0 | AR164: 0.2943139969 | AS164: 0.2779529105 | AT164: 0 | AU164: 0.3863727 | AV164: 0.2965562263 | AW164: 0.59328 | AX164: 0.036 | AY164: 0.066 | AZ164: 0.0435 | BA164: 0.102 | BB164: 4.346360355 | BC164: 144 | BD164: 0.9707012673 | BE164: 55.4852249 | BF164: 36.1882048 | BH164: 97.07012673 | BI164: 1.14902752 | BJ164: 2.127782591 | BK164: 0.8512670869 | BL164: 0.2965562263
G165: 156 | H165: 24.72 | I165: BUCK | J165: 1 | K165: 12 | L165: 6.472491909 | M165: 12 | N165: 0.4908187984 | O165: 0 | P165: 5.268010379 | Q165: 12.09597706 | R165: 0.5101513645 | S165: 0.6459174422 | T165: 1.156068807 | U165: 1.520743605 | V165: 0.004625322225 | W165: 0.004625322225 | X165: 6.046968822 | Y165: 0.07313166386 | Z165: 0.07313166386 | AA165: 8.474255397 | AB165: 0.4093341258 | AC165: 0.2538013636 | AD165: 0 | AE165: 0.7222650347 | AF165: 8.631318357 | AG165: 0.4246480425 | AH165: 0.24 | AI165: 0.7263354259 | AJ165: 0 | AK165: 0 | AL165: 0 | AM165: 0 | AN165: 0 | AO165: 12.09597706 | AP165: 0.2779940561 | AQ165: 0 | AR165: 0.2943601294 | AS165: 0.2779940561 | AT165: 0 | AU165: 0.3882627 | AV165: 0.2979986263 | AW165: 0.59328 | AX165: 0.036 | AY165: 0.066 | AZ165: 0.0435 | BA165: 0.102 | BB165: 4.358327709 | BC165: 144 | BD165: 0.9706229655 | BE165: 55.52638674 | BF165: 36.3167713 | BH165: 97.06229655 | BI165: 1.156068807 | BJ165: 2.13122329 | BK165: 0.8544621169 | BL165: 0.2979986263
G166: 157 | H166: 24.84 | I166: BUCK | J166: 1 | K166: 12 | L166: 6.441223833 | M166: 12 | N166: 0.4884522662 | O166: 0 | P166: 5.292494622 | Q166: 12.09686771 | R166: 0.5102295601 | S166: 0.6528551218 | T166: 1.163084682 | U166: 1.527811597 | V166: 0.004668416555 | W166: 0.004668416555 | X166: 6.046820518 | Y166: 0.07312807676 | Z166: 0.07312807676 | AA166: 8.454423437 | AB166: 0.4074204712 | AC166: 0.2550334091 | AD166: 0 | AE166: 0.7212220019 | AF166: 8.651990096 | AG166: 0.426684516 | AH166: 0.24 | AI166: 0.7288853331 | AJ166: 0 | AK166: 0 | AL166: 0 | AM166: 0 | AN166: 0 | AO166: 12.09686771 | AP166: 0.2780349957 | AQ166: 0 | AR166: 0.2944060317 | AS166: 0.2780349957 | AT166: 0 | AU166: 0.3901527 | AV166: 0.2994277305 | AW166: 0.59328 | AX166: 0.036 | AY166: 0.066 | AZ166: 0.0435 | BA166: 0.102 | BB166: 4.370254972 | BC166: 144 | BD166: 0.9705449386 | BE166: 55.56873509 | BF166: 36.44426665 | BH166: 97.05449386 | BI166: 1.163084682 | BJ166: 2.134666067 | BK166: 0.8576357241 | BL166: 0.2994277305
G167: 158 | H167: 24.96 | I167: BUCK | J167: 1 | K167: 12 | L167: 6.41025641 | M167: 12 | N167: 0.4861084453 | O167: 0 | P167: 5.316743893 | Q167: 12.09775381 | R167: 0.5103073636 | S167: 0.6597675971 | T167: 1.170074961 | U167: 1.534811759 | V167: 0.00471129427 | W167: 0.00471129427 | X167: 6.046541884 | Y167: 0.07312133752 | Z167: 0.07312133752 | AA167: 8.434732722 | AB167: 0.4055248817 | AC167: 0.2562654545 | AD167: 0 | AE167: 0.7202023291 | AF167: 8.672423597 | AG167: 0.428702307 | AH167: 0.24 | AI167: 0.7314140884 | AJ167: 0 | AK167: 0 | AL167: 0 | AM167: 0 | AN167: 0 | AO167: 12.09775381 | AP167: 0.2780757296 | AQ167: 0 | AR167: 0.294451704 | AS167: 0.2780757296 | AT167: 0 | AU167: 0.3920427 | AV167: 0.3008437242 | AW167: 0.59328 | AX167: 0.036 | AY167: 0.066 | AZ167: 0.0435 | BA167: 0.102 | BB167: 4.382142138 | BC167: 144 | BD167: 0.9704671864 | BE167: 55.61225146 | BF167: 36.57070442 | BH167: 97.04671864 | BI167: 1.170074961 | BJ167: 2.138110822 | BK167: 0.8607881794 | BL167: 0.3008437242
G168: 159 | H168: 25.08 | I168: BUCK | J168: 1 | K168: 12 | L168: 6.379585327 | M168: 12 | N168: 0.4837870105 | O168: 0 | P168: 5.340761556 | Q168: 12.09863537 | R168: 0.5103847754 | S168: 0.6666546958 | T168: 1.177039471 | U168: 1.541745061 | V168: 0.004753955666 | W168: 0.004753955666 | X168: 6.046136589 | Y168: 0.07311153531 | Z168: 0.07311153531 | AA168: 8.41518155 | AB168: 0.4036470989 | AC168: 0.2574975 | AD168: 0 | AE168: 0.7192056541 | AF168: 8.692623155 | AG168: 0.4307016747 | AH168: 0.24 | AI168: 0.733921958 | AJ168: 0 | AK168: 0 | AL168: 0 | AM168: 0 | AN168: 0 | AO168: 12.09863537 | AP168: 0.2781162579 | AQ168: 0 | AR168: 0.2944971468 | AS168: 0.2781162579 | AT168: 0 | AU168: 0.3939327 | AV168: 0.3022467893 | AW168: 0.59328 | AX168: 0.036 | AY168: 0.066 | AZ168: 0.0435 | BA168: 0.102 | BB168: 4.39398921 | BC168: 144 | BD168: 0.970389709 | BE168: 55.6569177 | BF168: 36.6960979 | BH168: 97.0389709 | BI168: 1.177039471 | BJ168: 2.141557459 | BK168: 0.863919749 | BL168: 0.3022467893
G169: 160 | H169: 25.2 | I169: BUCK | J169: 1 | K169: 12 | L169: 6.349206349 | M169: 12 | N169: 0.4814876426 | O169: 0 | P169: 5.364550914 | Q169: 12.09951241 | R169: 0.5104617963 | S169: 0.6735162575 | T169: 1.183978054 | U169: 1.548612457 | V169: 0.004796401085 | W169: 0.004796401085 | X169: 6.04560819 | Y169: 0.07309875678 | Z169: 0.07309875678 | AA169: 8.395768247 | AB169: 0.4017868694 | AC169: 0.2587295455 | AD169: 0 | AE169: 0.7182316218 | AF169: 8.71259296 | AG169: 0.4326828737 | AH169: 0.24 | AI169: 0.7364092038 | AJ169: 0 | AK169: 0 | AL169: 0 | AM169: 0 | AN169: 0 | AO169: 12.09951241 | AP169: 0.278156581 | AQ169: 0 | AR169: 0.2945423602 | AS169: 0.278156581 | AT169: 0 | AU169: 0.3958227 | AV169: 0.3036371043 | AW169: 0.59328 | AX169: 0.036 | AY169: 0.066 | AZ169: 0.0435 | BA169: 0.102 | BB169: 4.405796202 | BC169: 144 | BD169: 0.9703125059 | BE169: 55.70271609 | BF169: 36.82046019 | BH169: 97.03125059 | BI169: 1.183978054 | BJ169: 2.145005886 | BK169: 0.8670306948 | BL169: 0.3036371043
G170: 161 | H170: 25.32 | I170: BUCK | J170: 1 | K170: 12 | L170: 6.319115324 | M170: 12 | N170: 0.4792100284 | O170: =CHOOSE(J170,0,(Vout+(Rdson3+Rdcr)*L170-H170)/(Vout+(Rdson3-Rdson4-Rs)*L170),IF(H170>Vout,D_min_boost_exitBB_to_buck, (Vout-H170*D_max_buck_BB)/Vout)) -> 0 | P170: 5.388115208 | Q170: 12.10038493 | R170: 0.5105384269 | S170: 0.6803521337 | T170: 1.190890561 | U170: 1.555414883 | V170: 0.004838630915 | W170: 0.004838630915 | X170: 6.044960139 | Y170: 0.07308308616 | Z170: 0.07308308616 | AA170: 8.37649117 | AB170: 0.3999439446 | AC170: 0.2599615909 | AD170: 0 | AE170: 0.7172798848 | AF170: 8.732337095 | AG170: 0.4346461535 | AH170: 0.24 | AI170: 0.738876083 | AJ170: 0 | AK170: 0 | AL170: 0 | AM170: 0 | AN170: 0 | AO170: 12.10038493 | AP170: 0.2781966994 | AQ170: 0 | AR170: 0.2945873448 | AS170: 0.2781966994 | AT170: 0 | AU170: 0.3977127 | AV170: 0.3050148446 | AW170: 0.59328 | AX170: 0.036 | AY170: 0.066 | AZ170: 0.0435 | BA170: 0.102 | BB170: 4.417563135 | BC170: 144 | BD170: 0.970235577 | BE170: 55.74962924 | BF170: 36.94380415 | BH170: 97.0235577 | BI170: 1.190890561 | BJ170: 2.148456013 | BK170: 0.870121274 | BL170: 0.3050148446
G171: 162 | H171: 25.44 | I171: BUCK | J171: 1 | K171: 12 | L171: 6.289308176 | M171: 12 | N171: 0.4769538606 | O171: 0 | P171: 5.411457615 | Q171: 12.10125294 | R171: 0.5106146679 | S171: 0.6871621871 | T171: 1.197776855 | U171: 1.562153255 | V171: 0.004880645587 | W171: 0.004880645587 | X171: 6.044195782 | Y171: 0.0730646053 | Z171: 0.0730646053 | AA171: 8.357348701 | AB171: 0.3981180807 | AC171: 0.2611936364 | AD171: 0 | AE171: 0.7163501026 | AF171: 8.751859544 | AG171: 0.4365917593 | AH171: 0.24 | AI171: 0.7413228486 | AJ171: 0 | AK171: 0 | AL171: 0 | AM171: 0 | AN171: 0 | AO171: 12.10125294 | AP171: 0.2782366133 | AQ171: 0 | AR171: 0.2946321009 | AS171: 0.2782366133 | AT171: 0 | AU171: 0.3996027 | AV171: 0.3063801819 | AW171: 0.59328 | AX171: 0.036 | AY171: 0.066 | AZ171: 0.0435 | BA171: 0.102 | BB171: 4.42929004 | BC171: 144 | BD171: 0.9701589219 | BE171: 55.79764013 | BF171: 37.06614243 | BH171: 97.01589219 | BI171: 1.197776855 | BJ171: 2.151907752 | BK171: 0.8731917396 | BL171: 0.3063801819
G172: 163 | H172: 25.56 | I172: BUCK | J172: 1 | K172: 12 | L172: 6.259780908 | M172: 12 | N172: 0.4747188379 | O172: 0 | P172: 5.434581256 | Q172: 12.10211646 | R172: 0.5106905203 | S172: 0.6939462909 | T172: 1.204636811 | U172: 1.568828476 | V172: 0.004922445571 | W172: 0.004922445571 | X172: 6.043318367 | Y172: 0.07304339377 | Z172: 0.07304339377 | AA172: 8.338339251 | AB172: 0.3963090384 | AC172: 0.2624256818 | AD172: 0 | AE172: 0.7154419418 | AF172: 8.771164194 | AG172: 0.4385199315 | AH172: 0.24 | AI172: 0.7437497493 | AJ172: 0 | AK172: 0 | AL172: 0 | AM172: 0 | AN172: 0 | AO172: 12.10211646 | AP172: 0.2782763233 | AQ172: 0 | AR172: 0.2946766291 | AS172: 0.2782763233 | AT172: 0 | AU172: 0.4014927 | AV172: 0.3077332853 | AW172: 0.59328 | AX172: 0.036 | AY172: 0.066 | AZ172: 0.0435 | BA172: 0.102 | BB172: 4.440976956 | BC172: 144 | BD172: 0.9700825402 | BE172: 55.84673209 | BF172: 37.18748747 | BH172: 97.00825402 | BI172: 1.204636811 | BJ172: 2.15536102 | BK172: 0.8762423403 | BL172: 0.3077332853
G173: 164 | H173: 25.68 | I173: BUCK | J173: 1 | K173: 12 | L173: 6.230529595 | M173: 12 | N173: 0.4725046642 | O173: 0 | P173: 5.457489191 | Q173: 12.10297549 | R173: 0.5107659849 | S173: 0.7007043291 | T173: 1.211470314 | U173: 1.575441427 | V173: 0.004964031378 | W173: 0.004964031378 | X173: 6.042331046 | Y173: 0.07301952894 | Z173: 0.07301952894 | AA173: 8.319461258 | AB173: 0.3945165831 | AC173: 0.2636577273 | AD173: 0 | AE173: 0.7145550758 | AF173: 8.790254835 | AG173: 0.4404309063 | AH173: 0.24 | AI173: 0.7461570297 | AJ173: 0 | AK173: 0 | AL173: 0 | AM173: 0 | AN173: 0 | AO173: 12.10297549 | AP173: 0.2783158298 | AQ173: 0 | AR173: 0.2947209298 | AS173: 0.2783158298 | AT173: 0 | AU173: 0.4033827 | AV173: 0.3090743202 | AW173: 0.59328 | AX173: 0.036 | AY173: 0.066 | AZ173: 0.0435 | BA173: 0.102 | BB173: 4.45262393 | BC173: 144 | BD173: 0.9700064316 | BE173: 55.89688879 | BF173: 37.30785148 | BH173: 97.00064316 | BI173: 1.211470314 | BJ173: 2.158815735 | BK173: 0.8792733207 | BL173: 0.3090743202
G174: 165 | H174: 25.8 | I174: BUCK | J174: 1 | K174: 12 | L174: 6.201550388 | M174: 12 | N174: 0.4703110492 | O174: 0 | P174: 5.480184425 | Q174: 12.10383005 | R174: =(Q174^2*Rdcr*(1+Ltc*Ta-Ltc*25))/(1-Q174^2*Rdcr*Ltc*ThetaCa) -> 0.5108410626 | S174: =7.759*10^-3*Fsw^0.9458*(0.00787*P174)^2.304 -> 0.7074361955 | T174: =R174+S174 -> 1.218277258 | U174: 1.581992976 | V174: =RCoutEsr*U174^2 -> 0.005005403555 | W174: =V174 -> 0.005005403555 | X174: 6.041236878 | Y174: =RCinEsr*X174^2 -> 0.07299308602 | Z174: =Y174 -> 0.07299308602 | AA174: 8.300713185 | AB174: 0.3927404845 | AC174: 0.2648897727 | AD174: 0 | AE174: 0.7136891844 | AF174: 8.809135167 | AG174: 0.4423249156 | AH174: 0.24 | AI174: 0.7485449303 | AJ174: 0 | AK174: 0 | AL174: 0 | AM174: 0 | AN174: 0 | AO174: 12.10383005 | AP174: 0.2783551334 | AQ174: 0 | AR174: 0.2947650038 | AS174: 0.2783551334 | AT174: 0 | AU174: 0.4052727 | AV174: 0.3104034496 | AW174: 0.59328 | AX174: 0.036 | AY174: 0.066 | AZ174: 0.0435 | BA174: =SUM(AX174:AY174) -> 0.102 | BB174: =SUM(T174,W174,Z174,AE174,AI174,AN174,AR174, AT174,AU174,BA174,AV174,AW174) -> 4.464231016 | BC174: 144 | BD174: =BC174/(BC174+BB174) -> 0.9699305955 | BE174: 55.94809422 | BF174: 37.42724651 | BH174: =BD174*100 -> 96.99305955 | BI174: =T174 -> 1.218277258 | BJ174: =AE174+AI174+AN174+AR174+AU174 -> 2.162271818 | BK174: =AI174+AU174*0.33 -> 0.8822849213 | BL174: =AV174 -> 0.3104034496
G175: 166 | H175: 25.92 | I175: BUCK | J175: 1 | K175: 12 | L175: 6.172839506 | M175: 12 | N175: 0.4681377079 | O175: 0 | P175: 5.502669906 | Q175: 12.10468014 | R175: 0.5109157547 | S175: 0.7141417935 | T175: 1.225057548 | U175: 1.588483976 | V175: 0.005046562682 | W175: 0.005046562682 | X175: 6.04003883 | Y175: 0.07296413814 | Z175: 0.07296413814 | AA175: 8.282093521 | AB175: 0.3909805166 | AC175: 0.2661218182 | AD175: 0 | AE175: 0.7128439543 | AF175: 8.827808802 | AG175: 0.444202187 | AH175: 0.24 | AI175: 0.7509136875 | AJ175: 0 | AK175: 0 | AL175: 0 | AM175: 0 | AN175: 0 | AO175: 12.10468014 | AP175: 0.2783942345 | AQ175: 0 | AR175: 0.2948088515 | AS175: 0.2783942345 | AT175: 0 | AU175: 0.4071627 | AV175: 0.311720833 | AW175: 0.59328 | AX175: 0.036 | AY175: 0.066 | AZ175: 0.0435 | BA175: 0.102 | BB175: 4.475798275 | BC175: 144 | BD175: 0.9698550314 | BE175: 56.00033271 | BF175: 37.54568437 | BH175: 96.98550314 | BI175: 1.225057548 | BJ175: 2.165729193 | BK175: 0.8852773785 | BL175: 0.311720833
G176: 167 | H176: 26.04 | I176: BUCK | J176: 1 | K176: 12 | L176: 6.144393241 | M176: 12 | N176: 0.4659843606 | O176: 0 | P176: 5.524948529 | Q176: 12.10552579 | R176: 0.510990062 | S176: 0.7208210358 | T176: 1.231811098 | U176: 1.59491526 | V176: 0.005087509375 | W176: 0.005087509375 | X176: 6.038739787 | Y176: 0.07293275642 | Z176: 0.07293275642 | AA176: 8.263600779 | AB176: 0.3892364576 | AC176: 0.2673538636 | AD176: 0 | AE176: 0.712019078 | AF176: 8.846279266 | AG176: 0.4460629441 | AH176: 0.24 | AI176: 0.753263534 | AJ176: 0 | AK176: 0 | AL176: 0 | AM176: 0 | AN176: 0 | AO176: 12.10552579 | AP176: 0.2784331339 | AQ176: 0 | AR176: 0.2948524736 | AS176: 0.2784331339 | AT176: 0 | AU176: 0.4090527 | AV176: 0.3130266274 | AW176: 0.59328 | AX176: 0.036 | AY176: 0.066 | AZ176: 0.0435 | BA176: 0.102 | BB176: 4.487325777 | BC176: 144 | BD176: 0.9697797388 | BE176: 56.0535889 | BF176: 37.6631767 | BH176: 96.97797388 | BI176: 1.231811098 | BJ176: 2.169187786 | BK176: 0.888250925 | BL176: 0.3130266274
G177: 168 | H177: 26.16 | I177: BUCK | J177: 1 | K177: 12 | L177: 6.116207951 | M177: 12 | N177: 0.4638507326 | O177: 0 | P177: 5.547023135 | Q177: 12.10636701 | R177: 0.5110639859 | S177: 0.7274738438 | T177: 1.23853783 | U177: 1.60128765 | V177: 0.005128244277 | W177: 0.005128244277 | X177: 6.037342545 | Y177: 0.07289901001 | Z177: 0.07289901001 | AA177: 8.245233497 | AB177: 0.3875080899 | AC177: 0.2685859091 | AD177: 0 | AE177: 0.7112142545 | AF177: 8.864550001 | AG177: 0.4479074063 | AH177: 0.24 | AI177: 0.7555946986 | AJ177: 0 | AK177: 0 | AL177: 0 | AM177: 0 | AN177: 0 | AO177: 12.10636701 | AP177: 0.2784718321 | AQ177: 0 | AR177: 0.2948958707 | AS177: 0.2784718321 | AT177: 0 | AU177: 0.4109427 | AV177: 0.3143209868 | AW177: 0.59328 | AX177: 0.036 | AY177: 0.066 | AZ177: 0.0435 | BA177: 0.102 | BB177: 4.498813595 | BC177: 144 | BD177: 0.9697047169 | BE177: 56.10784772 | BF177: 37.77973493 | BH177: 96.97047169 | BI177: 1.23853783 | BJ177: 2.172647524 | BK177: 0.8912057896 | BL177: 0.3143209868
G178: 169 | H178: 26.28 | I178: BUCK | J178: 1 | K178: 12 | L178: 6.088280061 | M178: 12 | N178: 0.4617365542 | O178: 0 | P178: 5.568896515 | Q178: 12.10720381 | R178: 0.5111375274 | S178: 0.7341001477 | T178: 1.245237675 | U178: 1.607601951 | V178: 0.005168768065 | W178: 0.005168768065 | X178: 6.035849823 | Y178: 0.07286296618 | Z178: 0.07286296618 | AA178: 8.226990239 | AB178: 0.3857951998 | AC178: 0.2698179545 | AD178: 0 | AE178: 0.7104291885 | AF178: 8.882624367 | AG178: 0.4497357892 | AH178: 0.24 | AI178: 0.7579074063 | AJ178: 0 | AK178: 0 | AL178: 0 | AM178: 0 | AN178: 0 | AO178: 12.10720381 | AP178: 0.2785103297 | AQ178: 0 | AR178: 0.2949390437 | AS178: 0.2785103297 | AT178: 0 | AU178: 0.4128327 | AV178: 0.3156040626 | AW178: 0.59328 | AX178: 0.036 | AY178: 0.066 | AZ178: 0.0435 | BA178: 0.102 | BB178: 4.51026181 | BC178: 144 | BD178: 0.9696299653 | BE178: 56.16309443 | BF178: 37.89537031 | BH178: 96.96299653 | BI178: 1.245237675 | BJ178: 2.176108338 | BK178: 0.8941421973 | BL178: 0.3156040626
G179: 170 | H179: 26.4 | I179: BUCK | J179: 1 | K179: 12 | L179: 6.060606061 | M179: 12 | N179: 0.4596415608 | O179: 0 | P179: 5.590571406 | Q179: 12.1080362 | R179: 0.511210688 | S179: 0.7406998858 | T179: 1.251910574 | U179: 1.613858953 | V179: 0.005209081441 | W179: 0.005209081441 | X179: 6.034264261 | Y179: 0.07282469035 | Z179: 0.07282469035 | AA179: 8.208869588 | AB179: 0.3840975775 | AC179: 0.27105 | AD179: 0 | AE179: 0.7096635907 | AF179: 8.900505649 | AG179: 0.4515483046 | AH179: 0.24 | AI179: 0.7602018785 | AJ179: 0 | AK179: 0 | AL179: 0 | AM179: 0 | AN179: 0 | AO179: 12.1080362 | AP179: 0.2785486274 | AQ179: 0 | AR179: 0.2949819932 | AS179: 0.2785486274 | AT179: 0 | AU179: 0.4147227 | AV179: 0.3168760032 | AW179: 0.59328 | AX179: 0.036 | AY179: 0.066 | AZ179: 0.0435 | BA179: 0.102 | BB179: 4.521670511 | BC179: 144 | BD179: 0.9695554831 | BE179: 56.21931454 | BF179: 38.01009392 | BH179: 96.95554831 | BI179: 1.251910574 | BJ179: 2.179570162 | BK179: 0.8970603695 | BL179: 0.3168760032
G180: 171 | H180: 26.52 | I180: BUCK | J180: 1 | K180: 12 | L180: 6.033182504 | M180: 12 | N180: 0.4575654923 | O180: 0 | P180: 5.612050499 | Q180: 12.10886421 | R180: 0.5112834688 | S180: 0.7472730042 | T180: 1.258556473 | U180: 1.620059433 | V180: 0.005249185133 | W180: 0.005249185133 | X180: 6.032588423 | Y180: 0.07278424616 | Z180: 0.07278424616 | AA180: 8.190870154 | AB180: 0.3824150171 | AC180: 0.2722820455 | AD180: 0 | AE180: 0.7089171775 | AF180: 8.918197053 | AG180: 0.4533451605 | AH180: 0.24 | AI180: 0.7624783329 | AJ180: 0 | AK180: 0 | AL180: 0 | AM180: 0 | AN180: 0 | AO180: 12.10886421 | AP180: 0.2785867259 | AQ180: 0 | AR180: 0.29502472 | AS180: 0.2785867259 | AT180: 0 | AU180: 0.4166127 | AV180: 0.3181369547 | AW180: 0.59328 | AX180: 0.036 | AY180: 0.066 | AZ180: 0.0435 | BA180: 0.102 | BB180: 4.53303979 | BC180: 144 | BD180: 0.9694812696 | BE180: 56.27649388 | BF180: 38.12391665 | BH180: 96.94812696 | BI180: 1.258556473 | BJ180: 2.18303293 | BK180: 0.8999605239 | BL180: 0.3181369547
G181: 172 | H181: 26.64 | I181: BUCK | J181: 1 | K181: 12 | L181: 6.006006006 | M181: 12 | N181: 0.4555080935 | O181: 0 | P181: 5.633336434 | Q181: 12.10968786 | R181: 0.5113558713 | S181: 0.7538194567 | T181: 1.265175328 | U181: 1.626204153 | V181: 0.005289079897 | W181: 0.005289079897 | X181: 6.030824799 | Y181: 0.07274169552 | Z181: 0.07274169552 | AA181: 8.172990568 | AB181: 0.3807473165 | AC181: 0.2735140909 | AD181: 0 | AE181: 0.7081896707 | AF181: 8.935701715 | AG181: 0.4551265612 | AH181: 0.24 | AI181: 0.764736984 | AJ181: 0 | AK181: 0 | AL181: 0 | AM181: 0 | AN181: 0 | AO181: 12.10968786 | AP181: 0.2786246259 | AQ181: 0 | AR181: 0.2950672249 | AS181: 0.2786246259 | AT181: 0 | AU181: 0.4185027 | AV181: 0.3193870605 | AW181: 0.59328 | AX181: 0.036 | AY181: 0.066 | AZ181: 0.0435 | BA181: 0.102 | BB181: 4.544369744 | BC181: 144 | BD181: 0.9694073242 | BE181: 56.33461854 | BF181: 38.2368492 | BH181: 96.94073242 | BI181: 1.265175328 | BJ181: 2.18649658 | BK181: 0.902842875 | BL181: 0.3193870605
G182: 173 | H182: 26.76 | I182: BUCK | J182: 1 | K182: 12 | L182: 5.979073244 | M182: 12 | N182: 0.4534691137 | O182: 0 | P182: 5.654431806 | Q182: 12.11050714 | R182: 0.5114278968 | S182: 0.7603392044 | T182: 1.271767101 | U182: 1.632293863 | V182: 0.005328766509 | W182: 0.005328766509 | X182: 6.028975811 | Y182: 0.07269709866 | Z182: 0.07269709866 | AA182: 8.155229481 | AB182: 0.3790942769 | AC182: 0.2747461364 | AD182: 0 | AE182: 0.7074807976 | AF182: 8.953022695 | AG182: 0.4568927076 | AH182: 0.24 | AI182: 0.7669780425 | AJ182: 0 | AK182: 0 | AL182: 0 | AM182: 0 | AN182: 0 | AO182: 12.11050714 | AP182: 0.2786623282 | AQ182: 0 | AR182: 0.2951095087 | AS182: 0.2786623282 | AT182: 0 | AU182: 0.4203927 | AV182: 0.3206264615 | AW182: 0.59328 | AX182: 0.036 | AY182: 0.066 | AZ182: 0.0435 | BA182: 0.102 | BB182: 4.555660477 | BC182: 144 | BD182: 0.969333646 | BE182: 56.39367488 | BF182: 38.34890213 | BH182: 96.9333646 | BI182: 1.271767101 | BJ182: 2.189961049 | BK182: 0.9057076335 | BL182: 0.3206264615
G183: 174 | H183: 26.88 | I183: BUCK | J183: 1 | K183: 12 | L183: 5.952380952 | M183: 12 | N183: 0.4514483066 | O183: 0 | P183: 5.675339163 | Q183: 12.11132209 | R183: 0.5114995468 | S183: 0.7668322152 | T183: 1.278331762 | U183: 1.638329297 | V183: 0.005368245768 | W183: 0.005368245768 | X183: 6.02704381 | Y183: 0.07265051418 | Z183: 0.07265051418 | AA183: 8.137585568 | AB183: 0.3774557036 | AC183: 0.2759781818 | AD183: 0 | AE183: 0.7067902907 | AF183: 8.970162986 | AG183: 0.4586437968 | AH183: 0.24 | AI183: 0.7692017159 | AJ183: 0 | AK183: 0 | AL183: 0 | AM183: 0 | AN183: 0 | AO183: 12.11132209 | AP183: 0.2786998335 | AQ183: 0 | AR183: 0.2951515723 | AS183: 0.2786998335 | AT183: 0 | AU183: 0.4222827 | AV183: 0.321855296 | AW183: 0.59328 | AX183: 0.036 | AY183: 0.066 | AZ183: 0.0435 | BA183: 0.102 | BB183: 4.566912097 | BC183: 144 | BD183: 0.9692602341 | BE183: 56.45364954 | BF183: 38.4600858 | BH183: 96.92602341 | BI183: 1.278331762 | BJ183: 2.193426279 | BK183: 0.9085550069 | BL183: 0.321855296
G184: 175 | H184: 27 | I184: BUCK | J184: 1 | K184: 12 | L184: 5.925925926 | M184: 12 | N184: 0.4494454303 | O184: 0 | P184: 5.696061005 | Q184: 12.11213273 | R184: 0.5115708227 | S184: 0.773298464 | T184: 1.284869287 | U184: 1.644311177 | V184: 0.005407518496 | W184: 0.005407518496 | X184: 6.025031083 | Y184: 0.0726019991 | Z184: 0.0726019991 | AA184: 8.120057525 | AB184: 0.375831405 | AC184: 0.2772102273 | AD184: 0 | AE184: 0.7061178878 | AF184: 8.987125516 | AG184: 0.4603800227 | AH184: 0.24 | AI184: 0.7714082084 | AJ184: 0 | AK184: 0 | AL184: 0 | AM184: 0 | AN184: 0 | AO184: 12.11213273 | AP184: 0.2787371426 | AQ184: 0 | AR184: 0.2951934165 | AS184: 0.2787371426 | AT184: 0 | AU184: 0.4241727 | AV184: 0.3230737002 | AW184: 0.59328 | AX184: 0.036 | AY184: 0.066 | AZ184: 0.0435 | BA184: 0.102 | BB184: 4.578124717 | BC184: 144 | BD184: 0.9691870878 | BE184: 56.51452939 | BF184: 38.57041042 | BH184: 96.91870878 | BI184: 1.284869287 | BJ184: 2.196892213 | BK184: 0.9113851994 | BL184: 0.3230737002
G185: 176 | H185: 27.12 | I185: BUCK | J185: 1 | K185: 12 | L185: 5.899705015 | M185: 12 | N185: 0.4474602473 | O185: 0 | P185: 5.716599793 | Q185: 12.11293906 | R185: 0.5116417261 | S185: 0.779737932 | T185: 1.291379658 | U185: 1.650240215 | V185: 0.005446585533 | W185: 0.005446585533 | X185: 6.022939852 | Y185: 0.07255160891 | Z185: 0.07255160891 | AA185: 8.102644067 | AB185: 0.374221193 | AC185: 0.2784422727 | AD185: 0 | AE185: 0.7054633316 | AF185: 9.003913143 | AG185: 0.4621015758 | AH185: 0.24 | AI185: 0.773597721 | AJ185: 0 | AK185: 0 | AL185: 0 | AM185: 0 | AN185: 0 | AO185: 12.11293906 | AP185: 0.2787742563 | AQ185: 0 | AR185: 0.2952350421 | AS185: 0.2787742563 | AT185: 0 | AU185: 0.4260627 | AV185: 0.3242818076 | AW185: 0.59328 | AX185: 0.036 | AY185: 0.066 | AZ185: 0.0435 | BA185: 0.102 | BB185: 4.589298455 | BC185: 144 | BD185: 0.9691142061 | BE185: 56.57630158 | BF185: 38.67988605 | BH185: 96.91142061 | BI185: 1.291379658 | BJ185: 2.200358795 | BK185: 0.914198412 | BL185: 0.3242818076
G186: 177 | H186: 27.24 | I186: BUCK | J186: 1 | K186: 12 | L186: 5.873715125 | M186: 12 | N186: 0.4454925242 | O186: 0 | P186: 5.736957941 | Q186: 12.11374112 | R186: 0.5117122585 | S186: 0.7861506065 | T186: 1.297862865 | U186: 1.656117106 | V186: 0.005485447736 | W186: 0.005485447736 | X186: 6.020772277 | Y186: 0.07249939762 | Z186: 0.07249939762 | AA186: 8.08534393 | AB186: 0.3726248828 | AC186: 0.2796743182 | AD186: 0 | AE186: 0.7048263697 | AF186: 9.020528666 | AG186: 0.4638086432 | AH186: 0.24 | AI186: 0.7757704513 | AJ186: 0 | AK186: 0 | AL186: 0 | AM186: 0 | AN186: 0 | AO186: 12.11374112 | AP186: 0.2788111753 | AQ186: 0 | AR186: 0.2952764502 | AS186: 0.2788111753 | AT186: 0 | AU186: 0.4279527 | AV186: 0.3254797496 | AW186: 0.59328 | AX186: 0.036 | AY186: 0.066 | AZ186: 0.0435 | BA186: 0.102 | BB186: 4.600433431 | BC186: 144 | BD186: 0.9690415881 | BE186: 56.63895349 | BF186: 38.78852257 | BH186: 96.90415881 | BI186: 1.297862865 | BJ186: 2.203825971 | BK186: 0.9169948423 | BL186: 0.3254797496
G187: 178 | H187: 27.36 | I187: BUCK | J187: 1 | K187: 12 | L187: 5.847953216 | M187: 12 | N187: 0.4435420315 | O187: 0 | P187: 5.757137821 | Q187: 12.11453891 | R187: 0.5117824215 | S187: 0.792536481 | T187: 1.304318903 | U187: 1.661942535 | V187: 0.005524105982 | W187: 0.005524105982 | X187: 6.018530459 | Y187: 0.07244541776 | Z187: 0.07244541776 | AA187: 8.068155869 | AB187: 0.3710422931 | AC187: 0.2809063636 | AD187: 0 | AE187: 0.7042067545 | AF187: 9.036974818 | AG187: 0.465501409 | AH187: 0.24 | AI187: 0.7779265941 | AJ187: 0 | AK187: 0 | AL187: 0 | AM187: 0 | AN187: 0 | AO187: 12.11453891 | AP187: 0.2788479007 | AQ187: 0 | AR187: 0.2953176416 | AS187: 0.2788479007 | AT187: 0 | AU187: 0.4298427 | AV187: 0.3266676554 | AW187: 0.59328 | AX187: 0.036 | AY187: 0.066 | AZ187: 0.0435 | BA187: 0.102 | BB187: 4.611529772 | BC187: 144 | BD187: 0.9689692329 | BE187: 56.70247272 | BF187: 38.89632971 | BH187: 96.89692329 | BI187: 1.304318903 | BJ187: 2.20729369 | BK187: 0.9197746851 | BL187: 0.3266676554
G188: 179 | H188: 27.48 | I188: BUCK | J188: 1 | K188: 12 | L188: 5.822416303 | M188: 12 | N188: 0.441608544 | O188: 0 | P188: 5.777141765 | Q188: 12.11533246 | R188: 0.5118522167 | S188: 0.7988955546 | T188: 1.310747771 | U188: 1.667717177 | V188: 0.005562561162 | W188: 0.005562561162 | X188: 6.01621644 | Y188: 0.0723897205 | Z188: 0.0723897205 | AA188: 8.051078661 | AB188: 0.3694732454 | AC188: 0.2821384091 | AD188: 0 | AE188: 0.7036042431 | AF188: 9.053254275 | AG188: 0.4671800539 | AH188: 0.24 | AI188: 0.780066341 | AJ188: 0 | AK188: 0 | AL188: 0 | AM188: 0 | AN188: 0 | AO188: 12.11533246 | AP188: 0.2788844331 | AQ188: 0 | AR188: 0.2953586172 | AS188: 0.2788844331 | AT188: 0 | AU188: 0.4317327 | AV188: 0.3278456519 | AW188: 0.59328 | AX188: 0.036 | AY188: 0.066 | AZ188: 0.0435 | BA188: 0.102 | BB188: 4.622587606 | BC188: 144 | BD188: 0.9688971395 | BE188: 56.76684715 | BF188: 39.00331705 | BH188: 96.88971395 | BI188: 1.310747771 | BJ188: 2.210761901 | BK188: 0.922538132 | BL188: 0.3278456519
G189: 180 | H189: 27.6 | I189: BUCK | J189: 1 | K189: 12 | L189: 5.797101449 | M189: 12 | N189: 0.4396918403 | O189: 0 | P189: 5.796972063 | Q189: 12.11612178 | R189: 0.5119216458 | S189: 0.8052278318 | T189: 1.317149478 | U189: 1.673441691 | V189: 0.005600814184 | W189: 0.005600814184 | X189: 6.013832207 | Y189: 0.07233235562 | Z189: 0.07233235562 | AA189: 8.034111099 | AB189: 0.3679175645 | AC189: 0.2833704545 | AD189: 0 | AE189: 0.7030185971 | AF189: 9.069369655 | AG189: 0.4688447559 | AH189: 0.24 | AI189: 0.7821898806 | AJ189: 0 | AK189: 0 | AL189: 0 | AM189: 0 | AN189: 0 | AO189: 12.11612178 | AP189: 0.2789207735 | AQ189: 0 | AR189: 0.2953993781 | AS189: 0.2789207735 | AT189: 0 | AU189: 0.4336227 | AV189: 0.3290138638 | AW189: 0.59328 | AX189: 0.036 | AY189: 0.066 | AZ189: 0.0435 | BA189: 0.102 | BB189: 4.633607067 | BC189: 144 | BD189: 0.968825307 | BE189: 56.83206486 | BF189: 39.10949403 | BH189: 96.8825307 | BI189: 1.317149478 | BJ189: 2.214230556 | BK189: 0.9252853716 | BL189: 0.3290138638
G190: 181 | H190: 27.72 | I190: BUCK | J190: 1 | K190: 12 | L190: 5.772005772 | M190: 12 | N190: 0.4377917027 | O190: 0 | P190: 5.816630968 | Q190: 12.11690691 | R190: 0.5119907103 | S190: 0.8115333224 | T190: 1.323524033 | U190: 1.679116728 | V190: 0.005638865969 | W190: 0.005638865969 | X190: 6.011379692 | Y190: 0.07227337159 | Z190: 0.07227337159 | AA190: 8.017251995 | AB190: 0.3663750785 | AC190: 0.2846025 | AD190: 0 | AE190: 0.7024495826 | AF190: 9.085323518 | AG190: 0.4704956896 | AH190: 0.24 | AI190: 0.7842973986 | AJ190: 0 | AK190: 0 | AL190: 0 | AM190: 0 | AN190: 0 | AO190: 12.11690691 | AP190: 0.2789569227 | AQ190: 0 | AR190: 0.2954399251 | AS190: 0.2789569227 | AT190: 0 | AU190: 0.4355127 | AV190: 0.3301724137 | AW190: 0.59328 | AX190: 0.036 | AY190: 0.066 | AZ190: 0.0435 | BA190: 0.102 | BB190: 4.64458829 | BC190: 144 | BD190: 0.9687537344 | BE190: 56.89811413 | BF190: 39.21486993 | BH190: 96.87537344 | BI190: 1.323524033 | BJ190: 2.217699606 | BK190: 0.9280165896 | BL190: 0.3301724137
G191: 182 | H191: 27.84 | I191: BUCK | J191: 1 | K191: 12 | L191: 5.747126437 | M191: 12 | N191: 0.4359079174 | O191: 0 | P191: 5.836120691 | Q191: 12.11768785 | R191: 0.512059412 | S191: 0.8178120415 | T191: 1.329871453 | U191: 1.684742926 | V191: 0.005676717453 | W191: 0.005676717453 | X191: 6.008860774 | Y191: 0.0722128156 | Z191: 0.0722128156 | AA191: 8.000500181 | AB191: 0.3648456179 | AC191: 0.2858345455 | AD191: 0 | AE191: 0.7018969701 | AF191: 9.10111837 | AG191: 0.4721330268 | AH191: 0.24 | AI191: 0.7863890779 | AJ191: 0 | AK191: 0 | AL191: 0 | AM191: 0 | AN191: 0 | AO191: 12.11768785 | AP191: 0.2789928816 | AQ191: 0 | AR191: 0.2954802594 | AS191: 0.2789928816 | AT191: 0 | AU191: 0.4374027 | AV191: 0.3313214223 | AW191: 0.59328 | AX191: 0.036 | AY191: 0.066 | AZ191: 0.0435 | BA191: 0.102 | BB191: 4.655531416 | BC191: 144 | BD191: 0.9686824205 | BE191: 56.96498351 | BF191: 39.3194539 | BH191: 96.86824205 | BI191: 1.329871453 | BJ191: 2.221169007 | BK191: 0.9307319689 | BL191: 0.3313214223
G192: 183 | H192: 27.96 | I192: BUCK | J192: 1 | K192: 12 | L192: 5.722460658 | M192: 12 | N192: 0.4340402742 | O192: 0 | P192: 5.855443406 | Q192: 12.11846462 | R192: 0.5121277526 | S192: 0.8240640087 | T192: 1.336191761 | U192: 1.690320913 | V192: 0.005714369581 | W192: 0.005714369581 | X192: 6.006277282 | Y192: 0.07215073357 | Z192: 0.07215073357 | AA192: 7.983854505 | AB192: 0.3633290167 | AC192: 0.2870665909 | AD192: 0 | AE192: 0.7013605343 | AF192: 9.116756662 | AG192: 0.4737569366 | AH192: 0.24 | AI192: 0.7884650985 | AJ192: 0 | AK192: 0 | AL192: 0 | AM192: 0 | AN192: 0 | AO192: 12.11846462 | AP192: 0.2790286511 | AQ192: 0 | AR192: 0.2955203818 | AS192: 0.2790286511 | AT192: 0 | AU192: 0.4392927 | AV192: 0.3324610081 | AW192: 0.59328 | AX192: 0.036 | AY192: 0.066 | AZ192: 0.0435 | BA192: 0.102 | BB192: 4.666436587 | BC192: 144 | BD192: 0.9686113645 | BE192: 57.03266171 | BF192: 39.42325493 | BH192: 96.86113645 | BI192: 1.336191761 | BJ192: 2.224638715 | BK192: 0.9334316895 | BL192: 0.3324610081
G193: 184 | H193: 28.08 | I193: BUCK | J193: 1 | K193: 12 | L193: 5.698005698 | M193: 12 | N193: 0.4321885666 | O193: 0 | P193: 5.874601253 | Q193: 12.11923726 | R193: 0.5121957338 | S193: 0.8302892484 | T193: 1.342484982 | U193: 1.695851307 | V193: 0.005751823313 | W193: 0.005751823313 | X193: 6.003630994 | Y193: 0.07208717023 | Z193: 0.07208717023 | AA193: 7.967313833 | AB193: 0.3618251114 | AC193: 0.2882986364 | AD193: 0 | AE193: 0.7008400539 | AF193: 9.132240795 | AG193: 0.475367585 | AH193: 0.24 | AI193: 0.7905256377 | AJ193: 0 | AK193: 0 | AL193: 0 | AM193: 0 | AN193: 0 | AO193: 12.11923726 | AP193: 0.2790642321 | AQ193: 0 | AR193: 0.2955602934 | AS193: 0.2790642321 | AT193: 0 | AU193: 0.4411827 | AV193: 0.3335912877 | AW193: 0.59328 | AX193: 0.036 | AY193: 0.066 | AZ193: 0.0435 | BA193: 0.102 | BB193: 4.677303948 | BC193: 144 | BD193: 0.9685405652 | BE193: 57.10113769 | BF193: 39.52628188 | BH193: 96.85405652 | BI193: 1.342484982 | BJ193: 2.228108685 | BK193: 0.9361159287 | BL193: 0.3335912877
G194: 185 | H194: 28.2 | I194: BUCK | J194: 1 | K194: 12 | L194: 5.673758865 | M194: 12 | N194: 0.4303525913 | O194: 0 | P194: 5.89359633 | Q194: 12.12000577 | R194: 0.5122633573 | S194: 0.8364877894 | T194: 1.348751147 | U194: 1.701334714 | V194: 0.005789079618 | W194: 0.005789079618 | X194: 6.000923643 | Y194: 0.07202216914 | Z194: 0.07202216914 | AA194: 7.95087705 | AB194: 0.3603337414 | AC194: 0.2895306818 | AD194: 0 | AE194: 0.7003353118 | AF194: 9.147573118 | AG194: 0.4769651355 | AH194: 0.24 | AI194: 0.79257087 | AJ194: 0 | AK194: 0 | AL194: 0 | AM194: 0 | AN194: 0 | AO194: 12.12000577 | AP194: 0.2790996256 | AQ194: 0 | AR194: 0.2955999952 | AS194: 0.2790996256 | AT194: 0 | AU194: 0.4430727 | AV194: 0.3347123758 | AW194: 0.59328 | AX194: 0.036 | AY194: 0.066 | AZ194: 0.0435 | BA194: 0.102 | BB194: 4.688133648 | BC194: 144 | BD194: 0.9684700216 | BE194: 57.17040059 | BF194: 39.6285435 | BH194: 96.84700216 | BI194: 1.348751147 | BJ194: 2.231578877 | BK194: 0.938784861 | BL194: 0.3347123758
G195: 186 | H195: 28.32 | I195: BUCK | J195: 1 | K195: 12 | L195: 5.649717514 | M195: 12 | N195: 0.4285321489 | O195: 0 | P195: 5.912430705 | Q195: 12.12077018 | R195: 0.512330625 | S195: 0.842659665 | T195: 1.35499029 | U195: 1.70677173 | V195: 0.005826139474 | W195: 0.005826139474 | X195: 5.998156912 | Y195: 0.07195577269 | Z195: 0.07195577269 | AA195: 7.934543054 | AB195: 0.3588547488 | AC195: 0.2907627273 | AD195: 0 | AE195: 0.699846095 | AF195: 9.162755932 | AG195: 0.4785497487 | AH195: 0.24 | AI195: 0.7946009673 | AJ195: 0 | AK195: 0 | AL195: 0 | AM195: 0 | AN195: 0 | AO195: 12.12077018 | AP195: 0.2791348325 | AQ195: 0 | AR195: 0.2956394883 | AS195: 0.2791348325 | AT195: 0 | AU195: 0.4449627 | AV195: 0.335824385 | AW195: 0.59328 | AX195: 0.036 | AY195: 0.066 | AZ195: 0.0435 | BA195: 0.102 | BB195: 4.698925838 | BC195: 144 | BD195: 0.9683997325 | BE195: 57.24043975 | BF195: 39.73004837 | BH195: 96.83997325 | BI195: 1.35499029 | BJ195: 2.235049251 | BK195: 0.9414386583 | BL195: 0.335824385
G196: 187 | H196: 28.44 | I196: BUCK | J196: 1 | K196: 12 | L196: 5.625879044 | M196: 12 | N196: 0.426727043 | O196: 0 | P196: 5.931106408 | Q196: 12.12153051 | R196: 0.5123975386 | S196: 0.8488049122 | T196: 1.361202451 | U196: 1.712162941 | V196: 0.005863003871 | W196: 0.005863003871 | X196: 5.995332442 | Y196: 0.07188802218 | Z196: 0.07188802218 | AA196: 7.918310763 | AB196: 0.3573879784 | AC196: 0.2919947727 | AD196: 0 | AE196: 0.6993721941 | AF196: 9.177791488 | AG196: 0.4801215826 | AH196: 0.24 | AI196: 0.796616099 | AJ196: 0 | AK196: 0 | AL196: 0 | AM196: 0 | AN196: 0 | AO196: 12.12153051 | AP196: 0.2791698537 | AQ196: 0 | AR196: 0.2956787737 | AS196: 0.2791698537 | AT196: 0 | AU196: 0.4468527 | AV196: 0.3369274264 | AW196: 0.59328 | AX196: 0.036 | AY196: 0.066 | AZ196: 0.0435 | BA196: 0.102 | BB196: 4.70968067 | BC196: 144 | BD196: 0.9683296968 | BE196: 57.3112447 | BF196: 39.83080495 | BH196: 96.83296968 | BI196: 1.361202451 | BJ196: 2.238519767 | BK196: 0.94407749 | BL196: 0.3369274264
G197: 188 | H197: 28.56 | I197: BUCK | J197: 1 | K197: 12 | L197: 5.602240896 | M197: 12 | N197: 0.4249370805 | O197: 0 | P197: 5.949625436 | Q197: 12.12228679 | R197: 0.5124640999 | S197: 0.8549235723 | T197: 1.367387672 | U197: 1.717508923 | V197: 0.005899673804 | W197: 0.005899673804 | X197: 5.992451828 | Y197: 0.07181895782 | Z197: 0.07181895782 | AA197: 7.902179109 | AB197: 0.3559332777 | AC197: 0.2932268182 | AD197: 0 | AE197: 0.6989134036 | AF197: 9.192681993 | AG197: 0.4816807927 | AH197: 0.24 | AI197: 0.7986164319 | AJ197: 0 | AK197: 0 | AL197: 0 | AM197: 0 | AN197: 0 | AO197: 12.12228679 | AP197: 0.2792046901 | AQ197: 0 | AR197: 0.2957178524 | AS197: 0.2792046901 | AT197: 0 | AU197: 0.4487427 | AV197: 0.3380216089 | AW197: 0.59328 | AX197: 0.036 | AY197: 0.066 | AZ197: 0.0435 | BA197: 0.102 | BB197: 4.7203983 | BC197: 144 | BD197: 0.9682599135 | BE197: 57.38280518 | BF197: 39.93082159 | BH197: 96.82599135 | BI197: 1.367387672 | BJ197: 2.241990388 | BK197: 0.9467015229 | BL197: 0.3380216089
G198: 189 | H198: 28.68 | I198: BUCK | J198: 1 | K198: 12 | L198: 5.578800558 | M198: 12 | N198: 0.4231620718 | O198: 0 | P198: 5.967989751 | Q198: 12.12303902 | R198: 0.5125303107 | S198: 0.8610156901 | T198: 1.373546001 | U198: 1.722810245 | V198: 0.005936150278 | W198: 0.005936150278 | X198: 5.989516624 | Y198: 0.07174861878 | Z198: 0.07174861878 | AA198: 7.886147042 | AB198: 0.3544904965 | AC198: 0.2944588636 | AD198: 0 | AE198: 0.6984695216 | AF198: 9.207429607 | AG198: 0.4832275318 | AH198: 0.24 | AI198: 0.8006021301 | AJ198: 0 | AK198: 0 | AL198: 0 | AM198: 0 | AN198: 0 | AO198: 12.12303902 | AP198: 0.2792393428 | AQ198: 0 | AR198: 0.2957567255 | AS198: 0.2792393428 | AT198: 0 | AU198: 0.4506327 | AV198: 0.3391070399 | AW198: 0.59328 | AX198: 0.036 | AY198: 0.066 | AZ198: 0.0435 | BA198: 0.102 | BB198: 4.731078887 | BC198: 144 | BD198: 0.9681903814 | BE198: 57.45511108 | BF198: 40.0301065 | BH198: 96.81903814 | BI198: 1.373546001 | BJ198: 2.245461077 | BK198: 0.9493109211 | BL198: 0.3391070399
G199: 190 | H199: 28.8 | I199: BUCK | J199: 1 | K199: 12 | L199: 5.555555556 | M199: 12 | N199: 0.4214018303 | O199: 0 | P199: 5.986201285 | Q199: 12.12378724 | R199: 0.5125961729 | S199: 0.8670813141 | T199: 1.379677487 | U199: 1.728067462 | V199: 0.005972434304 | W199: 0.005972434304 | X199: 5.986528344 | Y199: 0.07167704322 | Z199: 0.07167704322 | AA199: 7.870213525 | AB199: 0.3530594873 | AC199: 0.2956909091 | AD199: 0 | AE199: 0.69804035 | AF199: 9.222036446 | AG199: 0.4847619504 | AH199: 0.24 | AI199: 0.8025733555 | AJ199: 0 | AK199: 0 | AL199: 0 | AM199: 0 | AN199: 0 | AO199: 12.12378724 | AP199: 0.2792738126 | AQ199: 0 | AR199: 0.2957953941 | AS199: 0.2792738126 | AT199: 0 | AU199: 0.4525227 | AV199: 0.3401838249 | AW199: 0.59328 | AX199: 0.036 | AY199: 0.066 | AZ199: 0.0435 | BA199: 0.102 | BB199: 4.741722589 | BC199: 144 | BD199: 0.9681210994 | BE199: 57.5281525 | BF199: 40.12866777 | BH199: 96.81210994 | BI199: 1.379677487 | BJ199: 2.2489318 | BK199: 0.9519058465 | BL199: 0.3401838249
G200: 191 | H200: 28.92 | I200: BUCK | J200: 1 | K200: 12 | L200: 5.532503458 | M200: 12 | N200: 0.4196561723 | O200: 0 | P200: 6.004261937 | Q200: 12.12453147 | R200: 0.5126616882 | S200: 0.8731204962 | T200: 1.385782184 | U200: 1.733281123 | V200: 0.006008526901 | W200: 0.006008526901 | X200: 5.983488459 | Y200: 0.07160426827 | Z200: 0.07160426827 | AA200: 7.854377538 | AB200: 0.3516401051 | AC200: 0.2969229545 | AD200: 0 | AE200: 0.6976256942 | AF200: 9.236504584 | AG200: 0.4862841965 | AH200: 0.24 | AI200: 0.8045302675 | AJ200: 0 | AK200: 0 | AL200: 0 | AM200: 0 | AN200: 0 | AO200: 12.12453147 | AP200: 0.2793081006 | AQ200: 0 | AR200: 0.2958338592 | AS200: 0.2793081006 | AT200: 0 | AU200: 0.4544127 | AV200: 0.3412520677 | AW200: 0.59328 | AX200: 0.036 | AY200: 0.066 | AZ200: 0.0435 | BA200: 0.102 | BB200: 4.752329568 | BC200: 144 | BD200: 0.9680520663 | BE200: 57.60191971 | BF200: 40.22651337 | BH200: 96.80520663 | BI200: 1.385782184 | BJ200: 2.252402521 | BK200: 0.9544864585 | BL200: 0.3412520677
G201: 192 | H201: =VIN_min+(VIN_max-VIN_min)*(G201/200) -> 29.04 | I201: =IF(H201>VIN_BB_to_buck, "BUCK", IF(H201<VIN_boost_to_BB,"BOOST","BUCK-BST")) -> BUCK | J201: 1 | K201: =Iout -> 12 | L201: =Vout*K201/(H201*Efficiency) -> 5.509641873 | M201: =Iout/(1-O201) -> 12 | N201: =CHOOSE(J201,(Vout+(Rdson2+Rs+Rdcr)*K201)/(H201+(Rs+Rdson2-Rdson1)*K201),1,IF(H201<Vout,D_max_buck_BB,Vout/H201*(1-D_min_boost_exitBB_to_buck))) -> 0.4179249175 | O201: 0 | P201: =MAX(0, CHOOSE(J201, (H201-(Rdson1+Rdcr)*K201-Vout)*N201/(Fsw*Lf), (H201-(Rdson4+Rdcr+Rs)*L201)*O201/(Fsw*Lf), IF(H201<Vout, (H201-(Rdson4+Rdcr+Rs)*L201)*O201/(0.5*Fsw*Lf),(H201-(Rdson1+Rdcr)*K201-Vout)*N201/(0.5*Fsw*Lf)))) -> 6.022173573 | Q201: =CHOOSE(J201, SQRT(K201^2+(P201^2)/12), SQRT(L201^2+(P201^2)/12), SQRT(M201^2+(P201^2)/12)) -> 12.12527173 | R201: 0.5127268586 | S201: 0.8791332917 | T201: 1.39186015 | U201: =IF(H201>Vout, P201/SQRT(12), SQRT(O201/(1-O201))*SQRT(K201^2+(P201^2)/12)) -> 1.738451767 | V201: 0.00604442909 | W201: 0.00604442909 | X201: =IF(H201>Vout, SQRT(N201*(1-N201))*SQRT(K201^2+(P201^2)/12), P201/SQRT(12)) -> 5.980398404 | Y201: 0.07153033015 | Z201: 0.07153033015 | AA201: =CHOOSE(J201, SQRT(N201)*SQRT(K201^2+(P201^2)/12), SQRT(L201^2+(P201^2)/12), SQRT(N201)*SQRT(M201^2+(P201^2)/12)) -> 7.838638076 | AB201: =Rdson1*AA201^2 -> 0.3502322072 | AC201: =CHOOSE(J201, (H201*K201/2)*(Fsw)*(Tr_buck+Tf_buck), 0, (H201*M201/2)*(Fsw/2)*(Tr_buck+Tf_buck)) -> 0.298155 | AD201: =IF(H201>Vout, IF(K201>P201/2,0,ABS(K201-P201/2)*Vsd_Q1*Deadtime*Fsw),0) -> 0 | AE201: =(AD201+AC201+AB201*(1+RdsonTopTc*Ta-RdsonTopTc*25))/(1-AB201*RdsonTopTc*ThetaJA_Q1) -> 0.6972253628 | AF201: =CHOOSE(J201, SQRT((1-N201))*SQRT(K201^2+(P201^2)/12), 0, SQRT((1-N201))*SQRT(M201^2+(P201^2)/12)) -> 9.250836052 | AG201: =Rdson2*AF201^2 -> 0.4877944157 | AH201: =CHOOSE(J201, IF(K201<P201/2,Deadtime*Fsw*IF(VfdSky_Q2>0,0,Vsd_Q2)*(K201+P201/2),2*Deadtime*Fsw*IF(VfdSky_Q2>0,0,Vsd_Q2)*K201),0, IF(K201<P201/2,Deadtime*Fsw/2*IF(VfdSky_Q2>0,0,Vsd_Q2)*(K201+P201/2),2*Deadtime*Fsw/2*IF(VfdSky_Q2>0,0,Vsd_Q2)*K201)) -> 0.24 | AI201: =(AH201+AG201*(1+RdsonBotTc*Ta-RdsonBotTc*25))/(1-AG201*RdsonBotTc*ThetaJA_Q2) -> 0.8064730231 | AJ201: =CHOOSE(J201, 0, SQRT(O201)*SQRT(L201^2+(P201^2)/12), SQRT(O201)*SQRT(M201^2+(P201^2)/12)) -> 0 | AK201: =Rdson4*AJ201^2 -> 0 | AL201: =CHOOSE(J201, 0, (Vout*L201/2)*(Fsw)*(Tr_boost+Tf_boost), (Vout*Iout/2)*(Fsw/2)*(Tr_boost+Tf_boost)) -> 0 | AM201: =IF(H201>Vout, 0, IF(L201>P201/2,0,ABS(L201-P201/2)*Vsd_Q4*Deadtime*Fsw)) -> 0 | AN201: =(AM201+AL201+AK201*(1+RdsonTopTc*Ta-RdsonTopTc*25))/(1-AK201*RdsonTopTc*ThetaJA_Q4) -> 0 | AO201: =CHOOSE(J201, SQRT(Iout^2+(P201^2)/12), SQRT(1-O201)*SQRT(L201^2+(P201^2)/12), SQRT(1-O201)*SQRT(M201^2+(P201^2)/12)) -> 12.12527173 | AP201: =Rdson3*AO201^2 -> 0.2793422076 | AQ201: =CHOOSE(J201, 0, IF(L201<P201/2,Deadtime*Fsw*IF(VfdSky_Q3>0,0,Vsd_Q3)*(L201+P201/2), 2*Deadtime*Fsw*IF(VfdSky_Q3>0,0,Vsd_Q3)*L201), IF(L201<P201/2,Deadtime*Fsw/2*IF(VfdSky_Q3>0,0,Vsd_Q3)*(L201+P201/2), 2*Deadtime*Fsw/2*IF(VfdSky_Q3>0,0,Vsd_Q3)*L201)) -> 0 | AR201: =(AQ201+AP201*(1+RdsonBotTc*Ta-RdsonBotTc*25))/(1-AP201*RdsonBotTc*ThetaJA_Q3) -> 0.295872122 | AS201: =CHOOSE(J201, Rdson3*Q201^2, Rdson1*Q201^2, 0) -> 0.2793422076 | AT201: =CHOOSE(J201, 2*Deadtime*Fsw*IF(VfdSky_Q2>0,VfdSky_Q2,0)*K201, 2*Deadtime*Fsw*IF(VfdSky_Q3>0,VfdSky_Q3,0)*L201, 2*Deadtime*Fsw/2*IF(VfdSky_Q2>0,VfdSky_Q2,0)*K201+2*Deadtime*Fsw/2*IF(VfdSky_Q3>0,VfdSky_Q3,0)*L201) -> 0 | AU201: =CHOOSE(J201, IF(QrrSky_Q2>0,QrrSky_Q2,Qrr_Q2)*Fsw*(H201-K201*Rdson1), IF(QrrSky_Q3>0,QrrSky_Q3,Qrr_Q3)*Fsw*Vout, IF(QrrSky_Q2>0,QrrSky_Q2,Qrr_Q2)*Fsw/2*(H201-K201*Rdson1)+IF(QrrSky_Q3>0,QrrSky_Q3,Qrr_Q3)*Fsw/2*Vout) -> 0.4563027 | AV201: =CHOOSE(J201, Rs*AF201^2, Rs*AJ201^2, Rs*(AF201^2+AJ201^2)) -> 0.3423118706 | AW201: =Rshunt_std/1000*Iout^2 -> 0.59328 | AX201: =IF(Vout>8, Iq*Vout, Iq*H201) -> 0.036 | AY201: =CHOOSE(J201, (Qg_Q1+Qg_Q2)*Fsw, (Qg_Q3+Qg_Q4)*Fsw, (Qg_Q1+Qg_Q2+Qg_Q3+Qg_Q4)*Fsw/2)*IF(Vout>8, Vout, H201) -> 0.066 | AZ201: =(Vin-Vdd)*Fsw*(Qg_Q1+Qg_Q2)+(RdsonDRT+RdsonDRT2)*Fsw*Qg_Q1*Vdd/(RdsonDRT+2*Rgate1+RdsonDRT2)+(RdsonDRB+RdsonDRB2)*Fsw*Qg_Q2*Vdd/(RdsonDRB+2*Rgate2+RdsonDRB2) -> 0.0435 | BA201: 0.102 | BB201: 4.762899988 | BC201: =Vout*K201 -> 144 | BD201: 0.9679832809 | BE201: =IF(H201>Vout,ThetaJA_Q1*(AE201+AU201),ThetaJA_Q4*(AN201+AU201)) -> 57.67640314 | BF201: =IF(H201>Vout, AI201*ThetaJA_Q2, ThetaJA_Q3*AR201) -> 40.32365115 | BH201: 96.79832809 | BI201: 1.39186015 | BJ201: 2.255873208 | BK201: 0.9570529141 | BL201: 0.3423118706
... 8 more rows

Sheet Efficiency vs Load Calculations (hidden)
A1: BUCK-BOOST CONTROLLER POWER TOOL
H2: =BD19 -> 0.9415553102 | I2: 10% load
H3: =BD59 -> 0.9796691491 | I3: 50% load
H4: =BD109 -> 0.9779879085 | I4: 100% load
A6: Enter the values of your design and MOSFET datasheet specifications below. Note that thermal resistance (θJA) will change when components are placed on the PCB | BV6: 80 | BW6: 100 | BX6: 120 | BY6: 140 | BZ6: 160 | CA6: 180 | CB6: 20 | CC6: 30 | CD6: 40 | CE6: 50
G7: Operating Point Condtions | Q7: Filter Inductor | U7: Cout | X7: Cin | AA7: High-side BUCK "Control" MOSFET Losses | AF7: Low-side BUCK "Sync" MOSFET Losses | AJ7: Low-side BOOST "Control" MOSFET Losses | AO7: High-side BOOST "Sync" MOSFET Losses | AS7: Pass FET | AT7: External Diode | AU7: Diode/FET | AV7: Sense Rs | AW7: Output Rs | AX7: Controller IC Losses | BB7: RESULTS | BH7: Consolidated Buck/Boost Efficiency & Losses
A8: Input Parameters | G8: Step | H8: Vin | I8: Mode | J8: Mode Digit | K8: Iout | L8: Iin | M8: Avg IL | N8: Duty Cycle BUCK Leg | O8: Duty Cycle BOOST Leg | P8: Ripple Current pk-pk | Q8: Irms Lf | R8: DCR Loss | S8: Core Loss | T8: Total Inductor Loss | U8: Irms Cout | V8: Cout ESR Loss | W8: Total Cout Loss | X8: Irms Cin | Y8: Cin ESR Loss | Z8: Total Cin Loss | AA8: Irms | AB8: RDS(on) Loss | AC8: Transition Loss | AD8: Dead Time Loss | AE8: Total Control MOSFET Loss | AF8: Irms | AG8: RDS(on) Loss | AH8: Deadtime Loss | AI8: Total Sync MOSFET Loss | AJ8: Irms | AK8: RDS(on) Loss | AL8: Transition Loss | AM8: Dead Time Loss | AN8: Total Control MOSFET Loss | AO8: Irms | AP8: RDS(on) Loss | AQ8: Deadtime Loss | AR8: Total Sync MOSFET Loss | AS8: Q1/Q3 RDS(on) Loss @ D = 100% | AT8: Deadtime Loss | AU8: Reverse Recovery Loss | AV8: Isense Shunt Loss | AW8: Iout Shunt Loss | AX8: IQ Loss | AY8: Switching Current Loss | AZ8: Switching Current Diss | BA8: Total IC Loss | BB8: Total Loss | BC8: Pout | BD8: EFF, h | BE8: =IF(Vin>Vout, "Buck ''CONTROL'' MOSFET Temp Rise", "Boost ''CONTROL'' MOSFET Temp Rise") -> Boost ''CONTROL'' MOSFET Temp Rise | BF8: =IF(Vin>Vout, "Buck ''SYNC'' MOSFET Temp Rise", "Boost ''SYNC'' MOSFET Temp Rise") -> Boost ''SYNC'' MOSFET Temp Rise | BH8: h | BI8: Inductor Cu & Core Loss | BJ8: Total MOSFET Loss | BK8: =IF(Vin>Vout, "Buck ''Control'' MOSFET Loss", "Boost ''Control'' MOSFET Loss") -> Boost ''Control'' MOSFET Loss | BL8: =IF(Vin>Vout, "Buck ''SYNC'' MOSFET Loss", "Boost ''SYNC'' MOSFET Loss") -> Boost ''SYNC'' MOSFET Loss | BM8: Shunt Loss | BT8: Qg | BV8: θJA=80 | BW8: θJA=100 | BX8: θJA=120 | BY8: θJA=140 | BZ8: θJA=160 | CA8: θJA=180 | CB8: θJA=20 | CC8: θJA=30 | CD8: θJA=40 | CE8: θJA=50
A9: Design | B9: Input Value | C9: Units | D9: Description | G9: 0 | H9: =Vin -> 12 | I9: =IF(H9>VIN_BB_to_buck, "BUCK", IF(H9<VIN_boost_to_BB,"BOOST","BUCK-BST")) -> BUCK-BST | J9: =IF(I9="BOOST",2, IF(I9="BUCK", 1,3)) -> 3 | K9: 0 | L9: =Vout*K9/(Vin*Efficiency) -> 0 | M9: =K9/(1-O9) -> 0 | N9: =CHOOSE(J9,(Vout+(Rdson2+Rs+Rdcr)*K9)/(Vin+(Rs+Rdson2-Rdson1)*K9), 1, IF(Vin<Vout, D_max_buck_BB, Vout/Vin*(1-D_min_boost_exitBB_to_buck))) -> 0.9625 | O9: =CHOOSE(J9,0,(Vout+(Rdson3+Rdcr)*L9-Vin)/(Vout+(Rdson3-Rdson4-Rs)*L9), IF(Vin>Vout,D_min_boost_exitBB_to_buck, (Vout-Vin*D_max_buck_BB)/Vout)) -> 0.0375 | P9: =MAX(0, CHOOSE(J9, (Vin-(Rdson1+Rdcr)*K9-Vout)*N9/(Fsw*Lf), (Vin-(Rdson4+Rdcr+Rs)*L9)*O9/(Fsw*Lf), IF(Vin<Vout, (Vin-(Rdson4+Rdcr+Rs)*L9)*O9/(0.5*Fsw*Lf),(Vin-(Rdson1+Rdcr)*K9-Vout)*N9/(0.5*Fsw*Lf)))) -> 0 | Q9: =CHOOSE(J9, SQRT(K9^2+(P9^2)/12), SQRT(L9^2+(P9^2)/12), SQRT(M9^2+(P9^2)/12)) -> 0 | R9: =(Q9^2*Rdcr*(1+Ltc*Ta-Ltc*25))/(1-Q9^2*Rdcr*Ltc*ThetaCa) -> 0 | S9: =ABS(7.759*10^-3*Fsw^0.9458*(0.00787*P9)^2.304) -> 0 | T9: =R9+S9 -> 0 | U9: =IF(Vin>Vout, P9/SQRT(12), SQRT(O9/(1-O9))*SQRT(K9^2+(P9^2)/12)) -> 0 | V9: =RCoutEsr*U9^2 -> 0 | W9: =V9 -> 0 | X9: =IF(Vin>Vout, SQRT(N9*(1-N9))*SQRT(K9^2+(P9^2)/12), P9/SQRT(12)) -> 0 | Y9: =RCinEsr*X9^2 -> 0 | Z9: =Y9 -> 0 | AA9: =CHOOSE(J9, SQRT(N9)*SQRT(K9^2+(P9^2)/12), SQRT(L9^2+(P9^2)/12), SQRT(N9)*SQRT(M9^2+(P9^2)/12)) -> 0 | AB9: =Rdson1*AA9^2 -> 0 | AC9: =CHOOSE(J9, (Vin*K9/2)*(Fsw)*(Tr_buck+Tf_buck), 0, (Vin*K9/2)*(Fsw/2)*(Tr_buck+Tf_buck)) -> 0 | AD9: =CHOOSE(J9, IF(K9>P9/2,0,ABS(K9-P9/2)*Vsd_Q1*Deadtime*Fsw),0, IF(K9>P9/2,0,ABS(K9-P9/2)*Vsd_Q1*Deadtime*Fsw/2)) -> 0 | AE9: =(AD9+AC9+AB9*(1+RdsonTopTc*Ta-RdsonTopTc*25))/(1-AB9*RdsonTopTc*ThetaJA_Q1) -> 0 | AF9: =CHOOSE(J9, SQRT((1-N9))*SQRT(K9^2+(P9^2)/12), 0, SQRT((1-N9))*SQRT(M9^2+(P9^2)/12)) -> 0 | AG9: =Rdson2*AF9^2 -> 0 | AH9: =CHOOSE(J9, IF(K9<P9/2,Deadtime*Fsw*IF(VfdSky_Q2>0,0,Vsd_Q2)*(K9+P9/2),2*Deadtime*Fsw*IF(VfdSky_Q2>0,0,Vsd_Q2)*K9),0, IF(K9<P9/2,Deadtime*Fsw/2*IF(VfdSky_Q2>0,0,Vsd_Q2)*(K9+P9/2),2*Deadtime*Fsw/2*IF(VfdSky_Q2>0,0,Vsd_Q2)*K9)) -> 0 | AI9: =(AH9+AG9*(1+RdsonBotTc*Ta-RdsonBotTc*25))/(1-AG9*RdsonBotTc*ThetaJA_Q2) -> 0 | AJ9: =CHOOSE(J9, 0, SQRT(O9)*SQRT(L9^2+(P9^2)/12), SQRT(O9)*SQRT(M9^2+(P9^2)/12)) -> 0 | AK9: =Rdson4*AJ9^2 -> 0 | AL9: =CHOOSE(J9, 0, (Vout*L9/2)*(Fsw)*(Tr_boost+Tf_boost), (Vout*Iout/2)*(Fsw/2)*(Tr_boost+Tf_boost)) -> 0.05748809472 | AM9: =IF(H9>Vout, 0, IF(L9>P9/2,0,ABS(L9-P9/2)*Vsd_Q4*Deadtime*Fsw)) -> 0 | AN9: =(AM9+AL9+AK9*(1+RdsonTopTc*Ta-RdsonTopTc*25))/(1-AK9*RdsonTopTc*ThetaJA_Q4) -> 0.05748809472 | AO9: =CHOOSE(J9, SQRT(K9^2+(P9^2)/12), SQRT(1-O9)*SQRT(L9^2+(P9^2)/12), SQRT(1-O9)*SQRT(M9^2+(P9^2)/12)) -> 0 | AP9: =Rdson3*AO9^2 -> 0 | AQ9: =CHOOSE(J9, 0, IF(L9<P9/2,Deadtime*Fsw*IF(VfdSky_Q3>0,0,Vsd_Q3)*(L9+P9/2), 2*Deadtime*Fsw*IF(VfdSky_Q3>0,0,Vsd_Q3)*L9), IF(L9<P9/2,Deadtime*Fsw/2*IF(VfdSky_Q3>0,0,Vsd_Q3)*(L9+P9/2), 2*Deadtime*Fsw/2*IF(VfdSky_Q3>0,0,Vsd_Q3)*L9)) -> 0 | AR9: =(AQ9+AP9*(1+RdsonBotTc*Ta-RdsonBotTc*25))/(1-AP9*RdsonBotTc*ThetaJA_Q3) -> 0 | AS9: =CHOOSE(J9, Rdson3*Q9^2, Rdson1*Q9^2, 0) -> 0 | AT9: =CHOOSE(J9, 2*Deadtime*Fsw*IF(VfdSky_Q2>0,VfdSky_Q2,0)*K9, 2*Deadtime*Fsw*IF(VfdSky_Q3>0,VfdSky_Q3,0)*L9, 2*Deadtime*Fsw/2*IF(VfdSky_Q2>0,VfdSky_Q2,0)*K9+2*Deadtime*Fsw/2*IF(VfdSky_Q3>0,VfdSky_Q3,0)*L9) -> 0 | AU9: =CHOOSE(J9, IF(QrrSky_Q2>0,QrrSky_Q2,Qrr_Q2*K9/Iout)*Fsw*(Vin-K9*Rdson1), IF(QrrSky_Q3>0,QrrSky_Q3,Qrr_Q3)*Fsw*Vout, IF(QrrSky_Q2>0,QrrSky_Q2,Qrr_Q2*K9/Iout)*Fsw/2*(Vin-K9*Rdson1)+IF(QrrSky_Q3>0,QrrSky_Q3,Qrr_Q3)*Fsw/2*Vout) -> 0.0495 | AV9: =CHOOSE(J9, Rs*AF9^2, Rs*AJ9^2, Rs*(AF9^2+AJ9^2)) -> 0 | AW9: =Rshunt_std/1000*Iout^2 -> 0.59328 | AX9: =IF(Vout>8, Iq*Vout, Iq*Vin) -> 0.036 | AY9: =CHOOSE(J9, (Qg_Q1+Qg_Q2)*Fsw, (Qg_Q3+Qg_Q4)*Fsw, (Qg_Q1+Qg_Q2+Qg_Q3+Qg_Q4)*Fsw/2)*IF(Vout>8, Vout, Vin) -> 0.099 | AZ9: =(Vin-Vdd)*Fsw*(Qg_Q1+Qg_Q2)+(RdsonDRT+RdsonDRT2)*Fsw*Qg_Q1*Vdd/(RdsonDRT+2*Rgate1+RdsonDRT2)+(RdsonDRB+RdsonDRB2)*Fsw*Qg_Q2*Vdd/(RdsonDRB+2*Rgate2+RdsonDRB2) -> 0.0435 | BA9: =SUM(AX9:AY9) -> 0.135 | BB9: =SUM(T9,W9,Z9,AE9,AI9,AN9,AR9, AT9,AU9,BA9,AV9,AW9) -> 0.8352680947 | BC9: =Vout*K9 -> 0 | BD9: =BC9/(BC9+BB9) -> 0 | BE9: =IF(Vin>Vout,ThetaJA_Q1*BK9,ThetaJA_Q4*BK9) -> 4.507904736 | BF9: =IF(Vin>Vout, ThetaJA_Q2*BL9, ThetaJA_Q3*BL9) -> 0.81675 | BH9: =BD9*100 -> 0 | BI9: =T9 -> 0 | BJ9: =AE9+AI9+AN9+AR9+AU9 -> 0.1069880947 | BK9: =IF(Vin>Vout, AE9+AU9*0.66, AN9+AU9*0.66) -> 0.09015809472 | BL9: =IF(Vin>Vout, AI9+AU9*0.33, AR9+AU9*0.33) -> 0.016335 | BM9: =AV9 -> 0 | BQ9: 250kHz / 5-1.2V /25A | BR9: 70 | BS9: 70 | BT9: 70 | BU9: =250000*(5-Vdd)*BT9/1000000000+((250000*BT9/1000000000*Vdd)*2.5/(2*4)) -> -0.002734375 | BV9: =BV$6*$BU9 -> -0.21875 | BW9: -0.2734375 | BX9: -0.328125 | BY9: -0.3828125 | BZ9: -0.4375 | CA9: -0.4921875 | CB9: -0.0546875 | CC9: -0.08203125 | CD9: -0.109375 | CE9: -0.13671875
G10: 1 | H10: 12 | I10: BUCK-BST | J10: =IF(I10="BOOST",2, IF(I10="BUCK", 1,3)) -> 3 | K10: =Iout*G10/100 -> 0.12 | L10: 0.1333333333 | M10: =K10/(1-O10) -> 0.1246753247 | N10: 0.9625 | O10: 0.0375 | P10: 0 | Q10: 0.1246753247 | R10: 5.207240447e-05 | S10: =7.759*10^-3*Fsw^0.9458*(0.00787*P10)^2.304 -> 0 | T10: =R10+S10 -> 5.207240447e-05 | U10: 0.02368626102 | V10: 1.122077922e-06 | W10: =V10 -> 1.122077922e-06 | X10: 0 | Y10: 0 | Z10: =Y10 -> 0 | AA10: 0.1223153259 | AB10: 8.527792208e-05 | AC10: 0.0006160227273 | AD10: 0 | AE10: 0.0007013126106 | AF10: 0.02414327281 | AG10: 3.322516445e-06 | AH10: 0.0012 | AI10: 0.001203323316 | AJ10: 0.02414327281 | AK10: 1.107505482e-06 | AL10: 0.05748809472 | AM10: 0 | AN10: 0.05748921496 | AO10: =CHOOSE(J10, SQRT(K10^2+(P10^2)/12), SQRT(1-O10)*SQRT(L10^2+(P10^2)/12), SQRT(1-O10)*SQRT(M10^2+(P10^2)/12)) -> 0.1223153259 | AP10: 2.842597403e-05 | AQ10: 0.001333333333 | AR10: 0.001361767049 | AS10: 0 | AT10: 0 | AU10: 0.05044494613 | AV10: 4.663180975e-06 | AW10: 0.59328 | AX10: 0.036 | AY10: 0.099 | AZ10: 0.0435 | BA10: =SUM(AX10:AY10) -> 0.135 | BB10: =SUM(T10,W10,Z10,AE10,AI10,AN10,AR10, AT10,AU10,BA10,AV10,AW10) -> 0.8395384217 | BC10: 1.44 | BD10: =BC10/(BC10+BB10) -> 0.6317068343 | BE10: 4.53914397 | BF10: 0.9004299637 | BH10: =BD10*100 -> 63.17068343 | BI10: =T10 -> 5.207240447e-05 | BJ10: =AE10+AI10+AN10+AR10+AU10 -> 0.1112005641 | BK10: 0.09078287941 | BL10: 0.01800859927 | BM10: =AV10 -> 4.663180975e-06
A11: Vin | B11: =Vin -> 12 | C11: V | D11: Vin | G11: 2 | H11: 12 | I11: BUCK-BST | J11: 3 | K11: 0.24 | L11: 0.2666666667 | M11: =K11/(1-O11) -> 0.2493506494 | N11: 0.9625 | O11: 0.0375 | P11: 0 | Q11: 0.2493506494 | R11: 0.000208292221 | S11: 0 | T11: 0.000208292221 | U11: 0.04737252204 | V11: 4.488311688e-06 | W11: 4.488311688e-06 | X11: 0 | Y11: 0 | Z11: 0 | AA11: 0.2446306519 | AB11: 0.0003411116883 | AC11: 0.001232045455 | AD11: 0 | AE11: 0.001573264475 | AF11: 0.04828654562 | AG11: 1.329006578e-05 | AH11: 0.0024 | AI11: 0.00241329648 | AJ11: 0.04828654562 | AK11: 4.430021926e-06 | AL11: 0.05748809472 | AM11: 0 | AN11: 0.05749257568 | AO11: 0.2446306519 | AP11: 0.0001137038961 | AQ11: 0.002666666667 | AR11: 0.002780433792 | AS11: 0 | AT11: 0 | AU11: 0.05138978454 | AV11: 1.86527239e-05 | AW11: 0.59328 | AX11: 0.036 | AY11: 0.099 | AZ11: 0.0435 | BA11: =SUM(AX11:AY11) -> 0.135 | BB11: =SUM(T11,W11,Z11,AE11,AI11,AN11,AR11, AT11,AU11,BA11,AV11,AW11) -> 0.8441607882 | BC11: 2.88 | BD11: 0.773328587 | BE11: 4.570491674 | BF11: 0.9869531345 | BH11: 77.3328587 | BI11: 0.000208292221 | BJ11: 0.115649355 | BK11: 0.09140983347 | BL11: 0.01973906269 | BM11: 1.86527239e-05 | BQ11: 250kHz / 12-5V / 30A | BR11: 90 | BS11: 90 | BT11: 90 | BU11: =250000*(12-Vdd)*BT11/1000000000+((250000*BT9/1000000000*Vdd)*2.5/(2*4)) -> 0.142265625 | BV11: 11.38125 | BW11: 14.2265625 | BX11: 17.071875 | BY11: 19.9171875 | BZ11: 22.7625 | CA11: 25.6078125 | CB11: 2.8453125 | CC11: 4.26796875 | CD11: 5.690625 | CE11: 7.11328125
A12: Vout | B12: =Vout -> 12 | C12: V | D12: Vout | G12: 3 | H12: 12 | I12: BUCK-BST | J12: 3 | K12: 0.36 | L12: 0.4 | M12: 0.374025974 | N12: 0.9625 | O12: 0.0375 | P12: 0 | Q12: 0.374025974 | R12: 0.0004686672592 | S12: 0 | T12: 0.0004686672592 | U12: 0.07105878306 | V12: 1.00987013e-05 | W12: 1.00987013e-05 | X12: 0 | Y12: 0 | Z12: 0 | AA12: 0.3669459778 | AB12: 0.0007675012987 | AC12: 0.001848068182 | AD12: 0 | AE12: 0.002615971033 | AF12: 0.07242981842 | AG12: 2.9902648e-05 | AH12: 0.0036 | AI12: 0.003629924357 | AJ12: 0.07242981842 | AK12: 9.967549334e-06 | AL12: 0.05748809472 | AM12: 0 | AN12: 0.05749817689 | AO12: 0.3669459778 | AP12: 0.0002558337662 | AQ12: 0.004 | AR12: 0.004256051535 | AS12: 0 | AT12: 0 | AU12: 0.05233451521 | AV12: 4.196862877e-05 | AW12: 0.59328 | AX12: 0.036 | AY12: 0.099 | AZ12: 0.0435 | BA12: 0.135 | BB12: 0.8491353736 | BC12: 4.32 | BD12: 0.8357297087 | BE12: 4.601947847 | BF12: 1.076322078 | BH12: 83.57297087 | BI12: 0.0004686672592 | BJ12: 0.120334639 | BK12: 0.09203895693 | BL12: 0.02152644156 | BM12: 4.196862877e-05 | BQ12: 250kHz / 18-1.2V / 20A | BR12: 60 | BS12: 60 | BT12: 60 | BU12: =250000*(18-Vdd)*BT12/1000000000+((250000*BT9/1000000000*Vdd)*2.5/(2*4)) -> 0.198515625 | BV12: 15.88125 | BW12: 19.8515625 | BX12: 23.821875 | BY12: 27.7921875 | BZ12: 31.7625 | CA12: 35.7328125 | CB12: 3.9703125 | CC12: 5.95546875 | CD12: 7.940625 | CE12: 9.92578125
A13: Fsw | B13: =Fsw/1000 -> 250 | C13: kHz | D13: Switching Frequency | G13: 4 | H13: 12 | I13: BUCK-BST | J13: 3 | K13: 0.48 | L13: 0.5333333333 | M13: 0.4987012987 | N13: 0.9625 | O13: 0.0375 | P13: 0 | Q13: 0.4987012987 | R13: 0.0008332105363 | S13: 0 | T13: 0.0008332105363 | U13: 0.09474504407 | V13: 1.795324675e-05 | W13: 1.795324675e-05 | X13: 0 | Y13: 0 | Z13: 0 | AA13: 0.4892613038 | AB13: 0.001364446753 | AC13: 0.002464090909 | AD13: 0 | AE13: 0.003829582715 | AF13: 0.09657309123 | AG13: 5.316026311e-05 | AH13: 0.0048 | AI13: 0.004853211863 | AJ13: 0.09657309123 | AK13: 1.77200877e-05 | AL13: 0.05748809472 | AM13: 0 | AN13: 0.05750601861 | AO13: 0.4892613038 | AP13: 0.0004548155844 | AQ13: 0.005333333333 | AR13: 0.005788675474 | AS13: 0 | AT13: 0 | AU13: 0.05327913816 | AV13: 7.46108956e-05 | AW13: 0.59328 | AX13: 0.036 | AY13: 0.099 | AZ13: 0.0435 | BA13: 0.135 | BB13: 0.8544624015 | BC13: 5.76 | BD13: 0.8708190705 | BE13: 4.63351249 | BF13: 1.168539553 | BH13: 87.08190705 | BI13: 0.0008332105363 | BJ13: 0.1252566268 | BK13: 0.09267024979 | BL13: 0.02337079107 | BM13: 7.46108956e-05 | BQ13: 500kHz / 5-1.2V / 15A | BR13: 30 | BS13: 30 | BT13: 30 | BU13: =500000*(5-Vdd)*BT13/1000000000+((500000*BT9/1000000000*Vdd)*2.5/(2*4)) -> 0.04453125 | BV13: 3.5625 | BW13: 4.453125 | BX13: 5.34375 | BY13: 6.234375 | BZ13: 7.125 | CA13: 8.015625 | CB13: 0.890625 | CC13: 1.3359375 | CD13: 1.78125 | CE13: 2.2265625
A14: Iout | B14: =Iout -> 12 | C14: A | D14: Max Output Current | G14: 5 | H14: 12 | I14: BUCK-BST | J14: 3 | K14: 0.6 | L14: 0.6666666667 | M14: 0.6233766234 | N14: 0.9625 | O14: 0.0375 | P14: 0 | Q14: 0.6233766234 | R14: 0.001301940279 | S14: 0 | T14: 0.001301940279 | U14: 0.1184313051 | V14: 2.805194805e-05 | W14: 2.805194805e-05 | X14: 0 | Y14: 0 | Z14: 0 | AA14: 0.6115766297 | AB14: 0.002131948052 | AC14: 0.003080113636 | AD14: 0 | AE14: 0.005214285005 | AF14: 0.120716364 | AG14: 8.306291111e-05 | AH14: 0.006 | AI14: 0.006083163968 | AJ14: 0.120716364 | AK14: 2.768763704e-05 | AL14: 0.05748809472 | AM14: 0 | AN14: 0.05751610085 | AO14: 0.6115766297 | AP14: 0.0007106493506 | AQ14: 0.006666666667 | AR14: 0.007378364703 | AS14: 0 | AT14: 0 | AU14: 0.05422365337 | AV14: 0.0001165795244 | AW14: 0.59328 | AX14: 0.036 | AY14: 0.099 | AZ14: 0.0435 | BA14: 0.135 | BB14: 0.8601421397 | BC14: 7.2 | BD14: 0.8932844949 | BE14: 4.665185604 | BF14: 1.263608516 | BH14: 89.32844949 | BI14: 0.001301940279 | BJ14: 0.1304155679 | BK14: 0.09330371208 | BL14: 0.02527217032 | BM14: 0.0001165795244 | BQ14: 500kHz / 12-5V / 15A | BR14: 45 | BS14: 45 | BT14: 45 | BU14: =500000*(12-Vdd)*BT14/1000000000+((500000*BT9/1000000000*Vdd)*2.5/(2*4)) -> 0.18328125 | BV14: 14.6625 | BW14: 18.328125 | BX14: 21.99375 | BY14: 25.659375 | BZ14: 29.325 | CA14: 32.990625 | CB14: 3.665625 | CC14: 5.4984375 | CD14: 7.33125 | CE14: 9.1640625
A15: Ta | B15: =Ta -> 25 | C15: °C | D15: Ambient Temperature | G15: 6 | H15: 12 | I15: BUCK-BST | J15: 3 | K15: 0.72 | L15: 0.8 | M15: 0.7480519481 | N15: 0.9625 | O15: 0.0375 | P15: 0 | Q15: 0.7480519481 | R15: 0.001874879924 | S15: 0 | T15: 0.001874879924 | U15: 0.1421175661 | V15: 4.039480519e-05 | W15: 4.039480519e-05 | X15: 0 | Y15: 0 | Z15: 0 | AA15: 0.7338919557 | AB15: 0.003070005195 | AC15: 0.003696136364 | AD15: 0 | AE15: 0.006770298529 | AF15: 0.1448596368 | AG15: 0.000119610592 | AH15: 0.0072 | AI15: 0.007319785697 | AJ15: 0.1448596368 | AK15: 3.987019734e-05 | AL15: 0.05748809472 | AM15: 0 | AN15: 0.05752842365 | AO15: 0.7338919557 | AP15: 0.001023335065 | AQ15: 0.008 | AR15: 0.009025182222 | AS15: 0 | AT15: 0 | AU15: 0.05516806086 | AV15: 0.0001678745151 | AW15: 0.59328 | AX15: 0.036 | AY15: 0.099 | AZ15: 0.0435 | BA15: 0.135 | BB15: 0.8661749002 | BC15: 8.64 | BD15: 0.9088829199 | BE15: 4.696967191 | BF15: 1.361532115 | BH15: 90.88829199 | BI15: 0.001874879924 | BJ15: 0.135811751 | BK15: 0.09393934382 | BL15: 0.02723064231 | BM15: 0.0001678745151 | BQ15: 1Mhz / 5-1.2V / 10A | BR15: 20 | BS15: 20 | BT15: 20 | BU15: =1000000*(5-Vdd)*BT15/1000000000+((1000000*BT9/1000000000*Vdd)*2.5/(2*4)) -> 0.1140625 | BV15: 9.125 | BW15: 11.40625 | BX15: 13.6875 | BY15: 15.96875 | BZ15: 18.25 | CA15: 20.53125 | CB15: 2.28125 | CC15: 3.421875 | CD15: 4.5625 | CE15: 5.703125
A16: Vcc | B16: =Vdd -> 7.5 | C16: V | D16: Subregulated VCC Voltage | G16: 7 | H16: 12 | I16: BUCK-BST | J16: 3 | K16: 0.84 | L16: 0.9333333333 | M16: 0.8727272727 | N16: 0.9625 | O16: 0.0375 | P16: 0 | Q16: 0.8727272727 | R16: 0.002552058124 | S16: 0 | T16: 0.002552058124 | U16: 0.1658038271 | V16: 5.498181818e-05 | W16: 5.498181818e-05 | X16: 0 | Y16: 0 | Z16: 0 | AA16: 0.8562072816 | AB16: 0.004178618182 | AC16: 0.004312159091 | AD16: 0 | AE16: 0.008497879151 | AF16: 0.1690029097 | AG16: 0.0001628033058 | AH16: 0.0084 | AI16: 0.008563082125 | AJ16: 0.1690029097 | AK16: 5.42677686e-05 | AL16: 0.05748809472 | AM16: 0 | AN16: 0.05754298703 | AO16: 0.8562072816 | AP16: 0.001392872727 | AQ16: 0.009333333333 | AR16: 0.01072919494 | AS16: 0 | AT16: 0 | AU16: 0.05611236061 | AV16: 0.0002284958678 | AW16: 0.59328 | AX16: 0.036 | AY16: 0.099 | AZ16: 0.0435 | BA16: 0.135 | BB16: 0.8725610397 | BC16: 10.08 | BD16: 0.9203326933 | BE16: 4.728857252 | BF16: 1.462313697 | BH16: 92.03326933 | BI16: 0.002552058124 | BJ16: 0.1414455039 | BK16: 0.09457714504 | BL16: 0.02924627394 | BM16: 0.0002284958678 | BQ16: 1Mhz / 12-1.2V/ 10A | BR16: 25 | BS16: 25 | BT16: 25 | BU16: =1000000*(12-Vdd)*BT16/1000000000+((1000000*BT9/1000000000*Vdd)*2.5/(2*4)) -> 0.2765625 | BV16: 22.125 | BW16: 27.65625 | BX16: 33.1875 | BY16: 38.71875 | BZ16: 44.25 | CA16: 49.78125 | CB16: 5.53125 | CC16: 8.296875 | CD16: 11.0625 | CE16: 13.828125
A17: Components | B17: Input Value | C17: Units | D17: Description | G17: 8 | H17: 12 | I17: BUCK-BST | J17: 3 | K17: 0.96 | L17: 1.066666667 | M17: 0.9974025974 | N17: 0.9625 | O17: 0.0375 | P17: 0 | Q17: 0.9974025974 | R17: 0.003333508749 | S17: 0 | T17: 0.003333508749 | U17: 0.1894900881 | V17: 7.181298701e-05 | W17: 7.181298701e-05 | X17: 0 | Y17: 0 | Z17: 0 | AA17: 0.9785226076 | AB17: 0.005457787013 | AC17: 0.004928181818 | AD17: 0 | AE17: 0.0103973181 | AF17: 0.1931461825 | AG17: 0.0002126410525 | AH17: 0.0096 | AI17: 0.009813058384 | AJ17: 0.1931461825 | AK17: 7.088035082e-05 | AL17: 0.05748809472 | AM17: 0 | AN17: 0.05755979104 | AO17: 0.9785226076 | AP17: 0.001819262338 | AQ17: 0.01066666667 | AR17: 0.01249047369 | AS17: 0 | AT17: 0 | AU17: 0.05705655264 | AV17: 0.0002984435824 | AW17: 0.59328 | AX17: 0.036 | AY17: 0.099 | AZ17: 0.0435 | BA17: 0.135 | BB17: 0.8793009592 | BC17: 11.52 | BD17: 0.9290846345 | BE17: 4.760855789 | BF17: 1.565956803 | BH17: 92.90846345 | BI17: 0.003333508749 | BJ17: 0.1473171939 | BK17: 0.09521711578 | BL17: 0.03131913607 | BM17: 0.0002984435824 | BQ17: 500kHz / 18-1.2V / 20A | BR17: 50 | BS17: 50 | BT17: 50 | BU17: =500000*(18-Vdd)*BT17/1000000000+((500000*BT15/1000000000*Vdd)*2.5/(2*4)) -> 0.2859375 | BV17: 22.875 | BW17: 28.59375 | BX17: 34.3125 | BY17: 40.03125 | BZ17: 45.75 | CA17: 51.46875 | CB17: 5.71875 | CC17: 8.578125 | CD17: 11.4375 | CE17: 14.296875
A18: L | B18: =Lf*1000000 -> 4.7 | C18: uH | D18: Filter Inductance | G18: 9 | H18: 12 | I18: BUCK-BST | J18: 3 | K18: 1.08 | L18: 1.2 | M18: 1.122077922 | N18: 0.9625 | O18: 0.0375 | P18: 0 | Q18: 1.122077922 | R18: 0.004219270891 | S18: 0 | T18: 0.004219270891 | U18: 0.2131763492 | V18: 9.088831169e-05 | W18: 9.088831169e-05 | X18: 0 | Y18: 0 | Z18: 0 | AA18: 1.100837934 | AB18: 0.006907511688 | AC18: 0.005544204545 | AD18: 0 | AE18: 0.01246894211 | AF18: 0.2172894553 | AG18: 0.000269123832 | AH18: 0.0108 | AI18: 0.01106971966 | AJ18: 0.2172894553 | AK18: 8.9707944e-05 | AL18: 0.05748809472 | AM18: 0 | AN18: 0.05757883572 | AO18: 1.100837934 | AP18: 0.002302503896 | AQ18: 0.012 | AR18: 0.01430909324 | AS18: 0 | AT18: 0 | AU18: 0.05800063693 | AV18: 0.000377717659 | AW18: 0.59328 | AX18: 0.036 | AY18: 0.099 | AZ18: 0.0435 | BA18: 0.135 | BB18: 0.8863951045 | BC18: 12.96 | BD18: 0.9359836912 | BE18: 4.792962805 | BF18: 1.672465172 | BH18: 93.59836912 | BI18: 0.004219270891 | BJ18: 0.1534272277 | BK18: 0.09585925609 | BL18: 0.03344930343 | BM18: 0.000377717659 | BQ18: θJA=120°C/W - 160°C/W
A19: Rdcr | B19: =Rdcr*1000 -> 3.35 | C19: mW | D19: Inductor DCR at 25°C | G19: 10 | H19: 12 | I19: BUCK-BST | J19: 3 | K19: 1.2 | L19: 1.333333333 | M19: 1.246753247 | N19: 0.9625 | O19: 0.0375 | P19: 0 | Q19: 1.246753247 | R19: 0.005209388869 | S19: 0 | T19: 0.005209388869 | U19: 0.2368626102 | V19: 0.0001122077922 | W19: 0.0001122077922 | X19: 0 | Y19: 0 | Z19: 0 | AA19: 1.223153259 | AB19: 0.008527792208 | AC19: 0.006160227273 | AD19: 0 | AE19: 0.01471311356 | AF19: 0.2414327281 | AG19: 0.0003322516445 | AH19: 0.012 | AI19: 0.01233307118 | AJ19: 0.2414327281 | AK19: 0.0001107505482 | AL19: 0.05748809472 | AM19: 0 | AN19: 0.05760012112 | AO19: 1.223153259 | AP19: 0.002842597403 | AQ19: 0.01333333333 | AR19: 0.0161851323 | AS19: 0 | AT19: 0 | AU19: 0.0589446135 | AV19: 0.0004663180975 | AW19: 0.59328 | AX19: 0.036 | AY19: 0.099 | AZ19: 0.0435 | BA19: 0.135 | BB19: 0.8938439664 | BC19: 14.4 | BD19: 0.9415553102 | BE19: 4.825178301 | BF19: 1.781842738 | BH19: 94.15553102 | BI19: 0.005209388869 | BJ19: 0.1597760517 | BK19: 0.09650356603 | BL19: 0.03563685475 | BM19: 0.0004663180975 | BQ19: θJA=30°C/W - 50°C/W
A20: LTc | B20: =Ltc*1000000 -> 4000 | C20: ppm | D20: Inductor Series Resistance Temp Co | G20: 11 | H20: 12 | I20: BUCK-BST | J20: 3 | K20: 1.32 | L20: 1.466666667 | M20: 1.371428571 | N20: 0.9625 | O20: 0.0375 | P20: 0 | Q20: 1.371428571 | R20: 0.006303912236 | S20: 0 | T20: 0.006303912236 | U20: 0.2605488712 | V20: 0.0001357714286 | W20: 0.0001357714286 | X20: 0 | Y20: 0 | Z20: 0 | AA20: 1.345468585 | AB20: 0.01031862857 | AC20: 0.00677625 | AD20: 0 | AE20: 0.01713023067 | AF20: 0.2655760009 | AG20: 0.0004020244898 | AH20: 0.0132 | AI20: 0.01360311825 | AJ20: 0.2655760009 | AK20: 0.0001340081633 | AL20: 0.05748809472 | AM20: 0 | AN20: 0.05762364729 | AO20: 1.345468585 | AP20: 0.003439542857 | AQ20: 0.01466666667 | AR20: 0.01811867351 | AS20: 0 | AT20: 0 | AU20: 0.05988848233 | AV20: 0.000564244898 | AW20: 0.59328 | AX20: 0.036 | AY20: 0.099 | AZ20: 0.0435 | BA20: 0.135 | BB20: 0.9016480806 | BC20: 15.84 | BD20: 0.9461434098 | BE20: 4.857502282 | BF20: 1.894093634 | BH20: 94.61434098 | BI20: 0.006303912236 | BJ20: 0.1663641521 | BK20: 0.09715004563 | BL20: 0.03788187269 | BM20: 0.000564244898
A21: ThetaCa | B21: =ThetaCa -> 20 | C21: °C/W | D21: Core to Ambient Thermal Resistance | G21: 12 | H21: 12 | I21: BUCK-BST | J21: 3 | K21: 1.44 | L21: 1.6 | M21: 1.496103896 | N21: 0.9625 | O21: 0.0375 | P21: 0 | Q21: 1.496103896 | R21: 0.007502895782 | S21: 0 | T21: 0.007502895782 | U21: 0.2842351322 | V21: 0.0001615792208 | W21: 0.0001615792208 | X21: 0 | Y21: 0 | Z21: 0 | AA21: 1.467783911 | AB21: 0.01228002078 | AC21: 0.007392272727 | AD21: 0 | AE21: 0.0197207277 | AF21: 0.2897192737 | AG21: 0.000478442368 | AH21: 0.0144 | AI21: 0.0148798662 | AJ21: 0.2897192737 | AK21: 0.0001594807893 | AL21: 0.05748809472 | AM21: 0 | AN21: 0.0576494143 | AO21: 1.467783911 | AP21: 0.00409334026 | AQ21: 0.016 | AR21: 0.02010980351 | AS21: 0 | AT21: 0 | AU21: 0.06083224344 | AV21: 0.0006714980604 | AW21: 0.59328 | AX21: 0.036 | AY21: 0.099 | AZ21: 0.0435 | BA21: 0.135 | BB21: 0.9098080282 | BC21: 17.28 | BD21: 0.9499825382 | BE21: 4.889934749 | BF21: 2.009222192 | BH21: 94.99825382 | BI21: 0.007502895782 | BJ21: 0.1731920552 | BK21: 0.09779869497 | BL21: 0.04018444385 | BM21: 0.0006714980604
A22: Cin | B22: =Cin*1000000 -> 100 | C22: μF | D22: Input Capacitance | G22: 13 | H22: 12 | I22: BUCK-BST | J22: 3 | K22: 1.56 | L22: 1.733333333 | M22: 1.620779221 | N22: 0.9625 | O22: 0.0375 | P22: 0 | Q22: 1.620779221 | R22: 0.008806399542 | S22: 0 | T22: 0.008806399542 | U22: 0.3079213932 | V22: 0.0001896311688 | W22: 0.0001896311688 | X22: 0 | Y22: 0 | Z22: 0 | AA22: 1.590099237 | AB22: 0.01441196883 | AC22: 0.008008295455 | AD22: 0 | AE22: 0.02248507513 | AF22: 0.3138625465 | AG22: 0.0005615052791 | AH22: 0.0156 | AI22: 0.01616332044 | AJ22: 0.3138625465 | AK22: 0.0001871684264 | AL22: 0.05748809472 | AM22: 0 | AN22: 0.05767742222 | AO22: 1.590099237 | AP22: 0.00480398961 | AQ22: 0.01733333333 | AR22: 0.02215861289 | AS22: 0 | AT22: 0 | AU22: 0.06177589681 | AV22: 0.0007880775848 | AW22: 0.59328 | AX22: 0.036 | AY22: 0.099 | AZ22: 0.0435 | BA22: 0.135 | BB22: 0.9183244358 | BC22: 18.72 | BD22: 0.9532381472 | BE22: 4.922475706 | BF22: 2.127232942 | BH22: 95.32381472 | BI22: 0.008806399542 | BJ22: 0.1802603275 | BK22: 0.09844951412 | BL22: 0.04254465884 | BM22: 0.0007880775848
A23: RCinEsr | B23: =RCinEsr*1000 -> 2 | C23: mW | D23: Input Capacitor ESR | G23: 14 | H23: 12 | I23: BUCK-BST | J23: 3 | K23: 1.68 | L23: 1.866666667 | M23: 1.745454545 | N23: 0.9625 | O23: 0.0375 | P23: 0 | Q23: 1.745454545 | R23: 0.01021448881 | S23: 0 | T23: 0.01021448881 | U23: 0.3316076543 | V23: 0.0002199272727 | W23: 0.0002199272727 | X23: 0 | Y23: 0 | Z23: 0 | AA23: 1.712414563 | AB23: 0.01671447273 | AC23: 0.008624318182 | AD23: 0 | AE23: 0.02542377992 | AF23: 0.3380058193 | AG23: 0.0006512132231 | AH23: 0.0168 | AI23: 0.01745348641 | AJ23: 0.3380058193 | AK23: 0.0002170710744 | AL23: 0.05748809472 | AM23: 0 | AN23: 0.05770767113 | AO23: 1.712414563 | AP23: 0.005571490909 | AQ23: 0.01866666667 | AR23: 0.02426519624 | AS23: 0 | AT23: 0 | AU23: 0.06271944246 | AV23: 0.0009139834711 | AW23: 0.59328 | AX23: 0.036 | AY23: 0.099 | AZ23: 0.0435 | BA23: 0.135 | BB23: 0.9271979757 | BC23: 20.16 | BD23: 0.9560302902 | BE23: 4.955125157 | BF23: 2.248130613 | BH23: 95.60302902 | BI23: 0.01021448881 | BJ23: 0.1875695762 | BK23: 0.09910250315 | BL23: 0.04496261225 | BM23: 0.0009139834711
A24: Cout | B24: =Cout*1000000 -> 600 | C24: μF | D24: Output Capcitance | G24: 15 | H24: 12 | I24: BUCK-BST | J24: 3 | K24: 1.8 | L24: 2 | M24: 1.87012987 | N24: 0.9625 | O24: 0.0375 | P24: 0 | Q24: 1.87012987 | R24: 0.01172723413 | S24: 0 | T24: 0.01172723413 | U24: 0.3552939153 | V24: 0.0002524675325 | W24: 0.0002524675325 | X24: 0 | Y24: 0 | Z24: 0 | AA24: 1.834729889 | AB24: 0.01918753247 | AC24: 0.009240340909 | AD24: 0 | AE24: 0.02853738578 | AF24: 0.3621490921 | AG24: 0.0007475662 | AH24: 0.018 | AI24: 0.01875036963 | AJ24: 0.3621490921 | AK24: 0.0002491887333 | AL24: 0.05748809472 | AM24: 0 | AN24: 0.05774016109 | AO24: 1.834729889 | AP24: 0.006395844156 | AQ24: 0.02 | AR24: 0.02642965214 | AS24: 0 | AT24: 0 | AU24: 0.06366288037 | AV24: 0.001049215719 | AW24: 0.59328 | AX24: 0.036 | AY24: 0.099 | AZ24: 0.0435 | BA24: 0.135 | BB24: 0.9364293664 | BC24: 21.6 | BD24: 0.9584481929 | BE24: 4.987883107 | BF24: 2.371920133 | BH24: 95.84481929 | BI24: 0.01172723413 | BJ24: 0.195120449 | BK24: 0.09975766214 | BL24: 0.04743840267 | BM24: 0.001049215719
A25: RCoutEsr | B25: =CoutEsr*1000 -> 2 | C25: mW | D25: Output Capacitor ESR | G25: 16 | H25: 12 | I25: BUCK-BST | J25: 3 | K25: 1.92 | L25: 2.133333333 | M25: 1.994805195 | N25: 0.9625 | O25: 0.0375 | P25: 0 | Q25: 1.994805195 | R25: 0.01334471133 | S25: 0 | T25: 0.01334471133 | U25: 0.3789801763 | V25: 0.0002872519481 | W25: 0.0002872519481 | X25: 0 | Y25: 0 | Z25: 0 | AA25: 1.957045215 | AB25: 0.02183114805 | AC25: 0.009856363636 | AD25: 0 | AE25: 0.03182647338 | AF25: 0.3862923649 | AG25: 0.0008505642098 | AH25: 0.0192 | AI25: 0.02005397565 | AJ25: 0.3862923649 | AK25: 0.0002835214033 | AL25: 0.05748809472 | AM25: 0 | AN25: 0.0577748922 | AO25: 1.957045215 | AP25: 0.007277049351 | AQ25: 0.02133333333 | AR25: 0.02865208321 | AS25: 0 | AT25: 0 | AU25: 0.06460621056 | AV25: 0.00119377433 | AW25: 0.59328 | AX25: 0.036 | AY25: 0.099 | AZ25: 0.0435 | BA25: 0.135 | BB25: 0.9460193726 | BC25: 23.04 | BD25: 0.960559551 | BE25: 5.020749559 | BF25: 2.498606635 | BH25: 96.0559551 | BI25: 0.01334471133 | BJ25: 0.202913635 | BK25: 0.1004149912 | BL25: 0.04997213269 | BM25: 0.00119377433 | BQ25: EFF_1 @ 25°C | BR25: Vin | BS25: Iout | BT25: Vout | BU25: Efficiency | BV25: Pdis
A26: Top Driver | B26: Input Value | C26: Units | D26: Description | G26: 17 | H26: 12 | I26: BUCK-BST | J26: 3 | K26: 2.04 | L26: 2.266666667 | M26: 2.119480519 | N26: 0.9625 | O26: 0.0375 | P26: 0 | Q26: 2.119480519 | R26: 0.0150670015 | S26: 0 | T26: 0.0150670015 | U26: 0.4026664373 | V26: 0.0003242805195 | W26: 0.0003242805195 | X26: 0 | Y26: 0 | Z26: 0 | AA26: 2.079360541 | AB26: 0.02464531948 | AC26: 0.01047238636 | AD26: 0 | AE26: 0.03529166069 | AF26: 0.4104356377 | AG26: 0.0009602072525 | AH26: 0.0204 | AI26: 0.02136431009 | AJ26: 0.4104356377 | AK26: 0.0003200690842 | AL26: 0.05748809472 | AM26: 0 | AN26: 0.05781186456 | AO26: 2.079360541 | AP26: 0.008215106494 | AQ26: 0.02266666667 | AR26: 0.03093259607 | AS26: 0 | AT26: 0 | AU26: 0.06554943301 | AV26: 0.001347659302 | AW26: 0.59328 | AX26: 0.036 | AY26: 0.099 | AZ26: 0.0435 | BA26: 0.135 | BB26: 0.9559688058 | BC26: 24.48 | BD26: 0.9624166544 | BE26: 5.053724518 | BF26: 2.628195448 | BH26: 96.24166544 | BI26: 0.0150670015 | BJ26: 0.2109498644 | BK26: 0.1010744904 | BL26: 0.05256390897 | BM26: 0.001347659302 | BQ26: Vin=10V | BR26: 9.998964 | BS26: 0.1027 | BT26: 5.121136 | BU26: 61.87068324 | BV26: 324.123657
A27: RdsonDRT | B27: =RdsonDRT -> 1.5 | C27: W | D27: Drain to Source Resistance of pullup Top FET Driver | G27: 18 | H27: 12 | I27: BUCK-BST | J27: 3 | K27: 2.16 | L27: 2.4 | M27: 2.244155844 | N27: 0.9625 | O27: 0.0375 | P27: 0 | Q27: 2.244155844 | R27: 0.01689419104 | S27: 0 | T27: 0.01689419104 | U27: 0.4263526983 | V27: 0.0003635532468 | W27: 0.0003635532468 | X27: 0 | Y27: 0 | Z27: 0 | AA27: 2.201675867 | AB27: 0.02763004675 | AC27: 0.01108840909 | AD27: 0 | AE27: 0.0389336033 | AF27: 0.4345789105 | AG27: 0.001076495328 | AH27: 0.0216 | AI27: 0.02268137861 | AJ27: 0.4345789105 | AK27: 0.000358831776 | AL27: 0.05748809472 | AM27: 0 | AN27: 0.05785107826 | AO27: 2.201675867 | AP27: 0.009210015584 | AQ27: 0.024 | AR27: 0.03327130143 | AS27: 0 | AT27: 0 | AU27: 0.06649254774 | AV27: 0.001510870636 | AW27: 0.59328 | AX27: 0.036 | AY27: 0.099 | AZ27: 0.0435 | BA27: 0.135 | BB27: 0.9662785243 | BC27: 25.92 | BD27: 0.9640605328 | BE27: 5.086807988 | BF27: 2.760692109 | BH27: 96.40605328 | BI27: 0.01689419104 | BJ27: 0.2192299093 | BK27: 0.1017361598 | BL27: 0.05521384218 | BM27: 0.001510870636 | BQ27: Vout=5.1V | BR27: 9.998667 | BS27: 0.1166 | BT27: 5.121298 | BU27: 64.72942057 | BV27: 325.3788646
A28: RdsonDRT2 | B28: =RdsonDRT2 -> 1 | C28: W | D28: Drain to Source Resistance of pulldown Top FET Driver | G28: 19 | H28: 12 | I28: BUCK-BST | J28: 3 | K28: 2.28 | L28: 2.533333333 | M28: 2.368831169 | N28: 0.9625 | O28: 0.0375 | P28: 0 | Q28: 2.368831169 | R28: 0.01882637165 | S28: 0 | T28: 0.01882637165 | U28: 0.4500389594 | V28: 0.0004050701299 | W28: 0.0004050701299 | X28: 0 | Y28: 0 | Z28: 0 | AA28: 2.323991193 | AB28: 0.03078532987 | AC28: 0.01170443182 | AD28: 0 | AE28: 0.0427529947 | AF28: 0.4587221833 | AG28: 0.001199428436 | AH28: 0.0228 | AI28: 0.02400518694 | AJ28: 0.4587221833 | AK28: 0.0003998094788 | AL28: 0.05748809472 | AM28: 0 | AN28: 0.05789253339 | AO28: 2.323991193 | AP28: 0.01026177662 | AQ28: 0.02533333333 | AR28: 0.03566831401 | AS28: 0 | AT28: 0 | AU28: 0.06743555473 | AV28: 0.001683408332 | AW28: 0.59328 | AX28: 0.036 | AY28: 0.099 | AZ28: 0.0435 | BA28: 0.135 | BB28: 0.9769494339 | BC28: 27.36 | BD28: 0.9655238318 | BE28: 5.119999976 | BF28: 2.896102354 | BH28: 96.55238318 | BI28: 0.01882637165 | BJ28: 0.2277545838 | BK28: 0.1023999995 | BL28: 0.05792204707 | BM28: 0.001683408332 | BQ28: L=3.3uH/30mOhm | BR28: 9.998766 | BS28: 0.1466 | BT28: 5.121323 | BU28: 69.88537692 | BV28: 323.5244619
A29: Bottom Driver | B29: Input Value | C29: Units | D29: Description | G29: 20 | H29: 12 | I29: BUCK-BST | J29: 3 | K29: 2.4 | L29: 2.666666667 | M29: 2.493506494 | N29: 0.9625 | O29: 0.0375 | P29: 0 | Q29: 2.493506494 | R29: 0.02086364031 | S29: 0 | T29: 0.02086364031 | U29: 0.4737252204 | V29: 0.0004488311688 | W29: 0.0004488311688 | X29: 0 | Y29: 0 | Z29: 0 | AA29: 2.446306519 | AB29: 0.03411116883 | AC29: 0.01232045455 | AD29: 0 | AE29: 0.04675056667 | AF29: 0.4828654562 | AG29: 0.001329006578 | AH29: 0.024 | AI29: 0.02533574085 | AJ29: 0.4828654562 | AK29: 0.0004430021926 | AL29: 0.05748809472 | AM29: 0 | AN29: 0.05793623009 | AO29: 2.446306519 | AP29: 0.01137038961 | AQ29: 0.02666666667 | AR29: 0.03812375266 | AS29: 0 | AT29: 0 | AU29: 0.068378454 | AV29: 0.00186527239 | AW29: 0.59328 | AX29: 0.036 | AY29: 0.099 | AZ29: 0.0435 | BA29: 0.135 | BB29: 0.9879824881 | BC29: 28.8 | BD29: 0.9668328498 | BE29: 5.153300486 | BF29: 3.034432124 | BH29: 96.68328498 | BI29: 0.02086364031 | BJ29: 0.2365247443 | BK29: 0.1030660097 | BL29: 0.06068864248 | BM29: 0.00186527239 | BQ29: 4394 Top and Bottom Fets | BR29: 9.99879 | BS29: 0.1958 | BT29: 5.12176 | BU29: 75.66251657 | BV29: 322.5719977
A30: RdsonDRB | B30: =RdsonDRB -> 1.5 | C30: W | D30: Drain to Source Resistance of pullup Bottom FET Driver | G30: 21 | H30: 12 | I30: BUCK-BST | J30: 3 | K30: 2.52 | L30: 2.8 | M30: 2.618181818 | N30: 0.9625 | O30: 0.0375 | P30: 0 | Q30: 2.618181818 | R30: 0.02300609937 | S30: 0 | T30: 0.02300609937 | U30: 0.4974114814 | V30: 0.0004948363636 | W30: 0.0004948363636 | X30: 0 | Y30: 0 | Z30: 0 | AA30: 2.568621845 | AB30: 0.03760756364 | AC30: 0.01293647727 | AD30: 0 | AE30: 0.05092708966 | AF30: 0.507008729 | AG30: 0.001465229752 | AH30: 0.0252 | AI30: 0.02667304618 | AJ30: 0.507008729 | AK30: 0.0004884099174 | AL30: 0.05748809472 | AM30: 0 | AN30: 0.05798216845 | AO30: 2.568621845 | AP30: 0.01253585455 | AQ30: 0.028 | AR30: 0.04063774031 | AS30: 0 | AT30: 0 | AU30: 0.06932124553 | AV30: 0.00205646281 | AW30: 0.59328 | AX30: 0.036 | AY30: 0.099 | AZ30: 0.0435 | BA30: 0.135 | BB30: 0.9993786887 | BC30: 30.24 | BD30: 0.9680090088 | BE30: 5.186709525 | BF30: 3.175687567 | BH30: 96.80090088 | BI30: 0.02300609937 | BJ30: 0.2455412901 | BK30: 0.1037341905 | BL30: 0.06351375133 | BM30: 0.00205646281 | BR30: 9.998766 | BS30: 0.2681 | BT30: 5.122408 | BU30: 80.95755345 | BV30: 323.0250607
A31: RdsonDRB2 | B31: 1 | C31: W | D31: Drain to Source Resistance of pulldown Bottom FET Driver | G31: 22 | H31: 12 | I31: BUCK-BST | J31: 3 | K31: 2.64 | L31: 2.933333333 | M31: 2.742857143 | N31: 0.9625 | O31: 0.0375 | P31: 0 | Q31: 2.742857143 | R31: 0.02525385649 | S31: 0 | T31: 0.02525385649 | U31: 0.5210977424 | V31: 0.0005430857143 | W31: 0.0005430857143 | X31: 0 | Y31: 0 | Z31: 0 | AA31: 2.690937171 | AB31: 0.04127451429 | AC31: 0.0135525 | AD31: 0 | AE31: 0.05528337316 | AF31: 0.5311520018 | AG31: 0.001608097959 | AH31: 0.0264 | AI31: 0.02801710881 | AJ31: 0.5311520018 | AK31: 0.0005360326531 | AL31: 0.05748809472 | AM31: 0 | AN31: 0.0580303486 | AO31: 2.690937171 | AP31: 0.01375817143 | AQ31: 0.02933333333 | AR31: 0.04321040399 | AS31: 0 | AT31: 0 | AU31: 0.07026392934 | AV31: 0.002256979592 | AW31: 0.59328 | AX31: 0.036 | AY31: 0.099 | AZ31: 0.0435 | BA31: 0.135 | BB31: 1.011139086 | BC31: 31.68 | BD31: 0.9690699341 | BE31: 5.220227098 | BF31: 3.319875034 | BH31: 96.90699341 | BI31: 0.02525385649 | BJ31: 0.2548051639 | BK31: 0.104404542 | BL31: 0.06639750067 | BM31: 0.002256979592 | BR31: 9.998704 | BS31: 0.3655 | BT31: 5.123094 | BU31: 85.41902227 | BV31: 319.6330069
A32: Deadtime | B32: Input Value | C32: Units | D32: Description | G32: 23 | H32: 12 | I32: BUCK-BST | J32: 3 | K32: 2.76 | L32: 3.066666667 | M32: 2.867532468 | N32: 0.9625 | O32: 0.0375 | P32: 0 | Q32: 2.867532468 | R32: 0.02760702468 | S32: 0 | T32: 0.02760702468 | U32: 0.5447840034 | V32: 0.0005935792208 | W32: 0.0005935792208 | X32: 0 | Y32: 0 | Z32: 0 | AA32: 2.813252497 | AB32: 0.04511202078 | AC32: 0.01416852273 | AD32: 0 | AE32: 0.05982026612 | AF32: 0.5552952746 | AG32: 0.001757611199 | AH32: 0.0276 | AI32: 0.02936793468 | AJ32: 0.5552952746 | AK32: 0.0005858703997 | AL32: 0.05748809472 | AM32: 0 | AN32: 0.05808077068 | AO32: 2.813252497 | AP32: 0.01503734026 | AQ32: 0.03066666667 | AR32: 0.0458418749 | AS32: 0 | AT32: 0 | AU32: 0.07120650541 | AV32: 0.002466822736 | AW32: 0.59328 | AX32: 0.036 | AY32: 0.099 | AZ32: 0.0435 | BA32: 0.135 | BB32: 1.023264778 | BC32: 33.12 | BD32: 0.9700302597 | BE32: 5.253853213 | BF32: 3.467001084 | BH32: 97.00302597 | BI32: 0.02760702468 | BJ32: 0.2643173518 | BK32: 0.1050770643 | BL32: 0.06934002169 | BM32: 0.002466822736 | BR32: 9.998729 | BS32: 0.4906 | BT32: 5.123817 | BU32: 88.55185027 | BV32: 324.9815318
A33: Deadtime | B33: =Deadtime*1000000000 -> 50 | C33: ns | D33: Total Deadtime | G33: 24 | H33: 12 | I33: BUCK-BST | J33: 3 | K33: 2.88 | L33: 3.2 | M33: 2.992207792 | N33: 0.9625 | O33: 0.0375 | P33: 0 | Q33: 2.992207792 | R33: 0.03006572232 | S33: 0 | T33: 0.03006572232 | U33: 0.5684702644 | V33: 0.0006463168831 | W33: 0.0006463168831 | X33: 0 | Y33: 0 | Z33: 0 | AA33: 2.935567823 | AB33: 0.04912008312 | AC33: 0.01478454545 | AD33: 0 | AE33: 0.06453865741 | AF33: 0.5794385474 | AG33: 0.001913769472 | AH33: 0.0288 | AI33: 0.03072552979 | AJ33: 0.5794385474 | AK33: 0.0006379231574 | AL33: 0.05748809472 | AM33: 0 | AN33: 0.05813343481 | AO33: 2.935567823 | AP33: 0.01637336104 | AQ33: 0.032 | AR33: 0.04853228837 | AS33: 0 | AT33: 0 | AU33: 0.07214897376 | AV33: 0.002685992242 | AW33: 0.59328 | AX33: 0.036 | AY33: 0.099 | AZ33: 0.0435 | BA33: 0.135 | BB33: 1.035756916 | BC33: 34.56 | BD33: 0.9709022365 | BE33: 5.287587874 | BF33: 3.617072486 | BH33: 97.09022365 | BI33: 0.03006572232 | BJ33: 0.2740788841 | BK33: 0.1057517575 | BL33: 0.07234144972 | BM33: 0.002685992242 | BR33: 9.998642 | BS33: 0.6455 | BT33: 5.12373 | BU33: 90.41893857 | BV33: 350.4584847
